Workbook

Sheet Benefícios
B2: Valores dos Benefícios
B4: Item | C4: Valor Base (R$) | D4: Parcela | E4: Valor Final (R$)
D5: Empregador
B6: Cesta básica | C6: 131.6 | D6: 1 | E6: =C6*D6 -> 131.6
B7: Vale refeição | C7: 325.98 | D7: 0.9 | E7: 293.382
B8: Plano de Saúde | C8: 151 | D8: 1 | E8: 151
B9: Plano Odontológico | C9: 15 | D9: 1 | E9: 15
B10: Seguro de vida em grupo | C10: 1.73 | D10: 1 | E10: 1.73
B11: Uniformes | C11: 20.77 | D11: 1 | E11: 20.77
B12: Sub-Total | E12: =SUM(E6:E11) -> 613.482

Sheet Plan2 R$ Pessoal
B2: Planilha 2 - Demonstração do Custo com Pessoal | M2: VIAÇÃO PIONEIRA
B3: Composição do Custo mensal com Pessoal | L3: Bacia/Lote: | M3: 2
H4: =H8/E8 -> 79.53786596
B5: Funções | C5: Cargo | D5: Fator de | E5: Qtde. de | F5: Salário Base | G5: Total Salário | H5: Horas extras e | I5: % Encargos | J5: Encargos | K5: Salário + Enc. | L5: Benefícios | M5: Total
D6: Utilização | E6: Funcionários | F6: (R$/mês) | G6: R$ | H6: Ad.noturno | I6: aplicáveis | J6: R$ | K6: R$/mês | L6: R$/mês | M6: R$/mês
B8: Motorista | C8: Motoristas (Miniônibus) | D8: 1.691360357 | E8: 111.6297836 | F8: 1584.595532 | G8: =E8*F8 -> 176888.0563 | H8: 8878.794763 | I8: 0.6372388556 | J8: =(G8+H8)*I8 -> 118377.8556 | K8: =G8+H8+J8 -> 304144.7066 | L8: 68482.49321 | M8: =K8+L8 -> 372627.1998
C9: Motoristas (Ônibus Básicos) | D9: 1.691360357 | E9: 800.0134489 | F9: 1584.595532 | G9: =E9*F9 -> 1267697.737 | H9: 63631.36247 | I9: 0.6372388556 | J9: =(G9+H9)*I9 -> 848374.6315 | K9: =G9+H9+J9 -> 2179703.731 | L9: 490791.2014 | M9: =K9+L9 -> 2670494.932
C10: Motoristas (Ônibus Articulados) | D10: 1.691360357 | E10: 118.395225 | F10: 1584.595532 | G10: =E10*F10 -> 187608.5445 | H10: 9416.903536 | I10: 0.6372388556 | J10: =(G10+H10)*I10 -> 125552.2711 | K10: =G10+H10+J10 -> 322577.7191 | L10: 72632.94735 | M10: =K10+L10 -> 395210.6665
C11: Sub-total Motoristas | D11: 1.691360357 | E11: =SUM(E8:E10) -> 1030.038458 | F11: =G11/E11 -> 1584.595532 | G11: =SUM(G8:G10) -> 1632194.338 | H11: =SUM(H8:H10) -> 81927.06077 | J11: =SUM(J8:J10) -> 1092304.758 | K11: =SUM(K8:K10) -> 2806426.156 | L11: =SUM(L8:L10) -> 631906.6419 | M11: =SUM(M8:M10) -> 3438332.798
E12: Custo Por Motorista incluso Horas Extras e Ad.Noturno | F12: =(G11+H11)/E11 -> 1664.133398
B13: Cobrador | C13: Cobradores ônibus básico e Artic. | D13: =D8 -> 1.691360357 | E13: 918.4086739 | F13: 865.737152 | G13: =E13*F13 -> 795100.5097 | H13: 29389.07757 | I13: =I10 -> 0.6372388556 | J13: =(G13+H13)*I13 -> 525396.801 | K13: =G13+H13+J13 -> 1349886.388 | L13: 563424.1487 | M13: =K13+L13 -> 1913310.537
C14: Sub-total Cobradores | D14: =D13 -> 1.691360357 | E14: 918.4086739 | F14: =F13 -> 865.737152 | G14: 795100.5097 | H14: 29389.07757 | I14: 0.6372388556 | J14: 525396.801 | K14: =K13 -> 1349886.388 | L14: =L13 -> 563424.1487 | M14: 1913310.537
E15: Custo Por Cobrador incluso Horas Extras e Ad.Noturno | F15: =(G14+H14)/E14 -> 897.737152
B16: Controle | C16: Fiscal | D16: 0.06239737274 | E16: 38 | F16: 1584.595532 | G16: =E16*F16 -> 60214.63022 | H16: 301.0731511 | I16: =I13 -> 0.6372388556 | J16: =(G16+H16)*I16 -> 38562.95756 | K16: =G16+H16+J16 -> 99078.66092 | L16: 23312.19016 | M16: =K16+L16 -> 122390.8511
B17: operacional | C17: Inspetores de Tráfego | D17: 0.004926108374 | E17: 3 | F17: 2548.3523 | G17: 7645.0569 | H17: 38.2252845 | I17: =I16 -> 0.6372388556 | J17: 4896.085946 | K17: 12579.36813 | L17: 1840.436065 | M17: 14419.8042
C18: Chefe de Tráfego | D18: 0.001642036125 | E18: 1 | F18: 3314.57 | G18: 3314.57 | H18: 16.57285 | I18: =I17 -> 0.6372388556 | J18: 2122.733657 | K18: 5453.876507 | L18: 613.4786884 | M18: 6067.355196
C19: Instrutor | D19: 0.001642036125 | E19: 1 | F19: 1696.37 | G19: 1696.37 | H19: 8.48185 | I19: =I18 -> 0.6372388556 | J19: 1086.397842 | K19: 2791.249692 | L19: 613.4786884 | M19: 3404.72838
C20: Programadores | D20: 0.001642036125 | E20: 1 | F20: 1372.73 | G20: 1372.73 | H20: 6.86365 | I20: =I19+0.000044% -> 0.6372392956 | J20: 879.1312857 | K20: 2258.724936 | L20: 613.4786884 | M20: 2872.203624
C21: Escaladores | D21: 0.00328407225 | E21: 2 | F21: 1372.73 | G21: 2745.46 | H21: 13.7273 | I21: =I20 -> 0.6372392956 | J21: 1758.262571 | K21: 4517.449871 | L21: 1226.957377 | M21: 5744.407248
C22: Auxiliares | D22: 0.00328407225 | E22: 2 | F22: 1026.59702 | G22: 2053.19404 | H22: 10.2659702 | I22: =I21 -> 0.6372392956 | J22: 1314.917803 | K22: 3378.377814 | L22: 1226.957377 | M22: 4605.33519
C23: Sub-total Controle Operac. | D23: =SUM(D16:D22) -> 0.07881773399 | E23: =SUM(E16:E22) -> 48 | F23: =G23/E23 -> 1646.708566 | G23: =SUM(G16:G22) -> 79042.01116 | H23: =SUM(H16:H22) -> 395.2100558 | I23: =I22 -> 0.6372392956 | J23: =SUM(J16:J22) -> 50620.48666 | K23: =SUM(K16:K22) -> 130057.7079 | L23: =SUM(L16:L22) -> 29446.97704 | M23: =SUM(M16:M22) -> 159504.6849
E24: Custo Por Controle Operacional incluso Horas Extras e Ad.Noturno | F24: =(G23+H23)/E23 -> 1654.942109
B25: Manutenção | C25: 1/2 Oficial Eletricista | D25: 0.01477832512 | E25: 9 | F25: 985.947836 | G25: =E25*F25 -> 8873.530524 | H25: 44.36765262 | I25: =I23 -> 0.6372392956 | J25: =(G25+H25)*I25 -> 5682.835152 | K25: =G25+H25+J25 -> 14600.73333 | L25: 5521.308196 | M25: =K25+L25 -> 20122.04152
C26: 1/2 Oficial Funileiro | D26: 0.01477832512 | E26: 9 | F26: 985.947836 | G26: 8873.530524 | H26: 44.36765262 | I26: =I25 -> 0.6372392956 | J26: 5682.835152 | K26: 14600.73333 | L26: 5521.308196 | M26: 20122.04152
C27: Abastecedor | D27: 0.02955665025 | E27: 18 | F27: 1347.302684 | G27: 24251.44831 | H27: 121.2572416 | I27: 0.6372392956 | J27: 15531.24572 | K27: 39903.95127 | L27: 11042.61639 | M27: 50946.56766
C28: Auxiliar Almoxarife | D28: 0.0197044335 | E28: 12 | F28: 961.200164 | G28: 11534.40197 | H28: 57.67200984 | I28: 0.6372392956 | J28: 7386.925056 | K28: 18978.99903 | L28: 7361.744261 | M28: 26340.74329
C29: Auxiliar de Serviços Gerais | D29: 0.07389162562 | E29: 45 | F29: 811.754 | G29: 36528.93 | H29: 182.64465 | I29: 0.6372392956 | J29: 23394.05797 | K29: 60105.63262 | L29: 27606.54098 | M29: 87712.1736
C30: Borracheiro | D30: 0.009852216749 | E30: 6 | F30: 1328.887568 | G30: 7973.325408 | H30: 39.86662704 | I30: 0.6372392956 | J30: 5106.320848 | K30: 13119.51288 | L30: 3680.87213 | M30: 16800.38501
C31: Comprador / Almoxarife | D31: 0.004926108374 | E31: 3 | F31: 1443.326672 | G31: 4329.980016 | H31: 21.64990008 | I31: 0.6372392956 | J31: 2773.029582 | K31: 7124.659498 | L31: 1840.436065 | M31: 8965.095564
C32: Controlador de manutenção | D32: 0.009852216749 | E32: 6 | F32: 2610.97664 | G32: 15665.85984 | H32: 78.3292992 | I32: 0.6372392956 | J32: 10032.816 | K32: 25777.00514 | L32: 3680.87213 | M32: 29457.87727
C33: Eletricista (A e B) | D33: 0.0197044335 | E33: 12 | F33: 1683.784 | G33: 20205.408 | H33: 101.02704 | I33: 0.6372392956 | J33: 12940.05836 | K33: 33246.4934 | L33: 7361.744261 | M33: 40608.23766
C34: Eletrônico | D34: 0.009852216749 | E34: 6 | F34: 1683.784 | G34: 10102.704 | H34: 50.51352 | I34: 0.6372392956 | J34: 6470.02918 | K34: 16623.2467 | L34: 3680.87213 | M34: 20304.11883
C35: Funileiro (A e B) | D35: 0.0197044335 | E35: 12 | F35: 1477.934576 | G35: 17735.21491 | H35: 88.67607456 | I35: 0.6372392956 | J35: 11358.08374 | K35: 29181.97472 | L35: 7361.744261 | M35: 36543.71898
C36: Chefe de Manutenção | D36: 0.004926108374 | E36: 3 | F36: 3314.57 | G36: 9943.71 | H36: 49.71855 | I36: 0.6372392956 | J36: 6368.205369 | K36: 16361.63392 | L36: 1840.436065 | M36: 18202.06998
C37: Lavador | D37: 0.02955665025 | E37: 18 | F37: 811.754 | G37: 14611.572 | H37: 73.05786 | I37: 0.6372392956 | J37: 9357.623187 | K37: 24042.25305 | L37: 11042.61639 | M37: 35084.86944
C38: Lubrificador | D38: 0.0197044335 | E38: 12 | F38: 1251.505244 | G38: 15018.06293 | H38: 75.09031464 | I38: 0.6372392956 | J38: 9617.95034 | K38: 24711.10358 | L38: 7361.744261 | M38: 32072.84784
C39: Manobrista | D39: 0.05747126437 | E39: 35 | F39: 1662.765532 | G39: 58196.79362 | H39: 290.9839681 | I39: 0.6372392956 | J39: =(G39+H39)*I39 -> 37270.71019 | K39: 95758.48778 | L39: 21471.75409 | M39: 117230.2419
C40: Mecânico (A, B e C) | D40: 0.04105090312 | E40: 25 | F40: 1794.943552 | G40: 44873.5888 | H40: 224.367944 | I40: 0.6372392956 | J40: =(G40+H40)*I40 -> 28738.19019 | K40: 73836.14693 | L40: 15336.96721 | M40: 89173.11414
C41: Mecânico de Revisão | D41: 0.01477832512 | E41: 9 | F41: 1794.943552 | G41: 16154.49197 | H41: 80.77245984 | I41: 0.6372392956 | J41: =(G41+H41)*I41 -> 10345.74847 | K41: 26581.01289 | L41: 5521.308196 | M41: 32102.32109
C42: Mecânico Montador | D42: 0.009852216749 | E42: 6 | F42: 1794.943552 | G42: 10769.66131 | H42: 53.84830656 | I42: 0.6372392956 | J42: 6897.165645 | K42: 17720.67526 | L42: 3680.87213 | M42: 21401.54739
C43: Moleiro | D43: 0.0197044335 | E43: 12 | F43: 1313.255756 | G43: 15759.06907 | H43: 78.79534536 | I43: 0.6372392956 | J43: 10092.50956 | K43: 25930.37398 | L43: 7361.744261 | M43: 33292.11824
C44: Pintor | D44: 0.0197044335 | E44: 12 | F44: 1477.934576 | G44: 17735.21491 | H44: 88.67607456 | I44: 0.6372392956 | J44: 11358.08374 | K44: 29181.97472 | L44: 7361.744261 | M44: =K44+L44 -> 36543.71898
C45: Sub-total Manutenção | D45: =SUM(D25:D44) -> 0.4433497537 | E45: =SUM(E25:E44) -> 270 | F45: =G45/E45 -> 1367.172215 | G45: =SUM(G25:G44) -> 369136.4981 | H45: =SUM(H25:H44) -> 1845.682491 | J45: =SUM(J25:J44) -> 236404.4234 | K45: =SUM(K25:K44) -> 607386.604 | L45: =SUM(L25:L44) -> 165639.2459 | M45: =SUM(M25:M44) -> 773025.8499
E46: Custo Por Controle Operacional incluso Horas Extras e Ad.Noturno | F46: =(G45+H45)/E45 -> 1374.008076
B47: Total | D47: =D11+D14+D23+D45 -> 3.904888202 | E47: =E11+E14+E23+E45 -> 2266.447131 | G47: =G11+G14+G23+G45-0.01 -> 2875473.347 | H47: =H11+H14+H23+H45 -> 113557.0309 | J47: =J11+J14+J23+J45 -> 1904726.469 | K47: =K11+K14+K23+K45 -> 4893756.857 | L47: =L11+L14+L23+L45 -> 1390417.014 | M47: =M11+M14+M23+M45+0.01 -> 6284173.88

Sheet Custos Variáveis ate dez-20
A1: Composição dos encargos sociais previstos | H1: Viação Pioneira
G2: Bacia (Lote): | H2: 2
A3: Combustível | D3: =1.685/(1-(F7/100*100)) -> 1.743764876
D4: média PMPF
C5: Preço: | D5: 1.685 | E5: R$/litro | F5: 0.1685 | G5: ICMS Deduzido | H5: 0.8
D6: Proposta Financeira | F6: =F5*80% -> 0.1348
F7: =F5-F6 -> 0.0337 | J7: EURO 6
A8: Combustível | F8: Lubrificante - Coeficiente custo/km c/combustível | H8: Média km/L | J8: Combustível | O8: Lubrificante - Coeficiente custo/km c/combustível | Q8: Média km/L
A9: Tipo Veículo | C9: Ar Condicionado | D9: Litros/km | E9: R$/km | F9: Coeficiente | G9: R$/km | H9: Veículo | J9: Tipo Veículo | L9: Ar Condicionado | M9: Litros/km | N9: R$/km | O9: Coeficiente | P9: R$/km | Q9: Veículo
A10: Miniônibus | C10: Sem Ar | D10: 0.2222222222 | E10: =D10*$D$5 -> 0.3744444444 | F10: 0.03 | G10: =E10*$F$10 -> 0.01123333333 | H10: =1/D10 -> 4.5 | J10: Miniônibus | L10: Sem Ar | M10: 0.2222222222 | N10: =M10*$D$5 -> 0.3744444444 | O10: 0.03 | P10: =N10*$O$10 -> 0.01123333333 | Q10: =1/M10 -> 4.5
A11: Ônibus Básico | C11: Sem Ar | D11: 0.350877193 | E11: =D11*$D$5 -> 0.5912280702 | G11: =E11*$F$10 -> 0.01773684211 | H11: =1/D11 -> 2.85 | J11: Ônibus Básico | L11: Sem Ar | M11: 0.350877193 | N11: =M11*$D$5 -> 0.5912280702 | P11: =N11*$O$10 -> 0.01773684211 | Q11: 2.85
A12: Padron | C12: Com Ar | D12: 0.5555555556 | E12: =D12*$D$5 -> 0.9361111111 | G12: =E12*$F$10 -> 0.02808333333 | H12: =1/D12 -> 1.8 | J12: Padron-BRT | L12: Com Ar | M12: 0.5555555556 | N12: =M12*$D$5 -> 0.9361111111 | P12: =N12*$O$10 -> 0.02808333333 | Q12: 1.8
A13: Articulado | C13: Com Ar | D13: 0.5847953216 | E13: =D13*$D$5 -> 0.985380117 | G13: =E13*$F$10 -> 0.02956140351 | H13: =1/D13 -> 1.71 | J13: Super Padron Conv. | L13: Com Ar | M13: 0.57389 | N13: =D5*M13 -> 0.96700465 | P13: =N13*$O$10 -> 0.0290101395 | Q13: 1.742494206
A14: Articulado BRT | C14: Com Ar | D14: 0.5847953216 | E14: =D14*$D$5 -> 0.985380117 | G14: =E14*$F$10 -> 0.02956140351 | H14: =1/D14 -> 1.71 | J14: Super Padron BRT | L14: Com Ar | M14: 0.57389 | N14: =D5*M14 -> 0.96700465 | P14: =N14*$O$10 -> 0.0290101395 | Q14: =1/M14 -> 1.742494206
J15: Articulado | L15: Com Ar | M15: 0.5847953216 | N15: =M15*$D$5 -> 0.985380117 | P15: =N15*$F$10 -> 0.02956140351 | Q15: =1/M15 -> 1.71
J16: Articulado BRT | L16: Com Ar | M16: 0.5847953216 | N16: =M16*$D$5 -> 0.985380117 | P16: =N16*$F$10 -> 0.02956140351 | Q16: =1/M16 -> 1.71
A19: Pneus | J19: Pneus | L19: EURO 6
A20: Pneus | J20: Pneus
A21: Tipo | C21: Quantidade | D21: Custo (R$) | E21: Vida | F21: Número de | G21: Custo Unitário | H21: Custo por km | J21: Tipo | L21: Quantidade | M21: Custo (R$) | N21: Vida | O21: Número de | P21: Custo Unitário | Q21: Custo por km
A22: Veículos | C22: de Pneus | D22: Unitário | E22: Útil | F22: Recapagens | G22: Recapagem (R$) | H22: (R$/km) | J22: Veículos | L22: de Pneus | M22: Unitário | N22: Útil | O22: Recapagens | P22: Recapagem (R$) | Q22: (R$/km)
A23: Miniônibus | C23: 6 | D23: 560 | E23: 90000 | F23: 0 | G23: 288 | H23: =((C23*D23+C23*F23*G23)/E23) -> 0.03733333333 | J23: Miniônibus | L23: 6 | M23: 560 | N23: 90000 | O23: 0 | P23: 288 | Q23: =((L23*M23+L23*O23*P23)/N23) -> 0.03733333333
A24: Ônibus Básico | C24: 6 | D24: 950 | E24: 190000 | F24: 2 | G24: 288 | H24: =((C24*D24+C24*F24*G24)/E24) -> 0.04818947368 | J24: Ônibus Básico | L24: 6 | M24: 950 | N24: 190000 | O24: 2 | P24: 288 | Q24: 0.04818947368
A25: Padron | C25: 6 | D25: 1720 | E25: 190000 | F25: 2 | G25: 388 | H25: =((C25*D25+C25*F25*G25)/E25) -> 0.07882105263 | J25: Padron | L25: 6 | M25: 1720 | N25: 190000 | O25: 2 | P25: 388 | Q25: 0.07882105263
A26: Articulado | C26: 10 | D26: 950 | E26: 190000 | F26: 2 | G26: 288 | H26: =((C26*D26+C26*F26*G26)/E26) -> 0.08031578947 | J26: Super Padron Conv. | L26: 6 | M26: 1720 | N26: 190000 | O26: 2 | P26: 388 | Q26: 0.07882105263
A27: Articulado BRT | C27: 10 | D27: 1720 | E27: 190000 | F27: 2 | G27: 388 | H27: =((C27*D27+C27*F27*G27)/E27) -> 0.1313684211 | J27: Super Padron BRT | L27: 6 | M27: 1720 | N27: 190000 | O27: 2 | P27: 388 | Q27: =((L27*M27+L27*O27*P27)/N27) -> 0.07882105263
J28: Articulado Conv. | L28: 10 | M28: 1720 | N28: 190000 | O28: 2 | P28: 388 | Q28: =((L28*M28+L28*O28*P28)/N28) -> 0.1313684211
J29: Articulado BRT | L29: 10 | M29: 1720 | N29: 190000 | O29: 2 | P29: 388 | Q29: =((L29*M29+L29*O29*P29)/N29) -> 0.1313684211
L30: =L26*M26 -> 10320
A31: Peças e acessórios de reposição | L31: =M29*L29 -> 17200
C32: Coeficiente do valor do veículo novo
C33: Tipo | E33: Ar Condicionado | F33: Coeficiente | G33: R$/km | J33: Peças e acessórios de reposição | N33: EURO 6
C34: Veículos | L34: Coeficiente do valor do veículo novo
C35: Miniônibus | E35: Sem Ar | F35: 7.202358616e-07 | G35: ='Custo Capital'!F9*F35 -> 0.1205171676 | L35: Tipo | N35: Ar Condicionado | O35: Coeficiente | P35: R$/km
C36: Ônibus Básico | E36: Sem Ar | F36: 7.202358616e-07 | G36: ='Custo Capital'!G9*'Custos Variáveis ate dez-20'!F36 -> 0.1678798778 | L36: Veículos
C37: Padron | E37: Com Ar | F37: 7.202358616e-07 | G37: =F37*'Custo Capital'!H13 -> 0.3245238745 | L37: Miniônibus | N37: Sem Ar | O37: =F35 -> 7.202358616e-07 | P37: ='Custo Capital'!O9*'Custos Variáveis ate dez-20'!O37 -> 0.1205171676
C38: Articulado | E38: Com Ar | F38: 7.202358616e-07 | G38: =F38*'Custo Capital'!I13 -> 0.4361677363 | L38: Ônibus Básico | N38: Sem Ar | O38: =F36 -> 7.202358616e-07 | P38: ='Custo Capital'!P9*'Custos Variáveis ate dez-20'!O38 -> 0.1678798778
C39: Articulado BRT | E39: Com Ar | F39: 7.202358616e-07 | G39: =F39*'Custo Capital'!J13 -> 0.513444838 | L39: Padron | N39: Com Ar | O39: =F37 -> 7.202358616e-07 | P39: ='Custo Capital'!Q13*'Custos Variáveis ate dez-20'!O39 -> 0.3245238745
L40: Super Padron Conv. | N40: Com Ar | O40: =F38 -> 7.202358616e-07 | P40: ='Custo Capital'!R13*'Custos Variáveis ate dez-20'!O40 -> 0.7586100283
L41: Super Padron BRT | N41: Com Ar | O41: =F39 -> 7.202358616e-07 | P41: ='Custo Capital'!S13*'Custos Variáveis ate dez-20'!O41 -> 0.4247086829
A42: Custo variável por km | L42: Articulado Conv. | N42: Com Ar | O42: =F39 -> 7.202358616e-07 | P42: ='Custo Capital'!T13*'Custos Variáveis ate dez-20'!O42 -> 0.4306219201
L43: Articulado BRT | N43: Com Ar | O43: =O42 -> 7.202358616e-07 | P43: ='Custo Capital'!U13*'Custos Variáveis ate dez-20'!O43 -> 0.513444838
C44: Tipo | E44: Ar Condicionado | F44: R$/km (total)
C45: Veículos
C46: Miniônibus | E46: Sem Ar | F46: =E10+G10+H23+G35 -> 0.5435282787
C47: Ônibus Básico | E47: Sem Ar | F47: =E11+G11+H24+G36 -> 0.8250342638
C48: Padron BRT | E48: Com Ar | F48: =E12+G12+H25+G37 -> 1.367539372
C49: Articulado | E49: Com Ar | F49: =E13+G13+H26+G38 -> 1.531425046
C50: Articulado BRT | E50: Com Ar | F50: =E14+G14+H27+G39 -> 1.65975478

Sheet Custos Variáveis jan21 a abr21
A1: Composição dos encargos sociais previstos | H1: Viação Pioneira
G2: Bacia (Lote): | H2: 2
A3: Combustível
C4: Preço Proposta Financeira | D4: 1.685
C5: Preço: | D5: =D4/(1-(F5/100*100)) -> 1.982352941 | E5: R$/litro | F5: 0.15
D6: média PMPF
J7: EURO 6
A8: Combustível | F8: Lubrificante - Coeficiente custo/km c/combustível | H8: Média km/L | J8: Combustível | O8: Lubrificante - Coeficiente custo/km c/combustível | Q8: Média km/L
A9: Tipo Veículo | C9: Ar Condicionado | D9: Litros/km | E9: R$/km | F9: Coeficiente | G9: R$/km | H9: Veículo | J9: Tipo Veículo | L9: Ar Condicionado | M9: Litros/km | N9: R$/km | O9: Coeficiente | P9: R$/km | Q9: Veículo
A10: Miniônibus | C10: Sem Ar | D10: 0.2222222222 | E10: =D10*$D$5 -> 0.4405228758 | F10: 0.03 | G10: =E10*$F$10 -> 0.01321568627 | H10: =1/D10 -> 4.5 | J10: Miniônibus | L10: Sem Ar | M10: 0.2222222222 | N10: =M10*$D$5 -> 0.4405228758 | O10: 0.03 | P10: =N10*$O$10 -> 0.01321568627 | Q10: =1/M10 -> 4.5
A11: Ônibus Básico | C11: Sem Ar | D11: 0.350877193 | E11: =D11*$D$5 -> 0.6955624355 | G11: =E11*$F$10 -> 0.02086687307 | H11: =1/D11 -> 2.85 | J11: Ônibus Básico | L11: Sem Ar | M11: 0.350877193 | N11: =M11*$D$5 -> 0.6955624355 | P11: =N11*$O$10 -> 0.02086687307 | Q11: 2.85
A12: Padron | C12: Com Ar | D12: 0.5555555556 | E12: =D12*$D$5 -> 1.10130719 | G12: =E12*$F$10 -> 0.03303921569 | H12: =1/D12 -> 1.8 | J12: Padron-BRT | L12: Com Ar | M12: 0.5555555556 | N12: =M12*$D$5 -> 1.10130719 | P12: =N12*$O$10 -> 0.03303921569 | Q12: 1.8
A13: Articulado | C13: Com Ar | D13: 0.5847953216 | E13: =D13*$D$5 -> 1.159270726 | G13: =E13*$F$10 -> 0.03477812178 | H13: =1/D13 -> 1.71 | J13: Super Padron Conv. | L13: Com Ar | M13: 0.57389 | N13: =D5*M13 -> 1.137652529 | P13: =N13*$O$10 -> 0.03412957588 | Q13: 1.742494206
A14: Articulado BRT | C14: Com Ar | D14: 0.5847953216 | E14: =D14*$D$5 -> 1.159270726 | G14: =E14*$F$10 -> 0.03477812178 | H14: =1/D14 -> 1.71 | J14: Super Padron BRT | L14: Com Ar | M14: 0.57389 | N14: =D5*M14 -> 1.137652529 | P14: =N14*$O$10 -> 0.03412957588 | Q14: 1.742494206
J15: Articulado | L15: Com Ar | M15: 0.5847953216 | N15: =M15*$D$5 -> 1.159270726 | P15: =N15*$F$10 -> 0.03477812178 | Q15: =1/M15 -> 1.71
J16: Articulado BRT | L16: Com Ar | M16: 0.5847953216 | N16: =M16*$D$5 -> 1.159270726 | P16: =N16*$F$10 -> 0.03477812178 | Q16: =1/M16 -> 1.71
A19: Pneus | J19: Pneus | L19: EURO 6
A20: Pneus | J20: Pneus
A21: Tipo | C21: Quantidade | D21: Custo (R$) | E21: Vida | F21: Número de | G21: Custo Unitário | H21: Custo por km | J21: Tipo | L21: Quantidade | M21: Custo (R$) | N21: Vida | O21: Número de | P21: Custo Unitário | Q21: Custo por km
A22: Veículos | C22: de Pneus | D22: Unitário | E22: Útil | F22: Recapagens | G22: Recapagem (R$) | H22: (R$/km) | J22: Veículos | L22: de Pneus | M22: Unitário | N22: Útil | O22: Recapagens | P22: Recapagem (R$) | Q22: (R$/km)
A23: Miniônibus | C23: 6 | D23: 560 | E23: 90000 | F23: 0 | G23: 288 | H23: =((C23*D23+C23*F23*G23)/E23) -> 0.03733333333 | J23: Miniônibus | L23: 6 | M23: 560 | N23: 90000 | O23: 0 | P23: 288 | Q23: =((L23*M23+L23*O23*P23)/N23) -> 0.03733333333
A24: Ônibus Básico | C24: 6 | D24: 950 | E24: 190000 | F24: 2 | G24: 288 | H24: =((C24*D24+C24*F24*G24)/E24) -> 0.04818947368 | J24: Ônibus Básico | L24: 6 | M24: 950 | N24: 190000 | O24: 2 | P24: 288 | Q24: 0.04818947368
A25: Padron | C25: 6 | D25: 1720 | E25: 190000 | F25: 2 | G25: 388 | H25: =((C25*D25+C25*F25*G25)/E25) -> 0.07882105263 | J25: Padron | L25: 6 | M25: 1720 | N25: 190000 | O25: 2 | P25: 388 | Q25: 0.07882105263
A26: Articulado | C26: 10 | D26: 950 | E26: 190000 | F26: 2 | G26: 288 | H26: =((C26*D26+C26*F26*G26)/E26) -> 0.08031578947 | J26: Super Padron Conv. | L26: 6 | M26: 1720 | N26: 190000 | O26: 2 | P26: 388 | Q26: 0.07882105263
A27: Articulado BRT | C27: 10 | D27: 1720 | E27: 190000 | F27: 2 | G27: 388 | H27: =((C27*D27+C27*F27*G27)/E27) -> 0.1313684211 | J27: Super Padron BRT | L27: 6 | M27: 1720 | N27: 190000 | O27: 2 | P27: 388 | Q27: 0.07882105263
J28: Articulado Conv. | L28: 10 | M28: 1720 | N28: 190000 | O28: 2 | P28: 388 | Q28: =((L28*M28+L28*O28*P28)/N28) -> 0.1313684211
J29: Articulado BRT | L29: 10 | M29: 1720 | N29: 190000 | O29: 2 | P29: 388 | Q29: =((L29*M29+L29*O29*P29)/N29) -> 0.1313684211
A31: Peças e acessórios de reposição
C32: Coeficiente do valor do veículo novo
C33: Tipo | E33: Ar Condicionado | F33: Coeficiente | G33: R$/km | J33: Peças e acessórios de reposição | N33: EURO 6
C34: Veículos | L34: Coeficiente do valor do veículo novo
C35: Miniônibus | E35: Sem Ar | F35: 7.202358616e-07 | G35: ='Custo Capital'!F9*F35 -> 0.1205171676 | L35: Tipo | N35: Ar Condicionado | O35: Coeficiente | P35: R$/km
C36: Ônibus Básico | E36: Sem Ar | F36: 7.202358616e-07 | G36: ='Custo Capital'!G9*'Custos Variáveis ate dez-20'!F36 -> 0.1678798778 | L36: Veículos
C37: Padron | E37: Com Ar | F37: 7.202358616e-07 | G37: =F37*'Custo Capital'!H13 -> 0.3245238745 | L37: Miniônibus | N37: Sem Ar | O37: =F35 -> 7.202358616e-07 | P37: ='Custo Capital'!O9*'Custos Variáveis ate dez-20'!O37 -> 0.1205171676
C38: Articulado | E38: Com Ar | F38: 7.202358616e-07 | G38: =F38*'Custo Capital'!I13 -> 0.4361677363 | L38: Ônibus Básico | N38: Sem Ar | O38: =F36 -> 7.202358616e-07 | P38: ='Custo Capital'!P9*'Custos Variáveis ate dez-20'!O38 -> 0.1678798778
C39: Articulado BRT | E39: Com Ar | F39: 7.202358616e-07 | G39: =F39*'Custo Capital'!J13 -> 0.513444838 | L39: Padron | N39: Com Ar | O39: =F37 -> 7.202358616e-07 | P39: ='Custo Capital'!Q13*'Custos Variáveis ate dez-20'!O39 -> 0.3245238745
L40: Super Padron Conv. | N40: Com Ar | O40: =F38 -> 7.202358616e-07 | P40: ='Custo Capital'!R13*'Custos Variáveis ate dez-20'!O40 -> 0.7586100283
L41: Super Padron BRT | N41: Com Ar | O41: =F39 -> 7.202358616e-07 | P41: ='Custo Capital'!S13*'Custos Variáveis ate dez-20'!O41 -> 0.4247086829
A42: Custo variável por km | L42: Articulado Conv. | N42: Com Ar | O42: =F39 -> 7.202358616e-07 | P42: ='Custo Capital'!T13*'Custos Variáveis ate dez-20'!O42 -> 0.4306219201
L43: Articulado BRT | N43: Com Ar | O43: =O42 -> 7.202358616e-07 | P43: ='Custo Capital'!U13*'Custos Variáveis ate dez-20'!O43 -> 0.513444838
C44: Tipo | E44: Ar Condicionado | F44: R$/km (total)
C45: Veículos
C46: Miniônibus | E46: Sem Ar | F46: =E10+G10+H23+G35 -> 0.611589063
C47: Ônibus Básico | E47: Sem Ar | F47: =E11+G11+H24+G36 -> 0.9324986601
C48: Padron BRT | E48: Com Ar | F48: =E12+G12+H25+G37 -> 1.537691332
C49: Articulado | E49: Com Ar | F49: =E13+G13+H26+G38 -> 1.710532373
C50: Articulado BRT | E50: Com Ar | F50: =E14+G14+H27+G39 -> 1.838862107

Sheet Custos variáveis mai21 a dez21
A1: Composição dos encargos sociais previstos | H1: Viação Pioneira
G2: Bacia (Lote): | H2: 2
A3: Combustível
C4: Preço Proposta Financeira | D4: 1.685
C5: Preço: | D5: =D4/(1-(F7/100*100)) -> 1.737113402 | E5: R$/litro | F5: 0.15 | G5: ICMS Deduzido | H5: 0.8 | J5: =D4/(1-0.15) -> 1.982352941
D6: média PMPF | F6: =F5*80% -> 0.12
F7: =F5-F6 -> 0.03 | J7: EURO 6
A8: Combustível | F8: Lubrificante - Coeficiente custo/km c/combustível | H8: Média km/L | J8: Combustível | O8: Lubrificante - Coeficiente custo/km c/combustível | Q8: Média km/L
A9: Tipo Veículo | C9: Ar Condicionado | D9: Litros/km | E9: R$/km | F9: Coeficiente | G9: R$/km | H9: Veículo | J9: Tipo Veículo | L9: Ar Condicionado | M9: Litros/km | N9: R$/km | O9: Coeficiente | P9: R$/km | Q9: Veículo
A10: Miniônibus | C10: Sem Ar | D10: 0.2222222222 | E10: =D10*$D$5 -> 0.3860252005 | F10: 0.03 | G10: =E10*$F$10 -> 0.01158075601 | H10: =1/D10 -> 4.5 | J10: Miniônibus | L10: Sem Ar | M10: 0.2222222222 | N10: =M10*$D$5 -> 0.3860252005 | O10: 0.03 | P10: =N10*$O$10 -> 0.01158075601 | Q10: =1/M10 -> 4.5
A11: Ônibus Básico | C11: Sem Ar | D11: 0.350877193 | E11: =D11*$D$5 -> 0.6095134744 | G11: =E11*$F$10 -> 0.01828540423 | H11: =1/D11 -> 2.85 | J11: Ônibus Básico | L11: Sem Ar | M11: 0.350877193 | N11: =M11*$D$5 -> 0.6095134744 | P11: =N11*$O$10 -> 0.01828540423 | Q11: 2.85
A12: Padron | C12: Com Ar | D12: 0.5555555556 | E12: =D12*$D$5 -> 0.9650630011 | G12: =E12*$F$10 -> 0.02895189003 | H12: =1/D12 -> 1.8 | J12: Padron-BRT | L12: Com Ar | M12: 0.5555555556 | N12: =M12*$D$5 -> 0.9650630011 | P12: =N12*$O$10 -> 0.02895189003 | Q12: 1.8
A13: Articulado | C13: Com Ar | D13: 0.5847953216 | E13: =D13*$D$5 -> 1.015855791 | G13: =E13*$F$10 -> 0.03047567372 | H13: =1/D13 -> 1.71 | J13: Super Padron Conv. | L13: Com Ar | M13: 0.57389 | N13: =D5*M13 -> 0.9969120103 | P13: =N13*$O$10 -> 0.02990736031 | Q13: 1.742494206
A14: Articulado BRT | C14: Com Ar | D14: 0.5847953216 | E14: =D14*$D$5 -> 1.015855791 | G14: =E14*$F$10 -> 0.03047567372 | H14: =1/D14 -> 1.71 | J14: Super Padron BRT | L14: Com Ar | M14: 0.57389 | N14: =D5*M14 -> 0.9969120103 | P14: =N14*$O$10 -> 0.02990736031 | Q14: 1.742494206
J15: Articulado | L15: Com Ar | M15: 0.5847953216 | N15: =M15*$D$5 -> 1.015855791 | P15: =N15*$F$10 -> 0.03047567372 | Q15: =1/M15 -> 1.71
J16: Articulado BRT | L16: Com Ar | M16: 0.5847953216 | N16: =M16*$D$5 -> 1.015855791 | P16: =N16*$F$10 -> 0.03047567372 | Q16: =1/M16 -> 1.71
A19: Pneus | J19: Pneus | L19: EURO 6
A20: Pneus | J20: Pneus
A21: Tipo | C21: Quantidade | D21: Custo (R$) | E21: Vida | F21: Número de | G21: Custo Unitário | H21: Custo por km | J21: Tipo | L21: Quantidade | M21: Custo (R$) | N21: Vida | O21: Número de | P21: Custo Unitário | Q21: Custo por km
A22: Veículos | C22: de Pneus | D22: Unitário | E22: Útil | F22: Recapagens | G22: Recapagem (R$) | H22: (R$/km) | J22: Veículos | L22: de Pneus | M22: Unitário | N22: Útil | O22: Recapagens | P22: Recapagem (R$) | Q22: (R$/km)
A23: Miniônibus | C23: 6 | D23: 560 | E23: 90000 | F23: 0 | G23: 288 | H23: =((C23*D23+C23*F23*G23)/E23) -> 0.03733333333 | J23: Miniônibus | L23: 6 | M23: 560 | N23: 90000 | O23: 0 | P23: 288 | Q23: =((L23*M23+L23*O23*P23)/N23) -> 0.03733333333
A24: Ônibus Básico | C24: 6 | D24: 950 | E24: 190000 | F24: 2 | G24: 288 | H24: =((C24*D24+C24*F24*G24)/E24) -> 0.04818947368 | J24: Ônibus Básico | L24: 6 | M24: 950 | N24: 190000 | O24: 2 | P24: 288 | Q24: 0.04818947368
A25: Padron | C25: 6 | D25: 1720 | E25: 190000 | F25: 2 | G25: 388 | H25: =((C25*D25+C25*F25*G25)/E25) -> 0.07882105263 | J25: Padron | L25: 6 | M25: 1720 | N25: 190000 | O25: 2 | P25: 388 | Q25: 0.07882105263
A26: Articulado | C26: 10 | D26: 950 | E26: 190000 | F26: 2 | G26: 288 | H26: =((C26*D26+C26*F26*G26)/E26) -> 0.08031578947 | J26: Super Padron Conv. | L26: 6 | M26: 1720 | N26: 190000 | O26: 2 | P26: 388 | Q26: 0.07882105263
A27: Articulado BRT | C27: 10 | D27: 1720 | E27: 190000 | F27: 2 | G27: 388 | H27: =((C27*D27+C27*F27*G27)/E27) -> 0.1313684211 | J27: Super Padron BRT | L27: 6 | M27: 1720 | N27: 190000 | O27: 2 | P27: 388 | Q27: 0.07882105263
J28: Articulado Conv. | L28: 10 | M28: 1720 | N28: 190000 | O28: 2 | P28: 388 | Q28: =((L28*M28+L28*O28*P28)/N28) -> 0.1313684211
J29: Articulado BRT | L29: 10 | M29: 1720 | N29: 190000 | O29: 2 | P29: 388 | Q29: =((L29*M29+L29*O29*P29)/N29) -> 0.1313684211
A31: Peças e acessórios de reposição
C32: Coeficiente do valor do veículo novo
C33: Tipo | E33: Ar Condicionado | F33: Coeficiente | G33: R$/km | J33: Peças e acessórios de reposição | N33: EURO 6
C34: Veículos | L34: Coeficiente do valor do veículo novo
C35: Miniônibus | E35: Sem Ar | F35: 7.202358616e-07 | G35: ='Custo Capital'!F9*F35 -> 0.1205171676 | L35: Tipo | N35: Ar Condicionado | O35: Coeficiente | P35: R$/km
C36: Ônibus Básico | E36: Sem Ar | F36: 7.202358616e-07 | G36: ='Custo Capital'!G9*'Custos Variáveis ate dez-20'!F36 -> 0.1678798778 | L36: Veículos
C37: Padron | E37: Com Ar | F37: 7.202358616e-07 | G37: =F37*'Custo Capital'!H13 -> 0.3245238745 | L37: Miniônibus | N37: Sem Ar | O37: =F35 -> 7.202358616e-07 | P37: ='Custo Capital'!O9*'Custos Variáveis ate dez-20'!O37 -> 0.1205171676
C38: Articulado | E38: Com Ar | F38: 7.202358616e-07 | G38: =F38*'Custo Capital'!I13 -> 0.4361677363 | L38: Ônibus Básico | N38: Sem Ar | O38: =F36 -> 7.202358616e-07 | P38: ='Custo Capital'!P9*'Custos Variáveis ate dez-20'!O38 -> 0.1678798778
C39: Articulado BRT | E39: Com Ar | F39: 7.202358616e-07 | G39: =F39*'Custo Capital'!J13 -> 0.513444838 | L39: Padron | N39: Com Ar | O39: =F37 -> 7.202358616e-07 | P39: ='Custo Capital'!Q13*'Custos Variáveis ate dez-20'!O39 -> 0.3245238745
L40: Super Padron Conv. | N40: Com Ar | O40: =F38 -> 7.202358616e-07 | P40: ='Custo Capital'!R13*'Custos Variáveis ate dez-20'!O40 -> 0.7586100283
L41: Super Padron BRT | N41: Com Ar | O41: =F39 -> 7.202358616e-07 | P41: ='Custo Capital'!S13*'Custos Variáveis ate dez-20'!O41 -> 0.4247086829
A42: Custo variável por km | L42: Articulado Conv. | N42: Com Ar | O42: =F39 -> 7.202358616e-07 | P42: ='Custo Capital'!T13*'Custos Variáveis ate dez-20'!O42 -> 0.4306219201
L43: Articulado BRT | N43: Com Ar | O43: =O42 -> 7.202358616e-07 | P43: ='Custo Capital'!U13*'Custos Variáveis ate dez-20'!O43 -> 0.513444838
C44: Tipo | E44: Ar Condicionado | F44: R$/km (total)
C45: Veículos
C46: Miniônibus | E46: Sem Ar | F46: =E10+G10+H23+G35 -> 0.5554564574
C47: Ônibus Básico | E47: Sem Ar | F47: =E11+G11+H24+G36 -> 0.8438682301
C48: Padron BRT | E48: Com Ar | F48: =E12+G12+H25+G37 -> 1.397359818
C49: Articulado | E49: Com Ar | F49: =E13+G13+H26+G38 -> 1.56281499
C50: Articulado BRT | E50: Com Ar | F50: =E14+G14+H27+G39 -> 1.691144723

Sheet Custos variáveis jan22 a dez22
A1: Composição dos encargos sociais previstos | H1: Viação Pioneira
G2: Bacia (Lote): | H2: 2
A3: Combustível
C4: Preço Proposta Financeira | D4: 1.685
C5: Preço: | D5: =D4/(1-(F7/100*100)) -> 1.733539095 | E5: R$/litro | F5: 0.14 | G5: ICMS Deduzido | H5: 0.8 | J5: =D4/(1-0.15) -> 1.982352941
D6: média PMPF | F6: =F5*80% -> 0.112
F7: =F5-F6 -> 0.028 | J7: EURO 6
A8: Combustível | F8: Lubrificante - Coeficiente custo/km c/combustível | H8: Média km/L | J8: Combustível | O8: Lubrificante - Coeficiente custo/km c/combustível | Q8: Média km/L
A9: Tipo Veículo | C9: Ar Condicionado | D9: Litros/km | E9: R$/km | F9: Coeficiente | G9: R$/km | H9: Veículo | J9: Tipo Veículo | L9: Ar Condicionado | M9: Litros/km | N9: R$/km | O9: Coeficiente | P9: R$/km | Q9: Veículo
A10: Miniônibus | C10: Sem Ar | D10: 0.2222222222 | E10: =D10*$D$5 -> 0.3852309099 | F10: 0.03 | G10: =E10*$F$10 -> 0.0115569273 | H10: =1/D10 -> 4.5 | J10: Miniônibus | L10: Sem Ar | M10: 0.2222222222 | N10: =M10*$D$5 -> 0.3852309099 | O10: 0.03 | P10: =N10*$O$10 -> 0.0115569273 | Q10: =1/M10 -> 4.5
A11: Ônibus Básico | C11: Sem Ar | D11: 0.350877193 | E11: =D11*$D$5 -> 0.6082593315 | G11: =E11*$F$10 -> 0.01824777994 | H11: =1/D11 -> 2.85 | J11: Ônibus Básico | L11: Sem Ar | M11: 0.350877193 | N11: =M11*$D$5 -> 0.6082593315 | P11: =N11*$O$10 -> 0.01824777994 | Q11: 2.85
A12: Padron | C12: Com Ar | D12: 0.5555555556 | E12: =D12*$D$5 -> 0.9630772748 | G12: =E12*$F$10 -> 0.02889231824 | H12: =1/D12 -> 1.8 | J12: Padron-BRT | L12: Com Ar | M12: 0.5555555556 | N12: =M12*$D$5 -> 0.9630772748 | P12: =N12*$O$10 -> 0.02889231824 | Q12: 1.8
A13: Articulado | C13: Com Ar | D13: 0.5847953216 | E13: =D13*$D$5 -> 1.013765552 | G13: =E13*$F$10 -> 0.03041296657 | H13: =1/D13 -> 1.71 | J13: Super Padron Conv. | L13: Com Ar | M13: 0.57389 | N13: =D5*M13 -> 0.994860751 | P13: =N13*$O$10 -> 0.02984582253 | Q13: 1.742494206
A14: Articulado BRT | C14: Com Ar | D14: 0.5847953216 | E14: =D14*$D$5 -> 1.013765552 | G14: =E14*$F$10 -> 0.03041296657 | H14: =1/D14 -> 1.71 | J14: Super Padron BRT | L14: Com Ar | M14: 0.57389 | N14: =D5*M14 -> 0.994860751 | P14: =N14*$O$10 -> 0.02984582253 | Q14: 1.742494206
J15: Articulado | L15: Com Ar | M15: 0.5847953216 | N15: =M15*$D$5 -> 1.013765552 | P15: =N15*$F$10 -> 0.03041296657 | Q15: =1/M15 -> 1.71
J16: Articulado BRT | L16: Com Ar | M16: 0.5847953216 | N16: =M16*$D$5 -> 1.013765552 | P16: =N16*$F$10 -> 0.03041296657 | Q16: =1/M16 -> 1.71
A19: Pneus | J19: Pneus | L19: EURO 6
A20: Pneus | J20: Pneus
A21: Tipo | C21: Quantidade | D21: Custo (R$) | E21: Vida | F21: Número de | G21: Custo Unitário | H21: Custo por km | J21: Tipo | L21: Quantidade | M21: Custo (R$) | N21: Vida | O21: Número de | P21: Custo Unitário | Q21: Custo por km
A22: Veículos | C22: de Pneus | D22: Unitário | E22: Útil | F22: Recapagens | G22: Recapagem (R$) | H22: (R$/km) | J22: Veículos | L22: de Pneus | M22: Unitário | N22: Útil | O22: Recapagens | P22: Recapagem (R$) | Q22: (R$/km)
A23: Miniônibus | C23: 6 | D23: 560 | E23: 90000 | F23: 0 | G23: 288 | H23: =((C23*D23+C23*F23*G23)/E23) -> 0.03733333333 | J23: Miniônibus | L23: 6 | M23: 560 | N23: 90000 | O23: 0 | P23: 288 | Q23: =((L23*M23+L23*O23*P23)/N23) -> 0.03733333333
A24: Ônibus Básico | C24: 6 | D24: 950 | E24: 190000 | F24: 2 | G24: 288 | H24: =((C24*D24+C24*F24*G24)/E24) -> 0.04818947368 | J24: Ônibus Básico | L24: 6 | M24: 950 | N24: 190000 | O24: 2 | P24: 288 | Q24: 0.04818947368
A25: Padron | C25: 6 | D25: 1720 | E25: 190000 | F25: 2 | G25: 388 | H25: =((C25*D25+C25*F25*G25)/E25) -> 0.07882105263 | J25: Padron | L25: 6 | M25: 1720 | N25: 190000 | O25: 2 | P25: 388 | Q25: 0.07882105263
A26: Articulado | C26: 10 | D26: 950 | E26: 190000 | F26: 2 | G26: 288 | H26: =((C26*D26+C26*F26*G26)/E26) -> 0.08031578947 | J26: Super Padron Conv. | L26: 6 | M26: 1720 | N26: 190000 | O26: 2 | P26: 388 | Q26: 0.07882105263
A27: Articulado BRT | C27: 10 | D27: 1720 | E27: 190000 | F27: 2 | G27: 388 | H27: =((C27*D27+C27*F27*G27)/E27) -> 0.1313684211 | J27: Super Padron BRT | L27: 6 | M27: 1720 | N27: 190000 | O27: 2 | P27: 388 | Q27: 0.07882105263
J28: Articulado Conv. | L28: 10 | M28: 1720 | N28: 190000 | O28: 2 | P28: 388 | Q28: =((L28*M28+L28*O28*P28)/N28) -> 0.1313684211
J29: Articulado BRT | L29: 10 | M29: 1720 | N29: 190000 | O29: 2 | P29: 388 | Q29: =((L29*M29+L29*O29*P29)/N29) -> 0.1313684211
A31: Peças e acessórios de reposição
C32: Coeficiente do valor do veículo novo
C33: Tipo | E33: Ar Condicionado | F33: Coeficiente | G33: R$/km | J33: Peças e acessórios de reposição | N33: EURO 6
C34: Veículos | L34: Coeficiente do valor do veículo novo
C35: Miniônibus | E35: Sem Ar | F35: 7.202358616e-07 | G35: ='Custo Capital'!F9*F35 -> 0.1205171676 | L35: Tipo | N35: Ar Condicionado | O35: Coeficiente | P35: R$/km
C36: Ônibus Básico | E36: Sem Ar | F36: 7.202358616e-07 | G36: ='Custo Capital'!G9*'Custos Variáveis ate dez-20'!F36 -> 0.1678798778 | L36: Veículos
C37: Padron | E37: Com Ar | F37: 7.202358616e-07 | G37: =F37*'Custo Capital'!H13 -> 0.3245238745 | L37: Miniônibus | N37: Sem Ar | O37: =F35 -> 7.202358616e-07 | P37: ='Custo Capital'!O9*'Custos Variáveis ate dez-20'!O37 -> 0.1205171676
C38: Articulado | E38: Com Ar | F38: 7.202358616e-07 | G38: =F38*'Custo Capital'!I13 -> 0.4361677363 | L38: Ônibus Básico | N38: Sem Ar | O38: =F36 -> 7.202358616e-07 | P38: ='Custo Capital'!P9*'Custos Variáveis ate dez-20'!O38 -> 0.1678798778
C39: Articulado BRT | E39: Com Ar | F39: 7.202358616e-07 | G39: =F39*'Custo Capital'!J13 -> 0.513444838 | L39: Padron | N39: Com Ar | O39: =F37 -> 7.202358616e-07 | P39: ='Custo Capital'!Q13*'Custos Variáveis ate dez-20'!O39 -> 0.3245238745
L40: Super Padron Conv. | N40: Com Ar | O40: =F38 -> 7.202358616e-07 | P40: ='Custo Capital'!R13*'Custos Variáveis ate dez-20'!O40 -> 0.7586100283
L41: Super Padron BRT | N41: Com Ar | O41: =F39 -> 7.202358616e-07 | P41: ='Custo Capital'!S13*'Custos Variáveis ate dez-20'!O41 -> 0.4247086829
A42: Custo variável por km | L42: Articulado Conv. | N42: Com Ar | O42: =F39 -> 7.202358616e-07 | P42: ='Custo Capital'!T13*'Custos Variáveis ate dez-20'!O42 -> 0.4306219201
L43: Articulado BRT | N43: Com Ar | O43: =O42 -> 7.202358616e-07 | P43: ='Custo Capital'!U13*'Custos Variáveis ate dez-20'!O43 -> 0.513444838
C44: Tipo | E44: Ar Condicionado | F44: R$/km (total)
C45: Veículos
C46: Miniônibus | E46: Sem Ar | F46: =E10+G10+H23+G35 -> 0.5546383381
C47: Ônibus Básico | E47: Sem Ar | F47: =E11+G11+H24+G36 -> 0.8425764629
C48: Padron BRT | E48: Com Ar | F48: =E12+G12+H25+G37 -> 1.39531452
C49: Articulado | E49: Com Ar | F49: =E13+G13+H26+G38 -> 1.560662045
C50: Articulado BRT | E50: Com Ar | F50: =E14+G14+H27+G39 -> 1.688991778

Sheet Custos variáveis jan23 a abr23
A1: Composição dos encargos sociais previstos | H1: Viação Pioneira
G2: Bacia (Lote): | H2: 2
A3: Combustível
C4: Preço Proposta Financeira | D4: 1.685
C5: Preço: | D5: =D4/(1-(F7/100*100)) -> 1.729979466 | E5: R$/litro | F5: 0.13 | G5: ICMS Deduzido | H5: 0.8 | J5: =D4/(1-0.15) -> 1.982352941
D6: média PMPF | F6: =F5*80% -> 0.104
F7: =F5-F6 -> 0.026 | J7: EURO 6
A8: Combustível | F8: Lubrificante - Coeficiente custo/km c/combustível | H8: Média km/L | J8: Combustível | O8: Lubrificante - Coeficiente custo/km c/combustível | Q8: Média km/L
A9: Tipo Veículo | C9: Ar Condicionado | D9: Litros/km | E9: R$/km | F9: Coeficiente | G9: R$/km | H9: Veículo | J9: Tipo Veículo | L9: Ar Condicionado | M9: Litros/km | N9: R$/km | O9: Coeficiente | P9: R$/km | Q9: Veículo
A10: Miniônibus | C10: Sem Ar | D10: 0.2222222222 | E10: =D10*$D$5 -> 0.3844398814 | F10: 0.03 | G10: =E10*$F$10 -> 0.01153319644 | H10: =1/D10 -> 4.5 | J10: Miniônibus | L10: Sem Ar | M10: 0.2222222222 | N10: =M10*$D$5 -> 0.3844398814 | O10: 0.03 | P10: =N10*$O$10 -> 0.01153319644 | Q10: =1/M10 -> 4.5
A11: Ônibus Básico | C11: Sem Ar | D11: 0.350877193 | E11: =D11*$D$5 -> 0.607010339 | G11: =E11*$F$10 -> 0.01821031017 | H11: =1/D11 -> 2.85 | J11: Ônibus Básico | L11: Sem Ar | M11: 0.350877193 | N11: =M11*$D$5 -> 0.607010339 | P11: =N11*$O$10 -> 0.01821031017 | Q11: 2.85
A12: Padron | C12: Com Ar | D12: 0.5555555556 | E12: =D12*$D$5 -> 0.9610997034 | G12: =E12*$F$10 -> 0.0288329911 | H12: =1/D12 -> 1.8 | J12: Padron-BRT | L12: Com Ar | M12: 0.5555555556 | N12: =M12*$D$5 -> 0.9610997034 | P12: =N12*$O$10 -> 0.0288329911 | Q12: 1.8
A13: Articulado | C13: Com Ar | D13: 0.5847953216 | E13: =D13*$D$5 -> 1.011683898 | G13: =E13*$F$10 -> 0.03035051695 | H13: =1/D13 -> 1.71 | J13: Super Padron Conv. | L13: Com Ar | M13: 0.57389 | N13: =D5*M13 -> 0.9928179158 | P13: =N13*$O$10 -> 0.02978453747 | Q13: 1.742494206
A14: Articulado BRT | C14: Com Ar | D14: 0.5847953216 | E14: =D14*$D$5 -> 1.011683898 | G14: =E14*$F$10 -> 0.03035051695 | H14: =1/D14 -> 1.71 | J14: Super Padron BRT | L14: Com Ar | M14: 0.57389 | N14: =D5*M14 -> 0.9928179158 | P14: =N14*$O$10 -> 0.02978453747 | Q14: 1.742494206
J15: Articulado | L15: Com Ar | M15: 0.5847953216 | N15: =M15*$D$5 -> 1.011683898 | P15: =N15*$F$10 -> 0.03035051695 | Q15: =1/M15 -> 1.71
J16: Articulado BRT | L16: Com Ar | M16: 0.5847953216 | N16: =M16*$D$5 -> 1.011683898 | P16: =N16*$F$10 -> 0.03035051695 | Q16: =1/M16 -> 1.71
A19: Pneus | J19: Pneus | L19: EURO 6
A20: Pneus | J20: Pneus
A21: Tipo | C21: Quantidade | D21: Custo (R$) | E21: Vida | F21: Número de | G21: Custo Unitário | H21: Custo por km | J21: Tipo | L21: Quantidade | M21: Custo (R$) | N21: Vida | O21: Número de | P21: Custo Unitário | Q21: Custo por km
A22: Veículos | C22: de Pneus | D22: Unitário | E22: Útil | F22: Recapagens | G22: Recapagem (R$) | H22: (R$/km) | J22: Veículos | L22: de Pneus | M22: Unitário | N22: Útil | O22: Recapagens | P22: Recapagem (R$) | Q22: (R$/km)
A23: Miniônibus | C23: 6 | D23: 560 | E23: 90000 | F23: 0 | G23: 288 | H23: =((C23*D23+C23*F23*G23)/E23) -> 0.03733333333 | J23: Miniônibus | L23: 6 | M23: 560 | N23: 90000 | O23: 0 | P23: 288 | Q23: =((L23*M23+L23*O23*P23)/N23) -> 0.03733333333
A24: Ônibus Básico | C24: 6 | D24: 950 | E24: 190000 | F24: 2 | G24: 288 | H24: =((C24*D24+C24*F24*G24)/E24) -> 0.04818947368 | J24: Ônibus Básico | L24: 6 | M24: 950 | N24: 190000 | O24: 2 | P24: 288 | Q24: 0.04818947368
A25: Padron | C25: 6 | D25: 1720 | E25: 190000 | F25: 2 | G25: 388 | H25: =((C25*D25+C25*F25*G25)/E25) -> 0.07882105263 | J25: Padron | L25: 6 | M25: 1720 | N25: 190000 | O25: 2 | P25: 388 | Q25: 0.07882105263
A26: Articulado | C26: 10 | D26: 950 | E26: 190000 | F26: 2 | G26: 288 | H26: =((C26*D26+C26*F26*G26)/E26) -> 0.08031578947 | J26: Super Padron Conv. | L26: 6 | M26: 1720 | N26: 190000 | O26: 2 | P26: 388 | Q26: 0.07882105263
A27: Articulado BRT | C27: 10 | D27: 1720 | E27: 190000 | F27: 2 | G27: 388 | H27: =((C27*D27+C27*F27*G27)/E27) -> 0.1313684211 | J27: Super Padron BRT | L27: 6 | M27: 1720 | N27: 190000 | O27: 2 | P27: 388 | Q27: 0.07882105263
J28: Articulado Conv. | L28: 10 | M28: 1720 | N28: 190000 | O28: 2 | P28: 388 | Q28: =((L28*M28+L28*O28*P28)/N28) -> 0.1313684211
J29: Articulado BRT | L29: 10 | M29: 1720 | N29: 190000 | O29: 2 | P29: 388 | Q29: =((L29*M29+L29*O29*P29)/N29) -> 0.1313684211
A31: Peças e acessórios de reposição
C32: Coeficiente do valor do veículo novo
C33: Tipo | E33: Ar Condicionado | F33: Coeficiente | G33: R$/km | J33: Peças e acessórios de reposição | N33: EURO 6
C34: Veículos | L34: Coeficiente do valor do veículo novo
C35: Miniônibus | E35: Sem Ar | F35: 7.202358616e-07 | G35: ='Custo Capital'!F9*F35 -> 0.1205171676 | L35: Tipo | N35: Ar Condicionado | O35: Coeficiente | P35: R$/km
C36: Ônibus Básico | E36: Sem Ar | F36: 7.202358616e-07 | G36: ='Custo Capital'!G9*'Custos Variáveis ate dez-20'!F36 -> 0.1678798778 | L36: Veículos
C37: Padron | E37: Com Ar | F37: 7.202358616e-07 | G37: =F37*'Custo Capital'!H13 -> 0.3245238745 | L37: Miniônibus | N37: Sem Ar | O37: =F35 -> 7.202358616e-07 | P37: ='Custo Capital'!O9*'Custos Variáveis ate dez-20'!O37 -> 0.1205171676
C38: Articulado | E38: Com Ar | F38: 7.202358616e-07 | G38: =F38*'Custo Capital'!I13 -> 0.4361677363 | L38: Ônibus Básico | N38: Sem Ar | O38: =F36 -> 7.202358616e-07 | P38: ='Custo Capital'!P9*'Custos Variáveis ate dez-20'!O38 -> 0.1678798778
C39: Articulado BRT | E39: Com Ar | F39: 7.202358616e-07 | G39: =F39*'Custo Capital'!J13 -> 0.513444838 | L39: Padron | N39: Com Ar | O39: =F37 -> 7.202358616e-07 | P39: ='Custo Capital'!Q13*'Custos Variáveis ate dez-20'!O39 -> 0.3245238745
L40: Super Padron Conv. | N40: Com Ar | O40: =F38 -> 7.202358616e-07 | P40: ='Custo Capital'!R13*'Custos Variáveis ate dez-20'!O40 -> 0.7586100283
L41: Super Padron BRT | N41: Com Ar | O41: =F39 -> 7.202358616e-07 | P41: ='Custo Capital'!S13*'Custos Variáveis ate dez-20'!O41 -> 0.4247086829
A42: Custo variável por km | L42: Articulado Conv. | N42: Com Ar | O42: =F39 -> 7.202358616e-07 | P42: ='Custo Capital'!T13*'Custos Variáveis ate dez-20'!O42 -> 0.4306219201
L43: Articulado BRT | N43: Com Ar | O43: =O42 -> 7.202358616e-07 | P43: ='Custo Capital'!U13*'Custos Variáveis ate dez-20'!O43 -> 0.513444838
C44: Tipo | E44: Ar Condicionado | F44: R$/km (total)
C45: Veículos
C46: Miniônibus | E46: Sem Ar | F46: =E10+G10+H23+G35 -> 0.5538235787
C47: Ônibus Básico | E47: Sem Ar | F47: =E11+G11+H24+G36 -> 0.8412900007
C48: Padron BRT | E48: Com Ar | F48: =E12+G12+H25+G37 -> 1.393277622
C49: Articulado | E49: Com Ar | F49: =E13+G13+H26+G38 -> 1.558517941
C50: Articulado BRT | E50: Com Ar | F50: =E14+G14+H27+G39 -> 1.686847674

Sheet Plan4 R$ Pessoal
B2: Planilha 2 - Demonstração do Custo com Pessoal de Administração | M2: VIAÇÃO PIONEIRA
B3: Composição do Custo mensal com Pessoal | L3: Bacia/Lote: | M3: 2
B5: Funções | C5: Cargo | D5: Fator de | E5: Qtde. de | F5: Salário Base | G5: Salário Total | H5: Horas extras | I5: % Encargos | J5: Encargos | K5: Salário + Enc. | L5: Benefícios | M5: Total
D6: Utilização | E6: Funcionários | F6: (R$/mês) | G6: R$ | H6: e adicional | I6: aplicáveis | J6: R$ | K6: R$/mês | L6: R$/mês | M6: R$/mês
H7: noturno
B8: Administração | C8: Gerente Adm. Financeiro | D8: 0.001642036125 | E8: 1 | F8: 4078.17 | G8: =E8*F8 -> 4078.17 | H8: 0 | I8: 0.6372388556 | J8: =(G8+H8)*I8 -> 2598.768384 | K8: =G8+J8 -> 6676.938384 | L8: =E8*Benefícios!$E$12 -> 613.482 | M8: =K8+L8-0.01 -> 7290.410384
C9: Gerente de Operação | D9: 0.001642036125 | E9: 1 | F9: 4078.17 | G9: 4078.17 | H9: 0 | I9: =I8 -> 0.6372388556 | J9: 2598.768384 | K9: 6676.938384 | L9: =E9*Benefícios!$E$12 -> 613.482 | M9: =K9+L9-0.01 -> 7290.410384
C10: Controle de Manutenção | D10: 0.001642036125 | E10: 1 | F10: 2578.17 | G10: 2578.17 | H10: 0 | I10: =I9 -> 0.6372388556 | J10: 1642.9101 | K10: 4221.0801 | L10: =E10*Benefícios!$E$12 -> 613.482 | M10: =K10+L10 -> 4834.5621
C11: Auxiliar de Contabilidade | D11: 0.001642036125 | E11: 1 | F11: 978.17 | G11: 978.17 | H11: 0 | I11: =I10 -> 0.6372388556 | J11: 623.3279313 | K11: 1601.497931 | L11: =E11*Benefícios!$E$12 -> 613.482 | M11: =K11+L11 -> 2214.979931
C12: Assistente Adm./Financeiro | D12: 0.004926108374 | E12: 3 | F12: 878.17 | G12: 2634.51 | H12: 0 | I12: =I11+0.000044% -> 0.6372392956 | J12: 1678.813297 | K12: 4313.323297 | L12: =E12*Benefícios!$E$12 -> 1840.446 | M12: =K12+L12 -> 6153.769297
C13: Contador | D13: 0.001642036125 | E13: 1 | F13: 2278.17 | G13: 2278.17 | H13: 0 | I13: =I12 -> 0.6372392956 | J13: 1451.739446 | K13: 3729.909446 | L13: =E13*Benefícios!$E$12 -> 613.482 | M13: =K13+L13 -> 4343.391446
C14: Auxiliar Adm./Financeiro | D14: 0.004926108374 | E14: 3 | F14: 798.17 | G14: 2394.51 | H14: 0 | I14: 0.6372392956 | J14: 1525.875866 | K14: 3920.385866 | L14: =E14*Benefícios!$E$12 -> 1840.446 | M14: =K14+L14 -> 5760.831866
C15: Secretária Executiva | D15: 0.001642036125 | E15: 1 | F15: 1578.17 | G15: 1578.17 | H15: 0 | I15: 0.6372392956 | J15: 1005.671939 | K15: 2583.841939 | L15: =E15*Benefícios!$E$12 -> 613.482 | M15: 3197.323939
C16: Telefonista | D16: 0.00328407225 | E16: 2 | F16: 798.17 | G16: 1596.34 | H16: 0 | I16: 0.6372392956 | J16: 1017.250577 | K16: 2613.590577 | L16: =E16*Benefícios!$E$12 -> 1226.964 | M16: 3840.554577
C17: Aux de serviços gerais | D17: 0.00328407225 | E17: 2 | F17: 798.17 | G17: 1596.34 | H17: 0 | I17: 0.6372392956 | J17: 1017.250577 | K17: 2613.590577 | L17: =E17*Benefícios!$E$12 -> 1226.964 | M17: 3840.554577
C18: Encarregado do Depto.Pessoal | D18: 0.001642036125 | E18: 1 | F18: 3278.17 | G18: 3278.17 | H18: 0 | I18: 0.6372392956 | J18: 2088.978742 | K18: 5367.148742 | L18: =E18*Benefícios!$E$12 -> 613.482 | M18: 5980.630742
C19: Auxiliar Administrativo | D19: 0.00328407225 | E19: 2 | F19: 848.17 | G19: 1696.34 | H19: 0 | I19: 0.6372392956 | J19: 1080.974507 | K19: 2777.314507 | L19: =E19*Benefícios!$E$12 -> 1226.964 | M19: 4004.278507
C20: Psicólogo | D20: 0.001642036125 | E20: 1 | F20: 3078.17 | G20: 3078.17 | H20: 0 | I20: 0.6372392956 | J20: 1961.530882 | K20: 5039.700882 | L20: =E20*Benefícios!$E$12 -> 613.482 | M20: 5653.182882
C21: Auxiliar Administrativo | D21: 0.001642036125 | E21: 1 | F21: 778.17 | G21: 778.17 | H21: 0 | I21: 0.6372392956 | J21: 495.8805026 | K21: 1274.050503 | L21: =E21*Benefícios!$E$12 -> 613.482 | M21: 1887.532503
C22: Assistente Recrut./Seleção | D22: 0.001642036125 | E22: 1 | F22: 1078.17 | G22: 1078.17 | H22: 0 | I22: 0.6372392956 | J22: 687.0522913 | K22: 1765.222291 | L22: =E22*Benefícios!$E$12 -> 613.482 | M22: 2378.704291
C23: Assistente Treinam./Capacitação | D23: 0.001642036125 | E23: 1 | F23: 1078.17 | G23: 1078.17 | H23: 0 | I23: 0.6372392956 | J23: 687.0522913 | K23: 1765.222291 | L23: =E23*Benefícios!$E$12 -> 613.482 | M23: 2378.704291
C24: Assessor Jurídico | D24: 0.001642036125 | E24: 1 | F24: 1578.17 | G24: =E24*F24 -> 1578.17 | H24: 0 | I24: 0.6372392956 | J24: 1005.671939 | K24: =G24+J24 -> 2583.841939 | L24: =E24*Benefícios!$E$12 -> 613.482 | M24: =K24+L24 -> 3197.323939
C25: Auxiliar de Compras | D25: 0.001642036125 | E25: 1 | F25: 778.17 | G25: 778.17 | H25: 0 | I25: 0.6372392956 | J25: 495.8805026 | K25: 1274.050503 | L25: =E25*Benefícios!$E$12 -> 613.482 | M25: 1887.532503
C26: Médico do Trabalho | D26: 0.001642036125 | E26: 1 | F26: 2778.17 | G26: 2778.17 | H26: 0 | I26: 0.6372392956 | J26: 1770.359094 | K26: 4548.529094 | L26: =E26*Benefícios!$E$12 -> 613.482 | M26: 5162.011094
C27: Eng. Seg. Trabalho | D27: 0.001642036125 | E27: 1 | F27: 2778.17 | G27: 2778.17 | H27: 0 | I27: 0.6372392956 | J27: 1770.359094 | K27: 4548.529094 | L27: =E27*Benefícios!$E$12 -> 613.482 | M27: 5162.011094
C28: Téc. Segurança do Trabalho | D28: 0.001642036125 | E28: 1 | F28: 2058.17 | G28: 2058.17 | H28: 0 | I28: 0.6372392956 | J28: 1311.546801 | K28: 3369.716801 | L28: =E28*Benefícios!$E$12 -> 613.482 | M28: =K28+L28-0.01 -> 3983.188801
C29: Auxiliar de CPD | D29: 0.001642036125 | E29: 1 | F29: 1278.17 | G29: 1278.17 | H29: 0 | I29: 0.6372392956 | J29: 814.5001504 | K29: 2092.67015 | L29: =E29*Benefícios!$E$12 -> 613.482 | M29: 2706.15215
C30: Técnico em Informática | D30: 0.001642036125 | E30: 1 | F30: 878.17 | G30: 878.17 | H30: 0 | I30: 0.6372392956 | J30: 559.6044322 | K30: 1437.774432 | L30: =E30*Benefícios!$E$12 -> 613.482 | M30: 2051.256432
C31: Auxiliar de Monitoramento | D31: 0.006568144499 | E31: 4 | F31: 808.17 | G31: 3232.68 | H31: 0 | I31: 0.6372392956 | J31: 2059.990726 | K31: 5292.670726 | L31: =E31*Benefícios!$E$12 -> 2453.928 | M31: =K31+L31-0.01 -> 7746.588726
C32: Porteiro | D32: 0.004926108374 | E32: 3 | F32: 878.17 | G32: 2634.51 | H32: 0 | I32: 0.6372392956 | J32: 1678.813297 | K32: 4313.323297 | L32: =E32*Benefícios!$E$12 -> 1840.446 | M32: 6153.769297
B33: Total | D33: =SUM(D8:D32) -> 0.06075533662 | E33: =SUM(E8:E32) -> 37 | F33: =G33/E33 -> 1426.278108 | G33: =SUM(G8:G32) -> 52772.29 | H33: =SUM(H8:H32) -> 0 | J33: =SUM(J8:J32)-0.02 -> 33628.55175 | K33: =SUM(K8:K32)-0.02 -> 86400.84175 | L33: =SUM(L8:L32)-0.05 -> 22698.784 | M33: =SUM(M8:M32)-0.03 -> 109099.6258
E34: Custo Por Pessoa da Administração incluso Horas Extras e Ad.Noturno | F34: =(G33+H33)/E33 -> 1426.278108
B35: Demais custos administrativos
D36: Valores | E36: Valores (R$/ano)
B37: Itens | D37: (R$/mês)
B38: Custos administrativos diversos | D38: ='Custos Diversos'!E57 -> 23700 | E38: =D38*12 -> 284400
B39: Custos de manutenção SIM e Sist. de Vigilância | D39: ='Custos Diversos'!E65 -> 81250 | E39: =D39*12 -> 975000
B40: Custos com seguros diversos | D40: 0 | E40: =D40*12 -> 0 | H40: São valores mensais variáveis em função da Resp.Civil sobre o Fato.
B41: Custos não considerados nos itens acima | D41: =E41/12 -> 195364.298 | E41: ='Custos Diversos'!G127+'Custos Diversos'!E129+'Custos Diversos'!E131 -> 2344371.576

Sheet Op.Estações
G2: BENEFICÍOS
B3: MÊS | C3: SALÁRIO | D3: ENCARGOS | E3: QTDA | F3: TOTAL FUN. | G3: CESTA | H3: P. SAÚDE | I3: P. ODOT. | J3: TOTAL BENF. | K3: TOTAL GERAL
B4: 2017-09-01 | C4: 484.11 | D4: =C4*35.08% -> 169.825788 | E4: 71 | F4: =(C4+D4)*E4 -> 46429.44095 | G4: 254.88 | H4: 233.84 | I4: 24.9 | J4: =(G4+H4+I4)*E4 -> 36467.02 | K4: =F4+J4 -> 82896.46095
B5: 2017-10-01 | C5: 484.11 | D5: 169.825788 | E5: 71 | F5: =(C5+D5)*E5 -> 46429.44095 | G5: 254.88 | H5: 233.84 | I5: 24.9 | J5: =(G5+H5+I5)*E5 -> 36467.02 | K5: =F5+J5 -> 82896.46095
B6: 2017-11-01 | C6: 484.11 | D6: 169.825788 | E6: 72 | F6: 47083.37674 | G6: 254.88 | H6: 233.84 | I6: 24.9 | J6: 36980.64 | K6: 84064.01674
B7: 2017-12-01 | C7: 484.11 | D7: 169.825788 | E7: 70 | F7: 45775.50516 | G7: 254.88 | H7: 233.84 | I7: 24.9 | J7: 35953.4 | K7: 81728.90516
B8: 2018-01-01 | C8: 484.11 | D8: 169.825788 | E8: 71 | F8: 46429.44095 | G8: 254.88 | H8: 233.84 | I8: 24.9 | J8: 36467.02 | K8: 82896.46095
B9: 2018-02-01 | C9: 484.11 | D9: 169.825788 | E9: 73 | F9: 47737.31252 | G9: 254.88 | H9: 233.84 | I9: 24.9 | J9: 37494.26 | K9: 85231.57252
B10: 2018-03-01 | C10: 484.11 | D10: 169.825788 | E10: 72 | F10: 47083.37674 | G10: 254.88 | H10: 233.84 | I10: 24.9 | J10: 36980.64 | K10: 84064.01674
B11: 2018-04-01 | C11: 484.11 | D11: =C11*35.08% -> 169.825788 | E11: 71 | F11: 46429.44095 | G11: 254.88 | H11: 233.84 | I11: 24.9 | J11: 36467.02 | K11: 82896.46095
B12: 2018-05-01 | C12: 484.11 | D12: =C12*35.08% -> 169.825788 | E12: 73 | F12: 47737.31252 | G12: 254.88 | H12: 233.84 | I12: 24.9 | J12: 37494.26 | K12: 85231.57252
B13: 2018-06-01 | C13: 484.11 | D13: =C13*35.08% -> 169.825788 | E13: 72 | F13: 47083.37674 | G13: 254.88 | H13: 233.84 | I13: 24.9 | J13: 36980.64 | K13: 84064.01674
B14: 2018-07-01 | C14: 484.11 | D14: =C14*35.08% -> 169.825788 | E14: 73 | F14: 47737.31252 | G14: 254.88 | H14: 233.84 | I14: 24.9 | J14: 37494.26 | K14: 85231.57252
B15: 2018-08-01 | C15: 690.22 | D15: 242.129176 | E15: 72 | F15: 67129.14067 | G15: 267.62 | H15: 252.08 | I15: 26.15 | J15: 39301.2 | K15: 106430.3407
B16: 2018-09-01 | C16: 690.22 | D16: 242.129176 | E16: 72 | F16: 67129.14067 | G16: 267.62 | H16: 252.08 | I16: 26.15 | J16: 39301.2 | K16: 106430.3407
B17: 2018-10-01 | C17: 690.22 | D17: 242.129176 | E17: 69 | F17: 64332.09314 | G17: 267.62 | H17: 252.08 | I17: 26.15 | J17: 37663.65 | K17: 101995.7431
B18: 2018-11-01 | C18: 690.22 | D18: 242.129176 | E18: 61 | F18: 56873.29974 | G18: 267.62 | H18: 252.08 | I18: 26.15 | J18: 33296.85 | K18: 90170.14974
B19: 2018-12-01 | C19: 690.22 | D19: 242.129176 | E19: 93 | F19: 86708.47337 | G19: 267.62 | H19: 252.08 | I19: 26.15 | J19: 50764.05 | K19: 137472.5234
B20: 2019-01-01 | C20: 656.25 | D20: 230.2125 | E20: 98 | F20: 86873.325 | G20: 267.62 | H20: 252.08 | I20: 26.15 | J20: 53493.3 | K20: 140366.625
B21: 2019-02-01 | C21: 656.25 | D21: 230.2125 | E21: 97 | F21: 85986.8625 | G21: 267.62 | H21: 252.08 | I21: 26.15 | J21: 52947.45 | K21: 138934.3125
B22: 2019-03-01 | C22: 656.25 | D22: 230.2125 | E22: 96 | F22: 85100.4 | G22: 267.62 | H22: 252.08 | I22: 26.15 | J22: 52401.6 | K22: 137502
B23: 2019-04-01 | C23: 656.25 | D23: 230.2125 | E23: 92 | F23: 81554.55 | G23: 267.62 | H23: 252.08 | I23: 26.15 | J23: 50218.2 | K23: 131772.75
B24: 2019-05-01 | C24: 656.25 | D24: 230.2125 | E24: 89 | F24: 78895.1625 | G24: 267.62 | H24: 252.08 | I24: 26.15 | J24: 48580.65 | K24: 127475.8125
B25: 2019-06-01 | C25: 656.25 | D25: 230.2125 | E25: 89 | F25: 78895.1625 | G25: 267.62 | H25: 252.08 | I25: 26.15 | J25: 48580.65 | K25: 127475.8125
B26: 2019-07-01 | C26: 656.25 | D26: 230.2125 | E26: 89 | F26: 78895.1625 | G26: 267.62 | H26: 252.08 | I26: 26.15 | J26: 48580.65 | K26: 127475.8125
B27: 2019-08-01 | C27: 656.25 | D27: 230.2125 | E27: 86 | F27: 76235.775 | G27: 283.68 | H27: 277.29 | I27: 28.77 | J27: 50717.64 | K27: 126953.415
B28: 2019-09-01 | C28: 656.25 | D28: 230.2125 | E28: 100 | F28: 88646.25 | G28: 283.68 | H28: 277.29 | I28: 28.77 | J28: 58974 | K28: 147620.25
B29: 2019-10-01 | C29: 656.25 | D29: 230.2125 | E29: 95 | F29: 84213.9375 | G29: 283.68 | H29: 277.29 | I29: 28.77 | J29: 56025.3 | K29: 140239.2375
B30: 2019-11-01 | C30: 656.25 | D30: 230.2125 | E30: 98 | F30: 86873.325 | G30: 283.68 | H30: 277.29 | I30: 28.77 | J30: 57794.52 | K30: 144667.845
B31: 2019-12-01 | C31: 656.25 | D31: 230.2125 | E31: 93 | F31: 82441.0125 | G31: 283.68 | H31: 277.29 | I31: 28.77 | J31: 54845.82 | K31: 137286.8325
B32: 2020-01-01 | C32: 682.81 | D32: 239.529748 | E32: 89 | F32: 82088.23757 | G32: 283.68 | H32: 277.29 | I32: 28.77 | J32: 52486.86 | K32: 134575.0976
B33: 2020-02-01 | C33: 687.15 | D33: 241.05222 | E33: 87 | F33: 80753.59314 | G33: 283.68 | H33: 277.29 | I33: 28.77 | J33: 51307.38 | K33: 132060.9731
B34: 2020-03-01 | C34: 687.15 | D34: 241.05222 | E34: 82 | F34: 76112.58204 | G34: 283.68 | H34: 277.29 | I34: 28.77 | J34: 48358.68 | K34: 124471.262
B35: 2020-04-01 | C35: 687.15 | D35: 241.05222 | E35: 42 | F35: 38984.49324 | G35: 283.68 | H35: 277.29 | I35: 28.77 | J35: 24769.08 | K35: 63753.57324
B36: 2020-05-01 | C36: 687.15 | D36: 241.05222 | E36: 100 | F36: 92820.222 | G36: 283.68 | H36: 277.29 | I36: 28.77 | J36: 58974 | K36: 151794.222
B37: 2020-06-01 | C37: 687.15 | D37: 241.05222 | E37: 98 | F37: 90963.81756 | G37: 283.68 | H37: 277.29 | I37: 28.77 | J37: 57794.52 | K37: 148758.3376
B38: 2020-07-01 | C38: 687.15 | D38: 241.05222 | E38: 85 | F38: 78897.1887 | G38: 283.68 | H38: 277.29 | I38: 28.77 | J38: 50127.9 | K38: 129025.0887
B39: 2020-08-01 | C39: 687.15 | D39: 241.05222 | E39: 84 | F39: 77968.98648 | G39: 283.68 | H39: 277.29 | I39: 28.77 | J39: 49538.16 | K39: 127507.1465
B40: 2020-09-01 | C40: 687.15 | D40: 241.05222 | E40: 81 | F40: 75184.37982 | G40: 283.68 | H40: 277.29 | I40: 28.77 | J40: 47768.94 | K40: 122953.3198
B41: 2020-10-01 | C41: 687.15 | D41: 241.05222 | E41: 109 | F41: 101174.042 | G41: 283.68 | H41: 277.29 | I41: 28.77 | J41: 64281.66 | K41: 165455.702
B42: 2020-11-01 | C42: 687.15 | D42: 241.05222 | E42: 103 | F42: 95604.82866 | G42: 283.68 | H42: 277.29 | I42: 28.77 | J42: 60743.22 | K42: 156348.0487
B43: 2020-12-01 | C43: 687.15 | D43: 241.05222 | E43: 98 | F43: 90963.81756 | G43: 283.68 | H43: 277.29 | I43: 28.77 | J43: 57794.52 | K43: 148758.3376
B44: 2021-01-01 | C44: 723.32 | D44: =C44*35.08% -> 253.740656 | E44: 97 | F44: =(C44+D44)*E44 -> 94774.88363 | G44: 283.68 | H44: 277.29 | I44: 28.77 | J44: =(G44+H44+I44)*E44 -> 57204.78 | K44: =F44+J44 -> 151979.6636
B45: 2021-02-01 | C45: 723.32 | D45: 253.740656 | E45: 90 | F45: 87935.45904 | G45: 283.68 | H45: 277.29 | I45: 28.77 | J45: 53076.6 | K45: 141012.059
B46: 2021-03-01 | C46: 723.32 | D46: 253.740656 | E46: 107 | F46: 104545.4902 | G46: 283.68 | H46: 277.29 | I46: 28.77 | J46: 63102.18 | K46: 167647.6702
B47: 2021-04-01 | C47: 723.32 | D47: 253.740656 | E47: 109 | F47: 106499.6115 | G47: 283.68 | H47: 277.29 | I47: 28.77 | J47: 64281.66 | K47: 170781.2715
B48: 2021-05-01 | C48: 723.32 | D48: 253.740656 | E48: 108 | F48: 105522.5508 | G48: 283.68 | H48: 277.29 | I48: 28.77 | J48: 63691.92 | K48: 169214.4708
B49: 2021-06-01 | C49: 723.32 | D49: 253.740656 | E49: 108 | F49: 105522.5508 | G49: 283.68 | H49: 277.29 | I49: 28.77 | J49: 63691.92 | K49: 169214.4708
B50: 2021-07-01 | C50: 723.32 | D50: 253.740656 | E50: 105 | F50: 102591.3689 | G50: 283.68 | H50: 277.29 | I50: 28.77 | J50: 61922.7 | K50: 164514.0689
B51: 2021-08-01 | C51: 723.32 | D51: 253.740656 | E51: 147 | F51: 143627.9164 | G51: 329.07 | H51: 310.56 | I51: 32.22 | J51: 98761.95 | K51: 242389.8664
B52: 2021-09-01 | C52: 723.32 | D52: 253.740656 | E52: 146 | F52: 142650.8558 | G52: 329.074 | H52: 310.56 | I52: 32.22 | J52: 98090.684 | K52: 240741.5398
B53: 2021-10-01 | C53: 723.32 | D53: 253.740656 | E53: 103 | F53: 100637.2476 | G53: 329.07 | H53: 310.56 | I53: 32.22 | J53: 69200.55 | K53: 169837.7976
B54: 2021-11-01 | C54: 723.32 | D54: 253.740656 | E54: 102 | F54: 99660.18691 | G54: 329.07 | H54: 310.56 | I54: 32.22 | J54: 68528.7 | K54: 168188.8869
B55: 2021-12-01 | C55: 723.32 | D55: 253.740656 | E55: 100 | F55: 97706.0656 | G55: 329.07 | H55: 310.56 | I55: 32.22 | J55: 67185 | K55: 164891.0656
B56: 2022-01-01 | C56: 797.1 | D56: 279.62268 | E56: 96 | F56: 103365.3773 | G56: 329.07 | H56: 310.56 | I56: 32.22 | J56: 64497.6 | K56: 167862.9773
B57: 2022-02-01 | C57: 797.1 | D57: 279.62268 | E57: 95 | F57: 102288.6546 | G57: 329.07 | H57: 310.56 | I57: 32.22 | J57: 63825.75 | K57: 166114.4046
B58: 2022-03-01 | C58: 797.1 | D58: 279.62268 | E58: 130 | F58: 139973.9484 | G58: 329.07 | H58: 310.56 | I58: 32.22 | J58: 87340.5 | K58: 227314.4484
B59: 2022-04-01 | C59: 797.1 | D59: 279.62268 | E59: 125 | F59: 134590.335 | G59: 329.07 | H59: 310.56 | I59: 32.22 | J59: 83981.25 | K59: 218571.585
B60: 2022-05-01 | C60: 797.1 | D60: 279.62268 | E60: 108 | F60: 116286.0494 | G60: 329.07 | H60: 310.56 | I60: 32.22 | J60: 72559.8 | K60: 188845.8494
B61: 2022-06-01 | C61: 797.1 | D61: 279.62268 | E61: 105 | F61: 113055.8814 | G61: 329.07 | H61: 310.56 | I61: 32.22 | J61: 70544.25 | K61: 183600.1314
B62: 2022-07-01 | C62: 797.1 | D62: 279.62268 | E62: 101 | F62: 108748.9907 | G62: 329.07 | H62: 310.56 | I62: 32.22 | J62: 67856.85 | K62: 176605.8407
B63: 2022-08-01 | C63: 797.1 | D63: 279.62268 | E63: 111 | F63: 119516.2175 | G63: 378.43 | H63: 350.93 | I63: 36.41 | J63: 85000.47 | K63: 204516.6875
B64: 2022-09-01 | C64: 797.1 | D64: 279.62268 | E64: 115 | F64: 123823.1082 | G64: 378.43 | H64: 350.93 | I64: 36.41 | J64: 88063.55 | K64: 211886.6582
B65: 2022-10-01 | C65: 797.1 | D65: 279.62268 | E65: 109 | F65: 117362.7721 | G65: 378.43 | H65: 350.93 | I65: 36.41 | J65: 83468.93 | K65: 200831.7021
B66: 2022-11-01 | C66: 797.1 | D66: 279.62268 | E66: 104 | F66: 111979.1587 | G66: 378.43 | H66: 350.93 | I66: 36.41 | J66: 79640.08 | K66: 191619.2387
B67: 2022-12-01 | C67: 797.1 | D67: 279.62268 | E67: 99 | F67: =(C67+D67)*E67 -> 106595.5453 | G67: 378.43 | H67: 350.93 | I67: 36.41 | J67: =(G67+H67+I67)*E67 -> 75811.23 | K67: =F67+J67 -> 182406.7753
B68: 2023-01-01 | C68: 856.42 | D68: =C68*35.08% -> 300.432136 | E68: 102 | F68: =(C68+D68)*E68 -> 117998.9179 | G68: 378.43 | H68: 350.93 | I68: 36.41 | J68: =(G68+H68+I68)*E68 -> 78108.54 | K68: =F68+J68 -> 196107.4579
B69: 2023-02-01 | C69: 856.42 | D69: =C69*35.08% -> 300.432136 | E69: 102 | F69: =(C69+D69)*E69 -> 117998.9179 | G69: 378.43 | H69: 350.93 | I69: 36.41 | J69: =(G69+H69+I69)*E69 -> 78108.54 | K69: =F69+J69 -> 196107.4579
B70: 2023-03-01 | C70: 856.42 | D70: 300.432136 | E70: 121 | F70: 139979.1085 | G70: 378.43 | H70: 350.93 | I70: 36.41 | J70: 92658.17 | K70: 232637.2785
B71: 2023-04-01 | C71: 856.42 | D71: 300.432136 | E71: 121 | F71: 139979.1085 | G71: 378.43 | H71: 350.93 | I71: 36.41 | J71: 92658.17 | K71: 232637.2785
B72: 2023-05-01 | C72: 856.42 | D72: 300.432136 | E72: 115 | F72: 133037.9956 | G72: 378.43 | H72: 350.93 | I72: 36.41 | J72: 88063.55 | K72: 221101.5456
B73: 2023-06-01 | C73: 856.42 | D73: 300.432136 | E73: 114 | F73: 131881.1435 | G73: 378.43 | H73: 350.93 | I73: 36.41 | J73: 87297.78 | K73: 219178.9235
B74: 2023-07-01 | C74: 856.42 | D74: 300.432136 | E74: 114 | F74: =(C74+D74)*E74 -> 131881.1435 | G74: 378.43 | H74: 350.93 | I74: 36.41 | J74: 87297.78 | K74: 219178.9235
B75: 2023-08-01 | C75: 856.42 | D75: 300.432136 | E75: 114 | F75: 131881.1435 | G75: 416.27 | H75: 369.63 | I75: 38.35 | J75: =(G75+H75+I75)*E75 -> 93964.5 | K75: =F75+J75 -> 225845.6435
B76: 2023-09-01 | C76: 856.42 | D76: 300.432136 | E76: 113 | F76: 130724.2914 | G76: 416.27 | H76: 369.63 | I76: 38.35 | J76: =(G76+H76+I76)*E76 -> 93140.25 | K76: =F76+J76 -> 223864.5414
B77: 2023-10-01 | C77: 856.42 | D77: 300.432136 | E77: 109 | F77: 126096.8828 | G77: 416.27 | H77: 369.63 | I77: 38.35 | J77: =(G77+H77+I77)*E77 -> 89843.25 | K77: =F77+J77 -> 215940.1328
B78: 2023-11-01 | C78: 856.42 | D78: 300.432136 | E78: 107 | F78: 123783.1786 | G78: 416.27 | H78: 369.63 | I78: 38.35 | J78: =(G78+H78+I78)*E78 -> 88194.75 | K78: =F78+J78 -> 211977.9286
B79: 2023-12-01 | C79: 856.42 | D79: 300.432136 | E79: 150 | F79: 173527.8204 | G79: 416.27 | H79: 369.63 | I79: 38.35 | J79: =(G79+H79+I79)*E79 -> 123637.5 | K79: =F79+J79 -> 297165.3204
B80: 2024-01-01 | C80: 928.75 | D80: =C80*35.08% -> 325.8055 | E80: 119 | F80: 149292.1045 | G80: 416.27 | H80: 369.63 | I80: 38.35 | J80: =(G80+H80+I80)*E80 -> 98085.75 | K80: =F80+J80 -> 247377.8545
B81: 2024-02-01 | C81: 928.75 | D81: =C81*35.08% -> 325.8055 | E81: 117 | F81: 146782.9935 | G81: 416.27 | H81: 369.63 | I81: 38.35 | J81: =(G81+H81+I81)*E81 -> 96437.25 | K81: =F81+J81 -> 243220.2435
B82: 2024-03-01 | C82: 928.75 | D82: =C82*35.08% -> 325.8055 | E82: 118 | F82: 148037.549 | G82: 416.27 | H82: 369.63 | I82: 38.35 | J82: =(G82+H82+I82)*E82 -> 97261.5 | K82: =F82+J82 -> 245299.049
B83: 2024-04-01 | C83: 928.75 | D83: 325.8055 | E83: 116 | F83: 145528.438 | G83: 416.27 | H83: 369.63 | I83: 38.35 | J83: =(G83+H83+I83)*E83 -> 95613 | K83: =F83+J83 -> 241141.438
B84: 2024-05-01 | C84: 928.75 | D84: =C84*35.08% -> 325.8055 | E84: 140 | F84: 175637.77 | G84: 416.27 | H84: 369.63 | I84: 38.35 | J84: =(G84+H84+I84)*E84 -> 115395 | K84: =F84+J84 -> 291032.77
B85: 2024-06-01 | C85: 928.75 | D85: 325.8055 | E85: 119 | F85: 149292.1045 | G85: 416.27 | H85: 369.63 | I85: 38.35 | J85: =(G85+H85+I85)*E85 -> 98085.75 | K85: =F85+J85 -> 247377.8545
B86: 2024-07-01 | C86: 928.75 | D86: =C86*35.08% -> 325.8055 | E86: 132 | F86: 165601.326 | G86: 416.27 | H86: 369.63 | I86: 38.35 | J86: =(G86+H86+I86)*E86 -> 108801 | K86: =F86+J86 -> 274402.326
B87: 2024-08-01 | C87: 989.12 | D87: =C87*35.08% -> 346.983296 | E87: 110 | F87: =(C87+D87)*E87 -> 146971.3626 | G87: 466.22 | H87: 391.81 | I87: 40.65 | J87: =(G87+H87+I87)*E87 -> 98854.8 | K87: =F87+J87 -> 245826.1626
B88: 2024-09-01 | C88: 989.12 | D88: 346.983296 | E88: 107 | F88: =(C88+D88)*E88 -> 142963.0527 | G88: 466.22 | H88: 391.81 | I88: 40.65 | J88: =(G88+H88+I88)*E88 -> 96158.76 | K88: =F88+J88 -> 239121.8127
B89: 2024-10-01 | C89: 989.12 | D89: 346.983296 | E89: 109 | F89: =(C89+D89)*E89 -> 145635.2593 | G89: 466.22 | H89: 391.81 | I89: 40.65 | J89: =(G89+H89+I89)*E89 -> 97956.12 | K89: =F89+J89 -> 243591.3793
B90: 2024-11-01 | C90: 989.12 | D90: 346.983296 | E90: 144 | F90: =(C90+D90)*E90 -> 192398.8746 | G90: 466.22 | H90: 391.81 | I90: 40.65 | J90: =(G90+H90+I90)*E90 -> 129409.92 | K90: =F90+J90 -> 321808.7946
B91: 2024-12-01 | C91: 989.12 | D91: 346.983296 | E91: 112 | F91: =(C91+D91)*E91 -> 149643.5692 | G91: 466.22 | H91: 391.81 | I91: 40.65 | J91: =(G91+H91+I91)*E91 -> 100652.16 | K91: =F91+J91 -> 250295.7292

Sheet R$ Estações
B2: DUPLO A e MENOR APRENDIZ na OPERAÇÃO
C3: Histórico | D3: INPC | E3: INPC CONTRATO
D4: Contrato | E4: Var.Mês | F4: Acumulado
C5: Licitação | D5: Nr.Índice | E5: % | F5: %
C6: 2012-09-01 | D6: 3642.12 | E6: 0 | F6: 0
C7: 2013-09-01 | D7: 3849.31 | E7: =(D7/D6)-100% -> 0.05688719757 | F7: =((1+F6)*(1+E7))-1 -> 0.05688719757
C8: 2014-09-01 | D8: 4102.9 | E8: 0.06587933941 | F8: 0.126514228
C9: 2015-09-01 | D9: 4509.24 | E9: 0.09903726632 | F9: 0.2380811176
C10: 2016-09-01 | D10: 4922.05 | E10: 0.09154757786 | F10: 0.3514244451
C11: 2017-09-01 | D11: 5002.29 | E11: 0.01630215053 | F11: 0.3734555698
C12: 2018-09-01 | D12: 5201.04 | E12: 0.03973180283 | F12: 0.4280254357
C13: 2019-09-01 | D13: 5353.09 | E13: =(D13/D12)-100% -> 0.02923453771 | F13: =((1+F12)*(1+E13))-1 -> 0.4697730992
C14: 2020-09-01 | D14: 5561.23 | E14: =(D14/D13)-100% -> 0.03888221569 | F14: =((1+F13)*(1+E14))-1 -> 0.5269211338
C15: 2021-09-01 | D15: 6160.89 | E15: =(D15/D14)-100% -> 0.1078286638 | F15: =((1+F14)*(1+E15))-1 -> 0.6915669994
C16: 2022-09-01 | D16: 6603.94 | E16: =(D16/D15)-100% -> 0.07191331123 | F16: =((1+F15)*(1+E16))-1 -> 0.8132131835
C17: 2023-09-01 | D17: 6901.51 | E17: =(D17/D16)-100% -> 0.0450594645 | F17: =((1+F16)*(1+E17))-1 -> 0.8949155986
B19: Mês | C19: R$ | D19: R$ Menor | E19: Higienização | F19: R$ | G19: Reajustes | H19: R$ Fluxo
B20: Ref. | C20: Duplo A | D20: Aprendiz | E20: Covid-19 | F20: Total | G20: à Deduzir | H20: 2012-09-01
B21: 2015-04-01 | C21: 153262.54 | D21: 0 | E21: 0 | F21: =C21+D21+E21 -> 153262.54 | G21: =F8 -> 0.126514228 | H21: =F21/(G21/100*100+1) -> 136050.2479
B22: 2015-05-01 | C22: 165389.49 | D22: 0 | E22: 0 | F22: =C22+D22+E22 -> 165389.49 | G22: =G21 -> 0.126514228 | H22: =F22/(G22/100*100+1) -> 146815.2695
B23: 2015-06-01 | C23: 101778.15 | D23: 0 | E23: 0 | F23: 101778.15 | G23: =G22 -> 0.126514228 | H23: 90347.86022
B24: 2015-07-01 | C24: 101681.45 | D24: 0 | E24: 0 | F24: 101681.45 | G24: =G23 -> 0.126514228 | H24: 90262.0202
B25: 2015-08-01 | C25: 101778.15 | D25: 0 | E25: 0 | F25: 101778.15 | G25: =G24 -> 0.126514228 | H25: 90347.86022
B26: 2015-09-01 | C26: 101778.15 | D26: 0 | E26: 0 | F26: 101778.15 | G26: =F9 -> 0.2380811176 | H26: 82206.36641
B27: 2015-10-01 | C27: 101778.15 | D27: 0 | E27: 0 | F27: 101778.15 | G27: =G26 -> 0.2380811176 | H27: 82206.36641
B28: 2015-11-01 | C28: 101778.15 | D28: 0 | E28: 0 | F28: 101778.15 | G28: 0.2380811176 | H28: 82206.36641
B29: 2015-12-01 | C29: 101778.15 | D29: 0 | E29: 0 | F29: 101778.15 | G29: 0.2380811176 | H29: 82206.36641
B30: 2016-01-01 | C30: 116433.29 | D30: 0 | E30: 0 | F30: 116433.29 | G30: 0.2380811176 | H30: 94043.34526
B31: 2016-02-01 | C31: 101879.13 | D31: 0 | E31: 0 | F31: 101879.13 | G31: 0.2380811176 | H31: 82287.92811
B32: 2016-03-01 | C32: 101879.13 | D32: 0 | E32: 0 | F32: 101879.13 | G32: 0.2380811176 | H32: 82287.92811
B33: 2016-04-01 | C33: 101879.13 | D33: 0 | E33: 0 | F33: 101879.13 | G33: 0.2380811176 | H33: 82287.92811
B34: 2016-05-01 | C34: 43662.48 | D34: 0 | E34: 0 | F34: 43662.48 | G34: 0.2380811176 | H34: 35266.25144
B35: 2016-06-01 | C35: 43662.48 | D35: 0 | E35: 0 | F35: 43662.48 | G35: 0.2380811176 | H35: 35266.25144
B36: 2016-07-01 | C36: 43662.48 | D36: 0 | E36: 0 | F36: 43662.48 | G36: 0.2380811176 | H36: 35266.25144
B37: 2016-08-01 | C37: 43662.48 | D37: 0 | E37: 0 | F37: 43662.48 | G37: 0.2380811176 | H37: 35266.25144
B38: 2016-09-01 | C38: 43662.48 | D38: 0 | E38: 0 | F38: 43662.48 | G38: =F10 -> 0.3514244451 | H38: 32308.48765
B39: 2016-10-01 | C39: 43662.48 | D39: 0 | E39: 0 | F39: 43662.48 | G39: =G38 -> 0.3514244451 | H39: 32308.48765
B40: 2016-11-01 | C40: 43662.48 | D40: 0 | E40: 0 | F40: 43662.48 | G40: 0.3514244451 | H40: 32308.48765
B41: 2016-12-01 | C41: 43662.48 | D41: 0 | E41: 0 | F41: 43662.48 | G41: 0.3514244451 | H41: 32308.48765
B42: 2017-01-01 | C42: 47900.36 | D42: 0 | E42: 0 | F42: 47900.36 | G42: 0.3514244451 | H42: 35444.34924
B43: 2017-02-01 | C43: 47900.36 | D43: 0 | E43: 0 | F43: 47900.36 | G43: 0.3514244451 | H43: 35444.34924
B44: 2017-03-01 | C44: 47900.36 | D44: 0 | E44: 0 | F44: 47900.36 | G44: 0.3514244451 | H44: 35444.34924
B45: 2017-04-01 | C45: 47900.36 | D45: 0 | E45: 0 | F45: 47900.36 | G45: 0.3514244451 | H45: 35444.34924
B46: 2017-05-01 | C46: 47900.36 | D46: 0 | E46: 0 | F46: 47900.36 | G46: 0.3514244451 | H46: 35444.34924
B47: 2017-06-01 | C47: 47900 | D47: 0 | E47: 0 | F47: 47900 | G47: 0.3514244451 | H47: 35444.08285
B48: 2017-07-01 | C48: 47900 | D48: 0 | E48: 0 | F48: 47900 | G48: 0.3514244451 | H48: 35444.08285
B49: 2017-08-01 | C49: 47900 | D49: 0 | E49: 0 | F49: 47900 | G49: 0.3514244451 | H49: 35444.08285
B50: 2017-09-01 | C50: 47900 | D50: 82896.46095 | E50: 0 | F50: 130796.4609 | G50: =F11 -> 0.3734555698 | H50: 95231.66517
B51: 2017-10-01 | C51: 47900 | D51: 82896.46095 | E51: 0 | F51: 130796.4609 | G51: =G50 -> 0.3734555698 | H51: 95231.66517
B52: 2017-11-01 | C52: 47900 | D52: 84064.01674 | E52: 0 | F52: 131964.0167 | G52: 0.3734555698 | H52: 96081.75148
B53: 2017-12-01 | C53: 47900 | D53: 81728.90516 | E53: 0 | F53: 129628.9052 | G53: 0.3734555698 | H53: 94381.57885
B54: 2018-01-01 | C54: 47900 | D54: 82896.46095 | E54: 0 | F54: 130796.4609 | G54: 0.3734555698 | H54: 95231.66517
B55: 2018-02-01 | C55: 47900 | D55: 85231.57252 | E55: 0 | F55: 133131.5725 | G55: 0.3734555698 | H55: 96931.8378
B56: 2018-03-01 | C56: 47900 | D56: 84064.01674 | E56: 0 | F56: 131964.0167 | G56: 0.3734555698 | H56: 96081.75148
B57: 2018-04-01 | C57: 47900 | D57: 82896.46095 | E57: 0 | F57: 130796.4609 | G57: 0.3734555698 | H57: 95231.66517
B58: 2018-05-01 | C58: 47900 | D58: 85231.57252 | E58: 0 | F58: 133131.5725 | G58: 0.3734555698 | H58: 96931.8378
B59: 2018-06-01 | C59: 47900 | D59: 84064.01674 | E59: 0 | F59: 131964.0167 | G59: 0.3734555698 | H59: 96081.75148
B60: 2018-07-01 | C60: 47900 | D60: 85231.57252 | E60: 0 | F60: 133131.5725 | G60: 0.3734555698 | H60: 96931.8378
B61: 2018-08-01 | C61: 47900 | D61: 106430.3407 | E61: 0 | F61: 154330.3407 | G61: 0.3734555698 | H61: 112366.4602
B62: 2018-09-01 | C62: 47900 | D62: 106430.3407 | E62: 0 | F62: 154330.3407 | G62: =F12 -> 0.4280254357 | H62: 108072.5433
B63: 2018-10-01 | C63: 47900 | D63: 101995.7431 | E63: 0 | F63: 149895.7431 | G63: =G62 -> 0.4280254357 | H63: 104967.1381
B64: 2018-11-01 | C64: 47900 | D64: 90170.14974 | E64: 0 | F64: 138070.1497 | G64: 0.4280254357 | H64: 96686.05774
B65: 2018-12-01 | C65: 47900 | D65: 137472.5234 | E65: 0 | F65: 185372.5234 | G65: 0.4280254357 | H65: 129810.3792
B66: 2019-01-01 | C66: 47900 | D66: 140366.625 | E66: 0 | F66: 188266.625 | G66: 0.4280254357 | H66: 131837.0249
B67: 2019-02-01 | C67: 49862.54 | D67: 138934.3125 | E67: 0 | F67: 188796.8525 | G67: 0.4280254357 | H67: 132208.3261
B68: 2019-03-01 | C68: 49862.54 | D68: 137502 | E68: 0 | F68: 187364.54 | G68: 0.4280254357 | H68: 131205.324
B69: 2019-04-01 | C69: 49862.54 | D69: 131772.75 | E69: 0 | F69: 181635.29 | G69: 0.4280254357 | H69: 127193.3156
B70: 2019-05-01 | C70: 49862.54 | D70: 127475.8125 | E70: 0 | F70: 177338.3525 | G70: 0.4280254357 | H70: 124184.3094
B71: 2019-06-01 | C71: 49862.54 | D71: 127475.8125 | E71: 0 | F71: 177338.3525 | G71: 0.4280254357 | H71: 124184.3094
B72: 2019-07-01 | C72: 49862.54 | D72: 127475.8125 | E72: 0 | F72: 177338.3525 | G72: 0.4280254357 | H72: 124184.3094
B73: 2019-08-01 | C73: 49862.54 | D73: 126953.415 | E73: 0 | F73: 176815.955 | G73: 0.4280254357 | H73: 123818.4913
B74: 2019-09-01 | C74: 49862.54 | D74: 147620.25 | E74: 0 | F74: 197482.79 | G74: =F13 -> 0.4697730992 | H74: 134362.7735
B75: 2019-10-01 | C75: 49862.54 | D75: 140239.2375 | E75: 0 | F75: 190101.7775 | G75: =G74 -> 0.4697730992 | H75: 129340.9014
B76: 2019-11-01 | C76: 49862.54 | D76: 144667.845 | E76: 0 | F76: 194530.385 | G76: 0.4697730992 | H76: 132354.0247
B77: 2019-12-01 | C77: 49862.54 | D77: 137286.8325 | E77: 0 | F77: 187149.3725 | G77: 0.4697730992 | H77: 127332.1526
B78: 2020-01-01 | C78: 52196.69 | D78: 134575.0976 | E78: 0 | F78: 186771.7876 | G78: 0.4697730992 | H78: 127075.2524
B79: 2020-02-01 | C79: 60315.55 | D79: 132060.9731 | E79: 0 | F79: 192376.5231 | G79: 0.4697730992 | H79: 130888.5863
B80: 2020-03-01 | C80: 95686.61 | D80: 124471.262 | E80: 0 | F80: 220157.872 | G80: 0.4697730992 | H80: 149790.3807
B81: 2020-04-01 | C81: 86996.5 | D81: 63753.57324 | E81: 0 | F81: 150750.0732 | G81: 0.4697730992 | H81: 102566.9019
B82: 2020-05-01 | C82: 20879.17 | D82: 151794.222 | E82: 0 | F82: 172673.392 | G82: 0.4697730992 | H82: 117483.0265
B83: 2020-06-01 | C83: 0 | D83: 148758.3376 | E83: 0 | F83: 148758.3376 | G83: 0.4697730992 | H83: 101211.7705 | I83: Lei nº 6.577 de 20/05/2020 (Higienização durante Covid-19)
B84: 2020-07-01 | C84: 0 | D84: 129025.0887 | E84: 0 | F84: 129025.0887 | G84: 0.4697730992 | H84: 87785.71929 | I84: Euroseg - Limpeza e Desinfecção durante Pandemia (Custo não constante na Proposta da Licitação)
B85: 2020-08-01 | C85: 0 | D85: 127507.1465 | E85: 0 | F85: 127507.1465 | G85: 0.4697730992 | H85: 86752.94612 | I85: 95819.6
B86: 2020-09-01 | C86: 0 | D86: 122953.3198 | E86: 0 | F86: =C86+D86+E86 -> 122953.3198 | G86: =F14 -> 0.5269211338 | H86: =F86/(G86/100*100+1) -> 80523.68724 | I86: 181049.39
B87: 2020-10-01 | C87: 0 | D87: =Op.Estações!K41 -> 165455.702 | E87: 0 | F87: 165455.702 | G87: 0.5269211338 | H87: 108359.0359 | I87: 195632.12
B88: 2020-11-01 | C88: 0 | D88: =Op.Estações!K42 -> 156348.0487 | E88: 0 | F88: 156348.0487 | G88: 0.5269211338 | H88: 102394.3183 | I88: 235640.52
B89: 2020-12-01 | C89: 0 | D89: =Op.Estações!K43 -> 148758.3376 | E89: 0 | F89: 148758.3376 | G89: 0.5269211338 | H89: 97423.72036 | I89: 254192.38
B90: 2021-01-01 | C90: 0 | D90: =Op.Estações!K44 -> 151979.6636 | E90: 0 | F90: 151979.6636 | G90: 0.5269211338 | H90: 99533.40763 | I90: 255349.48
B91: 2021-02-01 | C91: 0 | D91: =Op.Estações!K45 -> 141012.059 | E91: 0 | F91: 141012.059 | G91: 0.5269211338 | H91: 92350.5844 | I91: 260363.58
B92: 2021-03-01 | C92: 0 | D92: =Op.Estações!K46 -> 167647.6702 | E92: 0 | F92: 167647.6702 | G92: 0.5269211338 | H92: =F92/(G92/100*100+1) -> 109794.5837 | I92: 284214.97
B93: 2021-04-01 | C93: 0 | D93: =Op.Estações!K47 -> 170781.2715 | E93: 0 | F93: =C93+D93+E93 -> 170781.2715 | G93: 0.5269211338 | H93: 111846.8189 | I93: 315472.16
B94: 2021-05-01 | C94: 0 | D94: =Op.Estações!K48 -> 169214.4708 | E94: 0 | F94: =C94+D94+E94 -> 169214.4708 | G94: 0.5269211338 | H94: 110820.7013 | I94: 353759.66
B95: 2021-06-01 | C95: 0 | D95: =Op.Estações!K49 -> 169214.4708 | E95: 0 | F95: =C95+D95+E95 -> 169214.4708 | G95: 0.5269211338 | H95: 110820.7013 | I95: 283542.82
B96: 2021-07-01 | C96: 0 | D96: =Op.Estações!K50 -> 164514.0689 | E96: 0 | F96: =C96+D96+E96 -> 164514.0689 | G96: 0.5269211338 | H96: 107742.3485 | I96: 283542.82
B97: 2021-08-01 | C97: 0 | D97: =Op.Estações!K51 -> 242389.8664 | E97: 0 | F97: =C97+D97+E97 -> 242389.8664 | G97: 0.5269211338 | H97: 158744.1951 | I97: 283542.82
B98: 2021-09-01 | C98: 0 | D98: =Op.Estações!K52 -> 240741.5398 | E98: 0 | F98: 240741.5398 | G98: =F15 -> 0.6915669994 | H98: 142318.6547
B99: 2021-10-01 | C99: 0 | D99: =Op.Estações!K53 -> 169837.7976 | E99: 0 | F99: 169837.7976 | G99: 0.6915669994 | H99: 100402.643
B100: 2021-11-01 | C100: 0 | D100: =Op.Estações!K54 -> 168188.8869 | E100: 0 | F100: 168188.8869 | G100: 0.6915669994 | H100: 99427.86007
B101: 2021-12-01 | C101: 0 | D101: =Op.Estações!K55 -> 164891.0656 | E101: 0 | F101: 164891.0656 | G101: 0.6915669994 | H101: 97478.29418
B102: 2022-01-01 | C102: 0 | D102: =Op.Estações!K56 -> 167862.9773 | E102: 0 | F102: 167862.9773 | G102: 0.6915669994 | H102: 99235.19277
B103: 2022-02-01 | C103: 0 | D103: =Op.Estações!K57 -> 166114.4046 | E103: 0 | F103: 166114.4046 | G103: 0.6915669994 | H103: 98201.49285
B104: 2022-03-01 | C104: 0 | D104: =Op.Estações!K58 -> 227314.4484 | E104: 0 | F104: 227314.4484 | G104: 0.6915669994 | H104: 134380.9902
B105: 2022-04-01 | C105: 0 | D105: =Op.Estações!K59 -> 218571.585 | E105: 0 | F105: 218571.585 | G105: 0.6915669994 | H105: 129212.4906
B106: 2022-05-01 | C106: 0 | D106: =Op.Estações!K60 -> 188845.8494 | E106: 0 | F106: 188845.8494 | G106: 0.6915669994 | H106: 111639.5919
B107: 2022-06-01 | C107: 0 | D107: =Op.Estações!K61 -> 183600.1314 | E107: 0 | F107: 183600.1314 | G107: 0.6915669994 | H107: 108538.4921
B108: 2022-07-01 | C108: 0 | D108: =Op.Estações!K62 -> 176605.8407 | E108: 0 | F108: 176605.8407 | G108: 0.6915669994 | H108: 104403.6924
B109: 2022-08-01 | C109: 0 | D109: =Op.Estações!K63 -> 204516.6875 | E109: 0 | F109: 204516.6875 | G109: 0.6915669994 | H109: 120903.6873
B110: 2022-09-01 | C110: 0 | D110: =Op.Estações!K64 -> 211886.6582 | E110: 0 | F110: 211886.6582 | G110: =F16 -> 0.8132131835 | H110: 116857.0029
B111: 2022-10-01 | C111: 0 | D111: =Op.Estações!K65 -> 200831.7021 | E111: 0 | F111: 200831.7021 | G111: 0.8132131835 | H111: 110760.1158
B112: 2022-11-01 | C112: 0 | D112: =Op.Estações!K66 -> 191619.2387 | E112: 0 | F112: 191619.2387 | G112: 0.8132131835 | H112: 105679.3765
B113: 2022-12-01 | C113: 0 | D113: =Op.Estações!K67 -> 182406.7753 | E113: 0 | F113: 182406.7753 | G113: 0.8132131835 | H113: 100598.6373
B114: =Op.Estações!B68 -> 2023-01-01 | C114: 0 | D114: =Op.Estações!K68 -> 196107.4579 | E114: 0 | F114: 196107.4579 | G114: 0.8132131835 | H114: 108154.6614
B115: =Op.Estações!B69 -> 2023-02-01 | C115: 0 | D115: =Op.Estações!K69 -> 196107.4579 | E115: 0 | F115: 196107.4579 | G115: 0.8132131835 | H115: 108154.6614
B116: =Op.Estações!B70 -> 2023-03-01 | C116: 0 | D116: =Op.Estações!K70 -> 232637.2785 | E116: 0 | F116: 232637.2785 | G116: =G115 -> 0.8132131835 | H116: 128301.1179
B117: =Op.Estações!B71 -> 2023-04-01 | C117: 0 | D117: =Op.Estações!K71 -> 232637.2785 | E117: 0 | F117: 232637.2785 | G117: 0.8132131835 | H117: 128301.1179
B118: =Op.Estações!B72 -> 2023-05-01 | C118: 0 | D118: =Op.Estações!K72 -> 221101.5456 | E118: 0 | F118: 221101.5456 | G118: 0.8132131835 | H118: 121939.079
B119: =Op.Estações!B73 -> 2023-06-01 | C119: 0 | D119: =Op.Estações!K73 -> 219178.9235 | E119: 0 | F119: 219178.9235 | G119: 0.8132131835 | H119: 120878.7392
B120: =Op.Estações!B74 -> 2023-07-01 | C120: 0 | D120: =Op.Estações!K74 -> 219178.9235 | E120: 0 | F120: 219178.9235 | G120: 0.8132131835 | H120: 120878.7392
B121: =Op.Estações!B75 -> 2023-08-01 | C121: 0 | D121: =Op.Estações!K75 -> 225845.6435 | E121: 0 | F121: 225845.6435 | G121: 0.8132131835 | H121: 124555.4828
B122: =Op.Estações!B76 -> 2023-09-01 | C122: 0 | D122: =Op.Estações!K76 -> 223864.5414 | E122: 0 | F122: 223864.5414 | G122: =F16 -> 0.8132131835 | H122: =F122/(G122/100*100+1) -> 123462.8909
B123: =Op.Estações!B77 -> 2023-10-01 | C123: 0 | D123: =Op.Estações!K77 -> 215940.1328 | E123: 0 | F123: 215940.1328 | G123: =F17 -> 0.8949155986 | H123: 113957.6522
B124: =Op.Estações!B78 -> 2023-11-01 | C124: 0 | D124: =Op.Estações!K78 -> 211977.9286 | E124: 0 | F124: 211977.9286 | G124: =G123 -> 0.8949155986 | H124: 111866.6862
B125: =Op.Estações!B79 -> 2023-12-01 | C125: 0 | D125: =Op.Estações!K79 -> 297165.3204 | E125: 0 | F125: 297165.3204 | G125: 0.8949155986 | H125: 156822.4572
B126: =Op.Estações!B80 -> 2024-01-01 | C126: 0 | D126: =Op.Estações!K80 -> 247377.8545 | E126: 0 | F126: 247377.8545 | G126: 0.8949155986 | H126: 130548.2179
B127: =Op.Estações!B81 -> 2024-02-01 | C127: 0 | D127: =Op.Estações!K81 -> 243220.2435 | E127: 0 | F127: 243220.2435 | G127: 0.8949155986 | H127: 128354.1302
B128: =Op.Estações!B82 -> 2024-03-01 | C128: 0 | D128: =Op.Estações!K82 -> 245299.049 | E128: 0 | F128: =C128+D128+E128 -> 245299.049 | G128: 0.8949155986 | H128: =F128/(G128/100*100+1) -> 129451.1741
B129: =Op.Estações!B83 -> 2024-04-01 | C129: 0 | D129: 241141.438 | E129: 0 | F129: 241141.438 | G129: 0.8949155986 | H129: 127257.0864
B130: =Op.Estações!B84 -> 2024-05-01 | C130: 0 | D130: 291032.77 | E130: 0 | F130: 291032.77 | G130: 0.8949155986 | H130: 153586.1387
B131: =Op.Estações!B85 -> 2024-06-01 | C131: 0 | D131: 247377.8545 | E131: 0 | F131: 247377.8545 | G131: 0.8949155986 | H131: 130548.2179
B132: =Op.Estações!B86 -> 2024-07-01 | C132: 0 | D132: 274402.326 | E132: 0 | F132: 274402.326 | G132: 0.8949155986 | H132: 144809.7879
B133: =Op.Estações!B87 -> 2024-08-01 | C133: 0 | D133: 245826.1626 | E133: 0 | F133: 245826.1626 | G133: 0.8949155986 | H133: 129729.3466
B134: =Op.Estações!B88 -> 2024-09-01 | C134: 0 | D134: 239121.8127 | E134: 0 | F134: 239121.8127 | G134: 0.8949155986 | H134: 126191.2736
B135: =Op.Estações!B89 -> 2024-10-01 | C135: 0 | D135: 243591.3793 | E135: 0 | F135: 243591.3793 | G135: 0.8949155986 | H135: 128549.989
B136: =Op.Estações!B90 -> 2024-11-01 | C136: 0 | D136: 321808.7946 | E136: 0 | F136: 321808.7946 | G136: 0.8949155986 | H136: 169827.5083
B137: =Op.Estações!B91 -> 2024-12-01 | C137: 0 | D137: 250295.7292 | E137: 0 | F137: 250295.7292 | G137: 0.8949155986 | H137: 132088.062
D139: 241141.438 | E139: 0 | F139: 241141.438 | G139: 0.8949155986 | H139: 127257.0864
D140: 291032.77 | E140: 0 | F140: 291032.77 | G140: 0.8949155986 | H140: 153586.1387
D141: 247377.8545 | E141: 0 | F141: 247377.8545 | G141: 0.8949155986 | H141: 130548.2179
D142: 274402.326 | E142: 0 | F142: 274402.326 | G142: 0.8949155986 | H142: 144809.7879
D143: 245826.1626 | E143: 0 | F143: 245826.1626 | G143: 0.8949155986 | H143: 129729.3466
D144: 239121.8127 | E144: 0 | F144: 239121.8127 | G144: 0.8949155986 | H144: 126191.2736
D145: 243591.3793 | E145: 0 | F145: 243591.3793 | G145: 0.8949155986 | H145: 128549.989
D146: 321808.7946 | E146: 0 | F146: 321808.7946 | G146: 0.8949155986 | H146: 169827.5083
D147: 250295.7292 | E147: 0 | F147: 250295.7292 | G147: 0.8949155986 | H147: 132088.062

Sheet Custos Diversos
G1: Pioneira | H1: Bacia 2
B2: Terreno e Garagem
B3: Tipo de Ônibus | C3: Área total | D3: R$ metro | E3: Qtde. | F3: R$ | G3: Custo do Terreno | I3: Custo Edific.Garagens | K3: R$ Revenda | M3: Depreciação Edificações Garagens
C4: (m2/ Veíc. | D4: Cúbico | E4: Veículos | F4: Total | G4: % | H4: R$ | I4: % | J4: R$ | K4: do Terreno | M4: % | N4: Vida útil | O4: R$ Deprec.Ano
B5: Miniônibus | C5: 80 | D5: 70.9 | E5: =Q.Frota!C5 -> 54 | F5: =$D$5*C5*E5 -> 306288 | G5: 0.8 | H5: =F10*G5 -> 3876244.8 | I5: 0.2 | J5: =F10*I5 -> 969061.2 | K5: =F10 -> 4845306 | M5: 0.2 | N5: 20 | O5: =(F10*M5/N5) -> 48453.06
B6: Básico Convencional | C6: 100 | E6: =Q.Frota!F5 -> 459 | F6: =$D$5*C6*E6 -> 3254310
B7: Padron BRT | C7: 110 | E7: =Q.Frota!I5 -> 38 | F7: =$D$5*C7*E7 -> 296362
B8: Articulado Convencional | C8: 180 | E8: =Q.Frota!L5 -> 12 | F8: =$D$5*C8*E8 -> 153144
B9: Articulado BRT | C9: 190 | E9: =Q.Frota!O5 -> 62 | F9: =$D$5*C9*E9 -> 835202
B10: Totais | E10: =SUM(E5:E9) -> 625 | F10: =SUM(F5:F9) -> 4845306
B11: Sem impácto na alteração da frota por ser investimentos no início do contrato
B13: Instalações de Garagem
B14: Histórico | C14: R$ | D14: Renovação 5º Ano | F14: Depreciação
D15: % | E15: R$ | F15: Renovação | G15: % Deprec. | H15: % Deprec. | I15: R$ Ano | J15: Renovação
B16: Investimento Inicial | C16: 300000 | D16: 0.3 | E16: =C16*D16 -> 90000 | F16: 5 | G16: 0.7 | H16: 0.05 | I16: =(E16/F16)+(C16*G16*H16) -> 28500 | J16: =C16*G16*H16 -> 10500
E17: =F26 -> 625 | I17: =E19/F16 -> 20275.2 | J17: =I17+J16 -> 30775.2
E18: =F27 -> 704
B19: Equipamentos de Garagem | E19: =E16/E17*E18 -> 101376 | F19: Renovação
B20: Histórico | C20: R$ Inv.Frota | D20: Qtde.Unit. | E20: R$ Invest.Inicial | F20: Renovação 5º Ano | G20: Depreciação Até 5º Ano | I20: Depreciação Após 5º Ano
G21: % Deprec. | H21: Deprec.Ano | I21: % Deprec. | J21: Deprec.Ano
B22: Almoxarifado Inv.Inicial | C22: =(E5*'Custo Capital'!F8)+(E6*'Custo Capital'!G8)+(E7*'Custo Capital'!H12)+(E8*'Custo Capital'!I12)+(E9*'Custo Capital'!J12) -> 188982450.1 | D22: 0.004 | E22: =C22*D22 -> 755929.8004
B23: Veículo para Resgate | E23: 125000 | G23: 0.2 | H23: =E23*G23 -> 25000 | I23: 10 anos | J23: =E23/10 -> 12500
B24: Veíc.Auxiliares/Operação | C24: =75000/3 -> 25000 | D24: 3 | E24: =C24*D24 -> 75000 | F24: 75000 | G24: 5 anos | H24: =E24/5 -> 15000 | I24: 5 anos | J24: =H24 -> 15000
B25: Total | E25: =SUM(E22:E24) -> 955929.8004 | F25: =SUM(F22:F24) -> 75000 | G25: Total Deprec. | H25: =SUM(H22:H24) -> 40000 | I25: Total Deprec. | J25: =SUM(J22:J24) -> 27500
F26: =D31 -> 625 | J26: =F26 -> 625
F27: =Q.Frota!K60 -> 704 | J27: =F27 -> 704 | R27: DEPRECIAÇÃO RENOVAÇÃO DO CONTRATO - AUMENTO FROTA
B28: SIM e Sistema de Vigilância c/ Alteração na Tecnologia Embarcada | F28: =F25/F26*F27 -> 84480 | G28: Renovação | J28: =J25/J26*J27 -> 30976 | K28: Renovação
B29: Histórico | C29: R$ Unit. | D29: Total Veíc. | E29: R$ Total | F29: Renovação Ano | H29: Depreciação Sistemas Licitação | M29: Depreciação Sistemas Licitação (Alteração Sistema Licitação)
F30: % | G30: R$ | H30: Histórico | I30: R$ Base Cálc. | K30: Anos Deprec. | L30: R$ Deprec.Ano | M30: Histórico | N30: R$ Base Cálc. | P30: Anos Deprec. | Q30: R$ Deprec.Ano | R30: R$ Base Cálculo | S30: R$ Deprec./Ano
B31: Valor médio por Veículo | C31: 14501.42 | D31: =E10 -> 625 | E31: =C31*D31 -> 9063387.5 | F31: 0.1847465383 | G31: =E31*F31 -> 1674429.466 | H31: Bilhetagem | I31: 4274300 | J31: =I31/5900300 -> 0.7244207922 | K31: 5 | L31: =I31/K31 -> 854860 | M31: Bilhetagem | N31: =$E$32*J31 -> 6565706.352 | O31: =N31/$N$35 -> 0.7244207922 | P31: 5 | Q31: =N31/P31 -> 1313141.27 | R31: =$E$34*O31 -> 7395611.635 | S31: =R31/P31 -> 1479122.327
B32: Total | E32: =SUM(E31:E31) -> 9063387.5 | F32: =SUM(F31:F31) -> 0.1847465383 | G32: =SUM(G31:G31) -> 1674429.466 | H32: Sist.Vig. | I32: =200000+250000 -> 450000 | J32: =I32/5900300 -> 0.07626730844 | K32: 10 | L32: =I32/K32 -> 45000 | M32: Sist.Vig. | N32: =$E$32*J32 -> 691240.17 | O32: =N32/$N$35 -> 0.07626730844 | P32: 10 | Q32: =N32/P32 -> 69124.017 | R32: =$E$34*O32 -> 778612.9275 | S32: =R32/P32 -> 77861.29275
B33: RENOVAÇÃO DO CONTRATO. VALORES À PARTIR DO ANO 11 | H33: Equip.Emb. | I33: 723200 | J33: =I33/5900300 -> 0.1225700388 | K33: 5 | L33: =I33/K33 -> 144640 | M33: Equip.Emb. | N33: =$E$32*J33 -> 1110899.758 | O33: =N33/$N$35 -> 0.1225700388 | P33: 5 | Q33: =N33/P33 -> 222179.9515 | R33: =$E$34*O33 -> 1251317.487 | S33: =R33/P33 -> 250263.4974
B34: Quantidade de Frota | C34: =Q.Frota!K60 -> 704 | E34: =C31*C34 -> 10208999.68 | F34: =F31 -> 0.1847465383 | G34: =E34*F34 -> 1886077.35 | H34: Sist.Fiscaliz. | I34: 452800 | J34: =I34/5900300 -> 0.07674186058 | K34: 5 | L34: =I34/K34 -> 90560 | M34: Sist.Fiscaliz. | N34: =$E$32*J34 -> 695541.2199 | O34: =N34/$N$35 -> 0.07674186058 | P34: 5 | Q34: =N34/P34 -> 139108.244 | R34: =$E$34*O34 -> 783457.6301 | S34: =R34/P34 -> 156691.526
H35: Total | I35: =SUM(I31:I34) -> 5900300 | J35: =I35/5900300 -> 1 | L35: =SUM(L31:L34) -> 1135060 | M35: Total | N35: =SUM(N31:N34) -> 9063387.5 | O35: =N35/$N$35 -> 1 | Q35: =SUM(Q31:Q34) -> 1743553.483 | R35: =SUM(R31:R34) -> 10208999.68 | S35: =SUM(S31:S34) -> 1963938.643
H36: Frota inicial | I36: 640 | M36: Frota inicial | N36: 625
H37: R$/Frota | I37: =I35/I36 -> 9219.21875 | M37: R$/Frota | N37: =N35/N36 -> 14501.42
I38: =C31 -> 14501.42 | J38: Valor por veículo devido exigência de nova tecnologia embarcada
B40: CUSTOS ADMINISTRATIVOS DIVERSOS | I40: RENOVAÇÃO DE CONTRATO
B41: Custos Diversos | I41: CUSTOS ADMINISTRATIVOS DIVERSOS
B42: Serviços Públicos | E42: =SUM(E43:E45) -> 13200 | I42: =G57 -> 37.92 | J42: Valor base por veículo
B43: Água | E43: 1200 | I43: =Q.Frota!K60 -> 704 | J43: Frota à partir de Out/23
B44: Luz | E44: 6000 | I44: =I42*I43 -> 26695.68 | J44: Valor do custo mensal
B45: Telefonia Geral | E45: 6000 | I45: =I44*12 -> 320348.16 | J45: Valor Anual à partir do ano 12
I46: Ano 11
B47: Serviços de Terceiros | E47: =SUM(E48:E53) -> 9000 | I47: R$ Mensal | J47: Periodicidade | L47: Anual
B48: Administração de rede / data center | E48: 1200 | I48: ='FC Pág.1'!M32/12 -> 23700 | J48: Valor de Jul/23 até Set/23 | L48: =I48*3 -> 71100
B49: Rede de Comunicação | E49: 1000 | I49: =I44 -> 26695.68 | J49: Valor de Out/23 até Jun/23 | L49: =I49*9 -> 240261.12
B50: Honorários de advogados | E50: 3000 | I50: Valor Anual total para o ano 11................................ | L50: =SUM(L48:L49) -> 311361.12
B51: Auditoria externa | E51: 800
B52: Comunicação social | E52: 1500
B53: Treinamento | E53: 1500
F54: Frota | G54: R$
B55: Impostos e taxas (IPTU / empresariais) | E55: 1500 | F55: na | G55: Por
F56: Licitação | G56: Veículo
B57: Total Geral Custos Diversos | E57: =E42+E47+E55 -> 23700 | F57: =Q.Frota!R5 -> 625 | G57: =E57/F57 -> 37.92
B60: CUSTO DE MANUTENÇÃO SIM E SISTEMA DE VIGILÂNCIA | I60: RENOVAÇÃO DE CONTRATO | M60: Ano 11
B61: Histórico | D61: Custo do Veíc. | E61: Custo por mês | I61: CUSTO DE MANUTENÇÃO SIM E SISTEMA DE VIGILÂNCIA | M61: R$ Mensal | N61: Periodicidade | P61: R$ Anual
B62: Sistema de Bilhetagem Eletrônica | D62: 60 | E62: =D62*Q.Frota!$R$5 -> 37500 | I62: =D65 -> 130 | J62: Custo por Veículo por mês | M62: =I62*F57 -> 81250 | N62: valor Jul/23 à Set/23 | P62: =M62*3 -> 243750
B63: Sistema de Monitoramento da Frota | D63: 35 | E63: =D63*Q.Frota!$R$5 -> 21875 | I63: =Q.Frota!K60 -> 704 | J63: Qtde. Frota à partir de jul/23 | M63: =I62*I63 -> 91520 | N63: valor Out/23 à Jun/24 | P63: =M63*9 -> 823680
B64: Sistema de Vigilância da Frota | D64: 35 | E64: =D64*Q.Frota!$R$5 -> 21875 | F64: Custo Anual | I64: =I62*I63 -> 91520 | J64: Custo mensal | M64: Valor total para o Ano 11 | P64: =SUM(P62:P63) -> 1067430
B65: Total | D65: =SUM(D62:D64) -> 130 | E65: =SUM(E62:E64) -> 81250 | F65: =E65*12 -> 975000 | I65: =I64*12 -> 1098240 | J65: Custo Anual
F66: =F65/F57 -> 1560
B69: CUSTOS COM SEGUROS DIVERSOS | I69: RENOVAÇÃO DE CONTRATO
B70: Garantia de execução contratual | C70: Dados | D70: R$ Custo Anual | I70: Custo com Seguros Diversos
B71: Valor do Contrato (Investimento) | C71: 247681211.3 | I71: =F74 -> 118.8869814 | J71: Custo por Veículo por ano
B72: Percentual Garantia execução | C72: 0.03 | I72: =Q.Frota!K60 -> 704 | J72: Qtde. Frota à partir de jul/23
B73: Garantia de execução contratual | C73: =C71*C72 -> 7430436.338 | E73: Total Frota | F73: R$ Por Frota | I73: =I71*I72 -> 83696.43491 | J73: Custo Anual à partir do ano 12
B74: Custo médio anual | C74: 0.01 | D74: =C73*C74 -> 74304.36338 | E74: 625 | F74: =D74/E74 -> 118.8869814 | I74: =(I71*E74/12*3)+(I71*I72/12*9) -> 81348.41703 | J74: Custo Anual no ano 11 (625 carros de jul/23 à set/23 e 704 carros de Out/23 à Jun/24
B75: SEGURO OBRIGATÓRIO
B76: Mês | C76: R$ Veíc. | D76: Qtde.Veíc. | E76: R$ Total | F76: R$ Total
B77: Ref. | C77: Ano | D77: Operação | E77: Mês | F77: Ano
B78: 2013-07-01 | C78: 396.49 | D78: =Q.Frota!R5 -> 625 | E78: =C78/12*D78 -> 20650.52083
B79: 2013-08-01 | C79: =C78 -> 396.49 | D79: =D78 -> 625 | E79: 20650.52083
B80: 2013-09-01 | C80: =C79 -> 396.49 | D80: =D79 -> 625 | E80: 20650.52083
B81: 2013-10-01 | C81: 396.49 | D81: 625 | E81: 20650.52083
B82: 2013-11-01 | C82: 396.49 | D82: 625 | E82: 20650.52083
B83: 2013-12-01 | C83: 396.49 | D83: 625 | E83: 20650.52083
B84: 2014-01-01 | C84: 396.49 | D84: 625 | E84: 20650.52083 | I84: RENOVAÇÃO DE CONTRATO
B85: 2014-02-01 | C85: 396.49 | D85: 625 | E85: 20650.52083 | I85: SEGURO OBRIGATÓRIO
B86: 2014-03-01 | C86: 396.49 | D86: 625 | E86: 20650.52083 | G86: Projeção | I86: =C89 -> 396.49 | J86: Custo por Veículo por ano
B87: 2014-04-01 | C87: 396.49 | D87: 625 | E87: 20650.52083 | G87: Anos | I87: =I86/12 -> 33.04083333 | J87: Custo por Veículos por mês
B88: 2014-05-01 | C88: 396.49 | D88: 625 | E88: 20650.52083 | F88: Ano 1 | G88: Seguntes | I88: =Q.Frota!K60 -> 704 | J88: Qtde. de Frota
B89: 2014-06-01 | C89: 396.49 | D89: 625 | E89: 20650.52083 | F89: =SUM(E78:E89) -> 247806.25 | G89: =E89*12 -> 247806.25 | I89: =I87*I88 -> 23260.74667 | J89: Custo total mensal
B90: Responsabilidade Civil Faturamento | E90: 0.005 | I90: =I89*12 -> 279128.96 | J90: Custo total anual
B91: Período | C91: Qtde. Passag. | D91: R$ Tarifa | E91: R$ Seguro R.Civil | I91: =(I89/I88*D89*3) -> 61951.5625 | J91: Custo de Jul/23 à Set/23 (Ano 11)
B92: Ano 1 | C92: ='FC Pág.1'!D8 -> 33677030 | D92: ='FC Pág.1'!$D$9 -> 2.9808 | E92: =D92*C92*$E$90 -> 501922.4551 | I92: =(I89/I88*D88*9) -> 185854.6875 | J92: Custo de Out/23 à Jun/24 (Ano 11)
B93: Ano 2 | C93: ='FC Pág.1'!E8 -> 53464697 | D93: ='FC Pág.1'!$E$9 -> 2.9808 | E93: 796837.8441 | I93: =SUM(I91:I92) -> 247806.25 | J93: Custo Total Ano 11
B94: Ano 3 | C94: ='FC Pág.1'!F8 -> 73319274 | D94: ='FC Pág.1'!$F$9 -> 2.9808 | E94: 1092750.46
B95: Ano 4 | C95: ='FC Pág.1'!G8 -> 73128162 | D95: ='FC Pág.1'!$G$9 -> 2.9808 | E95: 1089902.126
B96: Ano 5 | C96: ='FC Pág.1'!H8 -> 72552593 | D96: ='FC Pág.1'!$H$9 -> 2.9808 | E96: 1081323.846
B97: Ano 6 | C97: ='FC Pág.1'!I8 -> 77103096 | D97: ='FC Pág.1'!$I$9 -> 2.9808 | E97: 1149144.543
B98: Ano 7 | C98: ='FC Pág.1'!J8 -> 64525748 | D98: ='FC Pág.1'!$J$9 -> 2.9808 | E98: 961691.7482
B99: Ano 8 | C99: ='FC Pág.1'!K8 -> 49446435 | D99: ='FC Pág.1'!$K$9 -> 2.9808 | E99: 736949.6672
B100: Ano 9 | C100: ='FC Pág.1'!L8 -> 73061026 | D100: ='FC Pág.1'!$L$9 -> 2.9808 | E100: 1088901.532
B101: Ano 10 | C101: ='FC Pág.1'!M8 -> 83528202 | D101: ='FC Pág.1'!$M$9 -> 2.9808 | E101: 1244904.323
B102: Ano 11 | C102: ='FC Pág.1'!N8 -> 83451271 | D102: ='FC Pág.1'!$N$9 -> 3.096769181 | E102: =D102*C102*$E$90 -> 1292146.621
B103: Ano 12 | C103: ='FC Pág.1'!O8 -> 84722699 | D103: ='FC Pág.1'!$O$9 -> 3.125693187 | E103: 1324085.815
B104: Ano 13 | C104: ='FC Pág.1'!P8 -> 85379988 | D104: ='FC Pág.1'!$P$9 -> 3.125693187 | E104: 1334358.234
B105: Ano 14 | C105: ='FC Pág.1'!Q8 -> 85379988 | D105: ='FC Pág.1'!$Q$9 -> 3.125693187 | E105: 1334358.234
B106: Ano 15 | C106: ='FC Pág.1'!R8 -> 85379988 | D106: ='FC Pág.1'!$R$9 -> 3.125693187 | E106: 1334358.234
B107: Ano 16 | C107: ='FC Pág.1'!S8 -> 85379988 | D107: ='FC Pág.1'!$S$9 -> 3.125693187 | E107: 1334358.234
B108: Ano 17 | C108: ='FC Pág.1'!T8 -> 85379988 | D108: ='FC Pág.1'!$T$9 -> 3.125693187 | E108: 1334358.234
B109: Ano 18 | C109: ='FC Pág.1'!U8 -> 85379988 | D109: ='FC Pág.1'!$U$9 -> 3.125693187 | E109: 1334358.234
B110: Ano 19 | C110: ='FC Pág.1'!V8 -> 85379988 | D110: ='FC Pág.1'!$V$9 -> 3.125693187 | E110: 1334358.234
B111: Ano 20 | C111: ='FC Pág.1'!W8 -> 85379988 | D111: ='FC Pág.1'!$W$9 -> 3.125693187 | E111: 1334358.234
B114: CUSTOS NÃO CONSIDERADOS NOS ITENS ACIMA | I114: Cálculo IPVA na Renovação da Frota a Partir do Ano 8 ( DADOS )
B115: Despesas com IPVA | I115: Tipo de Veíc. | J115: Até Fev/20 | K115: Após Fev/20 | L115: Renovada | M115: R$ Base
B116: Percentual Detran | C116: Investimento Frota | D116: R$ Mensal | E116: R$ Mensal | F116: R$ IPVA | I116: Miniônibus | J116: ='Custo Capital'!E52 -> 54 | K116: =Q.Frota!C53 -> 25 | L116: =Q.Frota!C55 -> 25 | M116: ='Custo Capital'!F8 -> 170690.14
B117: 0.01 | D117: Frota Inicial | E117: Frota Renovação | F117: Anual | I117: Básico | J117: ='Custo Capital'!E68 -> 459 | K117: =Q.Frota!F53 -> 452 | L117: =Q.Frota!F55 -> 343 | M117: ='Custo Capital'!G8 -> 238790.14 | N117: 15 | O117: básicos não renovados
B118: Ano 1 | C118: ='Custo Capital'!G52+'Custo Capital'!G68+'Custo Capital'!G84+'Custo Capital'!G100+'Custo Capital'!G116 -> 188982450.1 | D118: =C118*B117/12 -> 157485.3751 | E118: 0 | F118: =(D118+E118)*12 -> 1889824.501 | I118: Padron BRT | J118: ='Custo Capital'!C84 -> 38 | K118: =Q.Frota!I53 -> 75 | L118: =Q.Frota!I55 -> 37 | M118: ='Custo Capital'!H12 -> 460900 | N118: 15 | O118: Padrons substituídos os básicos
B119: Ano 2 | D119: =D118 -> 157485.3751 | E119: 0 | F119: 1889824.501 | I119: Artic.Conv. | J119: ='Custo Capital'!C100 -> 12 | K119: =Q.Frota!L53 -> 12 | L119: =Q.Frota!L55 -> 0 | M119: ='Custo Capital'!I12 -> 615090.14
B120: Ano 3 | D120: 157485.3751 | E120: 0 | F120: 1889824.501 | I120: Artic.BRT | J120: ='Custo Capital'!C116 -> 62 | K120: =Q.Frota!O53 -> 61 | L120: =Q.Frota!O55 -> 0 | M120: ='Custo Capital'!J12 -> 730084.3
B121: Ano 4 | D121: 157485.3751 | E121: 0 | F121: 1889824.501 | I121: Total | J121: =SUM(J116:J120) -> 625 | K121: =SUM(K116:K120) -> 625 | L121: =SUM(L116:L120) -> 405
B122: Ano 5 | D122: 157485.3751 | E122: 0 | F122: 1889824.501
B123: Ano 6 | D123: 157485.3751 | E123: 0 | F123: 1889824.501 | I123: Cálculo IPVA a Partir do Ano 8 ( VALORES )
B124: Ano 7 | D124: 157485.3751 | E124: 0 | F124: 1889824.501 | I124: Tipo de Veíc. | K124: R$ | L124: Renovação | M124: Renovação
B125: Ano 8 | C125: ='Custo Capital'!G52+'Custo Capital'!G68 -> 118821941.8 | D125: 157485.3751 | E125: =C125*B117/12 -> 99018.28485 | F125: =(D125+E125)*12 -> 3078043.919 | K125: Inicial | L125: Total | M125: Parcial
B126: Ano 9 | D126: 157485.3751 | E126: =E125 -> 99018.28485 | F126: 3078043.919 | G126: Média Anual IPVA | I126: =I116 -> Miniônibus | K126: =K116*M116 -> 4267253.5 | L126: =K116*M116 -> 4267253.5 | M126: =L116*M116 -> 4267253.5
B127: Ano 10 | D127: 157485.3751 | E127: =E126 -> 99018.28485 | F127: 3078043.919 | G127: =AVERAGE(F118:F127) -> 2246290.326 | I127: Básico | K127: =K117*M117 -> 107933143.3 | L127: =N127*M117 -> 104351291.2 | M127: =L117*M117 -> 81905018.02 | N127: =K117-N117 -> 437 | O127: Básicos
B128: MANUTENÇÃO DE GARAGEM | D128: R$ Mensal | E128: R$ Anual | F128: Qtde. Frota | G128: R$ Mensal /Veíc. | I128: Padron BRT | K128: =K118*M118 -> 34567500 | L128: =N128*M118 -> 23966800 | M128: =L118*M118 -> 17053300 | N128: =L118+N118 -> 52
D129: 5500 | E129: =D129*12 -> 66000 | F129: =Q.Frota!R53 -> 625 | G129: =D129/F129 -> 8.8 | I129: Artic.Conv. | K129: =K119*M119 -> 7381081.68 | L129: =L119*M119 -> 0 | M129: =L119*M119 -> 0
B130: TAXA DE LICENCIAMENTO | C130: R$ Unitário | D130: Qtde. Frota | E130: R$ Anual | I130: Artic.BRT | K130: =K120*M120 -> 44535142.3 | L130: =L120*M120 -> 0 | M130: =L120*M120 -> 0
C131: 51.33 | D131: =E10 -> 625 | E131: =C131*D131 -> 32081.25 | I131: Total | K131: =SUM(K126:K130) -> 198684120.8 | L131: =SUM(L126:L130) -> 132585344.7 | M131: =SUM(M126:M130) -> 103225571.5
I132: IPVA Mensal Devido | K132: =K131*B117/12 -> 165570.1006 | L132: =L131*B117/12 -> 110487.7872 | M132: =M131*B117/12 -> 86021.3096
B133: RENOVAÇÃO DE CONTRATO - Manutenção Garagem | F133: Ano 11 | I133: IPVA Mensal Computado | K133: =D125 -> 157485.3751 | L133: =E125 -> 99018.28485 | M133: =E125 -> 99018.28485
B134: =G129 -> 8.8 | C134: Manutenção de Garagem por veículos por mês | F134: Jul/23 à Set/23 625 carros | I134: IPVA Mensal à Incluir | K134: =K132-K133 -> 8084.72555 | L134: =L132-L133 -> 11469.50238 | M134: =M132-M133 -> -12996.97525
B135: =Q.Frota!K60 -> 704 | C135: Qtde. Frota p/ Manutenção Garagem | F135: Out/23 à Jun/24 704 carros | I135: IPVA Anual à Incluir | K135: =K134*12 -> 97016.7066 | L135: =L134*12 -> 137634.0286 | M135: =M134*12 -> -155963.703
B136: =B134*B135 -> 6195.2 | C136: Custo Mensal de Manutenção Garagem | I136: Valor Anual à incluir com renovação Total/Parcial | L136: =K135+L135 -> 234650.7352 | M136: =K135+M135 -> -58946.9964
B137: =B136*12 -> 74342.4 | C137: Custo Anual de Manutenção de Garagem | F137: =(B136/B135*F129*3)+(B136/B135*B135*9) -> 72256.8 | I137: 4 meses à incluir no Ano 7 (Alteração a partir de Mar/20 | L137: =L136/12*4 -> 78216.91173 | M137: =M136/12*4 -> -19648.9988
B138: RENOVAÇÃO DE CONTRATO - Taxa de Licenciamento | F138: Ano 11
B139: =C131 -> 51.33 | C139: Valor por Veículo por Ano | F139: Jul/23 à Set/23 625 carros
B140: =Q.Frota!K60 -> 704 | C140: Qtde. total de frota | F140: Out/23 à Jun/24 704 carros
B141: =B139*B140 -> 36136.32 | C141: Custo Total Anual | F141: =(B139/12*F129*3)+(B139/12*B140*9) -> 35122.5525

Sheet Custo Capital
B2: Planilha 3 - Demonstração do custo de depreciação do capital | J2: Viação Pioneira
J3: Bacia 2
B4: Premissas gerais para a depreciação
L5: EURO 6
B6: Dados veículos | E6: Históricos | F6: Miniônibus | G6: Ônibus básico | H6: Padron BRT | I6: Artic.Convenc. | J6: Artic. BRT | N6: Históricos | O6: Miniônibus | P6: Ônibus básico | Q6: Padron BRT | R6: Super Padron Conv. | S6: Super Padron BRT | T6: Articulado Convenc. | U6: Articulado BRT
E7: Sem AC Condicionado | N7: Sem AC Condicionado
E8: Preço médio de um veículo novo (R$) | F8: 170690.14 | G8: 238790.14 | N8: Preço médio de um veículo novo (R$) | O8: =F8 -> 170690.14 | P8: =G8 -> 238790.14
E9: Preço médio de um veículo novo sem rodagem (R$) | F9: =F8-('Custos Variáveis ate dez-20'!D23*'Custos Variáveis ate dez-20'!C23) -> 167330.14 | G9: =G8-('Custos Variáveis ate dez-20'!D24*'Custos Variáveis ate dez-20'!C24) -> 233090.14 | N9: Preço médio de um veículo novo sem rodagem (R$) | O9: =O8-('Custos Variáveis ate dez-20'!M23*'Custos Variáveis ate dez-20'!L23) -> 167330.14 | P9: =P8-('Custos Variáveis ate dez-20'!M24*'Custos Variáveis ate dez-20'!L24) -> 233090.14
E11: Com AC Condicionado | N11: Com AC Condicionado
E12: Preço médio de um veículo novo (R$) | H12: 460900 | I12: 615090.14 | J12: 730084.3 | N12: Preço médio de um veículo novo (R$) | Q12: =H12 -> 460900 | R12: 1063600 | S12: 600000 | T12: =I12 -> 615090.14 | U12: =J12 -> 730084.3
E13: Preço médio de um veículo novo em rodagem (R$) | H13: =H12-('Custos Variáveis ate dez-20'!D25*'Custos Variáveis ate dez-20'!C25) -> 450580 | I13: =I12-('Custos Variáveis ate dez-20'!C26*'Custos Variáveis ate dez-20'!D26) -> 605590.14 | J13: =J12-('Custos Variáveis ate dez-20'!C27*'Custos Variáveis ate dez-20'!D27) -> 712884.3 | N13: Preço médio de um veículo novo em rodagem (R$) | Q13: =Q12-('Custos Variáveis ate dez-20'!M25*'Custos Variáveis ate dez-20'!L25) -> 450580 | R13: =R12-('Custos Variáveis ate dez-20'!M26*'Custos Variáveis ate dez-20'!L26) -> 1053280 | S13: =S12-('Custos Variáveis ate dez-20'!M27*'Custos Variáveis ate dez-20'!L27) -> 589680 | T13: =T12-('Custos Variáveis ate dez-20'!L28*'Custos Variáveis ate dez-20'!M28) -> 597890.14 | U13: =U12-('Custos Variáveis ate dez-20'!L29*'Custos Variáveis ate dez-20'!M29) -> 712884.3
E15: Vida útil (anos) | F15: 7 | G15: 7 | H15: 10 | I15: 10 | J15: 10
E16: Valor residual (% novo veículo) | F16: 0.2 | G16: 0.25 | H16: 0.15 | I16: 0.15 | J16: 0.15
E17: Depreciação Anual | F17: 0.2 | G17: =F17 -> 0.2 | H17: =G17 -> 0.2 | I17: =H17 -> 0.2 | J17: =I17 -> 0.2
E18: Revenda no 7º Ano | F18: =F16 -> 0.2 | G18: =G16 -> 0.25
E19: Venda abatido IR no 7º Ano | F19: 0.75 | G19: 0.75
E20: Revenda no 10º Ano | H20: =H16 -> 0.15 | I20: =I16 -> 0.15 | J20: =J16 -> 0.15
E21: Venda abatido IR no 10º Ano | F21: 0.75 | G21: 0.75 | H21: 0.75 | I21: 0.75 | J21: 0.75
E22: 3 anos | F22: =F16/F15*3 -> 0.08571428571 | G22: =G16/G15*3 -> 0.1071428571 | H22: 0.59 | I22: Venda do Padron c/ 4 anos de uso
F23: Valor unitário revenda do básico vendido no 10º ano, porém não renovado no 7º Ano | G23: =G8*G22*G21 -> 19188.49339 | I23: Mesma metodologia do Articulado na licitação
B24: Período de depreciação | F24: Período depreciação (anos)
E25: Veículos | F25: 5
E26: Equips embarcados e de garagem do SIM e do Sist.Vigilância | F26: 5
E27: Edificações | F27: 25
E28: Instalações e demais equipamentos de Garagem | F28: 25
B31: Resumo da depreciação
C32: Ano | D32: Miniônibus | E32: Ônibus básico | F32: Padron BRT | G32: Artic.Conv. | H32: Artic.BRT | I32: Total Deprec. | J32: Média mensal
I33: (R$ | J33: depreciação (R$)
C34: 1 | E34: =G9*G17*1 -> 46618.028 | I34: =SUM(D34:H34) -> 46618.028 | J34: =I34/12 -> 3884.835667
C35: 2 | D35: =F9*F16*Q.Frota!C5 -> 1807165.512 | E35: =(Q.Frota!F5-1)*G9*G17 -> 21351056.82 | F35: =Q.Frota!I5*H13*H17 -> 3424408 | G35: =Q.Frota!L5*I13*I17 -> 1453416.336 | H35: =Q.Frota!O5*J13*J17 -> 8839765.32 | I35: 36875811.99 | J35: 3072984.333
C36: 3 | D36: =F9*F16*Q.Frota!C5 -> 1807165.512 | E36: =E35 -> 21351056.82 | F36: 3424408 | G36: 1453416.336 | H36: 8839765.32 | I36: 36875811.99 | J36: 3072984.333
C37: 4 | D37: =F9*F16*Q.Frota!C5 -> 1807165.512 | E37: 21351056.82 | F37: 3424408 | G37: 1453416.336 | H37: 8839765.32 | I37: 36875811.99 | J37: 3072984.333
C38: 5 | D38: =F9*F16*Q.Frota!C5 -> 1807165.512 | E38: 21351056.82 | F38: 3424408 | G38: 1453416.336 | H38: 8839765.32 | I38: 36875811.99 | J38: 3072984.333
C39: 6 | D39: =F9*F16*Q.Frota!C5 -> 1807165.512 | E39: 21351056.82 | F39: 3424408 | G39: 1453416.336 | H39: 8839765.32 | I39: 36875811.99 | J39: 3072984.333
C40: 7 | I40: 0 | J40: 0
C41: 8 | D41: =D39 -> 1807165.512 | E41: =E39 -> 21351056.82 | I41: =SUM(D41:H41) -> 23158222.34 | J41: 1929851.861
C42: 9 | D42: =D41 -> 1807165.512 | E42: =E41 -> 21351056.82 | I42: 23158222.34 | J42: 1929851.861
C43: 10 | D43: =D42 -> 1807165.512 | E43: =E42 -> 21351056.82 | I43: 23158222.34 | J43: 1929851.861
D44: =D35/Q.Frota!C5 -> 33466.028 | E44: =E35/Q.Frota!F5 -> 46516.46367 | F44: =F35/Q.Frota!I5 -> 90116 | G44: Depreciação Por carro
C45: Deprec.Anos 8, 9 e 10 | D45: =O185 -> 25 | E45: =O186 -> 437 | F45: =O189 -> 52 | G45: Qtde. Carros Ano 7 | I45: =(D44*D45)+(E44*E45)+(F44*F45) -> 25850377.32
J46: =J2 -> Viação Pioneira
B47: Plano de renovação de frota | E47: Ano 1 | J47: Bacia 1
B49: MIniônibus | C49: Frota c/ Ar Condicionado | E49: Frota sem Ar Condicionado | G49: Totais
B50: Perfil etário | C50: Aquisição | D50: Venda | E50: Aquisição | F50: Venda | G50: Total | H50: Venda no
C51: (Veículos) | D51: (Veículos) | E51: (Veículos) | F51: (Veículos) | G51: Aquisição (R$) | H51: período (R$) | J51: INVESTIMENTOS | K51: Qtde. | L51: Tipo
B52: 1 | C52: 0 | D52: 0 | E52: =Q.Frota!C5 -> 54 | F52: 0 | G52: =E52*$F$8 -> 9217267.56 | H52: 0 | J52: Ano Zero | K52: 1 | L52: Básico
B53: 2 | C53: 0 | D53: 0 | E53: 0 | F53: 0 | G53: =E53*$F$9 -> 0 | H53: 0 | J53: Ano 1 | K53: 53 | L53: Micros
B54: 3 | C54: 0 | D54: 0 | E54: 0 | F54: 0 | G54: 0 | H54: 0 | J54: Ano 1 | K54: 459 | L54: Básicos
B55: 4 | C55: 0 | D55: 0 | E55: 0 | F55: 0 | G55: 0 | H55: 0 | J55: Ano 1 | K55: 12 | L55: Articulados Conv.
B56: 5 | C56: 0 | D56: 0 | E56: 0 | F56: 0 | G56: 0 | H56: 0 | J56: Ano 2 | K56: =63-12 -> 51 | L56: Articulados BRT
B57: 6 | C57: 0 | D57: 0 | E57: 0 | F57: 0 | G57: 0 | H57: 0 | J57: Ano 2 | K57: 38 | L57: Padrons
B58: 7 | C58: 0 | D58: 0 | E58: 0 | G58: 0 | H58: 0 | J58: Ano 2 | K58: 11 | L58: Articulados BRT
B59: 8 | C59: 0 | D59: 0 | E59: 0 | F59: 0 | G59: 0 | H59: 0 | J59: Total | K59: =SUM(K52:K58) -> 625 | L59: Total
B60: 9 | C60: 0 | D60: 0 | E60: 0 | F60: 0 | G60: 0 | H60: 0
B61: 10 | C61: 0 | D61: 0 | E61: 0 | F61: 0 | G61: 0 | H61: 0
B62: Totais. | C62: =SUM(C52:C61) -> 0 | D62: 0 | E62: 54 | F62: 0 | G62: 9217267.56 | H62: 0
B65: Ônibus Básico | C65: Frota c/ Ar Condicionado | E65: Frota sem Ar Condicionado | G65: Totais
B66: Perfil etário | C66: Aquisição | D66: Venda | E66: Aquisição | F66: Venda | G66: Total | H66: Venda no
C67: (Veículos) | D67: (Veículos) | E67: (Veículos) | F67: (Veículos) | G67: Aquisição (R$) | H67: período (R$)
B68: 1 | C68: 0 | D68: 0 | E68: =Q.Frota!F5 -> 459 | F68: 0 | G68: =E68*$G$8 -> 109604674.3 | H68: 0
B69: 2 | C69: 0 | D69: 0 | E69: 0 | F69: 0 | G69: =E69*$G$9 -> 0 | H69: 0
B70: 3 | C70: 0 | D70: 0 | E70: 0 | F70: 0 | G70: =C70*$F$11 -> 0 | H70: =D70+F70 -> 0
B71: 4 | C71: 0 | D71: 0 | E71: 0 | F71: 0 | G71: 0 | H71: 0
B72: 5 | C72: 0 | D72: 0 | E72: 0 | F72: 0 | G72: 0 | H72: 0
B73: 6 | C73: 0 | D73: 0 | E73: 0 | F73: 0 | G73: 0 | H73: 0
B74: 7 | C74: 0 | D74: 0 | E74: 0 | F74: 0 | G74: 0 | H74: 0
B75: 8 | C75: 0 | D75: 0 | E75: 0 | F75: 0 | G75: 0 | H75: 0
B76: 9 | C76: 0 | D76: 0 | E76: 0 | F76: 0 | G76: 0 | H76: 0
B77: 10 | C77: 0 | D77: 0 | E77: 0 | F77: 0 | G77: 0 | H77: 0
B78: Totais. | C78: =SUM(C68:C77) -> 0 | D78: 0 | E78: 459 | F78: 0 | G78: 109604674.3 | H78: 0
B81: Padro BRT | C81: Frota c/ Ar Condicionado | E81: Frota sem Ar Condicionado | G81: Totais
B82: Perfil etário | C82: Aquisição | D82: Venda | E82: Aquisição | F82: Venda | G82: Total | H82: Venda no
C83: (Veículos) | D83: (Veículos) | E83: (Veículos) | F83: (Veículos) | G83: Aquisição (R$) | H83: período (R$)
B84: 1 | C84: =Q.Frota!I5 -> 38 | D84: 0 | E84: 0 | F84: 0 | G84: =C84*H12 -> 17514200 | H84: 0
B85: 2 | C85: 0 | D85: 0 | E85: 0 | F85: 0 | G85: =E85*$G$9 -> 0 | H85: 0
B86: 3 | C86: 0 | D86: 0 | E86: 0 | F86: 0 | G86: =C86*$F$11 -> 0 | H86: =D86+F86 -> 0
B87: 4 | C87: 0 | D87: 0 | E87: 0 | F87: 0 | G87: 0 | H87: 0
B88: 5 | C88: 0 | D88: 0 | E88: 0 | F88: 0 | G88: 0 | H88: 0
B89: 6 | C89: 0 | D89: 0 | E89: 0 | F89: 0 | G89: 0 | H89: 0
B90: 7 | C90: 0 | D90: 0 | E90: 0 | F90: 0 | G90: 0 | H90: 0
B91: 8 | C91: 0 | D91: 0 | E91: 0 | F91: 0 | G91: 0 | H91: 0
B92: 9 | C92: 0 | D92: 0 | E92: 0 | F92: 0 | G92: 0 | H92: 0
B93: 10 | C93: 0 | D93: 0 | E93: 0 | F93: 0 | G93: 0 | H93: 0
B94: Totais. | C94: =SUM(C84:C93) -> 38 | D94: 0 | E94: 0 | F94: 0 | G94: 17514200 | H94: 0
B97: Artic.Conv. | C97: Frota c/ Ar Condicionado | E97: Frota sem Ar Condicionado | G97: Totais
B98: Perfil etário | C98: Aquisição | D98: Venda | E98: Aquisição | F98: Venda | G98: Total | H98: Venda no
C99: (Veículos) | D99: (Veículos) | E99: (Veículos) | F99: (Veículos) | G99: Aquisição (R$) | H99: período (R$)
B100: 1 | C100: =Q.Frota!L5 -> 12 | D100: 0 | E100: 0 | F100: 0 | G100: =C100*I12 -> 7381081.68 | H100: 0
B101: 2 | C101: 0 | D101: 0 | E101: 0 | F101: 0 | G101: 0 | H101: =D101+F101 -> 0
B102: 3 | C102: 0 | D102: 0 | E102: 0 | F102: 0 | G102: 0 | H102: 0
B103: 4 | C103: 0 | D103: 0 | E103: 0 | F103: 0 | G103: 0 | H103: 0
B104: 5 | C104: 0 | D104: 0 | E104: 0 | F104: 0 | G104: 0 | H104: 0
B105: 6 | C105: 0 | D105: 0 | E105: 0 | F105: 0 | G105: 0 | H105: 0
B106: 7 | C106: 0 | D106: 0 | E106: 0 | F106: 0 | G106: 0 | H106: 0
B107: 8 | C107: 0 | D107: 0 | E107: 0 | F107: 0 | G107: 0 | H107: 0
B108: 9 | C108: 0 | D108: 0 | E108: 0 | F108: 0 | G108: 0 | H108: 0
B109: 10 | C109: 0 | D109: 0 | E109: 0 | F109: 0 | G109: 0 | H109: 0
B110: Totais. | C110: =SUM(C100:C109) -> 12 | D110: 0 | E110: 0 | F110: 0 | G110: 7381081.68 | H110: 0
B113: Artic.BRT | C113: Frota c/ Ar Condicionado | E113: Frota sem Ar Condicionado | G113: Totais
B114: Perfil etário | C114: Aquisição | D114: Venda | E114: Aquisição | F114: Venda | G114: Total | H114: Venda no
C115: (Veículos) | D115: (Veículos) | E115: (Veículos) | F115: (Veículos) | G115: Aquisição (R$) | H115: período (R$)
B116: 1 | C116: =Q.Frota!O5 -> 62 | D116: 0 | E116: 0 | F116: 0 | G116: =C116*J12 -> 45265226.6 | H116: 0
B117: 2 | C117: 0 | D117: 0 | E117: 0 | F117: 0 | G117: 0 | H117: =D117+F117 -> 0
B118: 3 | C118: 0 | D118: 0 | E118: 0 | F118: 0 | G118: 0 | H118: 0
B119: 4 | C119: 0 | D119: 0 | E119: 0 | F119: 0 | G119: 0 | H119: 0
B120: 5 | C120: 0 | D120: 0 | E120: 0 | F120: 0 | G120: 0 | H120: 0
B121: 6 | C121: 0 | D121: 0 | E121: 0 | F121: 0 | G121: 0 | H121: 0
B122: 7 | C122: 0 | D122: 0 | E122: 0 | F122: 0 | G122: 0 | H122: 0
B123: 8 | C123: 0 | D123: 0 | E123: 0 | F123: 0 | G123: 0 | H123: 0
B124: 9 | C124: 0 | D124: 0 | E124: 0 | F124: 0 | G124: 0 | H124: 0
B125: 10 | C125: 0 | D125: 0 | E125: 0 | F125: 0 | G125: 0 | H125: 0
B126: Totais. | C126: =SUM(C116:C125) -> 62 | D126: 0 | E126: 0 | F126: 0 | G126: 45265226.6 | H126: 0
J128: =J2 -> Viação Pioneira
B129: Plano de renovação de frota | E129: Ano 2 | F129: Sem Renovação | J129: =J3 -> Bacia 2
B131: Plano de renovação de frota | E131: Ano 3 | F131: Sem Renovação | J131: =J3 -> Bacia 2
B133: Plano de renovação de frota | E133: Ano 4 | F133: Sem Renovação | J133: =J131 -> Bacia 2
B135: Plano de renovação de frota | E135: Ano 5 | F135: Sem Renovação | J135: =J133 -> Bacia 2
B137: Plano de renovação de frota | E137: Ano 6 | F137: Sem Renovação | J137: =J135 -> Bacia 2
B139: Plano de renovação de frota | E139: Ano 7 | J139: =J137 -> Bacia 2
B141: MIniônibus | C141: Frota c/ Ar Condicionado | E141: Frota sem Ar Condicionado | G141: Totais
B142: Perfil etário | C142: Aquisição | D142: Venda | E142: Aquisição | F142: Venda | G142: Total | H142: Venda no
C143: (Veículos) | D143: (Veículos) | E143: (Veículos) | F143: (Veículos) | G143: Aquisição (R$) | H143: período (R$)
B144: 1 | C144: 0 | D144: 0 | F144: 0 | H144: 0
B145: 2 | C145: 0 | D145: 0 | E145: 0 | F145: 0 | G145: =E145*$F$9 -> 0 | H145: 0
B146: 3 | C146: 0 | D146: 0 | E146: 0 | F146: 0 | G146: 0 | H146: 0
B147: 4 | C147: 0 | D147: 0 | E147: 0 | F147: 0 | G147: 0 | H147: 0
B148: 5 | C148: 0 | D148: 0 | E148: 0 | F148: 0 | G148: 0 | H148: 0
B149: 6 | C149: 0 | D149: 0 | E149: 0 | F149: 0 | G149: 0
B150: 7 | C150: 0 | D150: 0 | E150: 53 | F150: =E150 -> 53 | G150: =E150*$F$8 -> 9046577.42 | H150: =G150*F18*F19 -> 1356986.613
B151: 8 | C151: 0 | D151: 0 | E151: 0 | F151: 0 | G151: 0 | H151: 0
B152: 9 | C152: 0 | D152: 0 | E152: 0 | F152: 0 | G152: 0 | H152: 0
B153: 10 | C153: 0 | D153: 0 | E153: 0 | F153: 0 | G153: 0 | H153: 0
B154: Totais. | C154: =SUM(C144:C153) -> 0 | D154: =SUM(D144:D153) -> 0 | E154: =SUM(E145:E153) -> 53 | F154: =SUM(F144:F153) -> 53 | G154: =SUM(G145:G153) -> 9046577.42 | H154: =SUM(H145:H153) -> 1356986.613
B157: Ônibus Básico | C157: Frota c/ Ar Condicionado | E157: Frota sem Ar Condicionado | G157: Totais
B158: Perfil etário | C158: Aquisição | D158: Venda | E158: Aquisição | F158: Venda | G158: Total | H158: Venda no
C159: (Veículos) | D159: (Veículos) | E159: (Veículos) | F159: (Veículos) | G159: Aquisição (R$) | H159: período (R$) | L159: 7º Ano | N159: Nova composição Investimento da Frota renovada 7º Ano
B160: 1 | C160: 0 | D160: 0 | F160: 0 | G160: 0 | H160: 0 | J160: Qtde. | K160: Tipo | L160: R$ | M160: R$ | N160: Tipo | O160: Qtde. | P160: R$ | Q160: R$
B161: 2 | C161: 0 | D161: 0 | E161: 0 | F161: 0 | G161: =E161*$G$9 -> 0 | H161: 0 | J161: de | K161: de | L161: Investimento | M161: Por | N161: de | O161: de | P161: Por | Q161: Investimento
B162: 3 | C162: 0 | D162: 0 | E162: 0 | F162: 0 | G162: 0 | H162: 0 | J162: Frota | K162: Ônibus | L162: Fluxo Caixa | M162: Carro | N162: Ônibus | O162: Frota | P162: Carro | Q162: Fluxo Caixa
B163: 4 | C163: 0 | D163: 0 | E163: 0 | F163: 0 | G163: 0 | H163: 0 | J163: =E150 -> 53 | K163: Micros | L163: =G150 -> 9046577.42 | M163: =L163/J163 -> 170690.14 | N163: Micros | O163: 25 | P163: =M163 -> 170690.14 | Q163: =O163*P163 -> 4267253.5
B164: 5 | C164: 0 | D164: 0 | E164: 0 | F164: 0 | G164: 0 | H164: 0 | J164: 460 | K164: Básicos | L164: =G166 -> 109843464.4 | M164: =L164/J164 -> 238790.14 | N164: Básicos | O164: =452-N167 -> 437 | P164: =M164 -> 238790.14 | Q164: =O164*P164 -> 104351291.2
B165: 6 | C165: 0 | D165: 0 | E165: 0 | F165: 0 | G165: 0 | H165: 0 | J165: 0 | K165: Padrons | L165: =G167 -> 0 | M165: =G94/C94 -> 460900 | N165: Padrons | O165: =37+N168 -> 52 | P165: =M165 -> 460900 | Q165: =O165*P165 -> 23966800
B166: 7 | C166: 0 | D166: 0 | E166: =460 -> 460 | F166: =E68 -> 459 | G166: =E166*G8 -> 109843464.4 | H166: =G166*G18*G19 -> 20595649.58 | I166: =H166/E166 -> 44773.15125 | J166: Total | L166: =SUM(L163:L164) -> 118890041.8 | N166: Total | Q166: =SUM(Q163:Q165) -> 132585344.7
B167: 8 | C167: 0 | D167: 0 | E167: 0 | F167: 0 | G167: 0 | H167: 0 | N167: 15 | O167: básicos não renovados
B168: 9 | C168: 0 | D168: 0 | E168: 0 | F168: 0 | G168: 0 | H168: 0 | N168: 15 | O168: Padrons substituídos os básicos
B169: 10 | C169: 0 | D169: 0 | E169: 0 | F169: 0 | G169: 0 | H169: 0 | J169: REVENDA | L169: 7º Ano | N169: REVENDA | Q169: Ano 10º
B170: Totais. | C170: =SUM(C160:C169) -> 0 | D170: =SUM(D160:D169) -> 0 | E170: =SUM(E161:E169) -> 460 | F170: =SUM(F160:F169) -> 459 | G170: =SUM(G160:G169) -> 109843464.4 | H170: =SUM(H160:H169) -> 20595649.58 | J170: Qtde. | K170: Tipo | L170: R$ | M170: R$ | N170: Tipo | O170: Qtde. | P170: R$ | Q170: R$
J171: de | K171: de | L171: Revenda | M171: Por | N171: de | O171: de | P171: Por | Q171: Revenda
J172: Frota | K172: Ônibus | L172: Fluxo Caixa | M172: Carro | N172: Ônibus | O172: Frota | P172: Carro | Q172: Fluxo Caixa
B173: Plano de renovação de frota | E173: Ano 8 | F173: Sem Renovação | J173: =E150 -> 53 | K173: Micros | L173: =H150 -> 1356986.613 | M173: =L173/J173 -> 25603.521 | N173: Micros | O173: =F193 -> 53 | P173: =Q173/O173 -> 0 | Q173: =H193 -> 0
J174: =E166-N167 -> 445 | K174: Básicos | L174: =J174*M174 -> 19924052.31 | M174: =I166 -> 44773.15125 | N174: Básicos | O174: =F208 -> 460 | P174: =Q174/O174 -> 0 | Q174: =H208 -> 0
J175: 0 | K175: Padrons | L175: =G177 -> 0 | M175: 0 | N175: Padrons | O175: =D223 -> 38 | P175: =Q175/O175 -> 51851.25 | Q175: =H223 -> 1970347.5
B176: Plano de renovação de frota | E176: Ano 9 | F176: Sem Renovação | J176: Total | L176: =SUM(L173:L174) -> 21281038.92 | N176: Artic.Conv. | O176: =D238 -> 12 | P176: =Q176/O176 -> 69197.64075 | Q176: =H238 -> 830371.689
N177: Artic.BRT | O177: =D253 -> 62 | P177: =Q177/O177 -> 82134.48375 | Q177: =H253 -> 5092337.992
N178: Total | O178: =SUM(O173:O177) -> 625 | Q178: =SUM(Q173:Q177) -> 7893057.181
B179: Plano de renovação de frota | E179: Ano 10
N180: REVENDA DA NOVA COMPOSIÇÃO DA FROTA
B181: MIniônibus | C181: Frota c/ Ar Condicionado | E181: Frota sem Ar Condicionado | G181: Totais | N181: REVENDA | Q181: Ano 10º
B182: Perfil etário | C182: Aquisição | D182: Venda | E182: Aquisição | F182: Venda | G182: Total | H182: Venda no | N182: Tipo | O182: Qtde. | P182: R$ | Q182: R$
C183: (Veículos) | D183: (Veículos) | E183: (Veículos) | F183: (Veículos) | G183: Aquisição (R$) | H183: período (R$) | N183: de | O183: de | P183: Por | Q183: Revenda
B184: 1 | C184: 0 | D184: 0 | E184: 0 | F184: 0 | G184: =E184*$F$9 -> 0 | H184: 0 | N184: Ônibus | O184: Frota | P184: Carro | Q184: Fluxo Caixa
B185: 2 | C185: 0 | D185: 0 | E185: 0 | F185: 0 | G185: 0 | H185: 0 | N185: Micros | O185: 25 | P185: =P173 -> 0 | Q185: =O185*P185 -> 0
B186: 3 | C186: 0 | D186: 0 | E186: 0 | F186: 0 | G186: 0 | H186: 0 | N186: Básicos | O186: =452-N167 -> 437 | P186: =P174 -> 0 | Q186: =O186*P186 -> 0
B187: 4 | C187: 0 | D187: 0 | E187: 0 | F187: 0 | G187: 0 | H187: 0 | N187: Básicos | O187: 0 | P187: =G23 -> 19188.49339 | Q187: 0
B188: 5 | C188: 0 | D188: 0 | E188: 0 | F188: 0 | G188: 0 | H188: 0 | N188: Padrons | O188: 38 | P188: =P175 -> 51851.25 | Q188: 1970347.5 | R188: 15 | S188: Básicos à menos para mão-de-obra a partir de Set/21
B189: 6 | C189: 0 | D189: 0 | E189: 0 | F189: 0 | G189: 0 | H189: 0 | N189: Padrons | O189: =37+15 -> 52 | P189: =H12*H22*H21 -> 203948.25 | Q189: 10605309 | R189: 15 | S189: Padrons que na mão de obra só entra em set/21
B190: 7 | C190: 0 | D190: 0 | E190: 0 | F190: 0 | G190: 0 | H190: 0 | N190: Artic.Conv. | O190: 12 | P190: =P176 -> 69197.64075 | Q190: 830371.689 | R190: =(O188+O189-15)*0.95 -> 71.25 | S190: Padrons de mar/20 até ago/21 p/ mão-de-obra
B191: 8 | C191: 0 | D191: 0 | E191: 0 | F191: 0 | G191: 0 | H191: 0 | N191: Artic.BRT | O191: 61 | P191: =P177 -> 82134.48375 | Q191: 5010203.509
B192: 9 | C192: 0 | D192: 0 | E192: 0 | F192: 0 | G192: 0 | H192: 0 | N192: Total | O192: =SUM(O185:O191) -> 625 | Q192: =SUM(Q185:Q191)-R192 -> 0 | R192: =SUM(Q185:Q191) -> 18416231.7 | S192: obs: Com a renovação do contrato não tem mais revenda no ano 10º
B193: 10 | C193: 0 | D193: 0 | E193: 0 | F193: =E150 -> 53 | G193: =E186*$F$9 -> 0 | H193: =F193*F8*F20*F21 -> 0 | N193: OBS: Os 37 Padrons comprados no ano 7º foi considerado utilização do carro por 4 anos e venda no 5º ano na mesma metodologia do Articulado constante na planilha vencedora da licitação
B194: Totais. | C194: =SUM(C184:C193) -> 0 | D194: 0 | E194: 0 | F194: 53 | G194: 0 | H194: 0
B196: Ônibus Básico | C196: Frota c/ Ar Condicionado | E196: Frota sem Ar Condicionado | G196: Totais | AE196: FROTA VIGENTE QUANDO DA RENOVAÇÃO DO CONTRATO
B197: Perfil etário | C197: Aquisição | D197: Venda | E197: Aquisição | F197: Venda | G197: Total | H197: Venda no | AE197: IPVA: Renovação à Partir do Ano 11 | AH197: 0.01 | AI197: Licenciamento Ano 11 (Jul à Set/23 625 carros e Out/23 à Jun/24 704 carros
C198: (Veículos) | D198: (Veículos) | E198: (Veículos) | F198: (Veículos) | G198: Aquisição (R$) | H198: período (R$) | AE198: Tipo Frota | AF198: Qtde. | AG198: R$ Base | AH198: R$ Anual | AI198: Ano 11 até Set/23 | AJ198: R$ Base | AK198: R$ Anual
B199: 1 | C199: 0 | D199: 0 | E199: 0 | F199: 0 | G199: =E199*$G$9 -> 0 | H199: 0 | J199: FROTA ATUAL - ANÁLISE RENOVAÇÃO DE FROTA | AE199: Miniônibus | AF199: =Q.Frota!D60 -> 25 | AG199: =AF199*L201 -> 4267253.5 | AH199: =AG199*$AH$197 -> 42672.535 | AI199: =O185 -> 25 | AJ199: =L201*AI199 -> 4267253.5 | AK199: =AJ199*$AH$197 -> 42672.535
B200: 2 | C200: 0 | D200: 0 | E200: 0 | F200: 0 | G200: 0 | H200: 0 | J200: Tipo | K200: Qtde. | L200: R$ Unit.c/Pneus | M200: R$ Unit.s/Pneus | AE200: Básicos | AF200: =Q.Frota!E60 -> 492 | AG200: =AF200*L202 -> 117484748.9 | AH200: =AG200*$AH$197 -> 1174847.489 | AI200: =O186 -> 437 | AJ200: 104351291.2 | AK200: 1043512.912
B201: 3 | C201: 0 | D201: 0 | E201: 0 | F201: 0 | G201: 0 | H201: 0 | J201: Miniônibus | K201: =Q.Frota!D60 -> 25 | L201: =O8 -> 170690.14 | M201: =O9 -> 167330.14 | AE201: Padron BRT | AF201: =Q.Frota!F60 -> 110 | AG201: 50699000 | AH201: 506990 | AI201: =O188+O189 -> 90 | AJ201: 41481000 | AK201: 414810
B202: 4 | C202: 0 | D202: 0 | E202: 0 | F202: 0 | G202: 0 | H202: 0 | J202: Básicos | K202: =Q.Frota!E60 -> 492 | L202: =P8 -> 238790.14 | M202: =P9 -> 233090.14 | AE202: S.Padron Conv. | AF202: =Q.Frota!G60 -> 16 | AG202: 17017600 | AH202: 170176 | AI202: 0 | AJ202: 0 | AK202: 0
B203: 5 | C203: 0 | D203: 0 | E203: 0 | F203: 0 | G203: 0 | H203: =D203+F203 -> 0 | J203: Padron BRT | K203: =Q.Frota!F60 -> 110 | L203: =Q12 -> 460900 | M203: =Q13 -> 450580 | AE203: S.Padron BRT | AF203: =Q.Frota!I60 -> 0 | AG203: 0 | AH203: 0 | AI203: 0 | AJ203: 0 | AK203: 0
B204: 6 | C204: 0 | D204: 0 | E204: 0 | F204: 0 | G204: 0 | H204: =D204+F204 -> 0 | J204: S.Padron Conv. | K204: =Q.Frota!G60 -> 16 | L204: =R12 -> 1063600 | M204: =R13 -> 1053280 | AE204: Artic.Conv. | AF204: =Q.Frota!H60 -> 0 | AG204: 0 | AH204: 0 | AI204: =O190 -> 12 | AJ204: 7381081.68 | AK204: 73810.8168
B205: 7 | C205: 0 | D205: 0 | E205: 0 | F205: 0 | G205: 0 | H205: =D205+F205 -> 0 | J205: S.Padron BRT | K205: =Q.Frota!I60 -> 0 | L205: =S12 -> 600000 | M205: =S13 -> 589680 | AE205: Artic.BRT | AF205: =Q.Frota!J60 -> 61 | AG205: 44535142.3 | AH205: 445351.423 | AI205: =O191 -> 61 | AJ205: 44535142.3 | AK205: 445351.423
B206: 8 | C206: 0 | D206: 0 | E206: 0 | F206: 0 | G206: 0 | H206: =D206+F206 -> 0 | J206: Artic.Conv. | K206: =Q.Frota!H60 -> 0 | L206: =T12 -> 615090.14 | M206: =T13 -> 597890.14 | AE206: Total | AF206: =SUM(AF199:AF205) -> 704 | AG206: 234003744.7 | AH206: 2340037.447 | AI206: 625 | AJ206: 202015768.7 | AK206: 2020157.687
B207: 9 | C207: 0 | D207: 0 | E207: 0 | F207: 0 | G207: 0 | H207: =D207+F207 -> 0 | J207: Artic.BRT | K207: =Q.Frota!J60 -> 61 | L207: =U12 -> 730084.3 | M207: =U13 -> 712884.3 | AE207: Total para o Ano 11 | AH207: =AH206/12*9 -> 1755028.085 | AK207: =AK206/12*3 -> 505039.4217 | AL207: =AH207+AK207 -> 2260067.507
B208: 10 | C208: 0 | D208: 0 | E208: 0 | F208: =E166 -> 460 | G208: =E201*$G$9 -> 0 | H208: =F208*G8*G20*G21 -> 0 | J208: Total | K208: =SUM(K201:K207) -> 704
B209: Totais. | C209: =SUM(C199:C208) -> 0 | D209: 0 | E209: 0 | F209: 460 | G209: 0 | H209: 0
J210: RENOVAÇÃO NO ANO 7 - ANÁLISE RENOV.CONTRATO | O210: DEPRECIAÇÃO DA RENOVAÇÃO NO ANO 7 - ANÁLISE RENOVAÇÃO CONTRATUAL | W210: REVENDA DA RENOVAÇÃO NO ANO 7 - ANÁLISE RENOVAÇÃO CONTRATUAL | AE210: RENOVAÇÃO NO ANO 14 - ANÁLISE RENOV.CONTRATO | AJ210: DEPRECIAÇÃO DA RENOVAÇÃO NO ANO 14 - ANÁLISE RENOVAÇÃO CONTRATUAL | AR210: RENOVAÇÃO NO ANO 17 - ANÁLISE RENOV.CONTRATO | AW210: DEPRECIAÇÃO DA RENOVAÇÃO NO ANO 17 - ANÁLISE RENOVAÇÃO CONTRATUAL | BE210: Revenda da Renovação nos Anos 14 e 17 - Análise Renovação Contratual
B211: Padron BRT | C211: Frota c/ Ar Condicionado | E211: Frota sem Ar Condicionado | G211: Totais | J211: Tipo | K211: Qtde. | L211: R$ Unit.c/Pneus | M211: R$ Tot.Invest. | O211: Tipo | P211: % Anual | Q211: R$ Ano 8 | R211: R$ Ano 9 | S211: R$ Ano 10 | T211: R$ Ano 11 | U211: R$ Ano 12 | W211: Tipo | X211: Qtde. | Y211: Utilização Anos | Z211: % Vr. Base | AA211: % abatimento IR | AB211: R$ Ano 14 | AC211: R$ Ano 17 | AE211: Tipo | AF211: Qtde. | AG211: R$ Unit.c/Pneus | AH211: R$ Tot.Invest. | AJ211: Tipo | AK211: % Anual | AL211: R$ Ano 15 | AM211: R$ Ano 16 | AN211: R$ Ano 17 | AO211: R$ Ano 18 | AP211: R$ Ano 19 | AR211: Tipo | AS211: Qtde. | AT211: R$ Unit.c/Pneus | AU211: R$ Tot.Invest. | AW211: Tipo | AX211: % Anual | AY211: R$ Ano 18 | AZ211: R$ Ano 19 | BA211: R$ Ano 20 | BB211: R$ Ano 21 | BC211: R$ Ano 22 | BE211: Tipo | BF211: Qtde. | BG211: Utilização Anos | BH211: % Vr. Base | BI211: % abatimento IR | BJ211: R$ Ano 20
B212: Perfil etário | C212: Aquisição | D212: Venda | E212: Aquisição | F212: Venda | G212: Total | H212: Venda no | J212: Miniônibus | K212: =O163 -> 25 | L212: =L201 -> 170690.14 | M212: =K212*L212 -> 4267253.5 | O212: Miniônibus | P212: =F17 -> 0.2 | Q212: =K212*M201*P212 -> 836650.7 | R212: =Q212 -> 836650.7 | S212: =R212 -> 836650.7 | T212: =S212 -> 836650.7 | U212: =T212 -> 836650.7 | W212: Miniônibus | X212: =K212 -> 25 | Y212: 7 | Z212: =F18 -> 0.2 | AA212: =F19 -> 0.75 | AB212: =M212*Z212*AA212 -> 640088.025 | AE212: Miniônibus | AF212: =K212 -> 25 | AG212: =L221 -> 170690.14 | AH212: =AF212*AG212 -> 4267253.5 | AJ212: Miniônibus | AK212: 0.2 | AL212: =AF212*M201*AK212 -> 836650.7 | AM212: =AL212 -> 836650.7 | AN212: 836650.7 | AO212: 836650.7 | AP212: 836650.7 | AR212: Miniônibus | AS212: =K221 -> 0 | AT212: =L232 -> 0 | AU212: =AS212*AT212 -> 0 | AW212: Miniônibus | AX212: =AK212 -> 0.2 | AY212: =AS212*M201*AX212 -> 0 | AZ212: =AY212 -> 0 | BA212: 0 | BB212: 0 | BC212: 0 | BE212: Miniônibus | BF212: =AF212 -> 25 | BG212: 6 | BH212: =F18+(F18/F15*(F15-BG212)) -> 0.2285714286 | BI212: 0.75 | BJ212: =AH212*BH212*BI212 -> 731529.1714
C213: (Veículos) | D213: (Veículos) | E213: (Veículos) | F213: (Veículos) | G213: Aquisição (R$) | H213: período (R$) | J213: Básicos | K213: =O164 -> 437 | L213: =L202 -> 238790.14 | M213: =K213*L213 -> 104351291.2 | O213: Básicos | P213: =G17 -> 0.2 | Q213: =K213*M202*P213 -> 20372078.24 | R213: =Q213 -> 20372078.24 | S213: 20372078.24 | T213: 20372078.24 | U213: 20372078.24 | W213: Básicos | X213: =K213 -> 437 | Y213: 7 | Z213: =G18 -> 0.25 | AA213: =G19 -> 0.75 | AB213: =M213*Z213*AA213 -> 19565867.1 | AE213: Básicos | AF213: =K213 -> 437 | AG213: =L222 -> 238790.14 | AH213: =AF213*AG213 -> 104351291.2 | AJ213: Básicos | AK213: 0.2 | AL213: =AF213*M202*AK213 -> 20372078.24 | AM213: 20372078.24 | AN213: 20372078.24 | AO213: 20372078.24 | AP213: 20372078.24 | AR213: Básicos | AS213: 0 | AT213: =L233 -> 0 | AU213: =AS213*AT213 -> 0 | AW213: Básicos | AX213: =AK213 -> 0.2 | AY213: =AS213*M202*AX213 -> 0 | AZ213: 0 | BA213: 0 | BB213: 0 | BC213: 0 | BE213: Básicos | BF213: =AF213 -> 437 | BG213: 6 | BH213: =G18+(G18/G15*(G15-BG213)) -> 0.2857142857 | BI213: 0.75 | BJ213: =AH213*BH213*BI213 -> 22360990.97
B214: 1 | C214: 0 | D214: 0 | E214: 0 | F214: 0 | G214: 0 | H214: 0 | J214: Padron BRT | K214: =O165 -> 52 | L214: =L203 -> 460900 | M214: =K214*L214 -> 23966800 | O214: Padron BRT | P214: =H17 -> 0.2 | Q214: =K214*M203*P214 -> 4686032 | R214: 4686032 | S214: 4686032 | T214: 4686032 | U214: 4686032 | W214: Padron BRT | X214: =K214 -> 52 | Y214: 10 | Z214: =H20 -> 0.15 | AA214: =H21 -> 0.75 | AC214: =M214*Z214*AA214 -> 2696265 | AE214: Padron BRT | AF214: 0 | AG214: =L223 -> 460900 | AH214: =AF214*AG214 -> 0 | AJ214: Padron BRT | AK214: 0.2 | AL214: =AF214*M203*AK214 -> 0 | AM214: 0 | AN214: 0 | AO214: 0 | AP214: 0 | AR214: Padron BRT | AS214: =K214 -> 52 | AT214: =L214 -> 460900 | AU214: =AS214*AT214 -> 23966800 | AW214: Padron BRT | AX214: =AK214 -> 0.2 | AY214: =AS214*M203*AX214 -> 4686032 | AZ214: =AY214 -> 4686032 | BA214: 4686032 | BB214: 0 | BC214: 0 | BE214: Padron BRT | BF214: =AS214 -> 52 | BG214: 3 | BH214: =H20+(H20/H15*(H15-BG214)) -> 0.255 | BI214: =H21 -> 0.75 | BJ214: =AU214*BH214*BI214 -> 4583650.5
B215: 2 | C215: 0 | D215: 0 | E215: 0 | F215: 0 | G215: 0 | H215: 0 | J215: Artic.Conv. | K215: =O199 -> 0 | L215: =L206 -> 615090.14 | M215: =K215*L215 -> 0 | O215: Artic.Conv. | P215: =I17 -> 0.2 | Q215: =Q204 -> 0 | R215: 0 | S215: 0 | T215: 0 | U215: 0 | W215: Artic.Conv. | X215: =K215 -> 0 | AA215: =AA214 -> 0.75 | AE215: Artic.Conv. | AF215: =K215 -> 0 | AG215: =L226 -> 615090.14 | AH215: =AF215*AG215 -> 0 | AJ215: Artic.Conv. | AK215: 0.2 | AL215: =AF215*M206*AK215 -> 0 | AM215: 0 | AN215: 0 | AO215: 0 | AP215: 0 | AR215: Artic.Conv. | AS215: 0 | AT215: =L235 -> 0 | AU215: =AS215*AT215 -> 0 | AW215: Artic.Conv. | AX215: =AK215 -> 0.2 | AY215: =AS215*M206*AX215 -> 0 | AZ215: 0 | BA215: 0 | BB215: =BA215 -> 0 | BC215: =BB215 -> 0 | BE215: Artic.Conv. | BF215: =AS215 -> 0 | BJ215: =AU215*BH215*BI215 -> 0
B216: 3 | C216: 0 | D216: 0 | E216: 0 | F216: 0 | G216: 0 | H216: 0 | J216: Artic.BRT | K216: =O200 -> 0 | L216: =L207 -> 730084.3 | M216: =K216*L216 -> 0 | O216: Artic.BRT | P216: =J17 -> 0.2 | Q216: =Q205 -> 0 | R216: 0 | S216: 0 | T216: 0 | U216: 0 | W216: Artic.BRT | X216: =K216 -> 0 | AA216: =AA215 -> 0.75 | AE216: Artic.BRT | AF216: =K216 -> 0 | AG216: =L227 -> 730084.3 | AH216: =AF216*AG216 -> 0 | AJ216: Artic.BRT | AK216: 0.2 | AL216: =AF216*M207*AK216 -> 0 | AM216: 0 | AN216: 0 | AO216: 0 | AP216: 0 | AR216: Artic.BRT | AS216: 0 | AT216: =L236 -> 0 | AU216: =AS216*AT216 -> 0 | AW216: Artic.BRT | AX216: =AK216 -> 0.2 | AY216: =AS216*M207*AX216 -> 0 | AZ216: 0 | BA216: 0 | BB216: =BA216 -> 0 | BC216: =BB216 -> 0 | BE216: Artic.BRT | BF216: =AS216 -> 0 | BJ216: =AU216*BH216*BI216 -> 0
B217: 4 | C217: 0 | D217: 0 | E217: 0 | F217: 0 | G217: 0 | H217: 0 | J217: Total | K217: =SUM(K212:K216) -> 514 | M217: =SUM(M212:M216) -> 132585344.7 | O217: Total | Q217: =SUM(Q212:Q216) -> 25894760.94 | R217: =SUM(R212:R216) -> 25894760.94 | S217: =SUM(S212:S216) -> 25894760.94 | T217: =SUM(T212:T216) -> 25894760.94 | U217: =SUM(U212:U216) -> 25894760.94 | W217: Total | X217: =SUM(X212:X216) -> 514 | AA217: =AA216 -> 0.75 | AB217: =SUM(AB212:AB216) -> 20205955.12 | AC217: =SUM(AC212:AC216) -> 2696265 | AE217: Total | AF217: =SUM(AF212:AF216) -> 462 | AH217: =SUM(AH212:AH216) -> 108618544.7 | AJ217: Total | AL217: =SUM(AL212:AL216) -> 21208728.94 | AM217: =SUM(AM212:AM216) -> 21208728.94 | AN217: =SUM(AN212:AN216) -> 21208728.94 | AO217: =SUM(AO212:AO216) -> 21208728.94 | AP217: =SUM(AP212:AP216) -> 21208728.94 | AR217: Total | AS217: =SUM(AS212:AS216) -> 52 | AU217: =SUM(AU212:AU216) -> 23966800 | AW217: Total | AY217: =SUM(AY212:AY216) -> 4686032 | AZ217: =SUM(AZ212:AZ216) -> 4686032 | BA217: =SUM(BA212:BA216) -> 4686032 | BB217: =SUM(BB212:BB216) -> 0 | BC217: =SUM(BC212:BC216) -> 0 | BE217: Total | BF217: =SUM(BF212:BF216) -> 514 | BJ217: =SUM(BJ212:BJ216) -> 27676170.64
B218: 5 | C218: 0 | D218: 0 | E218: 0 | F218: 0 | G218: 0 | H218: 0
B219: 6 | C219: 0 | D219: 0 | E219: 0 | F219: 0 | G219: 0 | H219: 0 | J219: RENOVAÇÃO NO ANO 11 - ANÁLISE RENOV.CONTRATO | O219: DEPRECIAÇÃO DA RENOVAÇÃO NO ANO 11 - ANÁLISE RENOVAÇÃO CONTRATUAL | W219: Revenda da Renovação no Ano 11 - Análise Renovação Contratual | AD219: RENOVAÇÃO NO ANO 18 - ANÁLISE RENOV.CONTRATO | AI219: DEPRECIAÇÃO DA RENOVAÇÃO NO ANO 18 - ANÁLISE RENOVAÇÃO CONTRATUAL | AQ219: Revenda da Renovação nos Anos 18 - Análise Renovação Contratual | AX219: Revenda da Renovação nos Anos 11 e 18 - Análise Renovação Contratual
B220: 7 | C220: 0 | D220: 0 | E220: 0 | F220: 0 | G220: 0 | H220: 0 | J220: Tipo | K220: Qtde. | L220: R$ Unit.c/Pneus | M220: R$ Tot.Invest. | O220: Tipo | P220: % Anual | Q220: R$ Ano 12 | R220: R$ Ano 13 | S220: R$ Ano 14 | T220: R$ Ano 15 | U220: R$ Ano 16 | W220: Tipo | X220: Qtde. | Y220: Utilização Anos | Z220: % Vr. Base | AA220: % abatimento IR | AB220: R$ Ano 11 | AD220: Tipo | AE220: Qtde. | AF220: R$ Unit.c/Pneus | AG220: R$ Tot.Invest. | AI220: Tipo | AJ220: % Anual | AK220: R$ Ano 19 | AL220: R$ Ano 20 | AM220: R$ Ano 21 | AN220: R$ Ano 22 | AO220: R$ Ano 23 | AQ220: Tipo | AR220: Qtde. | AS220: Utilização Anos | AT220: % Vr. Base | AU220: % abatimento IR | AV220: R$ Ano 18 | AX220: Tipo | AY220: Qtde. | AZ220: Utilização Anos | BA220: % Vr. Base | BB220: % abatimento IR | BC220: R$ Ano 20
B221: 8 | C221: 0 | D221: 0 | E221: 0 | F221: 0 | G221: 0 | H221: 0 | J221: Miniônibus | K221: =Q.Frota!P62 -> 0 | L221: =L201 -> 170690.14 | M221: =K221*L221 -> 0 | O221: Miniônibus | P221: =P212 -> 0.2 | Q221: =K221*M201*P221 -> 0 | R221: =Q221 -> 0 | S221: 0 | T221: 0 | U221: 0 | W221: Miniônibus | X221: =D219 -> 0 | AA221: =AA212 -> 0.75 | AB221: =M221*Z221*AA221 -> 0 | AD221: Miniônibus | AE221: =Q.Frota!AJ62 -> 0 | AF221: =L221 -> 170690.14 | AG221: =AE221*AF221 -> 0 | AI221: Miniônibus | AJ221: 0.2 | AK221: =AE221*AG201*AJ221 -> 0 | AL221: =AK221 -> 0 | AM221: =AL221 -> 0 | AN221: =AM221 -> 0 | AO221: =AN221 -> 0 | AQ221: Miniônibus | AR221: 0 | AU221: 0.75 | AV221: =Z221*AT221*AU221 -> 0 | AX221: Miniônibus | AY221: =X219 -> 0 | BB221: 0.75 | BC221: =AG221*BA221*BB221 -> 0
B222: 9 | C222: 0 | D222: 0 | E222: 0 | F222: 0 | G222: 0 | H222: 0 | J222: Básicos | K222: =Q.Frota!Q62 -> 55 | L222: 238790.14 | M222: 13133457.7 | O222: Básicos | P222: =P213 -> 0.2 | Q222: 2563991.54 | R222: 2563991.54 | S222: 2563991.54 | T222: 2563991.54 | U222: 2563991.54 | W222: Básicos | X222: 0 | AA222: =AA221 -> 0.75 | AB222: =M222*Z222*AA222 -> 0 | AD222: Básicos | AE222: =K222 -> 55 | AF222: 238790.14 | AG222: 13133457.7 | AI222: Básicos | AJ222: =AJ221 -> 0.2 | AK222: =AG222*AJ222 -> 2626691.54 | AL222: 2626691.54 | AM222: 0 | AN222: 0 | AO222: 0 | AQ222: Básicos | AR222: =AE222 -> 55 | AS222: 7 | AT222: =G18+(G18/G15*(G15-AS222)) -> 0.25 | AU222: =AU221 -> 0.75 | AV222: =AG222*AT222*AU222 -> 2462523.319 | AX222: Básicos | AY222: =AE222 -> 55 | AZ222: 2 | BA222: =G18+(G18/G15*(G15-AZ222)) -> 0.4285714286 | BB222: =BB221 -> 0.75 | BC222: =AG222*BA222*BB222 -> 4221468.546
B223: 10 | C223: 0 | D223: =C84 -> 38 | E223: 0 | F223: 0 | G223: 0 | H223: =D223*H12*H20*H21 -> 1970347.5 | J223: Padron BRT | K223: =Q.Frota!R62 -> 58 | L223: 460900 | M223: 26732200 | O223: Padron BRT | P223: =P214 -> 0.2 | Q223: 5226728 | R223: 5226728 | S223: 5226728 | T223: 5226728 | U223: 5226728 | W223: Padron BRT | X223: =K223-20 -> 38 | Y223: 10 | Z223: =H20+(H20/H15*(H15-Y223)) -> 0.15 | AA223: 0.75 | AB223: =(L223*X223)*Z223*AA223 -> 1970347.5 | AD223: Padron BRT | AE223: =Q.Frota!AL62 -> 0 | AF223: 460900 | AG223: 0 | AI223: Padron BRT | AJ223: 0.2 | AK223: =AE223*AG203*AJ223 -> 0 | AL223: 0 | AM223: 0 | AN223: 0 | AO223: 0 | AQ223: Padron BRT | AR223: 0 | AU223: 0.75 | AV223: 0 | AX223: Padron BRT | AY223: =K223 -> 58 | AZ223: 9 | BA223: =H20+(H20/H15*(H15-AZ223)) -> 0.165 | BB223: 0.75 | BC223: =M223*BA223*BB223 -> 3308109.75
B224: Totais. | C224: =SUM(C214:C223) -> 0 | D224: =SUM(D214:D223) -> 38 | E224: =SUM(E214:E223) -> 0 | F224: =SUM(F214:F223) -> 0 | G224: =SUM(G214:G223) -> 0 | J224: S.Padron Conv. | K224: =Q.Frota!S62 -> 16 | L224: 1063600 | M224: 17017600 | O224: S.Padron Conv. | P224: =P215 -> 0.2 | Q224: 3370496 | R224: =Q224 -> 3370496 | S224: =R224 -> 3370496 | T224: =S224 -> 3370496 | U224: =T224 -> 3370496 | W224: S.Padron Conv. | X224: 0 | AA224: 0.75 | AB224: =M224*Z224*AA224 -> 0 | AD224: S.Padron Conv. | AE224: =Q.Frota!AM62 -> 0 | AF224: 1063600 | AG224: 0 | AI224: S.Padron Conv. | AJ224: 0.2 | AK224: =AE224*AG204*AJ224 -> 0 | AL224: 0 | AM224: 0 | AN224: 0 | AO224: 0 | AQ224: S.Padron Conv. | AR224: 0 | AU224: 0.75 | AV224: 0 | AX224: S.Padron Conv. | AY224: =K224 -> 16 | AZ224: 9 | BA224: =H20+(H20/H15*(H15-AZ224)) -> 0.165 | BB224: 0.75 | BC224: =M224*BA224*BB224 -> 2105928
... 84 more rows

Sheet custo de capital B
B2: Planilha 3 - Demonstração do custo de depreciação do capital | J2: Viação Pioneira
J3: Bacia 2
B4: Premissas gerais para a depreciação | N4: Tipo de Veículo | O4: NF Chassi* | P4: NF Carroceria* | Q4: total | R4: Mês da NF | S4: IVRCAo set/2012 | T4: IVRCAi jun/14 | U4: Variação no Período | V4: valor Deflacionado
N5: Padron BRT | O5: 203000 | P5: 216000 | Q5: =SUM(O5:P5) -> 419000 | R5: 2014-06-01 | S5: 103.788 | T5: 109.816 | U5: =T5/S5 -> 1.058079932 | V5: =Q5/U5 -> 396000.3278
B6: Dados veículos | F6: Miniônibus | G6: Ônibus básico | H6: Padron BRT | I6: Super Padron Conv. | J6: Super Padron BRT | K6: Artic.Convenc. | L6: Artic. BRT
E7: Sem AC Condicionado | N7: Tipo de Veículo | O7: NF Chassi* | P7: NF Carroceria* | Q7: total | R7: Mês da NF | S7: IVRCAo set/2012 | T7: IVRCAi nov/13 | U7: Variação no Período | V7: valor Deflacionado
E8: Preço médio de um veículo novo (R$) | F8: 170690.14 | G8: 238790.14 | N8: ART. BRT | O8: 340019 | P8: 273188 | Q8: =SUM(O8:P8) -> 613207 | R8: 2013-11-01 | S8: 103.788 | T8: 108.342 | U8: =T8/S8 -> 1.043877905 | V8: =Q8/U8 -> 587431.7265
E9: Preço médio de um veículo novo sem rodagem (R$) | F9: =F8-('Custos Variáveis ate dez-20'!C23*'Custos Variáveis ate dez-20'!D23) -> 167330.14 | G9: =G8-('Custos Variáveis ate dez-20'!C24*'Custos Variáveis ate dez-20'!D24) -> 233090.14 | N9: *Fonte: SIT
E11: Com AC Condicionado
E12: Preço médio de um veículo novo (R$) | F12: 188690.14 | G12: 260790.14 | H12: =V5 -> 396000.3278 | I12: 1063600 | J12: 600000 | K12: 615090.14 | L12: ='Custo Capital'!J12 -> 730084.3
E13: Preço médio de um veículo novo sem rodagem (R$) | F13: =F12-('Custos Variáveis ate dez-20'!C23*'Custos Variáveis ate dez-20'!D23) -> 185330.14 | G13: =G12-('Custos Variáveis ate dez-20'!C24*'Custos Variáveis ate dez-20'!D24) -> 255090.14 | H13: =H12-('Custos Variáveis ate dez-20'!C25*'Custos Variáveis ate dez-20'!D25) -> 385680.3278 | I13: =I12-('Custos Variáveis ate dez-20'!L29*'Custos Variáveis ate dez-20'!M29) -> 1046400 | J13: =J12-('Custos Variáveis ate dez-20'!L27*'Custos Variáveis ate dez-20'!M27) -> 589680 | K13: =K12-('Custos Variáveis ate dez-20'!L28*'Custos Variáveis ate dez-20'!M28) -> 597890.14 | L13: =L12-('Custos Variáveis ate dez-20'!L29*'Custos Variáveis ate dez-20'!M29) -> 712884.3
E15: Vida útil (anos) | F15: 7 | G15: 7 | H15: 10 | I15: 10 | J15: 10 | K15: 10 | L15: 10
E16: Valor residual (% novo veículo) | F16: 0.2 | G16: 0.25 | H16: 0.15 | I16: 0.15 | J16: 0.15 | K16: 0.15 | L16: 0.15
B18: Período de depreciação | F18: Período depreciação (anos)
E19: Veículos | F19: 5
E20: Equips embarcados e de garagem do SIM e do Sist.Vigilância | F20: 5 | N20: L29
E21: Edificações | F21: 25 | N21: M29
E22: Instalações e demais equipamentos de Garagem | F22: 25
E24: Histórico | F24: =F6 -> Miniônibus | G24: Ônibus básico | H24: Padron BRT | I24: Super Padron Conv. | J24: Super Padron BRT | K24: Artic.Convenc. | L24: Artic. BRT
E25: Depreciação anual Revenda (1-Valor residual)/vida útil | F25: =(1-F16)/F15 -> 0.1142857143 | G25: 0.1071428571 | H25: 0.085 | I25: 0.085 | J25: 0.085 | K25: 0.085 | L25: 0.085
E27: Proposta empresa
E28: Revenda | F28: =F6 -> Miniônibus | G28: Ônibus básico | H28: Padron BRT | I28: Super Padron Conv. | J28: Super Padron BRT | K28: Artic.Convenc. | L28: Artic. BRT
E29: 0 | F29: =$F$8 -> 170690.14 | G29: =$G$8 -> 238790.14 | H29: =$H$12 -> 396000.3278 | I29: =$I$12 -> 1063600 | J29: =$J$12 -> 600000 | K29: =$K$12 -> 615090.14 | L29: =$L$12 -> 730084.3
E30: 1 | F30: 153621.13 | G30: 216406.56 | H30: =IF($E30<=H$15,H$12*(1-H$25*$E30),0) -> 362340.3 | I30: 973194 | J30: 549000 | K30: 564652.75 | L30: =IF($E30<=L$15,L$12*(1-L$25*$E30),0) -> 668027.1345
E31: 2 | F31: 136552.11 | G31: 194016.99 | H31: 328680.2721 | I31: 882788 | J31: 498000 | K31: 514215.36 | L31: 605969.969
E32: 3 | F32: 119483.1 | G32: 171630.41 | H32: 295020.2442 | I32: 792382 | J32: 447000 | K32: 463777.97 | L32: 543912.8035
E33: 4 | F33: 102414.08 | G33: 149243.84 | H33: 261360.2164 | I33: 701976 | J33: 396000 | K33: 413340.57 | L33: 481855.638
C34: =68276.06*69 -> 4711048.14 | E34: 5 | F34: 85345.07 | G34: 126857.26 | H34: 227700.1885 | I34: 611570 | J34: 345000 | K34: 362903.18 | L34: 419798.4725
C35: =C34*0.75 -> 3533286.105 | E35: 6 | F35: 68276.06 | G35: 104470.69 | H35: 194040.1606 | I35: 521164 | J35: 294000 | K35: 312465.79 | L35: 357741.307
E36: 7 | F36: 51207.04 | G36: 82084.11 | H36: 160380.1328 | I36: 430758 | J36: 243000 | K36: 262028.4 | L36: 295684.1415
E37: 8 | F37: 34138.03 | G37: 59697.54 | H37: 126720.1049 | I37: 340352 | J37: 192000 | K37: 211591.01 | L37: 233626.976
E38: 9 | F38: =IF($E38<=F$15,F$9*(1-F$25*$E38),0) -> 0 | G38: =IF($E38<=G$15,G$9*(1-G$25*$E38),0) -> 0 | H38: 93060.07704 | I38: 249946 | J38: 141000 | K38: 161153.62 | L38: 171569.8105
E39: 10 | F39: =IF($E39<=F$15,F$9*(1-F$25*$E39),0) -> 0 | G39: =IF($E39<=G$15,G$9*(1-G$25*$E39),0) -> 0 | H39: 59400.04917 | I39: 159540 | J39: 90000 | K39: 110716.23 | L39: 109512.645
E40: 11 | H40: 0 | I40: 0 | J40: 0 | K40: 60278.83 | L40: 0
E42: Cálculo
E43: Revenda | F43: =F28 -> Miniônibus | G43: Ônibus básico | H43: Padron BRT | I43: Super Padron Conv. | J43: Super Padron BRT | K43: Artic.Convenc. | L43: Artic. BRT
E44: 0 | F44: =$F$8 -> 170690.14 | G44: =$G$8 -> 238790.14 | H44: =$H$12 -> 396000.3278 | I44: =$I$12 -> 1063600 | J44: =$J$12 -> 600000 | K44: =$K$12 -> 615090.14 | L44: =$L$12 -> 730084.3
E45: 1 | F45: =IF($E45<=F$15,F$8*(1-F$25*$E45),0) -> 151182.6954 | G45: 213205.4821 | H45: =IF($E45<=H$15,H$12*(1-H$25*$E45),0) -> 362340.3 | I45: 973194 | J45: 549000 | K45: =IF($E45<=K$15,K$13*(1-K$25*$E45),0) -> 547069.4781 | L45: =IF($E45<=L$15,L$12*(1-L$25*$E45),0) -> 668027.1345
E46: 2 | F46: 131675.2509 | G46: 187620.8243 | H46: 328680.2721 | I46: 882788 | J46: 498000 | K46: 496248.8162 | L46: 605969.969
E47: 3 | F47: 112167.8063 | G47: 162036.1664 | H47: 295020.2442 | I47: 792382 | J47: 447000 | K47: 445428.1543 | L47: 543912.8035
E48: 4 | F48: 92660.36171 | G48: 136451.5086 | H48: 261360.2164 | I48: 701976 | J48: 396000 | K48: 394607.4924 | L48: 481855.638
E49: 5 | F49: 73152.91714 | G49: 110866.8507 | H49: 227700.1885 | I49: 611570 | J49: 345000 | K49: 343786.8305 | L49: 419798.4725
E50: 6 | F50: 53645.47257 | G50: 85282.19286 | H50: 194040.1606 | I50: 521164 | J50: 294000 | K50: 292966.1686 | L50: 357741.307
E51: 7 | F51: 34138.028 | G51: 59697.535 | H51: 160380.1328 | I51: 430758 | J51: 243000 | K51: 242145.5067 | L51: 295684.1415
E52: 8 | F52: 0 | G52: 0 | H52: 126720.1049 | I52: 340352 | J52: 192000 | K52: 191324.8448 | L52: 233626.976
E53: 9 | F53: 0 | G53: 0 | H53: 93060.07704 | I53: 249946 | J53: 141000 | K53: 140504.1829 | L53: 171569.8105
E54: 10 | F54: 0 | G54: 0 | H54: 59400.04917 | I54: 159540 | J54: 90000 | K54: 89683.521 | L54: 109512.645
E55: 11 | F55: 0 | G55: 0 | H55: 0 | I55: 0 | J55: 0 | K55: 0 | L55: 0
B58: Ano | C58: Período | D58: =F43 -> Miniônibus | E58: Ônibus básico | F58: Padron BRT | G58: Super Padron Conv. | H58: Super Padron BRT | I58: Artic.Convenc. | J58: Artic. BRT | K58: total
B59: Ano 0 | E59: 176 | K59: =SUM(D59:J59) -> 176
B60: Ano 1 | C60: 28/07/2013 a 27/07/2014 | D60: 53 | E60: 283 | F60: 38 | I60: 12 | J60: 59 | K60: =SUM(D60:J60) -> 445 | L60: Foi baixado 1 veículo Articulado.
B61: Ano 2 | C61: 28/07/2014 a 27/07/2015 | D61: 0 | E61: 0 | F61: 0 | I61: 0 | J61: 3 | K61: =SUM(D61:J61) -> 3 | L61: =K59+K60+K61 -> 624
B62: Ano 3 | C62: 28/07/2015 a 27/07/2016 | K62: 0
B63: Ano 4 | C63: 28/07/2016 a 27/07/2017 | K63: 0
B64: Ano 5 | C64: 28/07/2017 a 27/07/2018 | K64: 0
B65: Ano 6 | C65: 28/07/2018 a 27/07/2019 | K65: 0
B66: Ano 7 | C66: 28/07/2019 a 27/07/2020 | D66: 25 | E66: =22+28+28+28+28+28+28+28+28+28+31+32+6 -> 343 | F66: 15 | K66: 383 | L66: renovação | M66: foi baixado 1 veículo Articulado. Não consta no SIT.
B67: Ano 8 | C67: 28/07/2020 a 27/07/2021 | E67: 95 | F67: 37 | K67: 132 | L67: renovação | M67: foi baixado 1 veículo básico
B68: Ano 9 | C68: 28/07/2021 a 27/07/2022 | K68: 0 | L68: renovação
B69: Ano 10 | C69: 28/07/2022 a 27/07/2023 | K69: 0
B70: Ano 11 | C70: 28/07/2023 a 27/07/2024 | E70: 55 | F70: =38+20 -> 58 | G70: 16 | I70: 0 | J70: 58
B71: Ano 12 | C71: 28/07/2024 a 27/07/2025 | J71: 3 | M71: 79
B72: Ano 13 | C72: 28/07/2025 a 27/07/2026 | M72: 20
B73: Ano 14 | C73: 28/07/2026 a 27/07/2027 | D73: 25 | E73: 343 | M73: 16
B74: Ano 15 | C74: 28/07/2027 a 27/07/2028 | E74: =E67-1 -> 94 | M74: =M71-M72-M73 -> 43
B75: Ano 16 | C75: 28/07/2028 a 27/07/2029
B76: Ano 17 | C76: 28/07/2029 a 27/07/2030 | E76: 55 | F76: 15
B77: Ano 18 | C77: 28/07/2030 a 27/07/2031 | F77: 37
B78: Ano 19 | C78: 28/07/2031 a 27/07/2032
B79: Ano 20 | C79: 28/07/2032 a 27/07/2033
B80: Saída dos Véiculos no último ano | D80: =SUM(D70:D79) -> 25 | E80: =E73+E74+E75+E76 -> 492 | F80: =SUM(F70:F79) -> 110 | G80: =SUM(G70:G79) -> 16 | H80: =SUM(H70:H79) -> 0 | I80: =SUM(I70:I79) -> 0 | J80: =SUM(J70:J79) -> 61 | K80: =SUM(D80:J80) -> 704
D81: 25 | E81: 492 | F81: 110 | G81: 16 | H81: 0 | I81: 0 | J81: 61 | K81: =SUM(D81:J81) -> 704
B82: Resumo da depreciação
C83: Ano | D83: =D58 -> Miniônibus | E83: Ônibus básico | F83: Padron BRT | G83: Super Padron Conv. | H83: Super Padron BRT | I83: Artic.Convenc. | J83: Artic. BRT | K83: Total Deprec. | L83: Média mensal
K84: (R$ | L84: depreciação (R$)
B85: jul/2013 a jul/2014 | C85: 1 | D85: =($F$9*0.2*$E$129) -> 1773699.484 | E85: =($G$9*0.2*$M$111)+($G$9*0.2*$M$129) -> 21397674.85 | F85: =($H$13*0.2*$S$129) -> 2931170.491 | I85: =($K$13*0.2*$AQ$129) -> 1434936.336 | J85: =($L$13*0.2*$AY$129) -> 8412034.74 | K85: =SUM(D85:J85) -> 35949515.9 | L85: =K85/12 -> 2995792.992
B86: jul/2014 a jul/2015 | C86: 2 | D86: =($F$9*0.2*$E$129) -> 1773699.484 | E86: =($G$9*0.2*$M$111)+($G$9*0.2*$M$129) -> 21397674.85 | F86: =($H$13*0.2*$S$129) -> 2931170.491 | I86: =($K$13*0.2*$AQ$129) -> 1434936.336 | J86: =($L$13*0.2*$AY$129)+($L$13*0.2*$AY$147) -> 8839765.32 | K86: 36377246.48 | L86: =K86/12 -> 3031437.207
B87: jul/2015 a jul/2016 | C87: 3 | D87: =($F$9*0.2*$E$129) -> 1773699.484 | E87: =($G$9*0.2*$M$111)+($G$9*0.2*$M$129) -> 21397674.85 | F87: =($H$13*0.2*$S$129) -> 2931170.491 | I87: =($K$13*0.2*$AQ$129) -> 1434936.336 | J87: =($L$13*0.2*$AY$129)+($L$13*0.2*$AY$147) -> 8839765.32 | K87: 36377246.48 | L87: 3031437.207
B88: jul/2016 a jul/2017 | C88: 4 | D88: =($F$9*0.2*$E$129) -> 1773699.484 | E88: =($G$9*0.2*$M$111)+($G$9*0.2*$M$129) -> 21397674.85 | F88: =($H$13*0.2*$S$129) -> 2931170.491 | I88: =($K$13*0.2*$AQ$129) -> 1434936.336 | J88: =($L$13*0.2*$AY$129)+($L$13*0.2*$AY$147) -> 8839765.32 | K88: 36377246.48 | L88: 3031437.207
B89: jul/2017 a jul/2018 | C89: 5 | D89: =($F$9*0.2*$E$129) -> 1773699.484 | E89: =($G$9*0.2*$M$111)+($G$9*0.2*$M$129) -> 21397674.85 | F89: =($H$13*0.2*$S$129) -> 2931170.491 | I89: =($K$13*0.2*$AQ$129) -> 1434936.336 | J89: =($L$13*0.2*$AY$129)+($L$13*0.2*$AY$147) -> 8839765.32 | K89: 36377246.48 | L89: =K89/12 -> 3031437.207
B90: jul/2018 a jul/2019 | C90: 6 | J90: =($L$13*0.2*$AY$147) -> 427730.58 | K90: 427730.58 | L90: =K90/12 -> 35644.215
B91: jul/2019 a jul/2020 | C91: 7 | D91: =($F$9*0.2*$E$237) -> 836650.7 | E91: =($G$9*0.2*$M$237) -> 15989983.6 | F91: =($H$13*0.2*$S$237) -> 1157040.983 | K91: 17983675.29 | L91: 1498639.607
B92: jul/2020 a jul/2021 | C92: 8 | D92: =($F$9*0.2*$E$237) -> 836650.7 | E92: =($G$9*0.2*$M$237)+($G$9*0.2*$M$255) -> 20418696.26 | F92: =($H$13*0.2*$S$237)+($H$13*0.2*$S$255) -> 4011075.409 | K92: 25266422.37 | L92: =K92/12 -> 2105535.198
B93: jul/2021 a jul/2022 | C93: 9 | D93: =($F$9*0.2*$E$237) -> 836650.7 | E93: =($G$9*0.2*$M$237)+($G$9*0.2*$M$255) -> 20418696.26 | F93: =($H$13*0.2*$S$237)+($H$13*0.2*$S$255) -> 4011075.409 | K93: 25266422.37 | L93: 2105535.198
B94: jul/2022 a jul/2023 | C94: 10 | D94: =($F$9*0.2*$E$237) -> 836650.7 | E94: =($G$9*0.2*$M$237)+($G$9*0.2*$M$255) -> 20418696.26 | F94: =($H$13*0.2*$S$237)+($H$13*0.2*$S$255) -> 4011075.409 | K94: 25266422.37 | L94: 2105535.198
B95: jul/2023 a jul/2024 | C95: 11 | D95: =($F$9*0.2*$E$237) -> 836650.7 | E95: =($G$9*0.2*$M$237)+($G$9*0.2*$M$255)+($G$9*0.2*$M$309) -> 22982687.8 | F95: =($H$13*0.2*$S$255)+($H$13*0.2*$S$309) -> 7327926.229 | G95: =($I$13*0.2*$AA$309) -> 3348480 | I95: =($K$13*0.2*$AQ$309) -> 0 | J95: =($L$13*0.2*$AY$309) -> 8269457.88 | K95: 42765202.61 | L95: 3563766.884
B96: jul/2024 a jul/2025 | C96: 12 | E96: =($G$9*0.2*$M$237)+($G$9*0.2*$M$255)+($G$9*0.2*$M$309) -> 22982687.8 | F96: =($H$13*0.2*$S$255)+($H$13*0.2*$S$309) -> 7327926.229 | G96: =($I$13*0.2*$AA$309) -> 3348480 | I96: =($K$13*0.2*$AQ$309) -> 0 | J96: =($L$13*0.2*$AY$309)+($L$13*0.2*$AY$327) -> 8697188.46 | K96: 42356282.49 | L96: 3529690.208
B97: jul/2025 a jul/2026 | C97: 13 | E97: =($G$9*0.2*$M$309) -> 2563991.54 | F97: =+($H$13*0.2*$S$309) -> 4473891.803 | G97: =($I$13*0.2*$AA$309) -> 3348480 | I97: =($K$13*0.2*$AQ$309) -> 0 | J97: =($L$13*0.2*$AY$309)+($L$13*0.2*$AY$327) -> 8697188.46 | K97: 19083551.8 | L97: =K97/12 -> 1590295.984
B98: jul/2026 a jul/2027 | C98: 14 | D98: =($F$9*0.2*$E$363) -> 836650.7 | E98: =($G$9*0.2*$M$309)+($G$9*0.2*$M$363) -> 18553975.14 | F98: =+($H$13*0.2*$S$309) -> 4473891.803 | G98: =($I$13*0.2*$AA$309) -> 3348480 | I98: =($K$13*0.2*$AQ$309) -> 0 | J98: =($L$13*0.2*$AY$309)+($L$13*0.2*$AY$327) -> 8697188.46 | K98: 35910186.11 | L98: 2992515.509
B99: jul/2027 a jul/2028 | C99: 15 | D99: =($F$9*0.2*$E$363) -> 836650.7 | E99: =($G$9*0.2*$M$309)+($G$9*0.2*$M$363)+($G$9*0.2*$M$381) -> 22936069.78 | F99: =+($H$13*0.2*$S$309) -> 4473891.803 | G99: =($I$13*0.2*$AA$309) -> 3348480 | I99: =($K$13*0.2*$AQ$309) -> 0 | J99: =($L$13*0.2*$AY$309)+($L$13*0.2*$AY$327) -> 8697188.46 | K99: 40292280.74 | L99: 3357690.062
B100: jul/2028 a jul/2029 | C100: 16 | D100: =($F$9*0.2*$E$363) -> 836650.7 | E100: =($G$9*0.2*$M$363)+($G$9*0.2*$M$381) -> 20372078.24 | J100: =($L$13*0.2*$AY$327) -> 427730.58 | K100: 21636459.52 | L100: 1803038.293
B101: jul/2029 a jul/2030 | C101: 17 | D101: =($F$9*0.2*$E$363) -> 836650.7 | E101: =($G$9*0.2*$M$363)+($G$9*0.2*$M$381)+($G$9*0.2*$M$417) -> 22936069.78 | F101: =($H$13*0.2*$S$417) -> 1157040.983 | K101: 24929761.46 | L101: 2077480.122
B102: jul/2030 a jul/2031 | C102: 18 | D102: =($F$9*0.2*$E$363) -> 836650.7 | E102: =($G$9*0.2*$M$363)+($G$9*0.2*$M$381)+($G$9*0.2*$M$417) -> 22936069.78 | F102: =($H$13*0.2*$S$417)+($H$13*0.2*$S$435) -> 4011075.409 | K102: 27783795.89 | L102: 2315316.324
B103: jul/2031 a jul/2032 | C103: 19 | E103: =($G$9*0.2*$M$381)+($G$9*0.2*$M$417) -> 6946086.172 | F103: =($H$13*0.2*$S$417)+($H$13*0.2*$S$435) -> 4011075.409 | K103: =SUM(D103:J103) -> 10957161.58 | L103: 913096.7984
B104: jul/2032 a jul/2033 | C104: 20 | E104: =+($G$9*0.2*$M$417) -> 2563991.54 | F104: =($H$13*0.2*$S$417)+($H$13*0.2*$S$435) -> 4011075.409 | K104: =SUM(D104:J104) -> 6575066.949 | L104: 547922.2458
B106: Plano de renovação de frota Ano 0 | J106: =B106 -> Plano de renovação de frota Ano 0 | R106: =J106 -> Plano de renovação de frota Ano 0 | Z106: =R106 -> Plano de renovação de frota Ano 0 | AH106: =Z106 -> Plano de renovação de frota Ano 0 | AP106: =R106 -> Plano de renovação de frota Ano 0 | AX106: =AP106 -> Plano de renovação de frota Ano 0
B108: =$D$83 -> Miniônibus | C108: Frota c/ Ar Condicionado | E108: Frota sem Ar Condicionado | G108: Totais | J108: =$E$83 -> Ônibus básico | K108: Frota c/ Ar Condicionado | M108: Frota sem Ar Condicionado | O108: Totais | R108: =$F$83 -> Padron BRT | S108: Frota c/ Ar Condicionado | U108: Frota sem Ar Condicionado | W108: Totais | Z108: =$G$83 -> Super Padron Conv. | AA108: Frota c/ Ar Condicionado | AC108: Frota sem Ar Condicionado | AE108: Totais | AH108: =$H$83 -> Super Padron BRT | AI108: Frota c/ Ar Condicionado | AK108: Frota sem Ar Condicionado | AM108: Totais | AP108: Ônibus Articulado | AQ108: Frota c/ Ar Condicionado | AS108: Frota sem Ar Condicionado | AU108: Totais | AX108: Ônibus Articulado BRT | AY108: Frota c/ Ar Condicionado | BA108: Frota sem Ar Condicionado | BC108: Totais
B109: Perfil etário | C109: Aquisição | D109: Venda | E109: Aquisição | F109: Venda | G109: Total | H109: Venda no | J109: Perfil etário | K109: Aquisição | L109: Venda | M109: Aquisição | N109: Venda | O109: Total | P109: Venda no | R109: Perfil etário | S109: Aquisição | T109: Venda | U109: Aquisição | V109: Venda | W109: Total | X109: Venda no | Z109: Perfil etário | AA109: Aquisição | AB109: Venda | AC109: Aquisição | AD109: Venda | AE109: Total | AF109: Venda no | AH109: Perfil etário | AI109: Aquisição | AJ109: Venda | AK109: Aquisição | AL109: Venda | AM109: Total | AN109: Venda no | AP109: Perfil etário | AQ109: Aquisição | AR109: Venda | AS109: Aquisição | AT109: Venda | AU109: Total | AV109: Venda no | AX109: Perfil etário | AY109: Aquisição | AZ109: Venda | BA109: Aquisição | BB109: Venda | BC109: Total | BD109: Venda no
C110: (Veículos) | D110: (Veículos) | E110: (Veículos) | F110: (Veículos) | G110: Aquisição (R$) | H110: período (R$) | K110: (Veículos) | L110: (Veículos) | M110: (Veículos) | N110: (Veículos) | O110: Aquisição (R$) | P110: período (R$) | S110: (Veículos) | T110: (Veículos) | U110: (Veículos) | V110: (Veículos) | W110: Aquisição (R$) | X110: período (R$) | AA110: (Veículos) | AB110: (Veículos) | AC110: (Veículos) | AD110: (Veículos) | AE110: Aquisição (R$) | AF110: período (R$) | AI110: (Veículos) | AJ110: (Veículos) | AK110: (Veículos) | AL110: (Veículos) | AM110: Aquisição (R$) | AN110: período (R$) | AQ110: (Veículos) | AR110: (Veículos) | AS110: (Veículos) | AT110: (Veículos) | AU110: Aquisição (R$) | AV110: período (R$) | AY110: (Veículos) | AZ110: (Veículos) | BA110: (Veículos) | BB110: (Veículos) | BC110: Aquisição (R$) | BD110: período (R$) | BF110: Aquisições | BG110: Vendas com dedução IR, conforme Proposta
B111: 0 | C111: 0 | D111: 0 | E111: 0 | F111: 0 | G111: =E111*$F$29 -> 0 | H111: =F111*$F$30 -> 0 | J111: 0 | K111: 0 | L111: 0 | M111: =E59 -> 176 | N111: 0 | O111: =M111*$G$29 -> 42027064.64 | P111: =N111*$G$30 -> 0 | R111: 0 | S111: 0 | T111: 0 | U111: 0 | V111: 0 | W111: =S111*$K$29 -> 0 | X111: =T111*$H$30 -> 0 | Z111: 0 | AA111: 0 | AB111: 0 | AC111: 0 | AD111: 0 | AE111: =AA111*$I$29 -> 0 | AF111: =AB111*$I$30 -> 0 | AH111: 0 | AI111: 0 | AJ111: 0 | AK111: 0 | AL111: 0 | AM111: =AI111*$K$29 -> 0 | AN111: =AJ111*$H$30 -> 0 | AP111: 0 | AQ111: 0 | AR111: 0 | AS111: 0 | AT111: 0 | AU111: =AQ111*$K$29 -> 0 | AV111: =AR111*$K$30 -> 0 | AX111: 0 | AY111: 0 | AZ111: 0 | BA111: 0 | BB111: 0 | BC111: =AY111*$K$29 -> 0 | BD111: =AZ111*$L$30 -> 0
B112: 1 | J112: 1 | R112: 1 | Z112: 1 | AH112: 1 | AP112: 1 | AX112: 1
B113: 2 | C113: 0 | D113: 0 | E113: 0 | F113: 0 | G113: 0 | H113: =F113*$F$31 -> 0 | J113: 2 | K113: 0 | L113: 0 | M113: 0 | N113: 0 | O113: 0 | P113: =N113*$G$31 -> 0 | R113: 2 | S113: 0 | T113: 0 | U113: 0 | V113: 0 | W113: 0 | X113: =T113*$H$31 -> 0 | Z113: 2 | AA113: 0 | AB113: 0 | AC113: 0 | AD113: 0 | AE113: 0 | AF113: =AB113*$I$31 -> 0 | AH113: 2 | AI113: 0 | AJ113: 0 | AK113: 0 | AL113: 0 | AM113: 0 | AN113: =AJ113*$H$31 -> 0 | AP113: 2 | AQ113: 0 | AR113: 0 | AS113: 0 | AT113: 0 | AU113: 0 | AV113: =AR113*$K$31 -> 0 | AX113: 2 | AY113: 0 | AZ113: 0 | BA113: 0 | BB113: 0 | BC113: 0 | BD113: =AZ113*$L$31 -> 0
B114: 3 | C114: 0 | D114: 0 | E114: 0 | F114: 0 | G114: 0 | H114: =F114*$F$32 -> 0 | J114: 3 | K114: 0 | L114: 0 | M114: 0 | N114: 0 | O114: 0 | P114: =N114*$G$32 -> 0 | R114: 3 | S114: 0 | T114: 0 | U114: 0 | V114: 0 | W114: 0 | X114: =T114*$H$32 -> 0 | Z114: 3 | AA114: 0 | AB114: 0 | AC114: 0 | AD114: 0 | AE114: 0 | AF114: =AB114*$I$32 -> 0 | AH114: 3 | AI114: 0 | AJ114: 0 | AK114: 0 | AL114: 0 | AM114: 0 | AN114: =AJ114*$H$32 -> 0 | AP114: 3 | AQ114: 0 | AR114: 0 | AS114: 0 | AT114: 0 | AU114: 0 | AV114: =AR114*$K$32 -> 0 | AX114: 3 | AY114: 0 | AZ114: 0 | BA114: 0 | BB114: 0 | BC114: 0 | BD114: =AZ114*$L$32 -> 0
B115: 4 | C115: 0 | D115: 0 | E115: 0 | F115: 0 | G115: 0 | H115: =F115*$F$33 -> 0 | J115: 4 | K115: 0 | L115: 0 | M115: 0 | N115: 0 | O115: 0 | P115: =N115*$G$33 -> 0 | R115: 4 | S115: 0 | T115: 0 | U115: 0 | V115: 0 | W115: 0 | X115: =T115*$H$33 -> 0 | Z115: 4 | AA115: 0 | AB115: 0 | AC115: 0 | AD115: 0 | AE115: 0 | AF115: =AB115*$I$33 -> 0 | AH115: 4 | AI115: 0 | AJ115: 0 | AK115: 0 | AL115: 0 | AM115: 0 | AN115: =AJ115*$H$33 -> 0 | AP115: 4 | AQ115: 0 | AR115: 0 | AS115: 0 | AT115: 0 | AU115: 0 | AV115: =AR115*$K$33 -> 0 | AX115: 4 | AY115: 0 | AZ115: 0 | BA115: 0 | BB115: 0 | BC115: 0 | BD115: =AZ115*$L$33 -> 0
B116: 5 | C116: 0 | D116: 0 | E116: 0 | F116: 0 | G116: 0 | H116: =F116*$F$34 -> 0 | J116: 5 | K116: 0 | L116: 0 | M116: 0 | N116: 0 | O116: 0 | P116: =N116*$G$34 -> 0 | R116: 5 | S116: 0 | T116: 0 | U116: 0 | V116: 0 | W116: 0 | X116: =T116*$H$34 -> 0 | Z116: 5 | AA116: 0 | AB116: 0 | AC116: 0 | AD116: 0 | AE116: 0 | AF116: =AB116*$I$34 -> 0 | AH116: 5 | AI116: 0 | AJ116: 0 | AK116: 0 | AL116: 0 | AM116: 0 | AN116: =AJ116*$H$34 -> 0 | AP116: 5 | AQ116: 0 | AR116: 0 | AS116: 0 | AT116: 0 | AU116: 0 | AV116: =AR116*$K$34 -> 0 | AX116: 5 | AY116: 0 | AZ116: 0 | BA116: 0 | BB116: 0 | BC116: 0 | BD116: =AZ116*$L$34 -> 0
B117: 6 | C117: 0 | D117: 0 | E117: 0 | F117: 0 | G117: 0 | H117: =F117*$F$35 -> 0 | J117: 6 | K117: 0 | L117: 0 | M117: 0 | N117: 0 | O117: 0 | P117: =N117*$G$35 -> 0 | R117: 6 | S117: 0 | T117: 0 | U117: 0 | V117: 0 | W117: 0 | X117: =T117*$H$35 -> 0 | Z117: 6 | AA117: 0 | AB117: 0 | AC117: 0 | AD117: 0 | AE117: 0 | AF117: =AB117*$I$35 -> 0 | AH117: 6 | AI117: 0 | AJ117: 0 | AK117: 0 | AL117: 0 | AM117: 0 | AN117: =AJ117*$H$35 -> 0 | AP117: 6 | AQ117: 0 | AR117: 0 | AS117: 0 | AT117: 0 | AU117: 0 | AV117: =AR117*$K$35 -> 0 | AX117: 6 | AY117: 0 | AZ117: 0 | BA117: 0 | BB117: 0 | BC117: 0 | BD117: =AZ117*$L$35 -> 0
B118: 7 | C118: 0 | D118: 0 | E118: 0 | G118: 0 | H118: =F118*$F$36 -> 0 | J118: 7 | K118: 0 | L118: 0 | M118: 0 | O118: 0 | P118: =N118*$G$36 -> 0 | R118: 7 | S118: 0 | T118: 0 | U118: 0 | W118: 0 | X118: =T118*$H$36 -> 0 | Z118: 7 | AA118: 0 | AB118: 0 | AC118: 0 | AE118: 0 | AF118: =AB118*$I$36 -> 0 | AH118: 7 | AI118: 0 | AJ118: 0 | AK118: 0 | AM118: 0 | AN118: =AJ118*$H$36 -> 0 | AP118: 7 | AQ118: 0 | AR118: 0 | AS118: 0 | AU118: 0 | AV118: =AR118*$K$36 -> 0 | AX118: 7 | AY118: 0 | AZ118: 0 | BA118: 0 | BC118: 0 | BD118: =AZ118*$L$36 -> 0
B119: 8 | C119: 0 | D119: 0 | E119: 0 | F119: 0 | G119: 0 | H119: =F119*$F$37 -> 0 | J119: 8 | K119: 0 | L119: 0 | M119: 0 | N119: 0 | O119: 0 | P119: =N119*$G$37 -> 0 | R119: 8 | S119: 0 | T119: 0 | U119: 0 | V119: 0 | W119: 0 | X119: =T119*$H$37 -> 0 | Z119: 8 | AA119: 0 | AB119: 0 | AC119: 0 | AD119: 0 | AE119: 0 | AF119: =AB119*$I$37 -> 0 | AH119: 8 | AI119: 0 | AJ119: 0 | AK119: 0 | AL119: 0 | AM119: 0 | AN119: =AJ119*$H$37 -> 0 | AP119: 8 | AQ119: 0 | AR119: 0 | AS119: 0 | AT119: 0 | AU119: 0 | AV119: =AR119*$K$37 -> 0 | AX119: 8 | AY119: 0 | AZ119: 0 | BA119: 0 | BB119: 0 | BC119: 0 | BD119: =AZ119*$L$37 -> 0
B120: 9 | C120: 0 | D120: 0 | E120: 0 | F120: 0 | G120: 0 | H120: =F120*$F$38 -> 0 | J120: 9 | K120: 0 | L120: 0 | M120: 0 | N120: 0 | O120: 0 | P120: =N120*$G$38 -> 0 | R120: 9 | S120: 0 | T120: 0 | U120: 0 | V120: 0 | W120: 0 | X120: =T120*$H$38 -> 0 | Z120: 9 | AA120: 0 | AB120: 0 | AC120: 0 | AD120: 0 | AE120: 0 | AF120: =AB120*$I$38 -> 0 | AH120: 9 | AI120: 0 | AJ120: 0 | AK120: 0 | AL120: 0 | AM120: 0 | AN120: =AJ120*$H$38 -> 0 | AP120: 9 | AQ120: 0 | AR120: 0 | AS120: 0 | AT120: 0 | AU120: 0 | AV120: =AR120*$K$38 -> 0 | AX120: 9 | AY120: 0 | AZ120: 0 | BA120: 0 | BB120: 0 | BC120: 0 | BD120: =AZ120*$L$38 -> 0
B121: 10 | C121: 0 | D121: 0 | E121: 0 | F121: 0 | G121: 0 | H121: =F121*$F$39 -> 0 | J121: 10 | K121: 0 | L121: 0 | M121: 0 | N121: 0 | O121: 0 | P121: =N121*$G$39 -> 0 | R121: 10 | S121: 0 | T121: 0 | U121: 0 | V121: 0 | W121: 0 | X121: =T121*$H$39 -> 0 | Z121: 10 | AA121: 0 | AB121: 0 | AC121: 0 | AD121: 0 | AE121: 0 | AF121: =AB121*$I$39 -> 0 | AH121: 10 | AI121: 0 | AJ121: 0 | AK121: 0 | AL121: 0 | AM121: 0 | AN121: =AJ121*$H$39 -> 0 | AP121: 10 | AQ121: 0 | AR121: 0 | AS121: 0 | AT121: 0 | AU121: 0 | AV121: =AR121*$K$39 -> 0 | AX121: 10 | AY121: 0 | AZ121: 0 | BA121: 0 | BB121: 0 | BC121: 0 | BD121: =AZ121*$L$39 -> 0
B122: Totais. | C122: =SUM(C111:C121) -> 0 | D122: =SUM(D111:D121) -> 0 | E122: =SUM(E111:E121) -> 0 | F122: =SUM(F111:F121) -> 0 | G122: =SUM(G111:G121) -> 0 | H122: =SUM(H111:H121) -> 0 | J122: Totais. | K122: =SUM(K111:K121) -> 0 | L122: =SUM(L111:L121) -> 0 | M122: =SUM(M111:M121) -> 176 | N122: =SUM(N111:N121) -> 0 | O122: =SUM(O111:O121) -> 42027064.64 | P122: =SUM(P111:P121) -> 0 | R122: Totais. | S122: =SUM(S111:S121) -> 0 | T122: =SUM(T111:T121) -> 0 | U122: =SUM(U111:U121) -> 0 | V122: =SUM(V111:V121) -> 0 | W122: =SUM(W111:W121) -> 0 | X122: =SUM(X111:X121) -> 0 | Z122: Totais. | AA122: =SUM(AA111:AA121) -> 0 | AB122: =SUM(AB111:AB121) -> 0 | AC122: =SUM(AC111:AC121) -> 0 | AD122: =SUM(AD111:AD121) -> 0 | AE122: =SUM(AE111:AE121) -> 0 | AF122: =SUM(AF111:AF121) -> 0 | AH122: Totais. | AI122: =SUM(AI111:AI121) -> 0 | AJ122: =SUM(AJ111:AJ121) -> 0 | AK122: =SUM(AK111:AK121) -> 0 | AL122: =SUM(AL111:AL121) -> 0 | AM122: =SUM(AM111:AM121) -> 0 | AN122: =SUM(AN111:AN121) -> 0 | AP122: Totais. | AQ122: =SUM(AQ111:AQ121) -> 0 | AR122: =SUM(AR111:AR121) -> 0 | AS122: =SUM(AS111:AS121) -> 0 | AT122: =SUM(AT111:AT121) -> 0 | AU122: =SUM(AU111:AU121) -> 0 | AV122: =SUM(AV111:AV121) -> 0 | AX122: Totais. | AY122: =SUM(AY111:AY121) -> 0 | AZ122: =SUM(AZ111:AZ121) -> 0 | BA122: =SUM(BA111:BA121) -> 0 | BB122: =SUM(BB111:BB121) -> 0 | BC122: =SUM(BC111:BC121) -> 0 | BD122: =SUM(BD111:BD121) -> 0 | BF122: =G122+O122+W122+AE122+AM122+AU122+BC122 -> 42027064.64 | BG122: =(H122+P122+X122+AF122+AN122+AV122+BD122)*0.75 -> 0
B124: Plano de renovação de frota Ano 1 | J124: =B124 -> Plano de renovação de frota Ano 1 | R124: =J124 -> Plano de renovação de frota Ano 1 | Z124: =R124 -> Plano de renovação de frota Ano 1 | AH124: =Z124 -> Plano de renovação de frota Ano 1 | AP124: =R124 -> Plano de renovação de frota Ano 1 | AX124: =AP124 -> Plano de renovação de frota Ano 1
B126: =$D$83 -> Miniônibus | C126: Frota c/ Ar Condicionado | E126: Frota sem Ar Condicionado | G126: Totais | J126: =$E$83 -> Ônibus básico | K126: Frota c/ Ar Condicionado | M126: Frota sem Ar Condicionado | O126: Totais | R126: =$F$83 -> Padron BRT | S126: Frota c/ Ar Condicionado | U126: Frota sem Ar Condicionado | W126: Totais | Z126: =$G$83 -> Super Padron Conv. | AA126: Frota c/ Ar Condicionado | AC126: Frota sem Ar Condicionado | AE126: Totais | AH126: =$H$83 -> Super Padron BRT | AI126: Frota c/ Ar Condicionado | AK126: Frota sem Ar Condicionado | AM126: Totais | AP126: Ônibus Articulado | AQ126: Frota c/ Ar Condicionado | AS126: Frota sem Ar Condicionado | AU126: Totais | AX126: Ônibus Articulado BRT | AY126: Frota c/ Ar Condicionado | BA126: Frota sem Ar Condicionado | BC126: Totais
B127: Perfil etário | C127: Aquisição | D127: Venda | E127: Aquisição | F127: Venda | G127: Total | H127: Venda no | J127: Perfil etário | K127: Aquisição | L127: Venda | M127: Aquisição | N127: Venda | O127: Total | P127: Venda no | R127: Perfil etário | S127: Aquisição | T127: Venda | U127: Aquisição | V127: Venda | W127: Total | X127: Venda no | Z127: Perfil etário | AA127: Aquisição | AB127: Venda | AC127: Aquisição | AD127: Venda | AE127: Total | AF127: Venda no | AH127: Perfil etário | AI127: Aquisição | AJ127: Venda | AK127: Aquisição | AL127: Venda | AM127: Total | AN127: Venda no | AP127: Perfil etário | AQ127: Aquisição | AR127: Venda | AS127: Aquisição | AT127: Venda | AU127: Total | AV127: Venda no | AX127: Perfil etário | AY127: Aquisição | AZ127: Venda | BA127: Aquisição | BB127: Venda | BC127: Total | BD127: Venda no
C128: (Veículos) | D128: (Veículos) | E128: (Veículos) | F128: (Veículos) | G128: Aquisição (R$) | H128: período (R$) | K128: (Veículos) | L128: (Veículos) | M128: (Veículos) | N128: (Veículos) | O128: Aquisição (R$) | P128: período (R$) | S128: (Veículos) | T128: (Veículos) | U128: (Veículos) | V128: (Veículos) | W128: Aquisição (R$) | X128: período (R$) | AA128: (Veículos) | AB128: (Veículos) | AC128: (Veículos) | AD128: (Veículos) | AE128: Aquisição (R$) | AF128: período (R$) | AI128: (Veículos) | AJ128: (Veículos) | AK128: (Veículos) | AL128: (Veículos) | AM128: Aquisição (R$) | AN128: período (R$) | AQ128: (Veículos) | AR128: (Veículos) | AS128: (Veículos) | AT128: (Veículos) | AU128: Aquisição (R$) | AV128: período (R$) | AY128: (Veículos) | AZ128: (Veículos) | BA128: (Veículos) | BB128: (Veículos) | BC128: Aquisição (R$) | BD128: período (R$) | BF128: Aquisições | BG128: Vendas com dedução IR, conforme Proposta
B129: 0 | C129: 0 | D129: 0 | E129: =$D$60 -> 53 | F129: 0 | G129: =E129*$F$29 -> 9046577.42 | H129: =F129*$F$30 -> 0 | J129: 0 | K129: 0 | L129: 0 | M129: =$E$60 -> 283 | N129: 0 | O129: =M129*$G$29 -> 67577609.62 | P129: =N129*$G$30 -> 0 | R129: 0 | S129: =$F$60 -> 38 | T129: 0 | U129: 0 | V129: 0 | W129: =S129*$K$29 -> 23373425.32 | X129: =T129*$H$30 -> 0 | Z129: 0 | AA129: 0 | AB129: 0 | AC129: 0 | AD129: 0 | AE129: =AA129*$I$29 -> 0 | AF129: =AB129*$I$30 -> 0 | AH129: 0 | AI129: 0 | AJ129: 0 | AK129: 0 | AL129: 0 | AM129: =AI129*$K$29 -> 0 | AN129: =AJ129*$H$30 -> 0 | AP129: 0 | AQ129: =$I$60 -> 12 | AR129: 0 | AS129: 0 | AT129: 0 | AU129: =AQ129*$K$29 -> 7381081.68 | AV129: =AR129*$K$30 -> 0 | AX129: 0 | AY129: =$J$60 -> 59 | AZ129: 0 | BA129: 0 | BB129: 0 | BC129: =AY129*$L$29 -> 43074973.7 | BD129: =AZ129*$L$30 -> 0
B130: 1 | J130: 1 | R130: 1 | Z130: 1 | AH130: 1 | AP130: 1 | AX130: 1
B131: 2 | C131: 0 | D131: 0 | E131: 0 | F131: 0 | G131: 0 | H131: =F131*$F$31 -> 0 | J131: 2 | K131: 0 | L131: 0 | M131: 0 | N131: 0 | O131: 0 | P131: =N131*$G$31 -> 0 | R131: 2 | S131: 0 | T131: 0 | U131: 0 | V131: 0 | W131: 0 | X131: =T131*$H$31 -> 0 | Z131: 2 | AA131: 0 | AB131: 0 | AC131: 0 | AD131: 0 | AE131: 0 | AF131: =AB131*$I$31 -> 0 | AH131: 2 | AI131: 0 | AJ131: 0 | AK131: 0 | AL131: 0 | AM131: 0 | AN131: =AJ131*$H$31 -> 0 | AP131: 2 | AQ131: 0 | AR131: 0 | AS131: 0 | AT131: 0 | AU131: 0 | AV131: =AR131*$K$31 -> 0 | AX131: 2 | AY131: 0 | AZ131: 0 | BA131: 0 | BB131: 0 | BC131: =AY131*$K$29 -> 0 | BD131: =AZ131*$L$31 -> 0
B132: 3 | C132: 0 | D132: 0 | E132: 0 | F132: 0 | G132: 0 | H132: =F132*$F$32 -> 0 | J132: 3 | K132: 0 | L132: 0 | M132: 0 | N132: 0 | O132: 0 | P132: =N132*$G$32 -> 0 | R132: 3 | S132: 0 | T132: 0 | U132: 0 | V132: 0 | W132: 0 | X132: =T132*$H$32 -> 0 | Z132: 3 | AA132: 0 | AB132: 0 | AC132: 0 | AD132: 0 | AE132: 0 | AF132: =AB132*$I$32 -> 0 | AH132: 3 | AI132: 0 | AJ132: 0 | AK132: 0 | AL132: 0 | AM132: 0 | AN132: =AJ132*$H$32 -> 0 | AP132: 3 | AQ132: 0 | AR132: 0 | AS132: 0 | AT132: 0 | AU132: 0 | AV132: =AR132*$K$32 -> 0 | AX132: 3 | AY132: 0 | AZ132: 0 | BA132: 0 | BB132: 0 | BC132: 0 | BD132: =AZ132*$L$32 -> 0
B133: 4 | C133: 0 | D133: 0 | E133: 0 | F133: 0 | G133: 0 | H133: =F133*$F$33 -> 0 | J133: 4 | K133: 0 | L133: 0 | M133: 0 | N133: 0 | O133: 0 | P133: =N133*$G$33 -> 0 | R133: 4 | S133: 0 | T133: 0 | U133: 0 | V133: 0 | W133: 0 | X133: =T133*$H$33 -> 0 | Z133: 4 | AA133: 0 | AB133: 0 | AC133: 0 | AD133: 0 | AE133: 0 | AF133: =AB133*$I$33 -> 0 | AH133: 4 | AI133: 0 | AJ133: 0 | AK133: 0 | AL133: 0 | AM133: 0 | AN133: =AJ133*$H$33 -> 0 | AP133: 4 | AQ133: 0 | AR133: 0 | AS133: 0 | AT133: 0 | AU133: 0 | AV133: =AR133*$K$33 -> 0 | AX133: 4 | AY133: 0 | AZ133: 0 | BA133: 0 | BB133: 0 | BC133: 0 | BD133: =AZ133*$L$33 -> 0
B134: 5 | C134: 0 | D134: 0 | E134: 0 | F134: 0 | G134: 0 | H134: =F134*$F$34 -> 0 | J134: 5 | K134: 0 | L134: 0 | M134: 0 | N134: 0 | O134: 0 | P134: =N134*$G$34 -> 0 | R134: 5 | S134: 0 | T134: 0 | U134: 0 | V134: 0 | W134: 0 | X134: =T134*$H$34 -> 0 | Z134: 5 | AA134: 0 | AB134: 0 | AC134: 0 | AD134: 0 | AE134: 0 | AF134: =AB134*$I$34 -> 0 | AH134: 5 | AI134: 0 | AJ134: 0 | AK134: 0 | AL134: 0 | AM134: 0 | AN134: =AJ134*$H$34 -> 0 | AP134: 5 | AQ134: 0 | AR134: 0 | AS134: 0 | AT134: 0 | AU134: 0 | AV134: =AR134*$K$34 -> 0 | AX134: 5 | AY134: 0 | AZ134: 0 | BA134: 0 | BB134: 0 | BC134: 0 | BD134: =AZ134*$L$34 -> 0
B135: 6 | C135: 0 | D135: 0 | E135: 0 | F135: 0 | G135: 0 | H135: =F135*$F$35 -> 0 | J135: 6 | K135: 0 | L135: 0 | M135: 0 | N135: 0 | O135: 0 | P135: =N135*$G$35 -> 0 | R135: 6 | S135: 0 | T135: 0 | U135: 0 | V135: 0 | W135: 0 | X135: =T135*$H$35 -> 0 | Z135: 6 | AA135: 0 | AB135: 0 | AC135: 0 | AD135: 0 | AE135: 0 | AF135: =AB135*$I$35 -> 0 | AH135: 6 | AI135: 0 | AJ135: 0 | AK135: 0 | AL135: 0 | AM135: 0 | AN135: =AJ135*$H$35 -> 0 | AP135: 6 | AQ135: 0 | AR135: 0 | AS135: 0 | AT135: 0 | AU135: 0 | AV135: =AR135*$K$35 -> 0 | AX135: 6 | AY135: 0 | AZ135: 0 | BA135: 0 | BB135: 0 | BC135: 0 | BD135: =AZ135*$L$35 -> 0
B136: 7 | C136: 0 | D136: 0 | E136: 0 | G136: 0 | H136: =F136*$F$36 -> 0 | J136: 7 | K136: 0 | L136: 0 | M136: 0 | O136: 0 | P136: =N136*$G$36 -> 0 | R136: 7 | S136: 0 | T136: 0 | U136: 0 | W136: 0 | X136: =T136*$H$36 -> 0 | Z136: 7 | AA136: 0 | AB136: 0 | AC136: 0 | AE136: 0 | AF136: =AB136*$I$36 -> 0 | AH136: 7 | AI136: 0 | AJ136: 0 | AK136: 0 | AM136: 0 | AN136: =AJ136*$H$36 -> 0 | AP136: 7 | AQ136: 0 | AR136: 0 | AS136: 0 | AU136: 0 | AV136: =AR136*$K$36 -> 0 | AX136: 7 | AY136: 0 | AZ136: 0 | BA136: 0 | BC136: 0 | BD136: =AZ136*$L$36 -> 0
B137: 8 | C137: 0 | D137: 0 | E137: 0 | F137: 0 | G137: 0 | H137: =F137*$F$37 -> 0 | J137: 8 | K137: 0 | L137: 0 | M137: 0 | N137: 0 | O137: 0 | P137: =N137*$G$37 -> 0 | R137: 8 | S137: 0 | T137: 0 | U137: 0 | V137: 0 | W137: 0 | X137: =T137*$H$37 -> 0 | Z137: 8 | AA137: 0 | AB137: 0 | AC137: 0 | AD137: 0 | AE137: 0 | AF137: =AB137*$I$37 -> 0 | AH137: 8 | AI137: 0 | AJ137: 0 | AK137: 0 | AL137: 0 | AM137: 0 | AN137: =AJ137*$H$37 -> 0 | AP137: 8 | AQ137: 0 | AR137: 0 | AS137: 0 | AT137: 0 | AU137: 0 | AV137: =AR137*$K$37 -> 0 | AX137: 8 | AY137: 0 | AZ137: 0 | BA137: 0 | BB137: 0 | BC137: 0 | BD137: =AZ137*$L$37 -> 0
B138: 9 | C138: 0 | D138: 0 | E138: 0 | F138: 0 | G138: 0 | H138: =F138*$F$38 -> 0 | J138: 9 | K138: 0 | L138: 0 | M138: 0 | N138: 0 | O138: 0 | P138: =N138*$G$38 -> 0 | R138: 9 | S138: 0 | T138: 0 | U138: 0 | V138: 0 | W138: 0 | X138: =T138*$H$38 -> 0 | Z138: 9 | AA138: 0 | AB138: 0 | AC138: 0 | AD138: 0 | AE138: 0 | AF138: =AB138*$I$38 -> 0 | AH138: 9 | AI138: 0 | AJ138: 0 | AK138: 0 | AL138: 0 | AM138: 0 | AN138: =AJ138*$H$38 -> 0 | AP138: 9 | AQ138: 0 | AR138: 0 | AS138: 0 | AT138: 0 | AU138: 0 | AV138: =AR138*$K$38 -> 0 | AX138: 9 | AY138: 0 | AZ138: 0 | BA138: 0 | BB138: 0 | BC138: 0 | BD138: =AZ138*$L$38 -> 0
B139: 10 | C139: 0 | D139: 0 | E139: 0 | F139: 0 | G139: 0 | H139: =F139*$F$39 -> 0 | J139: 10 | K139: 0 | L139: 0 | M139: 0 | N139: 0 | O139: 0 | P139: =N139*$G$39 -> 0 | R139: 10 | S139: 0 | T139: 0 | U139: 0 | V139: 0 | W139: 0 | X139: =T139*$H$39 -> 0 | Z139: 10 | AA139: 0 | AB139: 0 | AC139: 0 | AD139: 0 | AE139: 0 | AF139: =AB139*$I$39 -> 0 | AH139: 10 | AI139: 0 | AJ139: 0 | AK139: 0 | AL139: 0 | AM139: 0 | AN139: =AJ139*$H$39 -> 0 | AP139: 10 | AQ139: 0 | AR139: 0 | AS139: 0 | AT139: 0 | AU139: 0 | AV139: =AR139*$K$39 -> 0 | AX139: 10 | AY139: 0 | AZ139: 0 | BA139: 0 | BB139: 0 | BC139: 0 | BD139: =AZ139*$L$39 -> 0
B140: Totais. | C140: =SUM(C129:C139) -> 0 | D140: 0 | E140: 53 | F140: 0 | G140: 9046577.42 | H140: 0 | J140: Totais. | K140: =SUM(K129:K139) -> 0 | L140: 0 | M140: 283 | N140: 0 | O140: 67577609.62 | P140: 0 | R140: Totais. | S140: =SUM(S129:S139) -> 38 | T140: 0 | U140: 0 | V140: 0 | W140: 23373425.32 | X140: 0 | Z140: Totais. | AA140: =SUM(AA129:AA139) -> 0 | AB140: 0 | AC140: 0 | AD140: 0 | AE140: 0 | AF140: 0 | AH140: Totais. | AI140: =SUM(AI129:AI139) -> 0 | AJ140: 0 | AK140: 0 | AL140: 0 | AM140: 0 | AN140: 0 | AP140: Totais. | AQ140: =SUM(AQ129:AQ139) -> 12 | AR140: 0 | AS140: 0 | AT140: 0 | AU140: 7381081.68 | AV140: 0 | AX140: Totais. | AY140: =SUM(AY129:AY139) -> 59 | AZ140: 0 | BA140: 0 | BB140: 0 | BC140: 43074973.7 | BD140: 0 | BF140: =G140+O140+W140+AE140+AM140+AU140+BC140 -> 150453667.7 | BG140: =(H140+P140+X140+AF140+AN140+AV140+BD140)*0.75 -> 0
B142: Plano de renovação de frota Ano 2 | J142: =B142 -> Plano de renovação de frota Ano 2 | R142: =J142 -> Plano de renovação de frota Ano 2 | Z142: =R142 -> Plano de renovação de frota Ano 2 | AH142: =Z142 -> Plano de renovação de frota Ano 2 | AP142: =R142 -> Plano de renovação de frota Ano 2 | AX142: =AP142 -> Plano de renovação de frota Ano 2
B144: =$D$83 -> Miniônibus | C144: Frota c/ Ar Condicionado | E144: Frota sem Ar Condicionado | G144: Totais | J144: =$E$83 -> Ônibus básico | K144: Frota c/ Ar Condicionado | M144: Frota sem Ar Condicionado | O144: Totais | R144: =$F$83 -> Padron BRT | S144: Frota c/ Ar Condicionado | U144: Frota sem Ar Condicionado | W144: Totais | Z144: =$G$83 -> Super Padron Conv. | AA144: Frota c/ Ar Condicionado | AC144: Frota sem Ar Condicionado | AE144: Totais | AH144: =$H$83 -> Super Padron BRT | AI144: Frota c/ Ar Condicionado | AK144: Frota sem Ar Condicionado | AM144: Totais | AP144: Ônibus Articulado | AQ144: Frota c/ Ar Condicionado | AS144: Frota sem Ar Condicionado | AU144: Totais | AX144: Ônibus Articulado BRT | AY144: Frota c/ Ar Condicionado | BA144: Frota sem Ar Condicionado | BC144: Totais
B145: Perfil etário | C145: Aquisição | D145: Venda | E145: Aquisição | F145: Venda | G145: Total | H145: Venda no | J145: Perfil etário | K145: Aquisição | L145: Venda | M145: Aquisição | N145: Venda | O145: Total | P145: Venda no | R145: Perfil etário | S145: Aquisição | T145: Venda | U145: Aquisição | V145: Venda | W145: Total | X145: Venda no | Z145: Perfil etário | AA145: Aquisição | AB145: Venda | AC145: Aquisição | AD145: Venda | AE145: Total | AF145: Venda no | AH145: Perfil etário | AI145: Aquisição | AJ145: Venda | AK145: Aquisição | AL145: Venda | AM145: Total | AN145: Venda no | AP145: Perfil etário | AQ145: Aquisição | AR145: Venda | AS145: Aquisição | AT145: Venda | AU145: Total | AV145: Venda no | AX145: Perfil etário | AY145: Aquisição | AZ145: Venda | BA145: Aquisição | BB145: Venda | BC145: Total | BD145: Venda no
C146: (Veículos) | D146: (Veículos) | E146: (Veículos) | F146: (Veículos) | G146: Aquisição (R$) | H146: período (R$) | K146: (Veículos) | L146: (Veículos) | M146: (Veículos) | N146: (Veículos) | O146: Aquisição (R$) | P146: período (R$) | S146: (Veículos) | T146: (Veículos) | U146: (Veículos) | V146: (Veículos) | W146: Aquisição (R$) | X146: período (R$) | AA146: (Veículos) | AB146: (Veículos) | AC146: (Veículos) | AD146: (Veículos) | AE146: Aquisição (R$) | AF146: período (R$) | AI146: (Veículos) | AJ146: (Veículos) | AK146: (Veículos) | AL146: (Veículos) | AM146: Aquisição (R$) | AN146: período (R$) | AQ146: (Veículos) | AR146: (Veículos) | AS146: (Veículos) | AT146: (Veículos) | AU146: Aquisição (R$) | AV146: período (R$) | AY146: (Veículos) | AZ146: (Veículos) | BA146: (Veículos) | BB146: (Veículos) | BC146: Aquisição (R$) | BD146: período (R$)
B147: 0 | C147: 0 | D147: 0 | E147: 0 | F147: 0 | G147: =E147*$F$29 -> 0 | H147: =F147*$F$30 -> 0 | J147: 0 | K147: 0 | L147: 0 | M147: 0 | N147: 0 | O147: =M147*$G$29 -> 0 | P147: =N147*$G$30 -> 0 | R147: 0 | S147: 0 | T147: 0 | U147: 0 | V147: 0 | W147: =S147*$K$29 -> 0 | X147: =T147*$H$30 -> 0 | Z147: 0 | AA147: 0 | AB147: 0 | AC147: 0 | AD147: 0 | AE147: =AA147*$I$29 -> 0 | AF147: =AB147*$I$30 -> 0 | AH147: 0 | AI147: 0 | AJ147: 0 | AK147: 0 | AL147: 0 | AM147: =AI147*$K$29 -> 0 | AN147: =AJ147*$H$30 -> 0 | AP147: 0 | AQ147: 0 | AR147: 0 | AS147: 0 | AT147: 0 | AU147: =AQ147*$K$29 -> 0 | AV147: =AR147*$K$30 -> 0 | AX147: 0 | AY147: =$J$61 -> 3 | AZ147: 0 | BA147: 0 | BB147: 0 | BC147: =AY147*$L$29 -> 2190252.9 | BD147: =AZ147*$L$30 -> 0
B148: 1 | J148: 1 | R148: 1 | Z148: 1 | AH148: 1 | AP148: 1 | AX148: 1
B149: 2 | C149: 0 | D149: 0 | E149: 0 | F149: 0 | G149: 0 | H149: =F149*$F$31 -> 0 | J149: 2 | K149: 0 | L149: 0 | M149: 0 | N149: 0 | O149: 0 | P149: =N149*$G$31 -> 0 | R149: 2 | S149: 0 | T149: 0 | U149: 0 | V149: 0 | W149: 0 | X149: =T149*$H$31 -> 0 | Z149: 2 | AA149: 0 | AB149: 0 | AC149: 0 | AD149: 0 | AE149: 0 | AF149: =AB149*$I$31 -> 0 | AH149: 2 | AI149: 0 | AJ149: 0 | AK149: 0 | AL149: 0 | AM149: 0 | AN149: =AJ149*$H$31 -> 0 | AP149: 2 | AQ149: 0 | AR149: 0 | AS149: 0 | AT149: 0 | AU149: 0 | AV149: =AR149*$K$31 -> 0 | AX149: 2 | AY149: 0 | AZ149: 0 | BA149: 0 | BB149: 0 | BC149: =AY149*$K$29 -> 0 | BD149: =AZ149*$L$31 -> 0
B150: 3 | C150: 0 | D150: 0 | E150: 0 | F150: 0 | G150: 0 | H150: =F150*$F$32 -> 0 | J150: 3 | K150: 0 | L150: 0 | M150: 0 | N150: 0 | O150: 0 | P150: =N150*$G$32 -> 0 | R150: 3 | S150: 0 | T150: 0 | U150: 0 | V150: 0 | W150: 0 | X150: =T150*$H$32 -> 0 | Z150: 3 | AA150: 0 | AB150: 0 | AC150: 0 | AD150: 0 | AE150: 0 | AF150: =AB150*$I$32 -> 0 | AH150: 3 | AI150: 0 | AJ150: 0 | AK150: 0 | AL150: 0 | AM150: 0 | AN150: =AJ150*$H$32 -> 0 | AP150: 3 | AQ150: 0 | AR150: 0 | AS150: 0 | AT150: 0 | AU150: 0 | AV150: =AR150*$K$32 -> 0 | AX150: 3 | AY150: 0 | AZ150: 0 | BA150: 0 | BB150: 0 | BC150: 0 | BD150: =AZ150*$L$32 -> 0
B151: 4 | C151: 0 | D151: 0 | E151: 0 | F151: 0 | G151: 0 | H151: =F151*$F$33 -> 0 | J151: 4 | K151: 0 | L151: 0 | M151: 0 | N151: 0 | O151: 0 | P151: =N151*$G$33 -> 0 | R151: 4 | S151: 0 | T151: 0 | U151: 0 | V151: 0 | W151: 0 | X151: =T151*$H$33 -> 0 | Z151: 4 | AA151: 0 | AB151: 0 | AC151: 0 | AD151: 0 | AE151: 0 | AF151: =AB151*$I$33 -> 0 | AH151: 4 | AI151: 0 | AJ151: 0 | AK151: 0 | AL151: 0 | AM151: 0 | AN151: =AJ151*$H$33 -> 0 | AP151: 4 | AQ151: 0 | AR151: 0 | AS151: 0 | AT151: 0 | AU151: 0 | AV151: =AR151*$K$33 -> 0 | AX151: 4 | AY151: 0 | AZ151: 0 | BA151: 0 | BB151: 0 | BC151: 0 | BD151: =AZ151*$L$33 -> 0
B152: 5 | C152: 0 | D152: 0 | E152: 0 | F152: 0 | G152: 0 | H152: =F152*$F$34 -> 0 | J152: 5 | K152: 0 | L152: 0 | M152: 0 | N152: 0 | O152: 0 | P152: =N152*$G$34 -> 0 | R152: 5 | S152: 0 | T152: 0 | U152: 0 | V152: 0 | W152: 0 | X152: =T152*$H$34 -> 0 | Z152: 5 | AA152: 0 | AB152: 0 | AC152: 0 | AD152: 0 | AE152: 0 | AF152: =AB152*$I$34 -> 0 | AH152: 5 | AI152: 0 | AJ152: 0 | AK152: 0 | AL152: 0 | AM152: 0 | AN152: =AJ152*$H$34 -> 0 | AP152: 5 | AQ152: 0 | AR152: 0 | AS152: 0 | AT152: 0 | AU152: 0 | AV152: =AR152*$K$34 -> 0 | AX152: 5 | AY152: 0 | AZ152: 0 | BA152: 0 | BB152: 0 | BC152: 0 | BD152: =AZ152*$L$34 -> 0
B153: 6 | C153: 0 | D153: 0 | E153: 0 | F153: 0 | G153: 0 | H153: =F153*$F$35 -> 0 | J153: 6 | K153: 0 | L153: 0 | M153: 0 | N153: 0 | O153: 0 | P153: =N153*$G$35 -> 0 | R153: 6 | S153: 0 | T153: 0 | U153: 0 | V153: 0 | W153: 0 | X153: =T153*$H$35 -> 0 | Z153: 6 | AA153: 0 | AB153: 0 | AC153: 0 | AD153: 0 | AE153: 0 | AF153: =AB153*$I$35 -> 0 | AH153: 6 | AI153: 0 | AJ153: 0 | AK153: 0 | AL153: 0 | AM153: 0 | AN153: =AJ153*$H$35 -> 0 | AP153: 6 | AQ153: 0 | AR153: 0 | AS153: 0 | AT153: 0 | AU153: 0 | AV153: =AR153*$K$35 -> 0 | AX153: 6 | AY153: 0 | AZ153: 0 | BA153: 0 | BB153: 0 | BC153: 0 | BD153: =AZ153*$L$35 -> 0
B154: 7 | C154: 0 | D154: 0 | E154: 0 | G154: 0 | H154: =F154*$F$36 -> 0 | J154: 7 | K154: 0 | L154: 0 | M154: 0 | O154: 0 | P154: =N154*$G$36 -> 0 | R154: 7 | S154: 0 | T154: 0 | U154: 0 | W154: 0 | X154: =T154*$H$36 -> 0 | Z154: 7 | AA154: 0 | AB154: 0 | AC154: 0 | AE154: 0 | AF154: =AB154*$I$36 -> 0 | AH154: 7 | AI154: 0 | AJ154: 0 | AK154: 0 | AM154: 0 | AN154: =AJ154*$H$36 -> 0 | AP154: 7 | AQ154: 0 | AR154: 0 | AS154: 0 | AU154: 0 | AV154: =AR154*$K$36 -> 0 | AX154: 7 | AY154: 0 | AZ154: 0 | BA154: 0 | BC154: 0 | BD154: =AZ154*$L$36 -> 0
B155: 8 | C155: 0 | D155: 0 | E155: 0 | F155: 0 | G155: 0 | H155: =F155*$F$37 -> 0 | J155: 8 | K155: 0 | L155: 0 | M155: 0 | N155: 0 | O155: 0 | P155: =N155*$G$37 -> 0 | R155: 8 | S155: 0 | T155: 0 | U155: 0 | V155: 0 | W155: 0 | X155: =T155*$H$37 -> 0 | Z155: 8 | AA155: 0 | AB155: 0 | AC155: 0 | AD155: 0 | AE155: 0 | AF155: =AB155*$I$37 -> 0 | AH155: 8 | AI155: 0 | AJ155: 0 | AK155: 0 | AL155: 0 | AM155: 0 | AN155: =AJ155*$H$37 -> 0 | AP155: 8 | AQ155: 0 | AR155: 0 | AS155: 0 | AT155: 0 | AU155: 0 | AV155: =AR155*$K$37 -> 0 | AX155: 8 | AY155: 0 | AZ155: 0 | BA155: 0 | BB155: 0 | BC155: 0 | BD155: =AZ155*$L$37 -> 0
B156: 9 | C156: 0 | D156: 0 | E156: 0 | F156: 0 | G156: 0 | H156: =F156*$F$38 -> 0 | J156: 9 | K156: 0 | L156: 0 | M156: 0 | N156: 0 | O156: 0 | P156: =N156*$G$38 -> 0 | R156: 9 | S156: 0 | T156: 0 | U156: 0 | V156: 0 | W156: 0 | X156: =T156*$H$38 -> 0 | Z156: 9 | AA156: 0 | AB156: 0 | AC156: 0 | AD156: 0 | AE156: 0 | AF156: =AB156*$I$38 -> 0 | AH156: 9 | AI156: 0 | AJ156: 0 | AK156: 0 | AL156: 0 | AM156: 0 | AN156: =AJ156*$H$38 -> 0 | AP156: 9 | AQ156: 0 | AR156: 0 | AS156: 0 | AT156: 0 | AU156: 0 | AV156: =AR156*$K$38 -> 0 | AX156: 9 | AY156: 0 | AZ156: 0 | BA156: 0 | BB156: 0 | BC156: 0 | BD156: =AZ156*$L$38 -> 0
B157: 10 | C157: 0 | D157: 0 | E157: 0 | F157: 0 | G157: 0 | H157: =F157*$F$39 -> 0 | J157: 10 | K157: 0 | L157: 0 | M157: 0 | N157: 0 | O157: 0 | P157: =N157*$G$39 -> 0 | R157: 10 | S157: 0 | T157: 0 | U157: 0 | V157: 0 | W157: 0 | X157: =T157*$H$39 -> 0 | Z157: 10 | AA157: 0 | AB157: 0 | AC157: 0 | AD157: 0 | AE157: 0 | AF157: =AB157*$I$39 -> 0 | AH157: 10 | AI157: 0 | AJ157: 0 | AK157: 0 | AL157: 0 | AM157: 0 | AN157: =AJ157*$H$39 -> 0 | AP157: 10 | AQ157: 0 | AR157: 0 | AS157: 0 | AT157: 0 | AU157: 0 | AV157: =AR157*$K$39 -> 0 | AX157: 10 | AY157: 0 | AZ157: 0 | BA157: 0 | BB157: 0 | BC157: 0 | BD157: =AZ157*$L$39 -> 0
B158: Totais. | C158: =SUM(C147:C157) -> 0 | D158: 0 | E158: 0 | F158: 0 | G158: 0 | H158: 0 | J158: Totais. | K158: =SUM(K147:K157) -> 0 | L158: 0 | M158: 0 | N158: 0 | O158: 0 | P158: 0 | R158: Totais. | S158: =SUM(S147:S157) -> 0 | T158: 0 | U158: 0 | V158: 0 | W158: 0 | X158: 0 | Z158: Totais. | AA158: =SUM(AA147:AA157) -> 0 | AB158: 0 | AC158: 0 | AD158: 0 | AE158: 0 | AF158: 0 | AH158: Totais. | AI158: =SUM(AI147:AI157) -> 0 | AJ158: 0 | AK158: 0 | AL158: 0 | AM158: 0 | AN158: 0 | AP158: Totais. | AQ158: =SUM(AQ147:AQ157) -> 0 | AR158: 0 | AS158: 0 | AT158: 0 | AU158: 0 | AV158: 0 | AX158: Totais. | AY158: =SUM(AY147:AY157) -> 3 | AZ158: 0 | BA158: 0 | BB158: 0 | BC158: 2190252.9 | BD158: 0 | BF158: =G158+O158+W158+AE158+AM158+AU158+BC158 -> 2190252.9 | BG158: =(H158+P158+X158+AF158+AN158+AV158+BD158)*0.75 -> 0
B160: Plano de renovação de frota Ano 3 | J160: =B160 -> Plano de renovação de frota Ano 3 | R160: =J160 -> Plano de renovação de frota Ano 3 | Z160: =R160 -> Plano de renovação de frota Ano 3 | AH160: =Z160 -> Plano de renovação de frota Ano 3 | AP160: =R160 -> Plano de renovação de frota Ano 3 | AX160: =AP160 -> Plano de renovação de frota Ano 3
B162: =$D$83 -> Miniônibus | C162: Frota c/ Ar Condicionado | E162: Frota sem Ar Condicionado | G162: Totais | J162: =$E$83 -> Ônibus básico | K162: Frota c/ Ar Condicionado | M162: Frota sem Ar Condicionado | O162: Totais | R162: =$F$83 -> Padron BRT | S162: Frota c/ Ar Condicionado | U162: Frota sem Ar Condicionado | W162: Totais | Z162: =$G$83 -> Super Padron Conv. | AA162: Frota c/ Ar Condicionado | AC162: Frota sem Ar Condicionado | AE162: Totais | AH162: =$H$83 -> Super Padron BRT | AI162: Frota c/ Ar Condicionado | AK162: Frota sem Ar Condicionado | AM162: Totais | AP162: Ônibus Articulado | AQ162: Frota c/ Ar Condicionado | AS162: Frota sem Ar Condicionado | AU162: Totais | AX162: Ônibus Articulado BRT | AY162: Frota c/ Ar Condicionado | BA162: Frota sem Ar Condicionado | BC162: Totais
B163: Perfil etário | C163: Aquisição | D163: Venda | E163: Aquisição | F163: Venda | G163: Total | H163: Venda no | J163: Perfil etário | K163: Aquisição | L163: Venda | M163: Aquisição | N163: Venda | O163: Total | P163: Venda no | R163: Perfil etário | S163: Aquisição | T163: Venda | U163: Aquisição | V163: Venda | W163: Total | X163: Venda no | Z163: Perfil etário | AA163: Aquisição | AB163: Venda | AC163: Aquisição | AD163: Venda | AE163: Total | AF163: Venda no | AH163: Perfil etário | AI163: Aquisição | AJ163: Venda | AK163: Aquisição | AL163: Venda | AM163: Total | AN163: Venda no | AP163: Perfil etário | AQ163: Aquisição | AR163: Venda | AS163: Aquisição | AT163: Venda | AU163: Total | AV163: Venda no | AX163: Perfil etário | AY163: Aquisição | AZ163: Venda | BA163: Aquisição | BB163: Venda | BC163: Total | BD163: Venda no
C164: (Veículos) | D164: (Veículos) | E164: (Veículos) | F164: (Veículos) | G164: Aquisição (R$) | H164: período (R$) | K164: (Veículos) | L164: (Veículos) | M164: (Veículos) | N164: (Veículos) | O164: Aquisição (R$) | P164: período (R$) | S164: (Veículos) | T164: (Veículos) | U164: (Veículos) | V164: (Veículos) | W164: Aquisição (R$) | X164: período (R$) | AA164: (Veículos) | AB164: (Veículos) | AC164: (Veículos) | AD164: (Veículos) | AE164: Aquisição (R$) | AF164: período (R$) | AI164: (Veículos) | AJ164: (Veículos) | AK164: (Veículos) | AL164: (Veículos) | AM164: Aquisição (R$) | AN164: período (R$) | AQ164: (Veículos) | AR164: (Veículos) | AS164: (Veículos) | AT164: (Veículos) | AU164: Aquisição (R$) | AV164: período (R$) | AY164: (Veículos) | AZ164: (Veículos) | BA164: (Veículos) | BB164: (Veículos) | BC164: Aquisição (R$) | BD164: período (R$)
B165: 0 | C165: 0 | D165: 0 | E165: 0 | F165: 0 | G165: =E165*$F$29 -> 0 | H165: =F165*$F$30 -> 0 | J165: 0 | K165: 0 | L165: 0 | M165: 0 | N165: 0 | O165: =M165*$G$29 -> 0 | P165: =N165*$G$30 -> 0 | R165: 0 | S165: 0 | T165: 0 | U165: 0 | V165: 0 | W165: =S165*$K$29 -> 0 | X165: =T165*$H$30 -> 0 | Z165: 0 | AA165: 0 | AB165: 0 | AC165: 0 | AD165: 0 | AE165: =AA165*$I$29 -> 0 | AF165: =AB165*$I$30 -> 0 | AH165: 0 | AI165: 0 | AJ165: 0 | AK165: 0 | AL165: 0 | AM165: =AI165*$K$29 -> 0 | AN165: =AJ165*$H$30 -> 0 | AP165: 0 | AQ165: 0 | AR165: 0 | AS165: 0 | AT165: 0 | AU165: =AQ165*$K$29 -> 0 | AV165: =AR165*$K$30 -> 0 | AX165: 0 | AY165: 0 | AZ165: 0 | BA165: 0 | BB165: 0 | BC165: =AY165*$K$29 -> 0 | BD165: =AZ165*$L$30 -> 0
B166: 1 | J166: 1 | R166: 1 | Z166: 1 | AH166: 1 | AP166: 1 | AX166: 1
B167: 2 | C167: 0 | D167: 0 | E167: 0 | F167: 0 | G167: 0 | H167: =F167*$F$31 -> 0 | J167: 2 | K167: 0 | L167: 0 | M167: 0 | N167: 0 | O167: 0 | P167: =N167*$G$31 -> 0 | R167: 2 | S167: 0 | T167: 0 | U167: 0 | V167: 0 | W167: 0 | X167: =T167*$H$31 -> 0 | Z167: 2 | AA167: 0 | AB167: 0 | AC167: 0 | AD167: 0 | AE167: 0 | AF167: =AB167*$I$31 -> 0 | AH167: 2 | AI167: 0 | AJ167: 0 | AK167: 0 | AL167: 0 | AM167: 0 | AN167: =AJ167*$H$31 -> 0 | AP167: 2 | AQ167: 0 | AR167: 0 | AS167: 0 | AT167: 0 | AU167: 0 | AV167: =AR167*$K$31 -> 0 | AX167: 2 | AY167: 0 | AZ167: 0 | BA167: 0 | BB167: 0 | BC167: 0 | BD167: =AZ167*$L$31 -> 0
B168: 3 | C168: 0 | D168: 0 | E168: 0 | F168: 0 | G168: 0 | H168: =F168*$F$32 -> 0 | J168: 3 | K168: 0 | L168: 0 | M168: 0 | N168: 0 | O168: 0 | P168: =N168*$G$32 -> 0 | R168: 3 | S168: 0 | T168: 0 | U168: 0 | V168: 0 | W168: 0 | X168: =T168*$H$32 -> 0 | Z168: 3 | AA168: 0 | AB168: 0 | AC168: 0 | AD168: 0 | AE168: 0 | AF168: =AB168*$I$32 -> 0 | AH168: 3 | AI168: 0 | AJ168: 0 | AK168: 0 | AL168: 0 | AM168: 0 | AN168: =AJ168*$H$32 -> 0 | AP168: 3 | AQ168: 0 | AR168: 0 | AS168: 0 | AT168: 0 | AU168: 0 | AV168: =AR168*$K$32 -> 0 | AX168: 3 | AY168: 0 | AZ168: 0 | BA168: 0 | BB168: 0 | BC168: 0 | BD168: =AZ168*$L$32 -> 0
B169: 4 | C169: 0 | D169: 0 | E169: 0 | F169: 0 | G169: 0 | H169: =F169*$F$33 -> 0 | J169: 4 | K169: 0 | L169: 0 | M169: 0 | N169: 0 | O169: 0 | P169: =N169*$G$33 -> 0 | R169: 4 | S169: 0 | T169: 0 | U169: 0 | V169: 0 | W169: 0 | X169: =T169*$H$33 -> 0 | Z169: 4 | AA169: 0 | AB169: 0 | AC169: 0 | AD169: 0 | AE169: 0 | AF169: =AB169*$I$33 -> 0 | AH169: 4 | AI169: 0 | AJ169: 0 | AK169: 0 | AL169: 0 | AM169: 0 | AN169: =AJ169*$H$33 -> 0 | AP169: 4 | AQ169: 0 | AR169: 0 | AS169: 0 | AT169: 0 | AU169: 0 | AV169: =AR169*$K$33 -> 0 | AX169: 4 | AY169: 0 | AZ169: 0 | BA169: 0 | BB169: 0 | BC169: 0 | BD169: =AZ169*$L$33 -> 0
B170: 5 | C170: 0 | D170: 0 | E170: 0 | F170: 0 | G170: 0 | H170: =F170*$F$34 -> 0 | J170: 5 | K170: 0 | L170: 0 | M170: 0 | N170: 0 | O170: 0 | P170: =N170*$G$34 -> 0 | R170: 5 | S170: 0 | T170: 0 | U170: 0 | V170: 0 | W170: 0 | X170: =T170*$H$34 -> 0 | Z170: 5 | AA170: 0 | AB170: 0 | AC170: 0 | AD170: 0 | AE170: 0 | AF170: =AB170*$I$34 -> 0 | AH170: 5 | AI170: 0 | AJ170: 0 | AK170: 0 | AL170: 0 | AM170: 0 | AN170: =AJ170*$H$34 -> 0 | AP170: 5 | AQ170: 0 | AR170: 0 | AS170: 0 | AT170: 0 | AU170: 0 | AV170: =AR170*$K$34 -> 0 | AX170: 5 | AY170: 0 | AZ170: 0 | BA170: 0 | BB170: 0 | BC170: 0 | BD170: =AZ170*$L$34 -> 0
B171: 6 | C171: 0 | D171: 0 | E171: 0 | F171: 0 | G171: 0 | H171: =F171*$F$35 -> 0 | J171: 6 | K171: 0 | L171: 0 | M171: 0 | N171: 0 | O171: 0 | P171: =N171*$G$35 -> 0 | R171: 6 | S171: 0 | T171: 0 | U171: 0 | V171: 0 | W171: 0 | X171: =T171*$H$35 -> 0 | Z171: 6 | AA171: 0 | AB171: 0 | AC171: 0 | AD171: 0 | AE171: 0 | AF171: =AB171*$I$35 -> 0 | AH171: 6 | AI171: 0 | AJ171: 0 | AK171: 0 | AL171: 0 | AM171: 0 | AN171: =AJ171*$H$35 -> 0 | AP171: 6 | AQ171: 0 | AR171: 0 | AS171: 0 | AT171: 0 | AU171: 0 | AV171: =AR171*$K$35 -> 0 | AX171: 6 | AY171: 0 | AZ171: 0 | BA171: 0 | BB171: 0 | BC171: 0 | BD171: =AZ171*$L$35 -> 0
B172: 7 | C172: 0 | D172: 0 | E172: 0 | G172: 0 | H172: =F172*$F$36 -> 0 | J172: 7 | K172: 0 | L172: 0 | M172: 0 | O172: 0 | P172: =N172*$G$36 -> 0 | R172: 7 | S172: 0 | T172: 0 | U172: 0 | W172: 0 | X172: =T172*$H$36 -> 0 | Z172: 7 | AA172: 0 | AB172: 0 | AC172: 0 | AE172: 0 | AF172: =AB172*$I$36 -> 0 | AH172: 7 | AI172: 0 | AJ172: 0 | AK172: 0 | AM172: 0 | AN172: =AJ172*$H$36 -> 0 | AP172: 7 | AQ172: 0 | AR172: 0 | AS172: 0 | AU172: 0 | AV172: =AR172*$K$36 -> 0 | AX172: 7 | AY172: 0 | AZ172: 0 | BA172: 0 | BC172: 0 | BD172: =AZ172*$L$36 -> 0
B173: 8 | C173: 0 | D173: 0 | E173: 0 | F173: 0 | G173: 0 | H173: =F173*$F$37 -> 0 | J173: 8 | K173: 0 | L173: 0 | M173: 0 | N173: 0 | O173: 0 | P173: =N173*$G$37 -> 0 | R173: 8 | S173: 0 | T173: 0 | U173: 0 | V173: 0 | W173: 0 | X173: =T173*$H$37 -> 0 | Z173: 8 | AA173: 0 | AB173: 0 | AC173: 0 | AD173: 0 | AE173: 0 | AF173: =AB173*$I$37 -> 0 | AH173: 8 | AI173: 0 | AJ173: 0 | AK173: 0 | AL173: 0 | AM173: 0 | AN173: =AJ173*$H$37 -> 0 | AP173: 8 | AQ173: 0 | AR173: 0 | AS173: 0 | AT173: 0 | AU173: 0 | AV173: =AR173*$K$37 -> 0 | AX173: 8 | AY173: 0 | AZ173: 0 | BA173: 0 | BB173: 0 | BC173: 0 | BD173: =AZ173*$L$37 -> 0
B174: 9 | C174: 0 | D174: 0 | E174: 0 | F174: 0 | G174: 0 | H174: =F174*$F$38 -> 0 | J174: 9 | K174: 0 | L174: 0 | M174: 0 | N174: 0 | O174: 0 | P174: =N174*$G$38 -> 0 | R174: 9 | S174: 0 | T174: 0 | U174: 0 | V174: 0 | W174: 0 | X174: =T174*$H$38 -> 0 | Z174: 9 | AA174: 0 | AB174: 0 | AC174: 0 | AD174: 0 | AE174: 0 | AF174: =AB174*$I$38 -> 0 | AH174: 9 | AI174: 0 | AJ174: 0 | AK174: 0 | AL174: 0 | AM174: 0 | AN174: =AJ174*$H$38 -> 0 | AP174: 9 | AQ174: 0 | AR174: 0 | AS174: 0 | AT174: 0 | AU174: 0 | AV174: =AR174*$K$38 -> 0 | AX174: 9 | AY174: 0 | AZ174: 0 | BA174: 0 | BB174: 0 | BC174: 0 | BD174: =AZ174*$L$38 -> 0
B175: 10 | C175: 0 | D175: 0 | E175: 0 | F175: 0 | G175: 0 | H175: =F175*$F$39 -> 0 | J175: 10 | K175: 0 | L175: 0 | M175: 0 | N175: 0 | O175: 0 | P175: =N175*$G$39 -> 0 | R175: 10 | S175: 0 | T175: 0 | U175: 0 | V175: 0 | W175: 0 | X175: =T175*$H$39 -> 0 | Z175: 10 | AA175: 0 | AB175: 0 | AC175: 0 | AD175: 0 | AE175: 0 | AF175: =AB175*$I$39 -> 0 | AH175: 10 | AI175: 0 | AJ175: 0 | AK175: 0 | AL175: 0 | AM175: 0 | AN175: =AJ175*$H$39 -> 0 | AP175: 10 | AQ175: 0 | AR175: 0 | AS175: 0 | AT175: 0 | AU175: 0 | AV175: =AR175*$K$39 -> 0 | AX175: 10 | AY175: 0 | AZ175: 0 | BA175: 0 | BB175: 0 | BC175: 0 | BD175: =AZ175*$L$39 -> 0
B176: Totais. | C176: =SUM(C165:C175) -> 0 | D176: 0 | E176: 0 | F176: 0 | G176: 0 | H176: 0 | J176: Totais. | K176: =SUM(K165:K175) -> 0 | L176: 0 | M176: 0 | N176: 0 | O176: 0 | P176: 0 | R176: Totais. | S176: =SUM(S165:S175) -> 0 | T176: 0 | U176: 0 | V176: 0 | W176: 0 | X176: 0 | Z176: Totais. | AA176: =SUM(AA165:AA175) -> 0 | AB176: 0 | AC176: 0 | AD176: 0 | AE176: 0 | AF176: 0 | AH176: Totais. | AI176: =SUM(AI165:AI175) -> 0 | AJ176: 0 | AK176: 0 | AL176: 0 | AM176: 0 | AN176: 0 | AP176: Totais. | AQ176: =SUM(AQ165:AQ175) -> 0 | AR176: 0 | AS176: 0 | AT176: 0 | AU176: 0 | AV176: 0 | AX176: Totais. | AY176: =SUM(AY165:AY175) -> 0 | AZ176: 0 | BA176: 0 | BB176: 0 | BC176: 0 | BD176: 0 | BF176: =G176+O176+W176+AE176+AM176+AU176+BC176 -> 0 | BG176: =(H176+P176+X176+AF176+AN176+AV176+BD176)*0.75 -> 0
B178: Plano de renovação de frota Ano 4 | J178: =B178 -> Plano de renovação de frota Ano 4 | R178: =J178 -> Plano de renovação de frota Ano 4 | Z178: =R178 -> Plano de renovação de frota Ano 4 | AH178: =Z178 -> Plano de renovação de frota Ano 4 | AP178: =R178 -> Plano de renovação de frota Ano 4 | AX178: =AP178 -> Plano de renovação de frota Ano 4
B180: =$D$83 -> Miniônibus | C180: Frota c/ Ar Condicionado | E180: Frota sem Ar Condicionado | G180: Totais | J180: =$E$83 -> Ônibus básico | K180: Frota c/ Ar Condicionado | M180: Frota sem Ar Condicionado | O180: Totais | R180: =$F$83 -> Padron BRT | S180: Frota c/ Ar Condicionado | U180: Frota sem Ar Condicionado | W180: Totais | Z180: =$G$83 -> Super Padron Conv. | AA180: Frota c/ Ar Condicionado | AC180: Frota sem Ar Condicionado | AE180: Totais | AH180: =$H$83 -> Super Padron BRT | AI180: Frota c/ Ar Condicionado | AK180: Frota sem Ar Condicionado | AM180: Totais | AP180: Ônibus Articulado | AQ180: Frota c/ Ar Condicionado | AS180: Frota sem Ar Condicionado | AU180: Totais | AX180: Ônibus Articulado BRT | AY180: Frota c/ Ar Condicionado | BA180: Frota sem Ar Condicionado | BC180: Totais
B181: Perfil etário | C181: Aquisição | D181: Venda | E181: Aquisição | F181: Venda | G181: Total | H181: Venda no | J181: Perfil etário | K181: Aquisição | L181: Venda | M181: Aquisição | N181: Venda | O181: Total | P181: Venda no | R181: Perfil etário | S181: Aquisição | T181: Venda | U181: Aquisição | V181: Venda | W181: Total | X181: Venda no | Z181: Perfil etário | AA181: Aquisição | AB181: Venda | AC181: Aquisição | AD181: Venda | AE181: Total | AF181: Venda no | AH181: Perfil etário | AI181: Aquisição | AJ181: Venda | AK181: Aquisição | AL181: Venda | AM181: Total | AN181: Venda no | AP181: Perfil etário | AQ181: Aquisição | AR181: Venda | AS181: Aquisição | AT181: Venda | AU181: Total | AV181: Venda no | AX181: Perfil etário | AY181: Aquisição | AZ181: Venda | BA181: Aquisição | BB181: Venda | BC181: Total | BD181: Venda no
C182: (Veículos) | D182: (Veículos) | E182: (Veículos) | F182: (Veículos) | G182: Aquisição (R$) | H182: período (R$) | K182: (Veículos) | L182: (Veículos) | M182: (Veículos) | N182: (Veículos) | O182: Aquisição (R$) | P182: período (R$) | S182: (Veículos) | T182: (Veículos) | U182: (Veículos) | V182: (Veículos) | W182: Aquisição (R$) | X182: período (R$) | AA182: (Veículos) | AB182: (Veículos) | AC182: (Veículos) | AD182: (Veículos) | AE182: Aquisição (R$) | AF182: período (R$) | AI182: (Veículos) | AJ182: (Veículos) | AK182: (Veículos) | AL182: (Veículos) | AM182: Aquisição (R$) | AN182: período (R$) | AQ182: (Veículos) | AR182: (Veículos) | AS182: (Veículos) | AT182: (Veículos) | AU182: Aquisição (R$) | AV182: período (R$) | AY182: (Veículos) | AZ182: (Veículos) | BA182: (Veículos) | BB182: (Veículos) | BC182: Aquisição (R$) | BD182: período (R$)
B183: 0 | C183: 0 | D183: 0 | E183: 0 | F183: 0 | G183: =E183*$F$29 -> 0 | H183: =F183*$F$30 -> 0 | J183: 0 | K183: 0 | L183: 0 | M183: 0 | N183: 0 | O183: =M183*$G$29 -> 0 | P183: =N183*$G$30 -> 0 | R183: 0 | S183: 0 | T183: 0 | U183: 0 | V183: 0 | W183: =S183*$K$29 -> 0 | X183: =T183*$H$30 -> 0 | Z183: 0 | AA183: 0 | AB183: 0 | AC183: 0 | AD183: 0 | AE183: =AA183*$I$29 -> 0 | AF183: =AB183*$I$30 -> 0 | AH183: 0 | AI183: 0 | AJ183: 0 | AK183: 0 | AL183: 0 | AM183: =AI183*$K$29 -> 0 | AN183: =AJ183*$H$30 -> 0 | AP183: 0 | AQ183: 0 | AR183: 0 | AS183: 0 | AT183: 0 | AU183: =AQ183*$K$29 -> 0 | AV183: =AR183*$K$30 -> 0 | AX183: 0 | AY183: 0 | AZ183: 0 | BA183: 0 | BB183: 0 | BC183: =AY183*$K$29 -> 0 | BD183: =AZ183*$L$30 -> 0
B184: 1 | J184: 1 | R184: 1 | Z184: 1 | AH184: 1 | AP184: 1 | AX184: 1
B185: 2 | C185: 0 | D185: 0 | E185: 0 | F185: 0 | G185: 0 | H185: =F185*$F$31 -> 0 | J185: 2 | K185: 0 | L185: 0 | M185: 0 | N185: 0 | O185: 0 | P185: =N185*$G$31 -> 0 | R185: 2 | S185: 0 | T185: 0 | U185: 0 | V185: 0 | W185: 0 | X185: =T185*$H$31 -> 0 | Z185: 2 | AA185: 0 | AB185: 0 | AC185: 0 | AD185: 0 | AE185: 0 | AF185: =AB185*$I$31 -> 0 | AH185: 2 | AI185: 0 | AJ185: 0 | AK185: 0 | AL185: 0 | AM185: 0 | AN185: =AJ185*$H$31 -> 0 | AP185: 2 | AQ185: 0 | AR185: 0 | AS185: 0 | AT185: 0 | AU185: 0 | AV185: =AR185*$K$31 -> 0 | AX185: 2 | AY185: 0 | AZ185: 0 | BA185: 0 | BB185: 0 | BC185: 0 | BD185: =AZ185*$L$31 -> 0
B186: 3 | C186: 0 | D186: 0 | E186: 0 | F186: 0 | G186: 0 | H186: =F186*$F$32 -> 0 | J186: 3 | K186: 0 | L186: 0 | M186: 0 | N186: 0 | O186: 0 | P186: =N186*$G$32 -> 0 | R186: 3 | S186: 0 | T186: 0 | U186: 0 | V186: 0 | W186: 0 | X186: =T186*$H$32 -> 0 | Z186: 3 | AA186: 0 | AB186: 0 | AC186: 0 | AD186: 0 | AE186: 0 | AF186: =AB186*$I$32 -> 0 | AH186: 3 | AI186: 0 | AJ186: 0 | AK186: 0 | AL186: 0 | AM186: 0 | AN186: =AJ186*$H$32 -> 0 | AP186: 3 | AQ186: 0 | AR186: 0 | AS186: 0 | AT186: 0 | AU186: 0 | AV186: =AR186*$K$32 -> 0 | AX186: 3 | AY186: 0 | AZ186: 0 | BA186: 0 | BB186: 0 | BC186: 0 | BD186: =AZ186*$L$32 -> 0
B187: 4 | C187: 0 | D187: 0 | E187: 0 | F187: 0 | G187: 0 | H187: =F187*$F$33 -> 0 | J187: 4 | K187: 0 | L187: 0 | M187: 0 | N187: 0 | O187: 0 | P187: =N187*$G$33 -> 0 | R187: 4 | S187: 0 | T187: 0 | U187: 0 | V187: 0 | W187: 0 | X187: =T187*$H$33 -> 0 | Z187: 4 | AA187: 0 | AB187: 0 | AC187: 0 | AD187: 0 | AE187: 0 | AF187: =AB187*$I$33 -> 0 | AH187: 4 | AI187: 0 | AJ187: 0 | AK187: 0 | AL187: 0 | AM187: 0 | AN187: =AJ187*$H$33 -> 0 | AP187: 4 | AQ187: 0 | AR187: 0 | AS187: 0 | AT187: 0 | AU187: 0 | AV187: =AR187*$K$33 -> 0 | AX187: 4 | AY187: 0 | AZ187: 0 | BA187: 0 | BB187: 0 | BC187: 0 | BD187: =AZ187*$L$33 -> 0
B188: 5 | C188: 0 | D188: 0 | E188: 0 | F188: 0 | G188: 0 | H188: =F188*$F$34 -> 0 | J188: 5 | K188: 0 | L188: 0 | M188: 0 | N188: 0 | O188: 0 | P188: =N188*$G$34 -> 0 | R188: 5 | S188: 0 | T188: 0 | U188: 0 | V188: 0 | W188: 0 | X188: =T188*$H$34 -> 0 | Z188: 5 | AA188: 0 | AB188: 0 | AC188: 0 | AD188: 0 | AE188: 0 | AF188: =AB188*$I$34 -> 0 | AH188: 5 | AI188: 0 | AJ188: 0 | AK188: 0 | AL188: 0 | AM188: 0 | AN188: =AJ188*$H$34 -> 0 | AP188: 5 | AQ188: 0 | AR188: 0 | AS188: 0 | AT188: 0 | AU188: 0 | AV188: =AR188*$K$34 -> 0 | AX188: 5 | AY188: 0 | AZ188: 0 | BA188: 0 | BB188: 0 | BC188: 0 | BD188: =AZ188*$L$34 -> 0
B189: 6 | C189: 0 | D189: 0 | E189: 0 | F189: 0 | G189: 0 | H189: =F189*$F$35 -> 0 | J189: 6 | K189: 0 | L189: 0 | M189: 0 | N189: 0 | O189: 0 | P189: =N189*$G$35 -> 0 | R189: 6 | S189: 0 | T189: 0 | U189: 0 | V189: 0 | W189: 0 | X189: =T189*$H$35 -> 0 | Z189: 6 | AA189: 0 | AB189: 0 | AC189: 0 | AD189: 0 | AE189: 0 | AF189: =AB189*$I$35 -> 0 | AH189: 6 | AI189: 0 | AJ189: 0 | AK189: 0 | AL189: 0 | AM189: 0 | AN189: =AJ189*$H$35 -> 0 | AP189: 6 | AQ189: 0 | AR189: 0 | AS189: 0 | AT189: 0 | AU189: 0 | AV189: =AR189*$K$35 -> 0 | AX189: 6 | AY189: 0 | AZ189: 0 | BA189: 0 | BB189: 0 | BC189: 0 | BD189: =AZ189*$L$35 -> 0
B190: 7 | C190: 0 | D190: 0 | E190: 0 | G190: 0 | H190: =F190*$F$36 -> 0 | J190: 7 | K190: 0 | L190: 0 | M190: 0 | O190: 0 | P190: =N190*$G$36 -> 0 | R190: 7 | S190: 0 | T190: 0 | U190: 0 | W190: 0 | X190: =T190*$H$36 -> 0 | Z190: 7 | AA190: 0 | AB190: 0 | AC190: 0 | AE190: 0 | AF190: =AB190*$I$36 -> 0 | AH190: 7 | AI190: 0 | AJ190: 0 | AK190: 0 | AM190: 0 | AN190: =AJ190*$H$36 -> 0 | AP190: 7 | AQ190: 0 | AR190: 0 | AS190: 0 | AU190: 0 | AV190: =AR190*$K$36 -> 0 | AX190: 7 | AY190: 0 | AZ190: 0 | BA190: 0 | BC190: 0 | BD190: =AZ190*$L$36 -> 0
B191: 8 | C191: 0 | D191: 0 | E191: 0 | F191: 0 | G191: 0 | H191: =F191*$F$37 -> 0 | J191: 8 | K191: 0 | L191: 0 | M191: 0 | N191: 0 | O191: 0 | P191: =N191*$G$37 -> 0 | R191: 8 | S191: 0 | T191: 0 | U191: 0 | V191: 0 | W191: 0 | X191: =T191*$H$37 -> 0 | Z191: 8 | AA191: 0 | AB191: 0 | AC191: 0 | AD191: 0 | AE191: 0 | AF191: =AB191*$I$37 -> 0 | AH191: 8 | AI191: 0 | AJ191: 0 | AK191: 0 | AL191: 0 | AM191: 0 | AN191: =AJ191*$H$37 -> 0 | AP191: 8 | AQ191: 0 | AR191: 0 | AS191: 0 | AT191: 0 | AU191: 0 | AV191: =AR191*$K$37 -> 0 | AX191: 8 | AY191: 0 | AZ191: 0 | BA191: 0 | BB191: 0 | BC191: 0 | BD191: =AZ191*$L$37 -> 0
B192: 9 | C192: 0 | D192: 0 | E192: 0 | F192: 0 | G192: 0 | H192: =F192*$F$38 -> 0 | J192: 9 | K192: 0 | L192: 0 | M192: 0 | N192: 0 | O192: 0 | P192: =N192*$G$38 -> 0 | R192: 9 | S192: 0 | T192: 0 | U192: 0 | V192: 0 | W192: 0 | X192: =T192*$H$38 -> 0 | Z192: 9 | AA192: 0 | AB192: 0 | AC192: 0 | AD192: 0 | AE192: 0 | AF192: =AB192*$I$38 -> 0 | AH192: 9 | AI192: 0 | AJ192: 0 | AK192: 0 | AL192: 0 | AM192: 0 | AN192: =AJ192*$H$38 -> 0 | AP192: 9 | AQ192: 0 | AR192: 0 | AS192: 0 | AT192: 0 | AU192: 0 | AV192: =AR192*$K$38 -> 0 | AX192: 9 | AY192: 0 | AZ192: 0 | BA192: 0 | BB192: 0 | BC192: 0 | BD192: =AZ192*$L$38 -> 0
B193: 10 | C193: 0 | D193: 0 | E193: 0 | F193: 0 | G193: 0 | H193: =F193*$F$39 -> 0 | J193: 10 | K193: 0 | L193: 0 | M193: 0 | N193: 0 | O193: 0 | P193: =N193*$G$39 -> 0 | R193: 10 | S193: 0 | T193: 0 | U193: 0 | V193: 0 | W193: 0 | X193: =T193*$H$39 -> 0 | Z193: 10 | AA193: 0 | AB193: 0 | AC193: 0 | AD193: 0 | AE193: 0 | AF193: =AB193*$I$39 -> 0 | AH193: 10 | AI193: 0 | AJ193: 0 | AK193: 0 | AL193: 0 | AM193: 0 | AN193: =AJ193*$H$39 -> 0 | AP193: 10 | AQ193: 0 | AR193: 0 | AS193: 0 | AT193: 0 | AU193: 0 | AV193: =AR193*$K$39 -> 0 | AX193: 10 | AY193: 0 | AZ193: 0 | BA193: 0 | BB193: 0 | BC193: 0 | BD193: =AZ193*$L$39 -> 0
B194: Totais. | C194: =SUM(C183:C193) -> 0 | D194: 0 | E194: 0 | F194: 0 | G194: 0 | H194: 0 | J194: Totais. | K194: =SUM(K183:K193) -> 0 | L194: 0 | M194: 0 | N194: 0 | O194: 0 | P194: 0 | R194: Totais. | S194: =SUM(S183:S193) -> 0 | T194: 0 | U194: 0 | V194: 0 | W194: 0 | X194: 0 | Z194: Totais. | AA194: =SUM(AA183:AA193) -> 0 | AB194: 0 | AC194: 0 | AD194: 0 | AE194: 0 | AF194: 0 | AH194: Totais. | AI194: =SUM(AI183:AI193) -> 0 | AJ194: 0 | AK194: 0 | AL194: 0 | AM194: 0 | AN194: 0 | AP194: Totais. | AQ194: =SUM(AQ183:AQ193) -> 0 | AR194: 0 | AS194: 0 | AT194: 0 | AU194: 0 | AV194: 0 | AX194: Totais. | AY194: =SUM(AY183:AY193) -> 0 | AZ194: 0 | BA194: 0 | BB194: 0 | BC194: 0 | BD194: 0 | BF194: =G194+O194+W194+AE194+AM194+AU194+BC194 -> 0 | BG194: =(H194+P194+X194+AF194+AN194+AV194+BD194)*0.75 -> 0
B196: Plano de renovação de frota Ano 5 | J196: =B196 -> Plano de renovação de frota Ano 5 | R196: =J196 -> Plano de renovação de frota Ano 5 | Z196: =R196 -> Plano de renovação de frota Ano 5 | AH196: =Z196 -> Plano de renovação de frota Ano 5 | AP196: =R196 -> Plano de renovação de frota Ano 5 | AX196: =AP196 -> Plano de renovação de frota Ano 5
B198: =$D$83 -> Miniônibus | C198: Frota c/ Ar Condicionado | E198: Frota sem Ar Condicionado | G198: Totais | J198: =$E$83 -> Ônibus básico | K198: Frota c/ Ar Condicionado | M198: Frota sem Ar Condicionado | O198: Totais | R198: =$F$83 -> Padron BRT | S198: Frota c/ Ar Condicionado | U198: Frota sem Ar Condicionado | W198: Totais | Z198: =$G$83 -> Super Padron Conv. | AA198: Frota c/ Ar Condicionado | AC198: Frota sem Ar Condicionado | AE198: Totais | AH198: =$H$83 -> Super Padron BRT | AI198: Frota c/ Ar Condicionado | AK198: Frota sem Ar Condicionado | AM198: Totais | AP198: Ônibus Articulado | AQ198: Frota c/ Ar Condicionado | AS198: Frota sem Ar Condicionado | AU198: Totais | AX198: Ônibus Articulado BRT | AY198: Frota c/ Ar Condicionado | BA198: Frota sem Ar Condicionado | BC198: Totais
B199: Perfil etário | C199: Aquisição | D199: Venda | E199: Aquisição | F199: Venda | G199: Total | H199: Venda no | J199: Perfil etário | K199: Aquisição | L199: Venda | M199: Aquisição | N199: Venda | O199: Total | P199: Venda no | R199: Perfil etário | S199: Aquisição | T199: Venda | U199: Aquisição | V199: Venda | W199: Total | X199: Venda no | Z199: Perfil etário | AA199: Aquisição | AB199: Venda | AC199: Aquisição | AD199: Venda | AE199: Total | AF199: Venda no | AH199: Perfil etário | AI199: Aquisição | AJ199: Venda | AK199: Aquisição | AL199: Venda | AM199: Total | AN199: Venda no | AP199: Perfil etário | AQ199: Aquisição | AR199: Venda | AS199: Aquisição | AT199: Venda | AU199: Total | AV199: Venda no | AX199: Perfil etário | AY199: Aquisição | AZ199: Venda | BA199: Aquisição | BB199: Venda | BC199: Total | BD199: Venda no
C200: (Veículos) | D200: (Veículos) | E200: (Veículos) | F200: (Veículos) | G200: Aquisição (R$) | H200: período (R$) | K200: (Veículos) | L200: (Veículos) | M200: (Veículos) | N200: (Veículos) | O200: Aquisição (R$) | P200: período (R$) | S200: (Veículos) | T200: (Veículos) | U200: (Veículos) | V200: (Veículos) | W200: Aquisição (R$) | X200: período (R$) | AA200: (Veículos) | AB200: (Veículos) | AC200: (Veículos) | AD200: (Veículos) | AE200: Aquisição (R$) | AF200: período (R$) | AI200: (Veículos) | AJ200: (Veículos) | AK200: (Veículos) | AL200: (Veículos) | AM200: Aquisição (R$) | AN200: período (R$) | AQ200: (Veículos) | AR200: (Veículos) | AS200: (Veículos) | AT200: (Veículos) | AU200: Aquisição (R$) | AV200: período (R$) | AY200: (Veículos) | AZ200: (Veículos) | BA200: (Veículos) | BB200: (Veículos) | BC200: Aquisição (R$) | BD200: período (R$)
B201: 0 | C201: 0 | D201: 0 | E201: 0 | F201: 0 | G201: =E201*$F$29 -> 0 | H201: =F201*$F$30 -> 0 | J201: 0 | K201: 0 | L201: 0 | M201: 0 | N201: 0 | O201: =M201*$G$29 -> 0 | P201: =N201*$G$30 -> 0 | R201: 0 | S201: 0 | T201: 0 | U201: 0 | V201: 0 | W201: =S201*$K$29 -> 0 | X201: =T201*$H$30 -> 0 | Z201: 0 | AA201: 0 | AB201: 0 | AC201: 0 | AD201: 0 | AE201: =AA201*$I$29 -> 0 | AF201: =AB201*$I$30 -> 0 | AH201: 0 | AI201: 0 | AJ201: 0 | AK201: 0 | AL201: 0 | AM201: =AI201*$K$29 -> 0 | AN201: =AJ201*$H$30 -> 0 | AP201: 0 | AQ201: 0 | AR201: 0 | AS201: 0 | AT201: 0 | AU201: =AQ201*$K$29 -> 0 | AV201: =AR201*$K$30 -> 0 | AX201: 0 | AY201: 0 | AZ201: 0 | BA201: 0 | BB201: 0 | BC201: =AY201*$K$29 -> 0 | BD201: =AZ201*$L$30 -> 0
B202: 1 | J202: 1 | R202: 1 | Z202: 1 | AH202: 1 | AP202: 1 | AX202: 1
B203: 2 | C203: 0 | D203: 0 | E203: 0 | F203: 0 | G203: 0 | H203: =F203*$F$31 -> 0 | J203: 2 | K203: 0 | L203: 0 | M203: 0 | N203: 0 | O203: 0 | P203: =N203*$G$31 -> 0 | R203: 2 | S203: 0 | T203: 0 | U203: 0 | V203: 0 | W203: 0 | X203: =T203*$H$31 -> 0 | Z203: 2 | AA203: 0 | AB203: 0 | AC203: 0 | AD203: 0 | AE203: 0 | AF203: =AB203*$I$31 -> 0 | AH203: 2 | AI203: 0 | AJ203: 0 | AK203: 0 | AL203: 0 | AM203: 0 | AN203: =AJ203*$H$31 -> 0 | AP203: 2 | AQ203: 0 | AR203: 0 | AS203: 0 | AT203: 0 | AU203: 0 | AV203: =AR203*$K$31 -> 0 | AX203: 2 | AY203: 0 | AZ203: 0 | BA203: 0 | BB203: 0 | BC203: 0 | BD203: =AZ203*$L$31 -> 0
B204: 3 | C204: 0 | D204: 0 | E204: 0 | F204: 0 | G204: 0 | H204: =F204*$F$32 -> 0 | J204: 3 | K204: 0 | L204: 0 | M204: 0 | N204: 0 | O204: 0 | P204: =N204*$G$32 -> 0 | R204: 3 | S204: 0 | T204: 0 | U204: 0 | V204: 0 | W204: 0 | X204: =T204*$H$32 -> 0 | Z204: 3 | AA204: 0 | AB204: 0 | AC204: 0 | AD204: 0 | AE204: 0 | AF204: =AB204*$I$32 -> 0 | AH204: 3 | AI204: 0 | AJ204: 0 | AK204: 0 | AL204: 0 | AM204: 0 | AN204: =AJ204*$H$32 -> 0 | AP204: 3 | AQ204: 0 | AR204: 0 | AS204: 0 | AT204: 0 | AU204: 0 | AV204: =AR204*$K$32 -> 0 | AX204: 3 | AY204: 0 | AZ204: 0 | BA204: 0 | BB204: 0 | BC204: 0 | BD204: =AZ204*$L$32 -> 0
B205: 4 | C205: 0 | D205: 0 | E205: 0 | F205: 0 | G205: 0 | H205: =F205*$F$33 -> 0 | J205: 4 | K205: 0 | L205: 0 | M205: 0 | N205: 0 | O205: 0 | P205: =N205*$G$33 -> 0 | R205: 4 | S205: 0 | T205: 0 | U205: 0 | V205: 0 | W205: 0 | X205: =T205*$H$33 -> 0 | Z205: 4 | AA205: 0 | AB205: 0 | AC205: 0 | AD205: 0 | AE205: 0 | AF205: =AB205*$I$33 -> 0 | AH205: 4 | AI205: 0 | AJ205: 0 | AK205: 0 | AL205: 0 | AM205: 0 | AN205: =AJ205*$H$33 -> 0 | AP205: 4 | AQ205: 0 | AR205: 0 | AS205: 0 | AT205: 0 | AU205: 0 | AV205: =AR205*$K$33 -> 0 | AX205: 4 | AY205: 0 | AZ205: 0 | BA205: 0 | BB205: 0 | BC205: 0 | BD205: =AZ205*$L$33 -> 0
B206: 5 | C206: 0 | D206: 0 | E206: 0 | F206: 0 | G206: 0 | H206: =F206*$F$34 -> 0 | J206: 5 | K206: 0 | L206: 0 | M206: 0 | N206: 0 | O206: 0 | P206: =N206*$G$34 -> 0 | R206: 5 | S206: 0 | T206: 0 | U206: 0 | V206: 0 | W206: 0 | X206: =T206*$H$34 -> 0 | Z206: 5 | AA206: 0 | AB206: 0 | AC206: 0 | AD206: 0 | AE206: 0 | AF206: =AB206*$I$34 -> 0 | AH206: 5 | AI206: 0 | AJ206: 0 | AK206: 0 | AL206: 0 | AM206: 0 | AN206: =AJ206*$H$34 -> 0 | AP206: 5 | AQ206: 0 | AR206: 0 | AS206: 0 | AT206: 0 | AU206: 0 | AV206: =AR206*$K$34 -> 0 | AX206: 5 | AY206: 0 | AZ206: 0 | BA206: 0 | BB206: 0 | BC206: 0 | BD206: =AZ206*$L$34 -> 0
B207: 6 | C207: 0 | D207: 0 | E207: 0 | F207: 0 | G207: 0 | H207: =F207*$F$35 -> 0 | J207: 6 | K207: 0 | L207: 0 | M207: 0 | N207: 0 | O207: 0 | P207: =N207*$G$35 -> 0 | R207: 6 | S207: 0 | T207: 0 | U207: 0 | V207: 0 | W207: 0 | X207: =T207*$H$35 -> 0 | Z207: 6 | AA207: 0 | AB207: 0 | AC207: 0 | AD207: 0 | AE207: 0 | AF207: =AB207*$I$35 -> 0 | AH207: 6 | AI207: 0 | AJ207: 0 | AK207: 0 | AL207: 0 | AM207: 0 | AN207: =AJ207*$H$35 -> 0 | AP207: 6 | AQ207: 0 | AR207: 0 | AS207: 0 | AT207: 0 | AU207: 0 | AV207: =AR207*$K$35 -> 0 | AX207: 6 | AY207: 0 | AZ207: 0 | BA207: 0 | BB207: 0 | BC207: 0 | BD207: =AZ207*$L$35 -> 0
B208: 7 | C208: 0 | D208: 0 | E208: 0 | G208: 0 | H208: =F208*$F$36 -> 0 | J208: 7 | K208: 0 | L208: 0 | M208: 0 | O208: 0 | P208: =N208*$G$36 -> 0 | R208: 7 | S208: 0 | T208: 0 | U208: 0 | W208: 0 | X208: =T208*$H$36 -> 0 | Z208: 7 | AA208: 0 | AB208: 0 | AC208: 0 | AE208: 0 | AF208: =AB208*$I$36 -> 0 | AH208: 7 | AI208: 0 | AJ208: 0 | AK208: 0 | AM208: 0 | AN208: =AJ208*$H$36 -> 0 | AP208: 7 | AQ208: 0 | AR208: 0 | AS208: 0 | AU208: 0 | AV208: =AR208*$K$36 -> 0 | AX208: 7 | AY208: 0 | AZ208: 0 | BA208: 0 | BC208: 0 | BD208: =AZ208*$L$36 -> 0
B209: 8 | C209: 0 | D209: 0 | E209: 0 | F209: 0 | G209: 0 | H209: =F209*$F$37 -> 0 | J209: 8 | K209: 0 | L209: 0 | M209: 0 | N209: 0 | O209: 0 | P209: =N209*$G$37 -> 0 | R209: 8 | S209: 0 | T209: 0 | U209: 0 | V209: 0 | W209: 0 | X209: =T209*$H$37 -> 0 | Z209: 8 | AA209: 0 | AB209: 0 | AC209: 0 | AD209: 0 | AE209: 0 | AF209: =AB209*$I$37 -> 0 | AH209: 8 | AI209: 0 | AJ209: 0 | AK209: 0 | AL209: 0 | AM209: 0 | AN209: =AJ209*$H$37 -> 0 | AP209: 8 | AQ209: 0 | AR209: 0 | AS209: 0 | AT209: 0 | AU209: 0 | AV209: =AR209*$K$37 -> 0 | AX209: 8 | AY209: 0 | AZ209: 0 | BA209: 0 | BB209: 0 | BC209: 0 | BD209: =AZ209*$L$37 -> 0
B210: 9 | C210: 0 | D210: 0 | E210: 0 | F210: 0 | G210: 0 | H210: =F210*$F$38 -> 0 | J210: 9 | K210: 0 | L210: 0 | M210: 0 | N210: 0 | O210: 0 | P210: =N210*$G$38 -> 0 | R210: 9 | S210: 0 | T210: 0 | U210: 0 | V210: 0 | W210: 0 | X210: =T210*$H$38 -> 0 | Z210: 9 | AA210: 0 | AB210: 0 | AC210: 0 | AD210: 0 | AE210: 0 | AF210: =AB210*$I$38 -> 0 | AH210: 9 | AI210: 0 | AJ210: 0 | AK210: 0 | AL210: 0 | AM210: 0 | AN210: =AJ210*$H$38 -> 0 | AP210: 9 | AQ210: 0 | AR210: 0 | AS210: 0 | AT210: 0 | AU210: 0 | AV210: =AR210*$K$38 -> 0 | AX210: 9 | AY210: 0 | AZ210: 0 | BA210: 0 | BB210: 0 | BC210: 0 | BD210: =AZ210*$L$38 -> 0
B211: 10 | C211: 0 | D211: 0 | E211: 0 | F211: 0 | G211: 0 | H211: =F211*$F$39 -> 0 | J211: 10 | K211: 0 | L211: 0 | M211: 0 | N211: 0 | O211: 0 | P211: =N211*$G$39 -> 0 | R211: 10 | S211: 0 | T211: 0 | U211: 0 | V211: 0 | W211: 0 | X211: =T211*$H$39 -> 0 | Z211: 10 | AA211: 0 | AB211: 0 | AC211: 0 | AD211: 0 | AE211: 0 | AF211: =AB211*$I$39 -> 0 | AH211: 10 | AI211: 0 | AJ211: 0 | AK211: 0 | AL211: 0 | AM211: 0 | AN211: =AJ211*$H$39 -> 0 | AP211: 10 | AQ211: 0 | AR211: 0 | AS211: 0 | AT211: 0 | AU211: 0 | AV211: =AR211*$K$39 -> 0 | AX211: 10 | AY211: 0 | AZ211: 0 | BA211: 0 | BB211: 0 | BC211: 0 | BD211: =AZ211*$L$39 -> 0
B212: Totais. | C212: =SUM(C201:C211) -> 0 | D212: 0 | E212: 0 | F212: 0 | G212: 0 | H212: 0 | J212: Totais. | K212: =SUM(K201:K211) -> 0 | L212: 0 | M212: 0 | N212: 0 | O212: 0 | P212: 0 | R212: Totais. | S212: =SUM(S201:S211) -> 0 | T212: 0 | U212: 0 | V212: 0 | W212: 0 | X212: 0 | Z212: Totais. | AA212: =SUM(AA201:AA211) -> 0 | AB212: 0 | AC212: 0 | AD212: 0 | AE212: 0 | AF212: 0 | AH212: Totais. | AI212: =SUM(AI201:AI211) -> 0 | AJ212: 0 | AK212: 0 | AL212: 0 | AM212: 0 | AN212: 0 | AP212: Totais. | AQ212: =SUM(AQ201:AQ211) -> 0 | AR212: 0 | AS212: 0 | AT212: 0 | AU212: 0 | AV212: 0 | AX212: Totais. | AY212: =SUM(AY201:AY211) -> 0 | AZ212: 0 | BA212: 0 | BB212: 0 | BC212: 0 | BD212: 0 | BF212: =G212+O212+W212+AE212+AM212+AU212+BC212 -> 0 | BG212: =(H212+P212+X212+AF212+AN212+AV212+BD212)*0.75 -> 0
B214: Plano de renovação de frota Ano 6 | J214: =B214 -> Plano de renovação de frota Ano 6 | R214: =J214 -> Plano de renovação de frota Ano 6 | Z214: =R214 -> Plano de renovação de frota Ano 6 | AH214: =Z214 -> Plano de renovação de frota Ano 6 | AP214: =R214 -> Plano de renovação de frota Ano 6 | AX214: =AP214 -> Plano de renovação de frota Ano 6
B216: =$D$83 -> Miniônibus | C216: Frota c/ Ar Condicionado | E216: Frota sem Ar Condicionado | G216: Totais | J216: =$E$83 -> Ônibus básico | K216: Frota c/ Ar Condicionado | M216: Frota sem Ar Condicionado | O216: Totais | R216: =$F$83 -> Padron BRT | S216: Frota c/ Ar Condicionado | U216: Frota sem Ar Condicionado | W216: Totais | Z216: =$G$83 -> Super Padron Conv. | AA216: Frota c/ Ar Condicionado | AC216: Frota sem Ar Condicionado | AE216: Totais | AH216: =$H$83 -> Super Padron BRT | AI216: Frota c/ Ar Condicionado | AK216: Frota sem Ar Condicionado | AM216: Totais | AP216: Ônibus Articulado | AQ216: Frota c/ Ar Condicionado | AS216: Frota sem Ar Condicionado | AU216: Totais | AX216: Ônibus Articulado BRT | AY216: Frota c/ Ar Condicionado | BA216: Frota sem Ar Condicionado | BC216: Totais
B217: Perfil etário | C217: Aquisição | D217: Venda | E217: Aquisição | F217: Venda | G217: Total | H217: Venda no | J217: Perfil etário | K217: Aquisição | L217: Venda | M217: Aquisição | N217: Venda | O217: Total | P217: Venda no | R217: Perfil etário | S217: Aquisição | T217: Venda | U217: Aquisição | V217: Venda | W217: Total | X217: Venda no | Z217: Perfil etário | AA217: Aquisição | AB217: Venda | AC217: Aquisição | AD217: Venda | AE217: Total | AF217: Venda no | AH217: Perfil etário | AI217: Aquisição | AJ217: Venda | AK217: Aquisição | AL217: Venda | AM217: Total | AN217: Venda no | AP217: Perfil etário | AQ217: Aquisição | AR217: Venda | AS217: Aquisição | AT217: Venda | AU217: Total | AV217: Venda no | AX217: Perfil etário | AY217: Aquisição | AZ217: Venda | BA217: Aquisição | BB217: Venda | BC217: Total | BD217: Venda no
C218: (Veículos) | D218: (Veículos) | E218: (Veículos) | F218: (Veículos) | G218: Aquisição (R$) | H218: período (R$) | K218: (Veículos) | L218: (Veículos) | M218: (Veículos) | N218: (Veículos) | O218: Aquisição (R$) | P218: período (R$) | S218: (Veículos) | T218: (Veículos) | U218: (Veículos) | V218: (Veículos) | W218: Aquisição (R$) | X218: período (R$) | AA218: (Veículos) | AB218: (Veículos) | AC218: (Veículos) | AD218: (Veículos) | AE218: Aquisição (R$) | AF218: período (R$) | AI218: (Veículos) | AJ218: (Veículos) | AK218: (Veículos) | AL218: (Veículos) | AM218: Aquisição (R$) | AN218: período (R$) | AQ218: (Veículos) | AR218: (Veículos) | AS218: (Veículos) | AT218: (Veículos) | AU218: Aquisição (R$) | AV218: período (R$) | AY218: (Veículos) | AZ218: (Veículos) | BA218: (Veículos) | BB218: (Veículos) | BC218: Aquisição (R$) | BD218: período (R$)
B219: 0 | C219: 0 | D219: 0 | E219: 0 | F219: 0 | G219: =E219*$F$29 -> 0 | H219: =F219*$F$30 -> 0 | J219: 0 | K219: 0 | L219: 0 | M219: 0 | N219: 0 | O219: =M219*$G$29 -> 0 | P219: =N219*$G$30 -> 0 | R219: 0 | S219: 0 | T219: 0 | U219: 0 | V219: 0 | W219: =S219*$K$29 -> 0 | X219: =T219*$H$30 -> 0 | Z219: 0 | AA219: 0 | AB219: 0 | AC219: 0 | AD219: 0 | AE219: =AA219*$I$29 -> 0 | AF219: =AB219*$I$30 -> 0 | AH219: 0 | AI219: 0 | AJ219: 0 | AK219: 0 | AL219: 0 | AM219: =AI219*$K$29 -> 0 | AN219: =AJ219*$H$30 -> 0 | AP219: 0 | AQ219: 0 | AR219: 0 | AS219: 0 | AT219: 0 | AU219: =AQ219*$K$29 -> 0 | AV219: =AR219*$K$30 -> 0 | AX219: 0 | AY219: 0 | AZ219: 0 | BA219: 0 | BB219: 0 | BC219: =AY219*$K$29 -> 0 | BD219: =AZ219*$L$30 -> 0
B220: 1 | J220: 1 | R220: 1 | Z220: 1 | AH220: 1 | AP220: 1 | AX220: 1
B221: 2 | C221: 0 | D221: 0 | E221: 0 | F221: 0 | G221: 0 | H221: =F221*$F$31 -> 0 | J221: 2 | K221: 0 | L221: 0 | M221: 0 | N221: 0 | O221: 0 | P221: =N221*$G$31 -> 0 | R221: 2 | S221: 0 | T221: 0 | U221: 0 | V221: 0 | W221: 0 | X221: =T221*$H$31 -> 0 | Z221: 2 | AA221: 0 | AB221: 0 | AC221: 0 | AD221: 0 | AE221: 0 | AF221: =AB221*$I$31 -> 0 | AH221: 2 | AI221: 0 | AJ221: 0 | AK221: 0 | AL221: 0 | AM221: 0 | AN221: =AJ221*$H$31 -> 0 | AP221: 2 | AQ221: 0 | AR221: 0 | AS221: 0 | AT221: 0 | AU221: 0 | AV221: =AR221*$K$31 -> 0 | AX221: 2 | AY221: 0 | AZ221: 0 | BA221: 0 | BB221: 0 | BC221: 0 | BD221: =AZ221*$L$31 -> 0
B222: 3 | C222: 0 | D222: 0 | E222: 0 | F222: 0 | G222: 0 | H222: =F222*$F$32 -> 0 | J222: 3 | K222: 0 | L222: 0 | M222: 0 | N222: 0 | O222: 0 | P222: =N222*$G$32 -> 0 | R222: 3 | S222: 0 | T222: 0 | U222: 0 | V222: 0 | W222: 0 | X222: =T222*$H$32 -> 0 | Z222: 3 | AA222: 0 | AB222: 0 | AC222: 0 | AD222: 0 | AE222: 0 | AF222: =AB222*$I$32 -> 0 | AH222: 3 | AI222: 0 | AJ222: 0 | AK222: 0 | AL222: 0 | AM222: 0 | AN222: =AJ222*$H$32 -> 0 | AP222: 3 | AQ222: 0 | AR222: 0 | AS222: 0 | AT222: 0 | AU222: 0 | AV222: =AR222*$K$32 -> 0 | AX222: 3 | AY222: 0 | AZ222: 0 | BA222: 0 | BB222: 0 | BC222: 0 | BD222: =AZ222*$L$32 -> 0
B223: 4 | C223: 0 | D223: 0 | E223: 0 | F223: 0 | G223: 0 | H223: =F223*$F$33 -> 0 | J223: 4 | K223: 0 | L223: 0 | M223: 0 | N223: 0 | O223: 0 | P223: =N223*$G$33 -> 0 | R223: 4 | S223: 0 | T223: 0 | U223: 0 | V223: 0 | W223: 0 | X223: =T223*$H$33 -> 0 | Z223: 4 | AA223: 0 | AB223: 0 | AC223: 0 | AD223: 0 | AE223: 0 | AF223: =AB223*$I$33 -> 0 | AH223: 4 | AI223: 0 | AJ223: 0 | AK223: 0 | AL223: 0 | AM223: 0 | AN223: =AJ223*$H$33 -> 0 | AP223: 4 | AQ223: 0 | AR223: 0 | AS223: 0 | AT223: 0 | AU223: 0 | AV223: =AR223*$K$33 -> 0 | AX223: 4 | AY223: 0 | AZ223: 0 | BA223: 0 | BB223: 0 | BC223: 0 | BD223: =AZ223*$L$33 -> 0
... 431 more rows

Sheet Q.Frota
B2: PIO | F2: Frota Homologada Disponível e Operacional - Ano 1
B3: FONTE | C3: Miniônibus | F3: Básico | I3: Padron | L3: Artic.Conv. | O3: Artic.BRT | R3: Frota total
C4: Disp. | D4: Res. | E4: Oper. | F4: Disp. | G4: Res. | H4: Oper. | I4: Disp. | J4: Res. | K4: Oper. | L4: Disp. | M4: Res. | N4: Oper. | O4: Disp. | P4: Res. | Q4: Oper. | R4: Disp. | S4: Res. | T4: Oper.
B5: Edital | C5: 54 | D5: =C5-E5 -> 3 | E5: 51 | F5: 459 | G5: =F5-H5 -> 22 | H5: 437 | I5: 38 | J5: =I5-K5 -> 1 | K5: 37 | L5: 12 | M5: =L5-N5 -> 1 | N5: 11 | O5: 62 | P5: =O5-Q5 -> 3 | Q5: 59 | R5: =C5+F5+I5+L5+O5 -> 625 | S5: =R5-T5 -> 30 | T5: =E5+H5+K5+N5+Q5 -> 595
B6: 2013-08-01 | C6: 0 | D6: =C6-E6 -> 0 | E6: 0 | F6: 137 | G6: =F6-H6 -> 0 | H6: 137 | I6: 0 | J6: =I6-K6 -> 0 | K6: 0 | L6: 3 | M6: =L6-N6 -> 0 | N6: 3 | O6: 0 | P6: =O6-Q6 -> 0 | Q6: 0 | R6: =C6+F6+I6+L6+O6 -> 140 | S6: =D6+G6+J6+M6+P6 -> 0 | T6: =E6+H6+K6+N6+Q6 -> 140
B7: =DATE(YEAR(B6),MONTH(B6)+1,DAY(B6)) -> 2013-09-01 | C7: 0 | D7: =C7-E7 -> 0 | E7: 0 | F7: 137 | G7: =F7-H7 -> 0 | H7: 137 | I7: 0 | J7: =I7-K7 -> 0 | K7: 0 | L7: 3 | M7: =L7-N7 -> 0 | N7: 3 | O7: 0 | P7: =O7-Q7 -> 0 | Q7: 0 | R7: =C7+F7+I7+L7+O7 -> 140 | S7: 0 | T7: 140
B8: 2013-10-01 | C8: 19 | D8: 0 | E8: 19 | F8: 244 | G8: 0 | H8: 244 | I8: 0 | J8: 0 | K8: 0 | L8: 3 | M8: 0 | N8: 3 | O8: 0 | P8: 0 | Q8: 0 | R8: 266 | S8: 0 | T8: 266
B9: 2013-11-01 | C9: 48 | D9: 0 | E9: 48 | F9: 378 | G9: 0 | H9: 378 | I9: 0 | J9: 0 | K9: 0 | L9: 3 | M9: 0 | N9: 3 | O9: 0 | P9: 0 | Q9: 0 | R9: 429 | S9: 0 | T9: 429
B10: 2013-12-01 | C10: 50 | D10: 0 | E10: 50 | F10: 409 | G10: 0 | H10: 409 | I10: 0 | J10: 0 | K10: 0 | L10: 12 | M10: 0 | N10: 12 | O10: =49-12 -> 37 | P10: 0 | Q10: 37 | R10: 508 | S10: 0 | T10: 508
B11: 2014-01-01 | C11: 50 | D11: 0 | E11: 50 | F11: 438 | G11: 0 | H11: 438 | I11: 0 | J11: 0 | K11: 0 | L11: 12 | M11: 0 | N11: 12 | O11: 48 | P11: 0 | Q11: 48 | R11: 548 | S11: 0 | T11: 548
B12: 2014-02-01 | C12: 53 | D12: 3 | E12: 50 | F12: 460 | G12: 22 | H12: 438 | I12: 0 | J12: 0 | K12: 0 | L12: 12 | M12: 0 | N12: 12 | O12: 48 | P12: 0 | Q12: 48 | R12: 573 | S12: 25 | T12: 548
B13: 2014-03-01 | C13: 53 | D13: 3 | E13: 50 | F13: 460 | G13: 22 | H13: 438 | I13: 0 | J13: 0 | K13: 0 | L13: 12 | M13: 0 | N13: 12 | O13: 56 | P13: 0 | Q13: =68-12 -> 56 | R13: 581 | S13: 25 | T13: 556
B14: 2014-04-01 | C14: 53 | D14: 3 | E14: 50 | F14: 460 | G14: 22 | H14: 438 | I14: 0 | J14: 0 | K14: 0 | L14: 12 | M14: 0 | N14: 12 | O14: 56 | P14: 0 | Q14: 56 | R14: 581 | S14: 25 | T14: 556
B15: 2014-05-01 | C15: 53 | D15: 3 | E15: 50 | F15: 460 | G15: 22 | H15: 438 | I15: 0 | J15: 0 | K15: 0 | L15: 12 | M15: 0 | N15: 12 | O15: 56 | P15: 0 | Q15: 56 | R15: 581 | S15: 25 | T15: 556
B16: 2014-06-01 | C16: 53 | D16: 3 | E16: 50 | F16: 460 | G16: 22 | H16: 438 | I16: 0 | J16: 0 | K16: 0 | L16: 12 | M16: 0 | N16: 12 | O16: 56 | P16: 0 | Q16: 56 | R16: 581 | S16: 25 | T16: 556
B17: 2014-07-01 | C17: 53 | D17: 3 | E17: 50 | F17: 460 | G17: 22 | H17: 438 | I17: 0 | J17: 0 | K17: 0 | L17: 12 | M17: 0 | N17: 12 | O17: 56 | P17: 0 | Q17: 56 | R17: 581 | S17: 25 | T17: 556
B19: =B2 -> PIO | F19: Frota Homologada Disponível e Operacional - Ano 2
B20: FONTE | C20: Miniônibus | F20: Básico | I20: Padron | L20: Artic.Conv. | O20: Artic.BRT | R20: Frota total
C21: Disp. | D21: Res. | E21: Oper. | F21: Disp. | G21: Res. | H21: Oper. | I21: Disp. | J21: Res. | K21: Oper. | L21: Disp. | M21: Res. | N21: Oper. | O21: Disp. | P21: Res. | Q21: Oper. | R21: Disp. | S21: Res. | T21: Oper.
B22: Edital | C22: =C5 -> 54 | D22: =D5 -> 3 | E22: =E5 -> 51 | F22: =F5 -> 459 | G22: 22 | H22: 437 | I22: 38 | J22: 1 | K22: 37 | L22: 12 | M22: 1 | N22: 11 | O22: 62 | P22: 3 | Q22: 59 | R22: =C22+F22+I22+L22+O22 -> 625 | S22: =D22+G22+J22+M22+P22 -> 30 | T22: =E22+H22+K22+N22+Q22 -> 595
B23: =DATE(YEAR(B17),MONTH(B17)+1,DAY(B17)) -> 2014-08-01 | C23: 53 | D23: =C23-E23 -> 3 | E23: =ROUND(C23/1.05,0) -> 50 | F23: 460 | G23: =F23-H23 -> 22 | H23: =ROUND(F23/1.05,0) -> 438 | I23: 38 | J23: =I23-K23 -> 2 | K23: =ROUND(I23/1.05,0) -> 36 | L23: 12 | M23: =L23-N23 -> 1 | N23: =ROUND(L23/1.05,0) -> 11 | O23: 56 | P23: =O23-Q23 -> 3 | Q23: =ROUND(O23/1.05,0) -> 53 | R23: =C23+F23+I23+L23+O23 -> 619 | S23: 31 | T23: 588
B24: =DATE(YEAR(B23),MONTH(B23)+1,DAY(B23)) -> 2014-09-01 | C24: 53 | D24: =C24-E24 -> 3 | E24: =ROUND(C24/1.05,0) -> 50 | F24: 460 | G24: 22 | H24: =ROUND(F24/1.05,0) -> 438 | I24: 38 | J24: 2 | K24: =ROUND(I24/1.05,0) -> 36 | L24: 12 | M24: =L24-N24 -> 1 | N24: =ROUND(L24/1.05,0) -> 11 | O24: 56 | P24: 3 | Q24: =ROUND(O24/1.05,0) -> 53 | R24: 619 | S24: 31 | T24: 588
B25: 2014-10-01 | C25: 53 | D25: 3 | E25: 50 | F25: 460 | G25: 22 | H25: 438 | I25: 38 | J25: 2 | K25: 36 | L25: 12 | M25: 1 | N25: =ROUND(L25/1.05,0) -> 11 | O25: 56 | P25: 3 | Q25: =ROUND(O25/1.05,0) -> 53 | R25: 619 | S25: 31 | T25: 588
B26: 2014-11-01 | C26: 53 | D26: 3 | E26: 50 | F26: 460 | G26: 22 | H26: 438 | I26: 38 | J26: 2 | K26: 36 | L26: 12 | M26: 1 | N26: 11 | O26: 56 | P26: 3 | Q26: 53 | R26: 619 | S26: 31 | T26: 588
B27: 2014-12-01 | C27: 53 | D27: 3 | E27: 50 | F27: 460 | G27: 22 | H27: 438 | I27: 38 | J27: 2 | K27: 36 | L27: 12 | M27: 1 | N27: 11 | O27: =70-12 -> 58 | P27: 3 | Q27: 55 | R27: 621 | S27: 31 | T27: 590
B28: 2015-01-01 | C28: 53 | D28: 3 | E28: 50 | F28: 460 | G28: 22 | H28: 438 | I28: 38 | J28: 2 | K28: 36 | L28: 12 | M28: 1 | N28: 11 | O28: 58 | P28: 3 | Q28: 55 | R28: 621 | S28: 31 | T28: 590
B29: 2015-02-01 | C29: 53 | D29: 3 | E29: 50 | F29: 460 | G29: 22 | H29: 438 | I29: 38 | J29: 2 | K29: 36 | L29: 12 | M29: 1 | N29: =ROUND(L29/1.05,0) -> 11 | O29: 58 | P29: 3 | Q29: =ROUND(O29/1.05,0) -> 55 | R29: 621 | S29: 31 | T29: 590
B30: 2015-03-01 | C30: 53 | D30: 3 | E30: 50 | F30: 460 | G30: 22 | H30: 438 | I30: 38 | J30: 2 | K30: 36 | L30: 12 | M30: 1 | N30: 11 | O30: 58 | P30: 3 | Q30: 55 | R30: 621 | S30: 31 | T30: 590
B31: 2015-04-01 | C31: 53 | D31: 3 | E31: 50 | F31: 460 | G31: 22 | H31: 438 | I31: 38 | J31: 2 | K31: 36 | L31: 12 | M31: 1 | N31: =ROUND(L31/1.05,0) -> 11 | O31: 58 | P31: 3 | Q31: =ROUND(O31/1.05,0) -> 55 | R31: 621 | S31: 31 | T31: 590
B32: 2015-05-01 | C32: 53 | D32: 3 | E32: 50 | F32: 460 | G32: 22 | H32: 438 | I32: 38 | J32: 2 | K32: 36 | L32: 12 | M32: 1 | N32: 11 | O32: 58 | P32: 3 | Q32: 55 | R32: 621 | S32: 31 | T32: 590
B33: 2015-06-01 | C33: 53 | D33: 3 | E33: 50 | F33: 460 | G33: 22 | H33: 438 | I33: 38 | J33: 2 | K33: 36 | L33: 12 | M33: 1 | N33: =ROUND(L33/1.05,0) -> 11 | O33: 58 | P33: 3 | Q33: =ROUND(O33/1.05,0) -> 55 | R33: 621 | S33: 31 | T33: 590
B34: 2015-07-01 | C34: 53 | D34: 3 | E34: 50 | F34: 460 | G34: 22 | H34: 438 | I34: 38 | J34: 2 | K34: 36 | L34: 12 | M34: 1 | N34: =ROUND(L34/1.05,0) -> 11 | O34: 58 | P34: 3 | Q34: =ROUND(O34/1.05,0) -> 55 | R34: 621 | S34: 31 | T34: 590
B36: =B19 -> PIO | F36: Frota Homologada Disponível e Operacional - Ano 3
B37: FONTE | C37: Miniônibus | F37: Básico | I37: Padron | L37: Artic.Conv. | O37: Artic.BRT | R37: Frota total
C38: Disp. | D38: Res. | E38: Oper. | F38: Disp. | G38: Res. | H38: Oper. | I38: Disp. | J38: Res. | K38: Oper. | L38: Disp. | M38: Res. | N38: Oper. | O38: Disp. | P38: Res. | Q38: Oper. | R38: Disp. | S38: Res. | T38: Oper.
B39: Edital | C39: =C22 -> 54 | D39: 3 | E39: 51 | F39: 459 | G39: 22 | H39: 437 | I39: 38 | J39: 1 | K39: 37 | L39: 12 | M39: 1 | N39: 11 | O39: 62 | P39: 3 | Q39: 59 | R39: =C39+F39+I39+L39+O39 -> 625 | S39: =D39+G39+J39+M39+P39 -> 30 | T39: =E39+H39+K39+N39+Q39 -> 595
B40: =DATE(YEAR(B34),MONTH(B34)+1,DAY(B34)) -> 2015-08-01 | C40: 54 | D40: =C40-E40 -> 3 | E40: =ROUND(C40/1.05,0) -> 51 | F40: 459 | G40: =F40-H40 -> 22 | H40: =ROUND(F40/1.05,0) -> 437 | I40: 38 | J40: =I40-K40 -> 2 | K40: =ROUND(I40/1.05,0) -> 36 | L40: 12 | M40: =L40-N40 -> 1 | N40: =ROUND(L40/1.05,0) -> 11 | O40: 62 | P40: =O40-Q40 -> 3 | Q40: =ROUND(O40/1.05,0) -> 59 | R40: =C40+F40+I40+L40+O40 -> 625 | S40: =D40+G40+J40+M40+P40 -> 31 | T40: =E40+H40+K40+N40+Q40 -> 594
B41: =DATE(YEAR(B40),MONTH(B40)+1,DAY(B40)) -> 2015-09-01 | C41: 54 | D41: 3 | E41: =ROUND(C41/1.05,0) -> 51 | F41: 459 | G41: 22 | H41: =ROUND(F41/1.05,0) -> 437 | I41: 38 | J41: 2 | K41: =ROUND(I41/1.05,0) -> 36 | L41: 12 | M41: 1 | N41: =ROUND(L41/1.05,0) -> 11 | O41: 62 | P41: 3 | Q41: =ROUND(O41/1.05,0) -> 59 | R41: 625 | S41: 31 | T41: 594
B42: 2015-10-01 | C42: 54 | D42: 3 | E42: 51 | F42: 459 | G42: 22 | H42: 437 | I42: 38 | J42: 2 | K42: 36 | L42: 12 | M42: 1 | N42: 11 | O42: 62 | P42: 3 | Q42: 59 | R42: 625 | S42: 31 | T42: 594
B43: 2015-11-01 | C43: 54 | D43: 3 | E43: 51 | F43: 459 | G43: 22 | H43: 437 | I43: 38 | J43: 2 | K43: 36 | L43: 12 | M43: 1 | N43: 11 | O43: 62 | P43: 3 | Q43: 59 | R43: 625 | S43: 31 | T43: 594
B44: 2015-12-01 | C44: 54 | D44: 3 | E44: 51 | F44: 459 | G44: 22 | H44: 437 | I44: 38 | J44: 2 | K44: 36 | L44: 12 | M44: 1 | N44: 11 | O44: 62 | P44: 3 | Q44: 59 | R44: 625 | S44: 31 | T44: 594
B45: 2016-01-01 | C45: 54 | D45: 3 | E45: 51 | F45: 459 | G45: 22 | H45: 437 | I45: 38 | J45: 2 | K45: 36 | L45: 12 | M45: 1 | N45: 11 | O45: 62 | P45: 3 | Q45: 59 | R45: 625 | S45: 31 | T45: 594
B46: 2016-02-01 | C46: 54 | D46: 3 | E46: 51 | F46: 459 | G46: 22 | H46: 437 | I46: 38 | J46: 2 | K46: 36 | L46: 12 | M46: 1 | N46: 11 | O46: 62 | P46: 3 | Q46: 59 | R46: 625 | S46: 31 | T46: 594
B47: 2016-03-01 | C47: 54 | D47: 3 | E47: 51 | F47: 459 | G47: 22 | H47: 437 | I47: 38 | J47: 2 | K47: 36 | L47: 12 | M47: 1 | N47: 11 | O47: 62 | P47: 3 | Q47: 59 | R47: 625 | S47: 31 | T47: 594
B48: 2016-04-01 | C48: 54 | D48: 3 | E48: 51 | F48: 459 | G48: 22 | H48: 437 | I48: 38 | J48: 2 | K48: 36 | L48: 12 | M48: 1 | N48: 11 | O48: 62 | P48: 3 | Q48: 59 | R48: 625 | S48: 31 | T48: 594
B49: 2016-05-01 | C49: 54 | D49: 3 | E49: 51 | F49: 459 | G49: 22 | H49: 437 | I49: 38 | J49: 2 | K49: 36 | L49: 12 | M49: 1 | N49: 11 | O49: 62 | P49: 3 | Q49: 59 | R49: 625 | S49: 31 | T49: 594
B50: 2016-06-01 | C50: 54 | D50: 3 | E50: 51 | F50: 459 | G50: 22 | H50: 437 | I50: 38 | J50: 2 | K50: 36 | L50: 12 | M50: 1 | N50: 11 | O50: 62 | P50: 3 | Q50: 59 | R50: 625 | S50: 31 | T50: 594
B51: 2016-07-01 | C51: 54 | D51: 3 | E51: 51 | F51: 459 | G51: 22 | H51: 437 | I51: 38 | J51: 2 | K51: 36 | L51: 12 | M51: 1 | N51: 11 | O51: 62 | P51: 3 | Q51: 59 | R51: 625 | S51: 31 | T51: 594
B52: OBS: Para os demais anos seguem 625 total, 31 reservas e 594 operacionais
B53: Atual | C53: 25 | F53: 452 | I53: 75 | L53: 12 | O53: 61 | R53: =C53+F53+I53+L53+O53 -> 625 | S53: Total
B54: Atual | C54: =C53*0.95 -> 23.75 | F54: =F53*0.95 -> 429.4 | I54: =I53*0.95 -> 71.25 | L54: =L53*0.95 -> 11.4 | O54: =O53*0.95 -> 57.95 | R54: =C54+F54+I54+L54+O54 -> 593.75 | S54: Operacional
B55: Renovada | C55: 25 | F55: 343 | I55: 37 | L55: 0 | O55: 0 | R55: =C55+F55+I55+L55+O55 -> 405 | S55: Total
B57: FROTA OPERACIONAL À PARTIR DE JUL/23 - RENOVAÇÃO | N57: INVESTIMENTO DE FROTA NO ANO 11
B58: Início | C58: Aplicação | D58: Mini- | E58: Básico | F58: Padron | G58: Super | H58: Artic. | I58: S.Padron | J58: Artic. | K58: Totais | N58: Início | O58: Motivo | P58: Mini- | Q58: Básico | R58: Padron | S58: S.Padron | T58: S.Padron | U58: Artic. | V58: Artic. | W58: Totais
D59: ônibus | E59: Conv. | F59: BRT | G59: Padron | H59: Conv. | I59: BRT | J59: BRT | P59: ônibus | Q59: Conv. | R59: BRT | S59: Conv. | T59: BRT | U59: Conv. | V59: BRT
B60: 2023-07-01 | C60: Total | D60: 25 | E60: 492 | F60: 110 | G60: 16 | H60: 0 | I60: 0 | J60: 61 | K60: =SUM(D60:J60) -> 704 | N60: 2023-07-01 | O60: Aumento | Q60: 55 | R60: 20 | S60: 4 | W60: =SUM(P60:V60) -> 79
C61: Reserva | D61: 1 | E61: 25 | F61: 6 | G61: 1 | H61: 0 | I61: 0 | J61: 3 | K61: =SUM(D61:J61) -> 36 | L61: =K61/K60 -> 0.05113636364 | O61: Renovação | R61: 38 | S61: 12 | V61: 61 | W61: =SUM(P61:V61) -> 111
C62: Operacional | D62: =D60-D61 -> 24 | E62: 467 | F62: 104 | G62: 15 | H62: 0 | I62: =I60-I61 -> 0 | J62: =J60-J61 -> 58 | K62: =SUM(D62:J62) -> 668 | L62: =K62/K60 -> 0.9488636364 | O62: Total | P62: =P60+P61 -> 0 | Q62: =Q60+Q61 -> 55 | R62: 58 | S62: 16 | T62: 0 | U62: 0 | V62: 61 | W62: =SUM(P62:V62) -> 190
C63: Cobrador | D63: =D62 -> 24 | E63: =E62 -> 467 | F63: 0 | G63: =G62 -> 15 | H63: =H62 -> 0 | I63: =I62 -> 0 | J63: 0 | K63: =SUM(D63:J63) -> 506

Sheet custos variáveis mai23 em diant
A1: Composição dos encargos sociais previstos | H1: Viação Pioneira
G2: Bacia (Lote): | H2: 2 | T2: Metodologia de Cálculo do Diesel - ICMS Monofásico
A3: Combustível | T3: 2012-09-01 | U3: a | V3: 1.929 | W3: Preço Médio Distribuição ANP
T4: 2022-09-01 | U4: b | V4: 5.954 | W4: Preço Médio Distribuição ANP
C5: Preço: | D5: =V38 -> 1.791117499 | E5: R$/litro | G5: ICMS | H5: 0.8 | T5: Percentual Acumulado | U5: c = b/a | V5: =V4/V3 -> 3.086573354 | W5: Acumulado para Deflacionar
D6: média PMPF | T6: 1 | U6: d | V6: 0.9456 | W6: ICMS Bruto
J7: EURO 6 | T7: =V7/V6 -> 0.7359348562 | U7: e | V7: 0.6959 | W7: Desconto Efetivo ICMS
A8: Combustível | F8: Lubrificante - Coeficiente custo/km c/combustível | H8: Média km/L | J8: Combustível | O8: Lubrificante - Coeficiente custo/km c/combustível | Q8: Média km/L | T8: =T6-T7 -> 0.2640651438 | U8: f = e/d | V8: =V6-V7 -> 0.2497 | W8: ICMS Efetivamente Pago
A9: Tipo Veículo | C9: Ar Condicionado | D9: Litros/km | E9: R$/km | F9: Coeficiente | G9: R$/km | H9: Veículo | J9: Tipo Veículo | L9: Ar Condicionado | M9: Litros/km | N9: R$/km | O9: Coeficiente | P9: R$/km | Q9: Veículo | U9: g = f/c | V9: =V8/V5 -> 0.08089877393 | W9: ICMS Pago Deflacionado a Preços de Proposta
A10: Miniônibus | C10: Sem Ar | D10: 0.2222222222 | E10: =D10*$D$5 -> 0.3980261109 | F10: 0.03 | G10: =E10*$F$10 -> 0.01194078333 | H10: =1/D10 -> 4.5 | J10: Miniônibus | L10: Sem Ar | M10: 0.2222222222 | N10: =M10*$D$5 -> 0.3980261109 | O10: 0.03 | P10: =N10*$O$10 -> 0.01194078333 | Q10: =1/M10 -> 4.5 | U10: h | V10: 1.685 | W10: Preço Diesel Proposta
A11: Ônibus Básico | C11: Sem Ar | D11: 0.350877193 | E11: =D11*$D$5 -> 0.6284622804 | G11: =E11*$F$10 -> 0.01885386841 | H11: =1/D11 -> 2.85 | J11: Ônibus Básico | L11: Sem Ar | M11: 0.350877193 | N11: =M11*$D$5 -> 0.6284622804 | P11: =N11*$O$10 -> 0.01885386841 | Q11: 2.85 | U11: i = h + g | V11: =V9+V10 -> 1.765898774 | W11: Preço Diesel Proposta com ICMS
A12: Padron | C12: Com Ar | D12: 0.5555555556 | E12: =D12*$D$5 -> 0.9950652772 | G12: =E12*$F$10 -> 0.02985195832 | H12: =1/D12 -> 1.8 | J12: Padron-BRT | L12: Com Ar | M12: 0.5555555556 | N12: =M12*$D$5 -> 0.9950652772 | P12: =N12*$O$10 -> 0.02985195832 | Q12: 1.8
A13: Articulado | C13: Com Ar | D13: 0.5847953216 | E13: =D13*$D$5 -> 1.047437134 | G13: =E13*$F$10 -> 0.03142311402 | H13: =1/D13 -> 1.71 | J13: Super Padron Conv. | L13: Com Ar | M13: 0.57389 | N13: =D5*M13 -> 1.027904422 | P13: =N13*$O$10 -> 0.03083713265 | Q13: 1.742494206
A14: Articulado BRT | C14: Com Ar | D14: 0.5847953216 | E14: =D14*$D$5 -> 1.047437134 | G14: =E14*$F$10 -> 0.03142311402 | H14: =1/D14 -> 1.71 | J14: Super Padron BRT | L14: Com Ar | M14: 0.57389 | N14: =D5*M14 -> 1.027904422 | P14: =N14*$O$10 -> 0.03083713265 | Q14: 1.742494206 | T14: MÉDIO DO ICMS DO DIESEL COM A MONOFASIA PARA MAI/2023 E JUN/23
J15: Articulado | L15: Com Ar | M15: 0.5847953216 | N15: =M15*$D$5 -> 1.047437134 | P15: =N15*$F$10 -> 0.03142311402 | Q15: =1/M15 -> 1.71 | T15: Metodologia de Cálculo do Diesel - ICMS Monofásico
J16: Articulado BRT | L16: Com Ar | M16: 0.5847953216 | N16: =M16*$D$5 -> 1.047437134 | P16: =N16*$F$10 -> 0.03142311402 | Q16: =1/M16 -> 1.71 | T16: 2012-09-01 | U16: a | V16: 1.929 | W16: Preço Médio Distribuição ANP época proposta original
T17: 2023-05-01 | U17: b | V17: 4.658 | W17: Preço Médio Distribuição ANP
T18: Percentual Acumulado | U18: c = b/a | V18: =V17/V16 -> 2.414722654 | W18: Acumulado para Deflacionar
A19: Pneus | J19: Pneus | L19: EURO 6 | T19: 1 | U19: d | V19: 0.9456 | W19: ICMS Bruto
A20: Pneus | J20: Pneus | T20: =V20/V19 -> 0.7359348562 | U20: e | V20: 0.6959 | W20: Desconto Efetivo ICMS
A21: Tipo | C21: Quantidade | D21: Custo (R$) | E21: Vida | F21: Número de | G21: Custo Unitário | H21: Custo por km | J21: Tipo | L21: Quantidade | M21: Custo (R$) | N21: Vida | O21: Número de | P21: Custo Unitário | Q21: Custo por km | T21: =T19-T20 -> 0.2640651438 | U21: f = e/d | V21: =V19-V20 -> 0.2497 | W21: ICMS Efetivamente Pago
A22: Veículos | C22: de Pneus | D22: Unitário | E22: Útil | F22: Recapagens | G22: Recapagem (R$) | H22: (R$/km) | J22: Veículos | L22: de Pneus | M22: Unitário | N22: Útil | O22: Recapagens | P22: Recapagem (R$) | Q22: (R$/km) | U22: g = f/c | V22: =V21/V18 -> 0.1034073207 | W22: ICMS Pago Deflacionado a Preços de Proposta
A23: Miniônibus | C23: 6 | D23: 560 | E23: 90000 | F23: 0 | G23: 288 | H23: =((C23*D23+C23*F23*G23)/E23) -> 0.03733333333 | J23: Miniônibus | L23: 6 | M23: 560 | N23: 90000 | O23: 0 | P23: 288 | Q23: =((L23*M23+L23*O23*P23)/N23) -> 0.03733333333 | U23: h | V23: 1.685 | W23: Preço Diesel Proposta
A24: Ônibus Básico | C24: 6 | D24: 950 | E24: 190000 | F24: 2 | G24: 288 | H24: =((C24*D24+C24*F24*G24)/E24) -> 0.04818947368 | J24: Ônibus Básico | L24: 6 | M24: 950 | N24: 190000 | O24: 2 | P24: 288 | Q24: 0.04818947368 | U24: i = h + g | V24: =V22+V23 -> 1.788407321 | W24: Preço Diesel Proposta com ICMS
A25: Padron | C25: 6 | D25: 1720 | E25: 190000 | F25: 2 | G25: 388 | H25: =((C25*D25+C25*F25*G25)/E25) -> 0.07882105263 | J25: Padron | L25: 6 | M25: 1720 | N25: 190000 | O25: 2 | P25: 388 | Q25: 0.07882105263
A26: Articulado | C26: 10 | D26: 950 | E26: 190000 | F26: 2 | G26: 288 | H26: =((C26*D26+C26*F26*G26)/E26) -> 0.08031578947 | J26: Super Padron Conv. | L26: 6 | M26: 1720 | N26: 190000 | O26: 2 | P26: 388 | Q26: 0.07882105263
A27: Articulado BRT | C27: 10 | D27: 1720 | E27: 190000 | F27: 2 | G27: 388 | H27: =((C27*D27+C27*F27*G27)/E27) -> 0.1313684211 | J27: Super Padron BRT | L27: 6 | M27: 1720 | N27: 190000 | O27: 2 | P27: 388 | Q27: 0.07882105263 | T27: Metodologia de Cálculo do Diesel - ICMS Monofásico
J28: Articulado Conv. | L28: 10 | M28: 1720 | N28: 190000 | O28: 2 | P28: 388 | Q28: =((L28*M28+L28*O28*P28)/N28) -> 0.1313684211 | T28: =T16 -> 2012-09-01 | U28: a | V28: =V16 -> 1.929 | W28: Preço Médio Distribuição ANP época proposta original
J29: Articulado BRT | L29: 10 | M29: 1720 | N29: 190000 | O29: 2 | P29: 388 | Q29: =((L29*M29+L29*O29*P29)/N29) -> 0.1313684211 | T29: 2023-06-01 | U29: b | V29: 4.426 | W29: Preço Médio Distribuição ANP
T30: Percentual Acumulado | U30: c = b/a | V30: =V29/V28 -> 2.294453084 | W30: Acumulado para Deflacionar
A31: Peças e acessórios de reposição | T31: 1 | U31: d | V31: 0.9456 | W31: ICMS Bruto
C32: Coeficiente do valor do veículo novo | T32: =V32/V31 -> 0.7359348562 | U32: e | V32: 0.6959 | W32: Desconto Efetivo ICMS
C33: Tipo | E33: Ar Condicionado | F33: Coeficiente | G33: R$/km | J33: Peças e acessórios de reposição | N33: EURO 6 | T33: =T31-T32 -> 0.2640651438 | U33: f = e/d | V33: =V31-V32 -> 0.2497 | W33: ICMS Efetivamente Pago
C34: Veículos | L34: Coeficiente do valor do veículo novo | U34: g = f/c | V34: =V33/V30 -> 0.1088276774 | W34: ICMS Pago Deflacionado a Preços de Proposta
C35: Miniônibus | E35: Sem Ar | F35: 7.202358616e-07 | G35: ='Custo Capital'!F9*F35 -> 0.1205171676 | L35: Tipo | N35: Ar Condicionado | O35: Coeficiente | P35: R$/km | U35: h | V35: 1.685 | W35: Preço Diesel Proposta
C36: Ônibus Básico | E36: Sem Ar | F36: 7.202358616e-07 | G36: ='Custo Capital'!G9*'Custos Variáveis ate dez-20'!F36 -> 0.1678798778 | L36: Veículos | U36: i = h + g | V36: =V34+V35 -> 1.793827677 | W36: Preço Diesel Proposta com ICMS
C37: Padron | E37: Com Ar | F37: 7.202358616e-07 | G37: =F37*'Custo Capital'!H13 -> 0.3245238745 | L37: Miniônibus | N37: Sem Ar | O37: =F35 -> 7.202358616e-07 | P37: ='Custo Capital'!O9*'Custos Variáveis ate dez-20'!O37 -> 0.1205171676
C38: Articulado | E38: Com Ar | F38: 7.202358616e-07 | G38: =F38*'Custo Capital'!I13 -> 0.4361677363 | L38: Ônibus Básico | N38: Sem Ar | O38: =F36 -> 7.202358616e-07 | P38: ='Custo Capital'!P9*'Custos Variáveis ate dez-20'!O38 -> 0.1678798778 | V38: =(V24+V36)/2 -> 1.791117499 | W38: Média ICMS monofásico para mai/23 e jun/23
C39: Articulado BRT | E39: Com Ar | F39: 7.202358616e-07 | G39: =F39*'Custo Capital'!J13 -> 0.513444838 | L39: Padron | N39: Com Ar | O39: =F37 -> 7.202358616e-07 | P39: ='Custo Capital'!Q13*'Custos Variáveis ate dez-20'!O39 -> 0.3245238745
L40: Super Padron Conv. | N40: Com Ar | O40: =F38 -> 7.202358616e-07 | P40: ='Custo Capital'!R13*'Custos Variáveis ate dez-20'!O40 -> 0.7586100283
L41: Super Padron BRT | N41: Com Ar | O41: =F39 -> 7.202358616e-07 | P41: ='Custo Capital'!S13*'Custos Variáveis ate dez-20'!O41 -> 0.4247086829
A42: Custo variável por km | L42: Articulado Conv. | N42: Com Ar | O42: =F39 -> 7.202358616e-07 | P42: ='Custo Capital'!T13*'Custos Variáveis ate dez-20'!O42 -> 0.4306219201
L43: Articulado BRT | N43: Com Ar | O43: =O42 -> 7.202358616e-07 | P43: ='Custo Capital'!U13*'Custos Variáveis ate dez-20'!O43 -> 0.513444838
C44: Tipo | E44: Ar Condicionado | F44: R$/km (total)
C45: Veículos
C46: Miniônibus | E46: Sem Ar | F46: =E10+G10+H23+G35 -> 0.5678173951
C47: Ônibus Básico | E47: Sem Ar | F47: =E11+G11+H24+G36 -> 0.8633855003
C48: Padron BRT | E48: Com Ar | F48: =E12+G12+H25+G37 -> 1.428262163
C49: Articulado | E49: Com Ar | F49: =E13+G13+H26+G38 -> 1.595343774
C50: Articulado BRT | E50: Com Ar | F50: =E14+G14+H27+G39 -> 1.723673507

Sheet Dados Passag e km
A1: Viação Pioneira (Bacia2)
A2: FONTE/Período | B2: Passageiros | C2: Criança | D2: Passg. | E2: Passag. | F2: Passag.Pagante
B3: Informação | C3: Candanga | D3: SBA | E3: Funcio- | F3: Levantamento
B4: Dftrans | C4: e Sêniors | E4: nários | F4: Ditar
A5: Edital | B5: 6032365 | C5: 0 | D5: 0 | E5: 0 | F5: =B5-SUM(C5:E5) -> 6032365
A6: 2013-06-01 | B6: 0 | C6: 0 | D6: 0 | E6: 0 | F6: =B6-SUM(C6:E6) -> 0
A7: =DATE(YEAR(A6),MONTH(A6)+1,DAY(A6)) -> 2013-07-01 | F7: 46272
A8: 2013-08-01 | F8: 770334
A9: 2013-09-01 | F9: 1726533
A10: 2013-10-01 | F10: 2420509
A11: 2013-11-01 | F11: 2613685
A12: 2013-12-01 | F12: 3055778
A13: 2014-01-01 | F13: 3483413
A14: 2014-02-01 | F14: 3535634
A15: 2014-03-01 | F15: 3931129
A16: 2014-04-01 | F16: 4116087
A17: 2014-05-01 | F17: 4336305
A18: 2014-06-01 | F18: 3641351
A19: 2014-07-01 | F19: 3332531
A20: 2014-08-01 | F20: 3896024
A21: 2014-09-01 | F21: 3810182
A22: 2014-10-01 | F22: 4126601
A23: 2014-11-01 | F23: 3099168
A24: 2014-12-01 | F24: 4311153
A25: 2015-01-01 | F25: 4381084
A26: 2015-02-01 | F26: 4414958
A27: 2015-03-01 | F27: 5014915
A28: 2015-04-01 | F28: 5751077
A29: 2015-05-01 | F29: 5986350
A30: 2015-06-01 | F30: 5340654
A31: 2015-07-01 | F31: 6000144
A32: 2015-08-01 | F32: 6412582
A33: 2015-09-01 | F33: 6294815
A34: 2015-10-01 | F34: 6092274
A35: 2015-11-01 | F35: 5915264
A36: 2015-12-01 | F36: 5826657
A37: 2016-01-01 | F37: 5022685
A38: 2016-02-01 | F38: 5357684
A39: =DATE(YEAR(A38),MONTH(A38)+1,DAY(A38)) -> 2016-03-01 | F39: 6700193
A40: 2016-04-01 | F40: 6420663
A41: 2016-05-01 | F41: 6691331
A42: 2016-06-01 | F42: 6584982
A43: 2016-07-01 | F43: 6010203
A44: 2016-08-01 | F44: 6716340
A45: 2016-09-01 | F45: 6585294
A46: 2016-10-01 | F46: 6472454
A47: 2016-11-01 | F47: 6131074
A48: 2016-12-01 | F48: 6128497
A49: 2017-01-01 | F49: 5185255
A50: 2017-02-01 | F50: 5333669
A51: 2017-03-01 | F51: 6643105
A52: 2017-04-01 | F52: 5550888
A53: 2017-05-01 | F53: 6399807
A54: 2017-06-01 | F54: 5971576
A55: 2017-07-01 | F55: 5230721
A56: 2017-08-01 | F56: 6269570
A57: 2017-09-01 | F57: 6142276
A58: 2017-10-01 | F58: 6410405
A59: 2017-11-01 | F59: 6103507
A60: 2017-12-01 | F60: 5569080
A61: 2018-01-01 | F61: 5100711
A62: 2018-02-01 | F62: 5219488
A63: 2018-03-01 | F63: 6685808
A64: 2018-04-01 | F64: 6584256
A65: 2018-05-01 | F65: 6692776
A66: 2018-06-01 | F66: 6543995
A67: 2018-07-01 | F67: 5783519
A68: 2018-08-01 | F68: 7147153
A69: 2018-09-01 | F69: 6522993
A70: 2018-10-01 | F70: 7136773
A71: =DATE(YEAR(A70),MONTH(A70)+1,DAY(A70)) -> 2018-11-01 | F71: 6490802
A72: 2018-12-01 | F72: 5858916
A73: 2019-01-01 | F73: 5483607
A74: 2019-02-01 | F74: 6068143
A75: 2019-03-01 | F75: 6397579
A76: 2019-04-01 | F76: 6853589
A77: 2019-05-01 | F77: 7212951
A78: 2019-06-01 | B78: 6267722 | C78: 5907 | D78: 80678 | E78: 34066 | F78: 6147071
A79: 2019-07-01 | B79: 6319275 | C79: 5644 | D79: 81694 | E79: 36564 | F79: 6195373
A80: 2019-08-01 | B80: 7259015 | C80: 8733 | D80: 87414 | E80: 37797 | F80: 7125071
A81: 2019-09-01 | B81: 7050490 | C81: 9095 | D81: 80131 | E81: 35916 | F81: 6925348
A82: 2019-10-01 | B82: 7495592 | C82: 14625 | D82: 84359 | E82: 36968 | F82: 7359640
A83: 2019-11-01 | B83: 6904883 | C83: 11276 | D83: 81289 | E83: 34639 | F83: 6777679
A84: 2019-12-01 | B84: 6177590 | C84: 10166 | D84: 78761 | E84: 33935 | F84: 6054728
A85: 2020-01-01 | B85: 5633590 | C85: 8162 | D85: 73863 | E85: 35383 | F85: 5516182
A86: 2020-02-01 | B86: 5940284 | C86: 11032 | D86: 72135 | E86: 36772 | F86: 5820345
A87: 2020-03-01 | B87: 4889420 | C87: 9602 | D87: 43844 | E87: 32372 | F87: 4803602
A88: 2020-04-01 | B88: 2304149 | C88: =2137+2609 -> 4746 | D88: =0+0 -> 0 | E88: 21418 | F88: 2277985
A89: 2020-05-01 | B89: 2713135 | C89: 5995 | D89: 0 | E89: 23085 | F89: 2684055
A90: 2020-06-01 | B90: 3016447 | C90: 6755 | D90: 0 | E90: 23952 | F90: 2985740
A91: 2020-07-01 | B91: 3420966 | C91: 6416 | D91: 0 | E91: 25609 | F91: 3388941
A92: 2020-08-01 | B92: 3618087 | C92: 6265 | D92: 0 | E92: 25413 | F92: 3586409
A93: 2020-09-01 | B93: 3859271 | C93: 6410 | D93: 0 | E93: 24979 | F93: 3827882
A94: 2020-10-01 | B94: 4290217 | C94: 7210 | D94: 0 | E94: 24293 | F94: 4258714
A95: 2020-11-01 | B95: 4251103 | C95: 6258 | D95: 0 | E95: 22777 | F95: 4222068
A96: 2020-12-01 | B96: 4468275 | C96: 6541 | D96: 0 | E96: 23945 | F96: 4437789
A97: 2021-01-01 | B97: 4208011 | C97: 6424 | D97: 0 | E97: 22023 | F97: 4179564
A98: 2021-02-01 | B98: 4026052 | C98: 6064 | D98: 0 | E98: 21869 | F98: 3998119
A99: 2021-03-01 | B99: 4287893 | C99: 6984 | D99: 0 | E99: 23630 | F99: 4257279
A100: 2021-04-01 | B100: 4170896 | C100: 6598 | D100: 0 | E100: 22798 | F100: 4141500
A101: 2021-05-01 | B101: 4451142 | C101: 6846 | D101: 0 | E101: 24369 | F101: 4419927
A102: 2021-06-01 | B102: 4728243 | C102: 0 | D102: 0 | E102: 0 | F102: 4728243
A103: 2021-07-01 | B103: 5041698 | C103: 0 | D103: 0 | E103: 0 | F103: 5041698
A104: 2021-08-01 | B104: 5461069 | C104: 0 | D104: 0 | E104: 0 | F104: 5461069
A105: 2021-09-01 | B105: 5629516 | C105: 0 | D105: 0 | E105: 0 | F105: 5629516
A106: 2021-10-01 | B106: 5755869 | C106: 0 | D106: 0 | E106: 0 | F106: 5755869
A107: 2021-11-01 | B107: 5958120 | C107: 0 | D107: 0 | E107: 0 | F107: 5958120
A108: 2021-12-01 | B108: 6062135 | C108: 0 | D108: 0 | E108: 0 | F108: 6062135
A109: 2022-01-01 | B109: 5325394 | C109: 0 | D109: 0 | E109: 0 | F109: 5325394
A110: 2022-02-01 | B110: 5524484 | C110: 0 | D110: 0 | E110: 0 | F110: 5524484
A111: 2022-03-01 | B111: 7013823 | C111: 0 | D111: 0 | E111: 0 | F111: 7013823
A112: 2022-04-01 | B112: 6639790 | C112: 0 | D112: 0 | E112: 0 | F112: 6639790
A113: 2022-05-01 | B113: 7490964 | C113: 0 | D113: 0 | E113: 0 | F113: 7490964
A114: 2022-06-01 | B114: 7158164 | C114: 0 | D114: 0 | E114: 0 | F114: 7158164
A115: 2022-07-01 | B115: 6663531 | C115: 0 | D115: 0 | E115: 0 | F115: 6663531
A116: 2022-08-01 | B116: 7795300 | C116: 0 | D116: 0 | E116: 0 | F116: 7795300
A117: 2022-09-01 | B117: 7204955 | C117: 0 | D117: 0 | E117: 0 | F117: 7204955
A118: 2022-10-01 | B118: 7007196 | C118: 0 | D118: 0 | E118: 0 | F118: 7007196
A119: 2022-11-01 | B119: 6799746 | C119: 0 | D119: 0 | E119: 0 | F119: 6799746
A120: 2022-12-01 | B120: 6387679 | C120: 0 | D120: 0 | E120: 0 | F120: 6387679
A121: 2023-01-01 | B121: 6174513 | C121: 0 | D121: 0 | E121: 0 | F121: 6174513
A122: 2023-02-01 | B122: 5999109 | C122: 0 | D122: 0 | E122: 0 | F122: 5999109
A123: 2023-03-01 | B123: 7742535 | C123: 0 | D123: 0 | E123: 0 | F123: 7742535
A124: 2023-04-01 | B124: 6786822 | C124: 0 | D124: 0 | E124: 0 | F124: 6786822
A125: 2023-05-01 | B125: 7591339 | C125: 0 | D125: 0 | E125: 0 | F125: 7591339
A126: 2023-06-01 | B126: 7375477 | C126: 0 | D126: 0 | E126: 0 | F126: 7375477
A127: 2023-07-01 | B127: 6868391 | F127: 6868391
A128: 2023-08-01 | B128: 7824061 | F128: 7824061
A129: 2023-09-01 | B129: 7230554 | F129: 7230554
A130: 2023-10-01 | B130: 7407240 | F130: 7407240
A131: 2023-11-01 | B131: 6728034 | F131: 6728034
A132: 2023-12-01 | B132: 6158541 | F132: 6158541
A133: 2024-01-01 | F133: 5940488
A134: 2024-02-01 | F134: 6176677
A135: 2024-03-01 | B135: 6896214 | F135: 7158658
A136: 2024-04-01 | B136: 7593449 | F136: 7593449
A137: 2024-05-01 | B137: 7326554 | F137: 7326554
A138: 2024-06-01 | B138: 7038624 | F138: 7038624
A139: 2024-07-01 | B139: 6905659 | F139: 6905659
A140: 2024-08-01 | B140: 7667965 | F140: 7667965
A141: 2024-09-01 | B141: 7274100 | F141: 7274100
A142: 2024-10-01 | B142: 7681497 | F142: 7681497
A143: 2024-11-01 | B143: 6954995 | F143: 6954995
A144: 2024-12-01 | B144: 6276882 | F144: 6276882
A145: 2025-01-01 | B145: 6150543 | F145: 6150543
A146: 2025-02-01 | B146: 7351062 | F146: =B146 -> 7351062
A147: Qtde. meses p/ média mensal p/ fluxo de caixa.................................................. | F147: 12
A148: Média últimos 12 meses (cláusula XVII do Contrato)........................................... | F148: =SUM(F135:F146)/F147 -> 7114999
A149: OBS: Os Sêniors constam na Criança Candanga
J150: Bacia 2
A151: FONTE | C151: Km Rodada (OS) e Passageiros Pagantes Transportados - ANO 1
B152: KM RODADA | D152: KM OPERACIONAL RODADA POR TIPO DE VEÍCULO | I152: Passag. | J152: IPK
B153: Operacional | C153: km Mensal | D153: Miniônibus | E153: Básico | F153: Padron | G153: Articulado | H153: Articulado | I153: Total | J153: c/ km | AH153: Quadro 26 | AK153: ORDENS DE SERVIÇOS - Operação Branca - ANO 1
B154: Mensal | C154: Oper. + Ociosa | E154: Conv. | G154: Conv. | H154: BRT | I154: Mês | J154: Ociosa | L154: Custos com Combustível | R154: Custos com Lubrificantes | AH154: Mês | AI154: Articulado BRT | AK154: Básico | AM154: Miniônibus | AO154: Padron BRT | AQ154: Total c/ km Ociosa | AT154: Total
A155: Edital Contratado | B155: =C155/1.05 -> 3017622.543 | C155: =SUM(D155:H155) -> 3168503.67 | D155: 287633.58 | E155: 2369076.92 | F155: 0 | G155: 511793.17 | H155: 0 | I155: =B5 -> 6032365 | J155: =I155/C155 -> 1.903852931 | L155: Miniônibus | M155: Básico | N155: Padron | O155: Articulado | P155: Articulado BRT | R155: Miniônibus | S155: Básico | T155: Padron | U155: Articulado | V155: Articulado BRT | AI155: Qtde. | AJ155: Km c/ Ociosa | AK155: Qtde. | AL155: Km c/ Ociosa | AM155: Qtde. | AN155: Km c/ Ociosa | AO155: Qtde. | AP155: Km c/ Ociosa | AQ155: Q.Veíc. | AR155: Km c/ Ociosa | AS155: PMM | AT155: Operacional
A156: 2013-07-01 | B156: =C156/1.05 -> 549374.5571 | C156: =SUM(D156:H156) -> 576843.285 | D156: 0 | E156: =31298.715+544785.84 -> 576084.555 | F156: 0 | G156: 758.73 | H156: 0 | I156: =F7 -> 46272 | J156: =I156/C156 -> 0.08021589434 | L156: =(D156*'Custos Variáveis ate dez-20'!$E$10) -> 0 | M156: =(E156*'Custos Variáveis ate dez-20'!$E$11) -> 340597.3597 | N156: =(F156*'Custos Variáveis ate dez-20'!$E$12) -> 0 | O156: =(G156*'Custos Variáveis ate dez-20'!$E$13) -> 747.6374561 | P156: =(H156*'Custos Variáveis ate dez-20'!$E$14) -> 0 | R156: =($D156*'Custos Variáveis ate dez-20'!$G$10) -> 0 | S156: =($E156*'Custos Variáveis ate dez-20'!$G$11) -> 10217.92079 | T156: =($F156*'Custos Variáveis ate dez-20'!$G$12) -> 0 | U156: =($G156*'Custos Variáveis ate dez-20'!$G$13) -> 22.42912368 | V156: =($H156*'Custos Variáveis ate dez-20'!$G$14) -> 0 | AH156: 2013-07-01 | AI156: 0 | AJ156: 0 | AK156: 0 | AL156: 0 | AM156: 0 | AN156: 0 | AO156: 0 | AP156: 0 | AQ156: =AI156+AK156+AM156+AO156 -> 0 | AR156: =AJ156+AL156+AN156+AP156 -> 0 | AS156: =AR156/AQ156 ->  | AT156: =AR156/1.05 -> 0
A157: =DATE(YEAR(A156),MONTH(A156)+1,DAY(A156)) -> 2013-08-01 | B157: 1183401.37 | C157: 1242571.439 | D157: 0 | E157: 1229376.824 | F157: 0 | G157: 13194.615 | H157: 0 | I157: 770334 | J157: 0.6199514781 | L157: =(D157*'Custos Variáveis ate dez-20'!$E$10) -> 0 | M157: =(E157*'Custos Variáveis ate dez-20'!$E$11) -> 726842.0869 | N157: =(F157*'Custos Variáveis ate dez-20'!$E$12) -> 0 | O157: =(G157*'Custos Variáveis ate dez-20'!$E$13) -> 13001.71127 | P157: =(H157*'Custos Variáveis ate dez-20'!$E$14) -> 0 | R157: =($D157*'Custos Variáveis ate dez-20'!$G$10) -> 0 | S157: =($E157*'Custos Variáveis ate dez-20'!$G$11) -> 21805.26261 | T157: =($F157*'Custos Variáveis ate dez-20'!$G$12) -> 0 | U157: =($G157*'Custos Variáveis ate dez-20'!$G$13) -> 390.0513382 | V157: =($H157*'Custos Variáveis ate dez-20'!$G$14) -> 0 | AH157: 2013-08-01 | AI157: 0 | AJ157: 0 | AK157: 0 | AL157: 0 | AM157: 0 | AN157: 0 | AO157: 0 | AP157: 0 | AQ157: 0 | AR157: 0 | AT157: 0
A158: 2013-09-01 | B158: 1720417.15 | C158: 1806438.008 | D158: 0 | E158: 1786207.133 | F158: 0 | G158: 20230.875 | H158: 0 | I158: 1726533 | J158: 0.9557665377 | L158: =(D158*'Custos Variáveis ate dez-20'!$E$10) -> 0 | M158: =(E158*'Custos Variáveis ate dez-20'!$E$11) -> 1056055.796 | N158: =(F158*'Custos Variáveis ate dez-20'!$E$12) -> 0 | O158: =(G158*'Custos Variáveis ate dez-20'!$E$13) -> 19935.10197 | P158: =(H158*'Custos Variáveis ate dez-20'!$E$14) -> 0 | R158: =($D158*'Custos Variáveis ate dez-20'!$G$10) -> 0 | S158: =($E158*'Custos Variáveis ate dez-20'!$G$11) -> 31681.67388 | T158: =($F158*'Custos Variáveis ate dez-20'!$G$12) -> 0 | U158: =($G158*'Custos Variáveis ate dez-20'!$G$13) -> 598.0530592 | V158: =($H158*'Custos Variáveis ate dez-20'!$G$14) -> 0 | AH158: 2013-09-01 | AI158: 0 | AJ158: 0 | AK158: 0 | AL158: 0 | AM158: 0 | AN158: 0 | AO158: 0 | AP158: 0 | AQ158: 0 | AR158: 0 | AT158: 0
A159: 2013-10-01 | B159: 1980394.05 | C159: 2079413.752 | D159: 0 | E159: 2061678.202 | F159: 0 | G159: 17735.55 | H159: 0 | I159: 2420509 | J159: 1.164034333 | L159: =(D159*'Custos Variáveis ate dez-20'!$E$10) -> 0 | M159: =(E159*'Custos Variáveis ate dez-20'!$E$11) -> 1218922.025 | N159: =(F159*'Custos Variáveis ate dez-20'!$E$12) -> 0 | O159: =(G159*'Custos Variáveis ate dez-20'!$E$13) -> 17476.25833 | P159: =(H159*'Custos Variáveis ate dez-20'!$E$14) -> 0 | R159: =($D159*'Custos Variáveis ate dez-20'!$G$10) -> 0 | S159: =($E159*'Custos Variáveis ate dez-20'!$G$11) -> 36567.66075 | T159: =($F159*'Custos Variáveis ate dez-20'!$G$12) -> 0 | U159: =($G159*'Custos Variáveis ate dez-20'!$G$13) -> 524.28775 | V159: =($H159*'Custos Variáveis ate dez-20'!$G$14) -> 0 | AH159: 2013-10-01 | AI159: 0 | AJ159: 0 | AK159: 0 | AL159: 0 | AM159: 0 | AN159: 0 | AO159: 0 | AP159: 0 | AQ159: 0 | AR159: 0 | AT159: 0
A160: 2013-11-01 | B160: 2500887.68 | C160: 2625932.064 | D160: 0 | E160: 2601185.979 | F160: 0 | G160: 24746.085 | H160: 0 | I160: 2613685 | J160: 0.9953361078 | L160: =(D160*'Custos Variáveis ate dez-20'!$E$10) -> 0 | M160: =(E160*'Custos Variáveis ate dez-20'!$E$11) -> 1537894.167 | N160: =(F160*'Custos Variáveis ate dez-20'!$E$12) -> 0 | O160: =(G160*'Custos Variáveis ate dez-20'!$E$13) -> 24384.30013 | P160: =(H160*'Custos Variáveis ate dez-20'!$E$14) -> 0 | R160: =($D160*'Custos Variáveis ate dez-20'!$G$10) -> 0 | S160: =($E160*'Custos Variáveis ate dez-20'!$G$11) -> 46136.825 | T160: =($F160*'Custos Variáveis ate dez-20'!$G$12) -> 0 | U160: =($G160*'Custos Variáveis ate dez-20'!$G$13) -> 731.5290039 | V160: =($H160*'Custos Variáveis ate dez-20'!$G$14) -> 0 | AH160: 2013-11-01 | AI160: 0 | AJ160: 0 | AK160: 0 | AL160: 0 | AM160: 0 | AN160: 0 | AO160: 0 | AP160: 0 | AQ160: 0 | AR160: 0 | AT160: 0
A161: 2013-12-01 | B161: 3010156.02 | C161: 3160663.821 | D161: 0 | E161: 2945229.021 | F161: 0 | G161: 215434.8 | H161: 0 | I161: 3055778 | J161: 0.9668152556 | L161: =(D161*'Custos Variáveis ate dez-20'!$E$10) -> 0 | M161: =(E161*'Custos Variáveis ate dez-20'!$E$11) -> 1741302.07 | N161: =(F161*'Custos Variáveis ate dez-20'!$E$12) -> 0 | O161: =(G161*'Custos Variáveis ate dez-20'!$E$13) -> 212285.1684 | P161: =(H161*'Custos Variáveis ate dez-20'!$E$14) -> 0 | R161: =($D161*'Custos Variáveis ate dez-20'!$G$10) -> 0 | S161: =($E161*'Custos Variáveis ate dez-20'!$G$11) -> 52239.06211 | T161: =($F161*'Custos Variáveis ate dez-20'!$G$12) -> 0 | U161: =($G161*'Custos Variáveis ate dez-20'!$G$13) -> 6368.555053 | V161: =($H161*'Custos Variáveis ate dez-20'!$G$14) -> 0 | AH161: 2013-12-01 | AI161: 0 | AJ161: 0 | AK161: 0 | AL161: 0 | AM161: 0 | AN161: 0 | AO161: 0 | AP161: 0 | AQ161: 0 | AR161: 0 | AT161: 0
A162: 2014-01-01 | B162: 2773729.09 | C162: 2912415.545 | D162: 18908.4 | E162: 2700056.825 | F162: 0 | G162: 193450.32 | H162: 0 | I162: 3483413 | J162: 1.196056314 | L162: =(D162*'Custos Variáveis ate dez-20'!$E$10) -> 7080.145333 | M162: =(E162*'Custos Variáveis ate dez-20'!$E$11) -> 1596349.386 | N162: =(F162*'Custos Variáveis ate dez-20'!$E$12) -> 0 | O162: =(G162*'Custos Variáveis ate dez-20'!$E$13) -> 190622.0989 | P162: =(H162*'Custos Variáveis ate dez-20'!$E$14) -> 0 | R162: =($D162*'Custos Variáveis ate dez-20'!$G$10) -> 212.40436 | S162: =($E162*'Custos Variáveis ate dez-20'!$G$11) -> 47890.48157 | T162: =($F162*'Custos Variáveis ate dez-20'!$G$12) -> 0 | U162: =($G162*'Custos Variáveis ate dez-20'!$G$13) -> 5718.662968 | V162: =($H162*'Custos Variáveis ate dez-20'!$G$14) -> 0 | AH162: 2014-01-01 | AI162: 0 | AJ162: 0 | AK162: 0 | AL162: 0 | AM162: 0 | AN162: 0 | AO162: 0 | AP162: 0 | AQ162: 0 | AR162: 0 | AT162: 0
A163: 2014-02-01 | B163: 3035615.26 | C163: 3187396.023 | D163: 98555.625 | E163: 2891052.181 | F163: 0 | G163: 196348.152 | H163: 1440.0645 | I163: 3535634 | J163: 1.109254694 | L163: =(D163*'Custos Variáveis ate dez-20'!$E$10) -> 36903.60625 | M163: =(E163*'Custos Variáveis ate dez-20'!$E$11) -> 1709271.202 | N163: =(F163*'Custos Variáveis ate dez-20'!$E$12) -> 0 | O163: =(G163*'Custos Variáveis ate dez-20'!$E$13) -> 193477.565 | P163: =(H163*'Custos Variáveis ate dez-20'!$E$14) -> 1419.010925 | R163: =($D163*'Custos Variáveis ate dez-20'!$G$10) -> 1107.108187 | S163: =($E163*'Custos Variáveis ate dez-20'!$G$11) -> 51278.13606 | T163: =($F163*'Custos Variáveis ate dez-20'!$G$12) -> 0 | U163: =($G163*'Custos Variáveis ate dez-20'!$G$13) -> 5804.326949 | V163: =($H163*'Custos Variáveis ate dez-20'!$G$14) -> 42.57032776 | AH163: 2014-02-01 | AI163: 0 | AJ163: 0 | AK163: 0 | AL163: 0 | AM163: 0 | AN163: 0 | AO163: 0 | AP163: 0 | AQ163: 0 | AR163: 0 | AS163: =AR163/AQ163 ->  | AT163: 0
A164: 2014-03-01 | B164: 3026081.78 | C164: 3177385.869 | D164: 152244.75 | E164: 2830758.168 | F164: 0 | G164: 162200.64 | H164: 32182.311 | I164: 3931129 | J164: 1.23722115 | L164: =(D164*'Custos Variáveis ate dez-20'!$E$10) -> 57007.20083 | M164: =(E164*'Custos Variáveis ate dez-20'!$E$11) -> 1673623.689 | N164: =(F164*'Custos Variáveis ate dez-20'!$E$12) -> 0 | O164: =(G164*'Custos Variáveis ate dez-20'!$E$13) -> 159829.2856 | P164: =(H164*'Custos Variáveis ate dez-20'!$E$14) -> 31711.80938 | R164: =($D164*'Custos Variáveis ate dez-20'!$G$10) -> 1710.216025 | S164: =($E164*'Custos Variáveis ate dez-20'!$G$11) -> 50208.71066 | T164: =($F164*'Custos Variáveis ate dez-20'!$G$12) -> 0 | U164: =($G164*'Custos Variáveis ate dez-20'!$G$13) -> 4794.878568 | V164: =($H164*'Custos Variáveis ate dez-20'!$G$14) -> 951.3542813 | AH164: 2014-03-01 | AI164: 7.258064516 | AJ164: 27736.8945 | AK164: 0 | AL164: 0 | AM164: 0 | AN164: 0 | AO164: 0 | AP164: 0 | AQ164: 7.258064516 | AR164: 27736.8945 | AS164: =AR164/AQ164 -> 3821.527687 | AT164: 26416.09
A165: 2014-04-01 | B165: 3223515.01 | C165: 3384690.76 | D165: 184272.06 | E165: 2992548.205 | F165: 0 | G165: 166252.842 | H165: 41617.653 | I165: 4116087 | J165: 1.216089531 | L165: =(D165*'Custos Variáveis ate dez-20'!$E$10) -> 68999.64913 | M165: =(E165*'Custos Variáveis ate dez-20'!$E$11) -> 1769278.5 | N165: =(F165*'Custos Variáveis ate dez-20'!$E$12) -> 0 | O165: =(G165*'Custos Variáveis ate dez-20'!$E$13) -> 163822.2449 | P165: =(H165*'Custos Variáveis ate dez-20'!$E$14) -> 41009.20778 | R165: =($D165*'Custos Variáveis ate dez-20'!$G$10) -> 2069.989474 | S165: =($E165*'Custos Variáveis ate dez-20'!$G$11) -> 53078.35501 | T165: =($F165*'Custos Variáveis ate dez-20'!$G$12) -> 0 | U165: =($G165*'Custos Variáveis ate dez-20'!$G$13) -> 4914.667347 | V165: =($H165*'Custos Variáveis ate dez-20'!$G$14) -> 1230.276233 | AH165: 2014-04-01 | AI165: 9 | AJ165: 34561.548 | AK165: 0 | AL165: 11189.157 | AM165: 0 | AN165: 0 | AO165: 0 | AP165: 0 | AQ165: 9 | AR165: 45750.705 | AS165: =AR165/AQ165 -> 5083.411667 | AT165: 43572.1
A166: 2014-05-01 | B166: 3133687.21 | C166: 3290371.571 | D166: 213793.713 | E166: 2854620.405 | F166: 0 | G166: 167670.51 | H166: 54286.9425 | I166: 4336305 | J166: 1.317876996 | L166: =(D166*'Custos Variáveis ate dez-20'!$E$10) -> 80053.86809 | M166: =(E166*'Custos Variáveis ate dez-20'!$E$11) -> 1687731.713 | N166: =(F166*'Custos Variáveis ate dez-20'!$E$12) -> 0 | O166: =(G166*'Custos Variáveis ate dez-20'!$E$13) -> 165219.1868 | P166: =(H166*'Custos Variáveis ate dez-20'!$E$14) -> 53493.27375 | R166: =($D166*'Custos Variáveis ate dez-20'!$G$10) -> 2401.616043 | S166: =($E166*'Custos Variáveis ate dez-20'!$G$11) -> 50631.95139 | T166: =($F166*'Custos Variáveis ate dez-20'!$G$12) -> 0 | U166: =($G166*'Custos Variáveis ate dez-20'!$G$13) -> 4956.575603 | V166: =($H166*'Custos Variáveis ate dez-20'!$G$14) -> 1604.798213 | AH166: 2014-05-01 | AI166: 11.58064516 | AJ166: 44540.685 | AK166: 0 | AL166: 15311.478 | AM166: 0 | AN166: 0 | AO166: 0 | AP166: 0 | AQ166: 11.58064516 | AR166: 59852.163 | AS166: =AR166/AQ166 -> 5168.292627 | AT166: 57002.06
A167: 2014-06-01 | B167: 4064024.28 | C167: 4267225.494 | D167: 354187.029 | E167: 3113454.351 | F167: 12350.4465 | G167: 182908.236 | H167: 604325.4315 | I167: 3641351 | J167: =I167/C167 -> 0.8533298756 | L167: =(D167*'Custos Variáveis ate dez-20'!$E$10) -> 132623.3653 | M167: =(E167*'Custos Variáveis ate dez-20'!$E$11) -> 1840761.608 | N167: =(F167*'Custos Variáveis ate dez-20'!$E$12) -> 11561.3902 | O167: =(G167*'Custos Variáveis ate dez-20'!$E$13) -> 180234.139 | P167: =(H167*'Custos Variáveis ate dez-20'!$E$14) -> 595490.2644 | R167: =($D167*'Custos Variáveis ate dez-20'!$G$10) -> 3978.700959 | S167: =($E167*'Custos Variáveis ate dez-20'!$G$11) -> 55222.84823 | T167: =($F167*'Custos Variáveis ate dez-20'!$G$12) -> 346.8417059 | U167: =($G167*'Custos Variáveis ate dez-20'!$G$13) -> 5407.024169 | V167: =($H167*'Custos Variáveis ate dez-20'!$G$14) -> 17864.70793 | AH167: 2014-06-01 | AI167: 12.2 | AJ167: 47171.418 | AK167: 2.433333333 | AL167: 30739.3695 | AM167: 0.3666666667 | AN167: 3812.655 | AO167: 0.5666666667 | AP167: 7491.183 | AQ167: 15.56666667 | AR167: 89214.6255 | AS167: =AR167/AQ167 -> 5731.132259 | AT167: 84966.31
A168: Totais Anual | B168: =C168/1.05 -> 30201283.46 | C168: =SUM(D168:H168) -> 31711347.63 | D168: =SUM(D156:D167) -> 1021961.577 | E168: 28582251.85 | F168: 12350.4465 | G168: 1360931.355 | H168: 733852.4025 | I168: =SUM(I156:I167) -> 33677030 | J168: =I168/C168 -> 1.061986718 | L168: =SUM(L156:L167) -> 382667.8349 | M168: =SUM(M156:M167) -> 16898629.6 | N168: 11561.3902 | O168: 1341034.698 | P168: 723123.5662 | R168: =SUM(R156:R167) -> 11480.03505 | S168: =SUM(S156:S167) -> 506958.8881 | T168: =SUM(T156:T167) -> 346.8417059 | U168: =SUM(U156:U167) -> 40231.04093 | V168: =SUM(V156:V167) -> 21693.70699 | AH168: Totais. | AI168: =SUM(AJ156:AJ167) -> 154010.5455 | AK168: =SUM(AL156:AL167) -> 57240.0045 | AM168: =SUM(AN156:AN167) -> 3812.655 | AO168: =SUM(AP156:AP167) -> 7491.183 | AQ168: =SUM(AR156:AR167) -> 222554.388 | AS168: =AQ168/SUM(AQ156:AQ167) -> 5127.34612 | AT168: =SUM(AT156:AT167) -> 211956.56
A169: Somatorio de jul e ago,
J170: =J150 -> Bacia 2
A171: FONTE | C171: Km Rodada (OS) e Passageiros Pagantes Transportados - ANO 2
B172: KM RODADA | D172: KM OPERACIONAL RODADA POR TIPO DE VEÍCULO | I172: Passag. | J172: IPK
B173: Operacional | C173: km Mensal | D173: Miniônibus | E173: Básico | F173: Padron | G173: Articulado | H173: Articulado | I173: Total | J173: c/ km | AH173: Quadro 27 | AK173: ORDENS DE SERVIÇOS - Operação Branca - ANO 2
B174: Mensal | C174: Oper. + Ociosa | E174: Conv. | G174: Conv. | H174: BRT | I174: Mês | J174: Ociosa | L174: Custos com Combustível | R174: Custos com Lubrificantes | AH174: Mês | AI174: Articulado BRT | AK174: Básico | AM174: Miniônibus | AO174: Padron BRT | AQ174: Total c/ km Ociosa | AT174: Total
A175: Edital Contratado | B175: =C175/1.05 -> 3017622.543 | C175: =SUM(D175:H175) -> 3168503.67 | D175: =D155 -> 287633.58 | E175: 2369076.92 | F175: 0 | G175: 511793.17 | H175: 0 | I175: 6032365 | J175: =I175/C175 -> 1.903852931 | L175: Miniônibus | M175: Básico | N175: Padron | O175: Articulado | P175: Articulado BRT | R175: Miniônibus | S175: Básico | T175: Padron | U175: Articulado | V175: Articulado BRT | AI175: Qtde. | AJ175: Km c/ Ociosa | AK175: Qtde. | AL175: Km c/ Ociosa | AM175: Qtde. | AN175: Km c/ Ociosa | AO175: Qtde. | AP175: Km c/ Ociosa | AQ175: Q.Veíc. | AR175: Km c/ Ociosa | AS175: PMM | AT175: Operacional
A176: =DATE(YEAR(A167),MONTH(A167)+1,DAY(A167)) -> 2014-07-01 | B176: =C176/1.05 -> 4037134.24 | C176: =SUM(D176:H176) -> 4238990.952 | D176: 339660.279 | E176: 2996663.712 | F176: 387608.5605 | G176: 171294.4695 | H176: 343763.931 | I176: =F19 -> 3332531 | J176: 0.7861613855 | L176: =(D176*'Custos Variáveis ate dez-20'!$E$10) -> 127183.9045 | M176: =(E176*'Custos Variáveis ate dez-20'!$E$11) -> 1771711.703 | N176: =(F176*'Custos Variáveis ate dez-20'!$E$12) -> 362844.6802 | O176: =(G176*'Custos Variáveis ate dez-20'!$E$13) -> 168790.1644 | P176: =(H176*'Custos Variáveis ate dez-20'!$E$14) -> 338738.1425 | R176: =($D176*'Custos Variáveis ate dez-20'!$G$10) -> 3815.517134 | S176: =($E176*'Custos Variáveis ate dez-20'!$G$11) -> 53151.3511 | T176: =($F176*'Custos Variáveis ate dez-20'!$G$12) -> 10885.34041 | U176: =($G176*'Custos Variáveis ate dez-20'!$G$13) -> 5063.704932 | V176: =($H176*'Custos Variáveis ate dez-20'!$G$14) -> 10162.14428 | AH176: 2014-07-01 | AI176: 32.74193548 | AJ176: 447121.3215 | AK176: 79.96774194 | AL176: 539574.777 | AM176: 11 | AN176: 111025.74 | AO176: 21.61290323 | AP176: 279716.682 | AQ176: =AI176+AK176+AM176+AO176 -> 145.3225806 | AR176: =AJ176+AL176+AN176+AP176 -> 1377438.521 | AS176: =AR176/AQ176 -> 9478.489264 | AT176: =AR176/1.05 -> 1311846.21
A177: =DATE(YEAR(A176),MONTH(A176)+1,DAY(A176)) -> 2014-08-01 | B177: 4091639.36 | C177: =SUM(D177:H177) -> 4296221.328 | D177: 336918.351 | E177: 3017462.679 | F177: 389203.206 | G177: 179501.679 | H177: 373135.413 | I177: 3896024 | J177: 0.9068489965 | L177: =(D177*'Custos Variáveis ate dez-20'!$E$10) -> 126157.2048 | M177: =(E177*'Custos Variáveis ate dez-20'!$E$11) -> 1784008.637 | N177: =(F177*'Custos Variáveis ate dez-20'!$E$12) -> 364337.4456 | O177: =(G177*'Custos Variáveis ate dez-20'!$E$13) -> 176877.3854 | P177: =(H177*'Custos Variáveis ate dez-20'!$E$14) -> 367680.2169 | R177: =($D177*'Custos Variáveis ate dez-20'!$G$10) -> 3784.716143 | S177: =($E177*'Custos Variáveis ate dez-20'!$G$11) -> 53520.2591 | T177: =($F177*'Custos Variáveis ate dez-20'!$G$12) -> 10930.12337 | U177: =($G177*'Custos Variáveis ate dez-20'!$G$13) -> 5306.321563 | V177: =($H177*'Custos Variáveis ate dez-20'!$G$14) -> 11030.40651 | AH177: 2014-08-01 | AI177: 38.32258065 | AJ177: 390538.47 | AK177: 81 | AL177: 538082.8215 | AM177: 11 | AN177: 109112.997 | AO177: 24.87096774 | AP177: 355951.491 | AQ177: 155.1935484 | AR177: 1393685.78 | AS177: 8980.307455 | AT177: 1327319.79
A178: 2014-09-01 | B178: 4160762.71 | C178: 4368800.846 | D178: 343320.4005 | E178: 3063448.29 | F178: 403103.463 | G178: 185793.279 | H178: 373135.413 | I178: 3810182 | J178: 0.8721345135 | L178: =(D178*'Custos Variáveis ate dez-20'!$E$10) -> 128554.4166 | M178: =(E178*'Custos Variáveis ate dez-20'!$E$11) -> 1811196.621 | N178: =(F178*'Custos Variáveis ate dez-20'!$E$12) -> 377349.6306 | O178: =(G178*'Custos Variáveis ate dez-20'!$E$13) -> 183077.003 | P178: =(H178*'Custos Variáveis ate dez-20'!$E$14) -> 367680.2169 | R178: =($D178*'Custos Variáveis ate dez-20'!$G$10) -> 3856.632499 | S178: =($E178*'Custos Variáveis ate dez-20'!$G$11) -> 54335.89862 | T178: =($F178*'Custos Variáveis ate dez-20'!$G$12) -> 11320.48892 | U178: =($G178*'Custos Variáveis ate dez-20'!$G$13) -> 5492.31009 | V178: =($H178*'Custos Variáveis ate dez-20'!$G$14) -> 11030.40651 | AH178: 2014-09-01 | AI178: 47 | AJ178: 482371.428 | AK178: 83 | AL178: 543319.098 | AM178: 11 | AN178: 107345.196 | AO178: 25 | AP178: 303700.929 | AQ178: 166 | AR178: 1436736.651 | AS178: 8655.040066 | AT178: 1368320.62
A179: 2014-10-01 | B179: 3957721 | C179: 4155607.05 | D179: 337876.035 | E179: 2827658.82 | F179: 459876.1125 | G179: 175611.03 | H179: 354585.0525 | I179: 4126601 | J179: 0.993020021 | L179: =(D179*'Custos Variáveis ate dez-20'!$E$10) -> 126515.8042 | M179: =(E179*'Custos Variáveis ate dez-20'!$E$11) -> 1671791.267 | N179: =(F179*'Custos Variáveis ate dez-20'!$E$12) -> 430495.1386 | O179: =(G179*'Custos Variáveis ate dez-20'!$E$13) -> 173043.6173 | P179: =(H179*'Custos Variáveis ate dez-20'!$E$14) -> 349401.0605 | R179: =($D179*'Custos Variáveis ate dez-20'!$G$10) -> 3795.474126 | S179: =($E179*'Custos Variáveis ate dez-20'!$G$11) -> 50153.73802 | T179: =($F179*'Custos Variáveis ate dez-20'!$G$12) -> 12914.85416 | U179: =($G179*'Custos Variáveis ate dez-20'!$G$13) -> 5191.308518 | V179: =($H179*'Custos Variáveis ate dez-20'!$G$14) -> 10482.03182 | AH179: 2014-10-01 | AI179: 47 | AJ179: 500908.317 | AK179: 83 | AL179: 563200.386 | AM179: 11 | AN179: 111201.888 | AO179: 25 | AP179: 313875.7335 | AQ179: 166 | AR179: 1489186.325 | AS179: 8971.001955 | AT179: 1418272.69
A180: 2014-11-01 | B180: 4126008.42 | C180: 4332308.841 | D180: 314392.6905 | E180: 3041778.505 | F180: 423811.143 | G180: 179191.089 | H180: 373135.413 | I180: 3099168 | J180: 0.7153617421 | L180: =(D180*'Custos Variáveis ate dez-20'!$E$10) -> 117722.5963 | M180: =(E180*'Custos Variáveis ate dez-20'!$E$11) -> 1798384.836 | N180: =(F180*'Custos Variáveis ate dez-20'!$E$12) -> 396734.32 | O180: =(G180*'Custos Variáveis ate dez-20'!$E$13) -> 176571.3362 | P180: =(H180*'Custos Variáveis ate dez-20'!$E$14) -> 367680.2169 | R180: =($D180*'Custos Variáveis ate dez-20'!$G$10) -> 3531.67789 | S180: =($E180*'Custos Variáveis ate dez-20'!$G$11) -> 53951.54507 | T180: =($F180*'Custos Variáveis ate dez-20'!$G$12) -> 11902.0296 | U180: =($G180*'Custos Variáveis ate dez-20'!$G$13) -> 5297.140087 | V180: =($H180*'Custos Variáveis ate dez-20'!$G$14) -> 11030.40651 | AH180: 2014-11-01 | AI180: 47 | AJ180: 452384.226 | AK180: 0 | AL180: 0 | AM180: 0 | AN180: 0 | AO180: 27 | AP180: 317868.873 | AQ180: 74 | AR180: 770253.099 | AS180: 10408.82566 | AT180: 733574.38
A181: 2014-12-01 | B181: =C181/1.05 -> 4022296.59 | C181: =SUM(D181:H181) -> 4223411.419 | D181: 296683.5375 | E181: 3041939.439 | F181: 402121.6395 | G181: 113170.5225 | H181: 369496.281 | I181: 4311153 | J181: 1.020775049 | L181: =(D181*'Custos Variáveis ate dez-20'!$E$10) -> 111091.5024 | M181: =(E181*'Custos Variáveis ate dez-20'!$E$11) -> 1798479.984 | N181: =(F181*'Custos Variáveis ate dez-20'!$E$12) -> 376430.5348 | O181: =(G181*'Custos Variáveis ate dez-20'!$E$13) -> 111515.9827 | P181: =(H181*'Custos Variáveis ate dez-20'!$E$14) -> 364094.2886 | R181: =($D181*'Custos Variáveis ate dez-20'!$G$10) -> 3332.745071 | S181: =($E181*'Custos Variáveis ate dez-20'!$G$11) -> 53954.39952 | T181: =($F181*'Custos Variáveis ate dez-20'!$G$12) -> 11292.91604 | U181: =($G181*'Custos Variáveis ate dez-20'!$G$13) -> 3345.479481 | V181: =($H181*'Custos Variáveis ate dez-20'!$G$14) -> 10922.82866 | AH181: 2014-12-01 | AI181: 47 | AJ181: 485914.716 | AK181: 0 | AL181: 0 | AM181: 0 | AN181: 0 | AO181: 29 | AP181: 336600.873 | AQ181: 76 | AR181: 822515.589 | AS181: 10822.57354 | AT181: 783348.18
A182: 2015-01-01 | B182: 3584068 | C182: 3763271.4 | D182: 261693.18 | E182: 2685600.183 | F182: 364813.302 | G182: 137674.236 | H182: 313490.499 | I182: 4381084 | J182: 1.164169026 | L182: =(D182*'Custos Variáveis ate dez-20'!$E$10) -> 97989.5574 | M182: =(E182*'Custos Variáveis ate dez-20'!$E$11) -> 1587802.213 | N182: =(F182*'Custos Variáveis ate dez-20'!$E$12) -> 341505.7855 | O182: =(G182*'Custos Variáveis ate dez-20'!$E$13) -> 135661.4548 | P182: =(H182*'Custos Variáveis ate dez-20'!$E$14) -> 308907.3046 | R182: =($D182*'Custos Variáveis ate dez-20'!$G$10) -> 2939.686722 | S182: =($E182*'Custos Variáveis ate dez-20'!$G$11) -> 47634.0664 | T182: =($F182*'Custos Variáveis ate dez-20'!$G$12) -> 10245.17356 | U182: =($G182*'Custos Variáveis ate dez-20'!$G$13) -> 4069.843643 | V182: =($H182*'Custos Variáveis ate dez-20'!$G$14) -> 9267.219137 | AH182: 2015-01-01 | AI182: 47 | AJ182: 482474.5065 | AK182: 0 | AL182: 0 | AM182: 0 | AN182: 0 | AO182: 29 | AP182: 336032.907 | AQ182: 76 | AR182: 818507.4135 | AS182: 10769.83439 | AT182: 779530.87
A183: 2015-02-01 | B183: 4151663.48 | C183: 4359246.654 | D183: 303736.8705 | E183: 3106392.629 | F183: 401964.633 | G183: 174017.109 | H183: 373135.413 | I183: 4414958 | J183: 1.01278004 | L183: =(D183*'Custos Variáveis ate dez-20'!$E$10) -> 113732.5837 | M183: =(E183*'Custos Variáveis ate dez-20'!$E$11) -> 1836586.519 | N183: =(F183*'Custos Variáveis ate dez-20'!$E$12) -> 376283.5592 | O183: =(G183*'Custos Variáveis ate dez-20'!$E$13) -> 171472.9992 | P183: =(H183*'Custos Variáveis ate dez-20'!$E$14) -> 367680.2169 | R183: =($D183*'Custos Variáveis ate dez-20'!$G$10) -> 3411.977512 | S183: =($E183*'Custos Variáveis ate dez-20'!$G$11) -> 55097.59557 | T183: =($F183*'Custos Variáveis ate dez-20'!$G$12) -> 11288.50678 | U183: =($G183*'Custos Variáveis ate dez-20'!$G$13) -> 5144.189977 | V183: =($H183*'Custos Variáveis ate dez-20'!$G$14) -> 11030.40651 | AH183: 2015-02-01 | AI183: 47 | AJ183: 426863.8395 | AK183: 0 | AL183: 0 | AM183: 0 | AN183: 0 | AO183: 29 | AP183: 305508.4935 | AQ183: 76 | AR183: 732372.333 | AS183: 9636.478066 | AT183: 697497.46
A184: 2015-03-01 | B184: 3916970.33 | C184: 4112818.846 | D184: 305126.64 | E184: 2865551.734 | F184: 433915.02 | G184: 152050.185 | H184: 356175.267 | I184: 5014915 | J184: 1.219337682 | L184: =(D184*'Custos Variáveis ate dez-20'!$E$10) -> 114252.9752 | M184: =(E184*'Custos Variáveis ate dez-20'!$E$11) -> 1694194.622 | N184: =(F184*'Custos Variáveis ate dez-20'!$E$12) -> 406192.6715 | O184: =(G184*'Custos Variáveis ate dez-20'!$E$13) -> 149827.2291 | P184: =(H184*'Custos Variáveis ate dez-20'!$E$14) -> 350968.0263 | R184: =($D184*'Custos Variáveis ate dez-20'!$G$10) -> 3427.589256 | S184: =($E184*'Custos Variáveis ate dez-20'!$G$11) -> 50825.83866 | T184: =($F184*'Custos Variáveis ate dez-20'!$G$12) -> 12185.78015 | U184: =($G184*'Custos Variáveis ate dez-20'!$G$13) -> 4494.816872 | V184: =($H184*'Custos Variáveis ate dez-20'!$G$14) -> 10529.04079 | AH184: 2015-03-01 | AI184: 47 | AJ184: 485914.716 | AK184: 0 | AL184: 0 | AM184: 0 | AN184: 0 | AO184: 29 | AP184: 336600.873 | AQ184: 76 | AR184: 822515.589 | AS184: 10822.57354 | AT184: 783348.18
A185: 2015-04-01 | B185: 4010444.5 | C185: 4210966.725 | D185: 316707.2895 | E185: 2925739.698 | F185: 448504.455 | G185: 152318.88 | H185: 367696.4025 | I185: 5751077 | J185: 1.365737935 | L185: =(D185*'Custos Variáveis ate dez-20'!$E$10) -> 118589.2851 | M185: =(E185*'Custos Variáveis ate dez-20'!$E$11) -> 1729779.435 | N185: =(F185*'Custos Variáveis ate dez-20'!$E$12) -> 419850.0037 | O185: =(G185*'Custos Variáveis ate dez-20'!$E$13) -> 150091.9958 | P185: =(H185*'Custos Variáveis ate dez-20'!$E$14) -> 362320.7241 | R185: =($D185*'Custos Variáveis ate dez-20'!$G$10) -> 3557.678552 | S185: =($E185*'Custos Variáveis ate dez-20'!$G$11) -> 51893.38306 | T185: =($F185*'Custos Variáveis ate dez-20'!$G$12) -> 12595.50011 | U185: =($G185*'Custos Variáveis ate dez-20'!$G$13) -> 4502.759874 | V185: =($H185*'Custos Variáveis ate dez-20'!$G$14) -> 10869.62172 | AH185: 2015-04-01 | AI185: 3.133333333 | AJ185: 37073.778 | AK185: 0 | AL185: 0 | AM185: 0 | AN185: 0 | AO185: 1.933333333 | AP185: 20349.609 | AQ185: 5.066666667 | AR185: 57423.387 | AS185: =AR185/AQ185 -> 11333.56322 | AT185: 54688.94
A186: 2015-05-01 | B186: 4006630.96 | C186: 4206962.508 | D186: 315894.978 | E186: 2937360.458 | F186: 432707.016 | G186: 149145.087 | H186: 371854.9695 | I186: 5986350 | J186: 1.422962527 | L186: =(D186*'Custos Variáveis ate dez-20'!$E$10) -> 118285.1195 | M186: =(E186*'Custos Variáveis ate dez-20'!$E$11) -> 1736649.955 | N186: =(F186*'Custos Variáveis ate dez-20'!$E$12) -> 405061.8455 | O186: =(G186*'Custos Variáveis ate dez-20'!$E$13) -> 146964.6033 | P186: =(H186*'Custos Variáveis ate dez-20'!$E$14) -> 366418.4933 | R186: =($D186*'Custos Variáveis ate dez-20'!$G$10) -> 3548.553586 | S186: =($E186*'Custos Variáveis ate dez-20'!$G$11) -> 52099.49864 | T186: =($F186*'Custos Variáveis ate dez-20'!$G$12) -> 12151.85537 | U186: =($G186*'Custos Variáveis ate dez-20'!$G$13) -> 4408.938098 | V186: =($H186*'Custos Variáveis ate dez-20'!$G$14) -> 10992.5548 | AH186: 2015-05-01 | AI186: 0 | AJ186: 0 | AK186: 0 | AL186: 0 | AM186: 0 | AN186: 0 | AO186: 0 | AP186: 0 | AQ186: 0 | AR186: 0 | AS186: =AR186/AQ186 ->  | AT186: 0
A187: 2015-06-01 | B187: 4252746.02 | C187: 4465383.321 | D187: 335107.2585 | E187: 3129916.818 | F187: 444155.355 | G187: 153269.781 | H187: 402934.1085 | I187: 5340654 | J187: 1.19601244 | L187: =(D187*'Custos Variáveis ate dez-20'!$E$10) -> 125479.0512 | M187: =(E187*'Custos Variáveis ate dez-20'!$E$11) -> 1850494.68 | N187: =(F187*'Custos Variáveis ate dez-20'!$E$12) -> 415778.7629 | O187: =(G187*'Custos Variáveis ate dez-20'!$E$13) -> 151028.9947 | P187: =(H187*'Custos Variáveis ate dez-20'!$E$14) -> 397043.259 | R187: =($D187*'Custos Variáveis ate dez-20'!$G$10) -> 3764.371537 | S187: =($E187*'Custos Variáveis ate dez-20'!$G$11) -> 55514.8404 | T187: =($F187*'Custos Variáveis ate dez-20'!$G$12) -> 12473.36289 | U187: =($G187*'Custos Variáveis ate dez-20'!$G$13) -> 4530.869842 | V187: =($H187*'Custos Variáveis ate dez-20'!$G$14) -> 11911.29777 | AH187: 2015-06-01 | AI187: 0 | AJ187: 0 | AK187: 0 | AL187: 0 | AM187: 0 | AN187: 0 | AO187: 0 | AP187: 0 | AQ187: 0 | AR187: 0 | AS187: =AR187/AQ187 ->  | AT187: 0
A188: Totais Anual | B188: =C188/1.05 -> 48318085.61 | C188: =SUM(D188:H188) -> 50733989.89 | D188: =SUM(D176:D187) -> 3807117.51 | E188: 35639512.97 | F188: 4991783.906 | G188: 1923037.347 | H188: 4372538.163 | I188: =SUM(I176:I187) -> 53464697 | J188: 1.053824017 | L188: =SUM(L176:L187) -> 1425554.001 | M188: =SUM(M176:M187) -> 21071080.47 | N188: =SUM(N176:N187) -> 4672864.378 | O188: =SUM(O176:O187) -> 1894922.766 | P188: =SUM(P176:P187) -> 4308612.166 | R188: =SUM(R176:R187) -> 42766.62003 | S188: =SUM(S176:S187) -> 632132.4142 | T188: =SUM(T176:T187) -> 140185.9313 | U188: =SUM(U176:U187) -> 56847.68298 | V188: =SUM(V176:V187) -> 129258.365 | AH188: 2015-07-01 | AI188: 0 | AJ188: 0 | AK188: 0 | AL188: 0 | AM188: 0 | AN188: 0 | AO188: 0 | AP188: 0 | AQ188: 0 | AR188: 0 | AS188: =AR188/AQ188 ->  | AT188: 0
J190: =J170 -> Bacia 2
A191: FONTE | C191: Km Rodada (OS) e Passageiros Pagantes Transportados - ANO 3 | AH191: Km Mensal Edital
B192: KM RODADA | D192: KM OPERACIONAL RODADA POR TIPO DE VEÍCULO | I192: Passag. | J192: IPK | AH192: Histórico | AI192: Miniônibus | AJ192: Básico | AK192: Padron | AL192: Artic.Conv. | AM192: Artic.BRT | AN192: Total
B193: Operacional | C193: km Mensal | D193: Miniônibus | E193: Básico | F193: Padron | G193: Articulado | H193: Articulado | I193: Total | J193: c/ km | AH193: Licitação | AI193: =3451603/12 -> 287633.5833 | AJ193: =28428923/12 -> 2369076.917 | AK193: 0 | AL193: =6141518/12 -> 511793.1667 | AM193: 0 | AN193: =SUM(AI193:AM193) -> 3168503.667
B194: Mensal | C194: Oper. + Ociosa | E194: Conv. | G194: Conv. | H194: BRT | I194: Mês | J194: Ociosa | L194: Custos com Combustível | R194: Custos com Lubrificantes | AH194: Veíc.Oper. | AI194: 51 | AJ194: 473 | AK194: 0 | AL194: 70 | AM194: 0 | AN194: =SUM(AI194:AM194) -> 594
A195: Edital Contratado | B195: =C195/1.05 -> 3017622.543 | C195: =SUM(D195:H195) -> 3168503.67 | D195: =D175 -> 287633.58 | E195: 2369076.92 | F195: 0 | G195: 511793.17 | H195: 0 | I195: 6032365 | J195: =I195/C195 -> 1.903852931 | L195: Miniônibus | M195: Básico | N195: Padron | O195: Articulado | P195: Articulado BRT | R195: Miniônibus | S195: Básico | T195: Padron | U195: Articulado | V195: Articulado BRT | AH195: Km/Veíc. | AI195: =AI193/AI194 -> 5639.874183 | AJ195: =AJ193/AJ194 -> 5008.619274 | AK195: 0 | AL195: =AL193/AL194 -> 7311.330952 | AM195: 0 | AN195: =AN193/AN194 -> 5334.181257
A196: =DATE(YEAR(A187),MONTH(A187)+1,DAY(A187)) -> 2015-07-01 | B196: =C196/1.05 -> 4261741.42 | C196: =SUM(D196:H196) -> 4474828.491 | D196: 323628.5325 | E196: 3168141.459 | F196: 445842.957 | G196: 153979.5705 | H196: 383235.972 | I196: =F31 -> 6000144 | J196: =I196/C196 -> 1.340865692 | L196: =(D196*'Custos Variáveis ate dez-20'!$E$10) -> 121180.9061 | M196: =(E196*'Custos Variáveis ate dez-20'!$E$11) -> 1873094.161 | N196: =(F196*'Custos Variáveis ate dez-20'!$E$12) -> 417358.5459 | O196: =(G196*'Custos Variáveis ate dez-20'!$E$13) -> 151728.4072 | P196: =(H196*'Custos Variáveis ate dez-20'!$E$14) -> 377633.1069 | R196: =($D196*'Custos Variáveis ate dez-20'!$G$10) -> 3635.427182 | S196: =($E196*'Custos Variáveis ate dez-20'!$G$11) -> 56192.82483 | T196: =($F196*'Custos Variáveis ate dez-20'!$G$12) -> 12520.75638 | U196: =($G196*'Custos Variáveis ate dez-20'!$G$13) -> 4551.852216 | V196: =($H196*'Custos Variáveis ate dez-20'!$G$14) -> 11328.99321 | AH196: Veíc.Oper. | AI196: 51 | AJ196: =473-AK196+1 -> 437 | AK196: 37 | AL196: 12 | AM196: 59 | AN196: =SUM(AI196:AM196) -> 596
A197: =DATE(YEAR(A196),MONTH(A196)+1,DAY(A196)) -> 2015-08-01 | B197: 4307840.55 | C197: 4523232.577 | D197: 303659.013 | E197: 3260690.412 | F197: 432707.016 | G197: 154321.167 | H197: 371854.9695 | I197: 6412582 | J197: 1.417698933 | L197: =(D197*'Custos Variáveis ate dez-20'!$E$10) -> 113703.4304 | M197: =(E197*'Custos Variáveis ate dez-20'!$E$11) -> 1927811.7 | N197: =(F197*'Custos Variáveis ate dez-20'!$E$12) -> 405061.8455 | O197: =(G197*'Custos Variáveis ate dez-20'!$E$13) -> 152065.0096 | P197: =(H197*'Custos Variáveis ate dez-20'!$E$14) -> 366418.4933 | R197: =($D197*'Custos Variáveis ate dez-20'!$G$10) -> 3411.102913 | S197: =($E197*'Custos Variáveis ate dez-20'!$G$11) -> 57834.35099 | T197: =($F197*'Custos Variáveis ate dez-20'!$G$12) -> 12151.85537 | U197: =($G197*'Custos Variáveis ate dez-20'!$G$13) -> 4561.950288 | V197: =($H197*'Custos Variáveis ate dez-20'!$G$14) -> 10992.5548 | AH197: Km/Veíc. | AI197: =AI195*AI196 -> 287633.5833 | AJ197: =AJ195*AJ196 -> 2188766.623 | AK197: =AJ195*AK196 -> 185318.9131 | AL197: =AL195*AL196 -> 87735.97143 | AM197: =AL195*AM196 -> 431368.5262 | AN197: =SUM(AI197:AM197) -> 3180823.617
A198: 2015-09-01 | B198: 4334673.42 | C198: 4551407.091 | D198: 302131.2945 | E198: 3275779.636 | F198: 448504.455 | G198: 157295.3025 | H198: 367696.4025 | I198: 6294815 | J198: 1.383048115 | L198: =(D198*'Custos Variáveis ate dez-20'!$E$10) -> 113131.3847 | M198: =(E198*'Custos Variáveis ate dez-20'!$E$11) -> 1936732.873 | N198: =(F198*'Custos Variáveis ate dez-20'!$E$12) -> 419850.0037 | O198: =(G198*'Custos Variáveis ate dez-20'!$E$13) -> 154995.6636 | P198: =(H198*'Custos Variáveis ate dez-20'!$E$14) -> 362320.7241 | R198: =($D198*'Custos Variáveis ate dez-20'!$G$10) -> 3393.941542 | S198: =($E198*'Custos Variáveis ate dez-20'!$G$11) -> 58101.98618 | T198: =($F198*'Custos Variáveis ate dez-20'!$G$12) -> 12595.50011 | U198: =($G198*'Custos Variáveis ate dez-20'!$G$13) -> 4649.869907 | V198: =($H198*'Custos Variáveis ate dez-20'!$G$14) -> 10869.62172
A199: 2015-10-01 | B199: 4044158.54 | C199: 4246366.467 | D199: 286332.4065 | E199: 3045066.087 | F199: 412471.542 | G199: 153532.407 | H199: 348964.0245 | I199: 6092274 | J199: 1.434702833 | L199: =(D199*'Custos Variáveis ate dez-20'!$E$10) -> 107215.5789 | M199: =(E199*'Custos Variáveis ate dez-20'!$E$11) -> 1800328.546 | N199: =(F199*'Custos Variáveis ate dez-20'!$E$12) -> 386119.1935 | O199: =(G199*'Custos Variáveis ate dez-20'!$E$13) -> 151287.7812 | P199: =(H199*'Custos Variáveis ate dez-20'!$E$14) -> 343862.2113 | R199: =($D199*'Custos Variáveis ate dez-20'!$G$10) -> 3216.467366 | S199: =($E199*'Custos Variáveis ate dez-20'!$G$11) -> 54009.85639 | T199: =($F199*'Custos Variáveis ate dez-20'!$G$12) -> 11583.5758 | U199: =($G199*'Custos Variáveis ate dez-20'!$G$13) -> 4538.633435 | V199: =($H199*'Custos Variáveis ate dez-20'!$G$14) -> 10315.86634
A200: 2015-11-01 | B200: 4078104.42 | C200: 4282009.641 | D200: 311751.7515 | E200: 3019674.767 | F200: 374239.299 | G200: 154645.218 | H200: 421698.606 | I200: 5915264 | J200: 1.381422392 | L200: =(D200*'Custos Variáveis ate dez-20'!$E$10) -> 116733.7114 | M200: =(E200*'Custos Variáveis ate dez-20'!$E$11) -> 1785316.485 | N200: =(F200*'Custos Variáveis ate dez-20'!$E$12) -> 350329.566 | O200: =(G200*'Custos Variáveis ate dez-20'!$E$13) -> 152384.323 | P200: =(H200*'Custos Variáveis ate dez-20'!$E$14) -> 415533.4217 | R200: =($D200*'Custos Variáveis ate dez-20'!$G$10) -> 3502.011342 | S200: =($E200*'Custos Variáveis ate dez-20'!$G$11) -> 53559.49454 | T200: =($F200*'Custos Variáveis ate dez-20'!$G$12) -> 10509.88698 | U200: =($G200*'Custos Variáveis ate dez-20'!$G$13) -> 4571.52969 | V200: =($H200*'Custos Variáveis ate dez-20'!$G$14) -> 12466.00265
A201: 2015-12-01 | B201: 4293670.02 | C201: 4508353.521 | D201: 341680.269 | E201: 3182555.786 | F201: 380021.292 | G201: 156399.663 | H201: 447696.5115 | I201: 5826657 | J201: 1.29241351 | L201: =(D201*'Custos Variáveis ate dez-20'!$E$10) -> 127940.2785 | M201: =(E201*'Custos Variáveis ate dez-20'!$E$11) -> 1881616.315 | N201: =(F201*'Custos Variáveis ate dez-20'!$E$12) -> 355742.1539 | O201: =(G201*'Custos Variáveis ate dez-20'!$E$13) -> 154113.1182 | P201: =(H201*'Custos Variáveis ate dez-20'!$E$14) -> 441151.2409 | R201: =($D201*'Custos Variáveis ate dez-20'!$G$10) -> 3838.208355 | S201: =($E201*'Custos Variáveis ate dez-20'!$G$11) -> 56448.48946 | T201: =($F201*'Custos Variáveis ate dez-20'!$G$12) -> 10672.26462 | U201: =($G201*'Custos Variáveis ate dez-20'!$G$13) -> 4623.393547 | V201: =($H201*'Custos Variáveis ate dez-20'!$G$14) -> 13234.53723
... 321 more rows

Sheet Enc.Sociais
A1: Composição dos encargos sociais previstos | C1: Viação Pioneira
B2: Bacia (Lote): | C2: 2
A4: Grupo A | B4: % | D4: % | E4: % | F4: % | G4: %
B5: Encargos | D5: Encargos | E5: Encargos | F5: Encargos | G5: Encargos
A6: I.N.S.S. | B6: 0 | C6: Desoneração | D6: 0.05 | E6: 0.1 | F6: 0.15 | G6: 0.2
A7: SEST / SENAT / SEBRAE | B7: 0.031 | D7: 0.031 | E7: 0.031 | F7: 0.031 | G7: 0.031
A8: Salário Educação | B8: 0.025 | D8: 0.025 | E8: 0.025 | F8: 0.025 | G8: 0.025
A9: Incra | B9: 0.002 | D9: 0.002 | E9: 0.002 | F9: 0.002 | G9: 0.002
A10: Seguro Acidente | B10: 0.03 | D10: 0.03 | E10: 0.03 | F10: 0.03 | G10: 0.03
A11: F.G.T.S | B11: 0.08 | D11: 0.08 | E11: 0.08 | F11: 0.08 | G11: 0.08
A12: Total A > | B12: =SUM(B6:B11) -> 0.168 | D12: =SUM(D6:D11) -> 0.218 | E12: =SUM(E6:E11) -> 0.268 | F12: =SUM(F6:F11) -> 0.318 | G12: =SUM(G6:G11) -> 0.368
A13: Grupo B
A15: 13o Salário | B15: 0.0833 | D15: 0.0833 | E15: 0.0833 | F15: 0.0833 | G15: 0.0833
A16: Abono de férias | B16: 0.02777777778 | D16: 0.02777777778 | E16: 0.02777777778 | F16: 0.02777777778 | G16: 0.02777777778
A17: Adicional ao Abono de Férias (7 dias) | B17: 0.01944444444 | D17: 0.01944444444 | E17: 0.01944444444 | F17: 0.01944444444 | G17: 0.01944444444
A18: Aviso prévio trabalhado | B18: 0.0011 | D18: 0.0011 | E18: 0.0011 | F18: 0.0011 | G18: 0.0011
A19: Licença funeral / casamento | B19: 0.0003 | D19: 0.0003 | E19: 0.0003 | F19: 0.0003 | G19: 0.0003
A20: Licença paternidade | B20: 0.0004 | D20: 0.0004 | E20: 0.0004 | F20: 0.0004 | G20: 0.0004
A21: Total B > | B21: =SUM(B15:B20) -> 0.1323222222 | D21: =SUM(D15:D20) -> 0.1323222222 | E21: =SUM(E15:E20) -> 0.1323222222 | F21: =SUM(F15:F20) -> 0.1323222222 | G21: =SUM(G15:G20) -> 0.1323222222
A23: Grupo C
A25: Aviso prévio indenizado | B25: 0.05555555556 | D25: 0.05555555556 | E25: 0.05555555556 | F25: 0.05555555556 | G25: 0.05555555556
A26: FGTS sobre Aviso Prévio Indenizado | B26: 0.004444444444 | D26: 0.004444444444 | E26: 0.004444444444 | F26: 0.004444444444 | G26: 0.004444444444
A27: Multa sobre FGTS em Rescisão sem justa causa | B27: 0.005555555556 | D27: 0.005555555556 | E27: 0.005555555556 | F27: 0.005555555556 | G27: 0.005555555556
A28: Contribuição social Artigo 1 Lei C. 110/01 | B28: 0.016 | D28: 0.016 | E28: 0.016 | F28: 0.016 | G28: 0.016
A29: Cálculo de férias e 13º salário referente
A30: ao Aviso Prévio Indenizado | B30: 0.006172685185 | D30: 0.006172685185 | E30: 0.006172685185 | F30: 0.006172685185 | G30: 0.006172685185
A31: FGTS do cálculo de férias e 13º salário
A32: referente ao Aviso Prévio Indenizado | B32: 0.0004938148148 | D32: 0.0004938148148 | E32: 0.0004938148148 | F32: 0.0004938148148 | G32: 0.0004938148148
A33: Total C | B33: =SUM(B25:B32) -> 0.08822205556 | D33: =SUM(D25:D32) -> 0.08822205556 | E33: =SUM(E25:E32) -> 0.08822205556 | F33: =SUM(F25:F32) -> 0.08822205556 | G33: =SUM(G25:G32) -> 0.08822205556
A34: Grupo D
A36: Incidência do Grupo A no Grupo B | B36: =(B12*B21) -> 0.02223013333 | D36: =(D12*D21) -> 0.02884624444 | E36: =(E12*E21) -> 0.03546235556 | F36: =(F12*F21) -> 0.04207846667 | G36: =(G12*G21) -> 0.04869457778
A37: Total C | B37: =B36 -> 0.02223013333 | D37: =D36 -> 0.02884624444 | E37: =E36 -> 0.03546235556 | F37: =F36 -> 0.04207846667 | G37: =G36 -> 0.04869457778
A39: Total | B39: =B12+B21+B33+B37 -> 0.4107744111 | C39: Reoneração | D39: =D12+D21+D33+D37 -> 0.4673905222 | E39: =E12+E21+E33+E37 -> 0.5240066333 | F39: =F12+F21+F33+F37 -> 0.5806227444 | G39: =G12+G21+G33+G37 -> 0.6372388556

Sheet FU Resumo
B2: Bacia 2 | C2: FU POR FUNÇÃO | I2: FU FÍSICO PARA BENEFÍCIOS
B3: Mês
B4: de | C4: Motoristas | D4: Cobradores | E4: Controle | F4: Manutenção | G4: Administração | I4: Motoristas | J4: Cobradores | K4: Controle | L4: Manutenção | M4: Administração
B5: Ref. | E5: Operacional | K5: Operacional
B6: 2013-08-01 | C6: 2.96087 | D6: =C6 -> 2.96087 | E6: ='Plan2 R$ Pessoal'!D23 -> 0.07881773399 | F6: ='Plan2 R$ Pessoal'!D45 -> 0.4433497537 | G6: ='Plan4 R$ Pessoal'!D33 -> 0.06075533662 | I6: =C6 -> 2.96087 | J6: =D6 -> 2.96087 | K6: =E6 -> 0.07881773399 | L6: =F6 -> 0.4433497537 | M6: =G6 -> 0.06075533662
B7: =DATE(YEAR(B6),MONTH(B6)+1,DAY(B6)) -> 2013-09-01 | C7: 2.667585466 | D7: 2.667585466 | E7: =E6 -> 0.07881773399 | F7: =F6 -> 0.4433497537 | G7: =G6 -> 0.06075533662 | I7: 2.667585466 | J7: =D7 -> 2.667585466 | K7: 0.07881773399 | L7: 0.4433497537 | M7: 0.06075533662
B8: 2013-10-01 | C8: 2.180979639 | D8: 2.180979639 | E8: 0.07881773399 | F8: 0.4433497537 | G8: 0.06075533662 | I8: 2.180979639 | J8: 2.180979639 | K8: 0.07881773399 | L8: 0.4433497537 | M8: 0.06075533662
B9: 2013-11-01 | C9: 1.979030089 | D9: 1.979030089 | E9: 0.07881773399 | F9: 0.4433497537 | G9: 0.06075533662 | I9: 1.979030089 | J9: 1.979030089 | K9: 0.07881773399 | L9: 0.4433497537 | M9: 0.06075533662
B10: 2013-12-01 | C10: 2.027481707 | D10: 2.027481707 | E10: 0.07881773399 | F10: 0.4433497537 | G10: 0.06075533662 | I10: 2.027481707 | J10: 2.027481707 | K10: 0.07881773399 | L10: 0.4433497537 | M10: 0.06075533662
B11: 2014-01-01 | C11: 1.953419409 | D11: 1.953419409 | E11: 0.07881773399 | F11: 0.4433497537 | G11: 0.06075533662 | I11: 1.953419409 | J11: 1.953419409 | K11: 0.07881773399 | L11: 0.4433497537 | M11: 0.06075533662
B12: 2014-02-01 | C12: 2.036566061 | D12: 2.036566061 | E12: 0.07881773399 | F12: 0.4433497537 | G12: 0.06075533662 | I12: 2.036566061 | J12: 2.036566061 | K12: 0.07881773399 | L12: 0.4433497537 | M12: 0.06075533662
B13: 2014-03-01 | C13: 1.970607303 | D13: 1.970607303 | E13: 0.07881773399 | F13: 0.4433497537 | G13: 0.06075533662 | I13: 1.970607303 | J13: 1.970607303 | K13: 0.07881773399 | L13: 0.4433497537 | M13: 0.06075533662
B14: 2014-04-01 | C14: 2.017594066 | D14: 2.017594066 | E14: 0.07881773399 | F14: 0.4433497537 | G14: 0.06075533662 | I14: 2.017594066 | J14: 2.017594066 | K14: 0.07881773399 | L14: 0.4433497537 | M14: 0.06075533662
B15: 2014-05-01 | C15: 2.047528696 | D15: 2.047528696 | E15: 0.07881773399 | F15: 0.4433497537 | G15: 0.06075533662 | I15: 2.047528696 | J15: 2.047528696 | K15: 0.07881773399 | L15: 0.4433497537 | M15: 0.06075533662
B16: 2014-06-01 | C16: 2.031919927 | D16: 2.031919927 | E16: 0.07881773399 | F16: 0.4433497537 | G16: 0.06075533662 | I16: 2.031919927 | J16: 2.031919927 | K16: 0.07881773399 | L16: 0.4433497537 | M16: 0.06075533662
B17: 2014-07-01 | C17: 2.145436732 | D17: 2.145436732 | E17: 0.07881773399 | F17: 0.4433497537 | G17: 0.06075533662 | I17: 2.145436732 | J17: 2.145436732 | K17: 0.07881773399 | L17: 0.4433497537 | M17: 0.06075533662
B18: =DATE(YEAR(B17),MONTH(B17)+1,DAY(B17)) -> 2014-08-01 | C18: 2.124551351 | D18: 2.124551351 | E18: =E17 -> 0.07881773399 | F18: =F17 -> 0.4433497537 | G18: =G17 -> 0.06075533662 | I18: =C18 -> 2.124551351 | J18: =D18 -> 2.124551351 | K18: =K17 -> 0.07881773399 | L18: =L17 -> 0.4433497537 | M18: =M17 -> 0.06075533662
B19: =DATE(YEAR(B18),MONTH(B18)+1,DAY(B18)) -> 2014-09-01 | C19: 1.997210642 | D19: 1.997210642 | E19: =E18 -> 0.07881773399 | F19: =F18 -> 0.4433497537 | G19: =G18 -> 0.06075533662 | I19: 1.997210642 | J19: 1.997210642 | K19: =K18 -> 0.07881773399 | L19: =L18 -> 0.4433497537 | M19: =M18 -> 0.06075533662
B20: 2014-10-01 | C20: 1.994530289 | D20: 1.994530289 | E20: 0.07881773399 | F20: 0.4433497537 | G20: 0.06075533662 | I20: 1.994530289 | J20: 1.994530289 | K20: 0.07881773399 | L20: 0.4433497537 | M20: 0.06075533662
B21: 2014-11-01 | C21: 1.994530289 | D21: 1.994530289 | E21: 0.07881773399 | F21: 0.4433497537 | G21: 0.06075533662 | I21: 1.994530289 | J21: 1.994530289 | K21: 0.07881773399 | L21: 0.4433497537 | M21: 0.06075533662
B22: 2014-12-01 | C22: 2.127648711 | D22: 2.127648711 | E22: 0.07881773399 | F22: 0.4433497537 | G22: 0.06075533662 | I22: 2.127648711 | J22: 2.127648711 | K22: 0.07881773399 | L22: 0.4433497537 | M22: 0.06075533662
B23: 2015-01-01 | C23: 2.343760916 | D23: 2.343760916 | E23: 0.07881773399 | F23: 0.4433497537 | G23: 0.06075533662 | I23: 2.343760916 | J23: 2.343760916 | K23: 0.07881773399 | L23: 0.4433497537 | M23: 0.06075533662
B24: 2015-02-01 | C24: 2.398278412 | D24: 2.398278412 | E24: 0.07881773399 | F24: 0.4433497537 | G24: 0.06075533662 | I24: =C24 -> 2.398278412 | J24: =D24 -> 2.398278412 | K24: 0.07881773399 | L24: 0.4433497537 | M24: 0.06075533662
B25: 2015-03-01 | C25: 2.395460088 | D25: 2.395460088 | E25: 0.07881773399 | F25: 0.4433497537 | G25: 0.06075533662 | I25: 2.395460088 | J25: 2.395460088 | K25: 0.07881773399 | L25: 0.4433497537 | M25: 0.06075533662
B26: 2015-04-01 | C26: 2.059823697 | D26: 2.059823697 | E26: 0.07881773399 | F26: 0.4433497537 | G26: 0.06075533662 | I26: 2.059823697 | J26: 2.059823697 | K26: 0.07881773399 | L26: 0.4433497537 | M26: 0.06075533662
B27: 2015-05-01 | C27: 2.048713355 | D27: 2.048713355 | E27: 0.07881773399 | F27: 0.4433497537 | G27: 0.06075533662 | I27: 2.048713355 | J27: 2.048713355 | K27: 0.07881773399 | L27: 0.4433497537 | M27: 0.06075533662
B28: 2015-06-01 | C28: 2.044754363 | D28: 2.044754363 | E28: 0.07881773399 | F28: 0.4433497537 | G28: 0.06075533662 | I28: 2.044754363 | J28: 2.044754363 | K28: 0.07881773399 | L28: 0.4433497537 | M28: 0.06075533662
B29: 2015-07-01 | C29: 2.016851214 | D29: 2.016851214 | E29: 0.07881773399 | F29: 0.4433497537 | G29: 0.06075533662 | I29: 2.016851214 | J29: 2.016851214 | K29: 0.07881773399 | L29: 0.4433497537 | M29: 0.06075533662
B30: =DATE(YEAR(B29),MONTH(B29)+1,DAY(B29)) -> 2015-08-01 | C30: 2.030002279 | D30: 2.030002279 | E30: =E29 -> 0.07881773399 | F30: =F29 -> 0.4433497537 | G30: =G29 -> 0.06075533662 | I30: =C30 -> 2.030002279 | J30: =D30 -> 2.030002279 | K30: =K29 -> 0.07881773399 | L30: =L29 -> 0.4433497537 | M30: =M29 -> 0.06075533662
B31: =DATE(YEAR(B30),MONTH(B30)+1,DAY(B30)) -> 2015-09-01 | C31: 2.079718054 | D31: 2.079718054 | E31: =E30 -> 0.07881773399 | F31: =F30 -> 0.4433497537 | G31: =G30 -> 0.06075533662 | I31: 2.079718054 | J31: 2.079718054 | K31: =K30 -> 0.07881773399 | L31: =L30 -> 0.4433497537 | M31: =M30 -> 0.06075533662
B32: 2015-10-01 | C32: 2.193132925 | D32: 2.193132925 | E32: 0.07881773399 | F32: 0.4433497537 | G32: 0.06075533662 | I32: 2.193132925 | J32: 2.193132925 | K32: 0.07881773399 | L32: 0.4433497537 | M32: 0.06075533662
B33: 2015-11-01 | C33: 2.202468575 | D33: 2.202468575 | E33: 0.07881773399 | F33: 0.4433497537 | G33: 0.06075533662 | I33: 2.202468575 | J33: 2.202468575 | K33: 0.07881773399 | L33: 0.4433497537 | M33: 0.06075533662
B34: 2015-12-01 | C34: 2.237143633 | D34: 2.237143633 | E34: 0.07881773399 | F34: 0.4433497537 | G34: 0.06075533662 | I34: 2.237143633 | J34: 2.237143633 | K34: 0.07881773399 | L34: 0.4433497537 | M34: 0.06075533662
B35: 2016-01-01 | C35: 2.294459094 | D35: 2.294459094 | E35: 0.07881773399 | F35: 0.4433497537 | G35: 0.06075533662 | I35: 2.294459094 | J35: 2.294459094 | K35: 0.07881773399 | L35: 0.4433497537 | M35: 0.06075533662
B36: 2016-02-01 | C36: 2.304323744 | D36: 2.304323744 | E36: 0.07881773399 | F36: 0.4433497537 | G36: 0.06075533662 | I36: 2.304323744 | J36: 2.304323744 | K36: 0.07881773399 | L36: 0.4433497537 | M36: 0.06075533662
B37: 2016-03-01 | C37: 2.119827192 | D37: 2.119827192 | E37: 0.07881773399 | F37: 0.4433497537 | G37: 0.06075533662 | I37: 2.119827192 | J37: 2.119827192 | K37: 0.07881773399 | L37: 0.4433497537 | M37: 0.06075533662
B38: 2016-04-01 | C38: 2.171623011 | D38: 2.171623011 | E38: 0.07881773399 | F38: 0.4433497537 | G38: 0.06075533662 | I38: 2.171623011 | J38: 2.171623011 | K38: 0.07881773399 | L38: 0.4433497537 | M38: 0.06075533662
B39: 2016-05-01 | C39: 2.193685694 | D39: 2.193685694 | E39: 0.07881773399 | F39: 0.4433497537 | G39: 0.06075533662 | I39: 2.193685694 | J39: 2.193685694 | K39: 0.07881773399 | L39: 0.4433497537 | M39: 0.06075533662
B40: 2016-06-01 | C40: 2.212197482 | D40: 2.212197482 | E40: 0.07881773399 | F40: 0.4433497537 | G40: 0.06075533662 | I40: 2.212197482 | J40: 2.212197482 | K40: 0.07881773399 | L40: 0.4433497537 | M40: 0.06075533662
B41: 2016-07-01 | C41: 2.288413487 | D41: 2.288413487 | E41: 0.07881773399 | F41: 0.4433497537 | G41: 0.06075533662 | I41: 2.288413487 | J41: 2.288413487 | K41: 0.07881773399 | L41: 0.4433497537 | M41: 0.06075533662
B42: =DATE(YEAR(B41),MONTH(B41)+1,DAY(B41)) -> 2016-08-01 | C42: 2.287265248 | D42: 2.287265248 | E42: =E41 -> 0.07881773399 | F42: =F41 -> 0.4433497537 | G42: =G41 -> 0.06075533662 | I42: =C42 -> 2.287265248 | J42: =D42 -> 2.287265248 | K42: =K41 -> 0.07881773399 | L42: =L41 -> 0.4433497537 | M42: =M41 -> 0.06075533662
B43: =DATE(YEAR(B42),MONTH(B42)+1,DAY(B42)) -> 2016-09-01 | C43: 2.360647948 | D43: 2.360647948 | E43: =E42 -> 0.07881773399 | F43: =F42 -> 0.4433497537 | G43: =G42 -> 0.06075533662 | I43: 2.360647948 | J43: 2.360647948 | K43: =K42 -> 0.07881773399 | L43: =L42 -> 0.4433497537 | M43: =M42 -> 0.06075533662
B44: 2016-10-01 | C44: 2.323594451 | D44: 2.323594451 | E44: 0.07881773399 | F44: 0.4433497537 | G44: 0.06075533662 | I44: 2.323594451 | J44: 2.323594451 | K44: 0.07881773399 | L44: 0.4433497537 | M44: 0.06075533662
B45: 2016-11-01 | C45: 2.338534589 | D45: 2.338534589 | E45: 0.07881773399 | F45: 0.4433497537 | G45: 0.06075533662 | I45: 2.338534589 | J45: 2.338534589 | K45: 0.07881773399 | L45: 0.4433497537 | M45: 0.06075533662
B46: 2016-12-01 | C46: 2.458361591 | D46: 2.458361591 | E46: 0.07881773399 | F46: 0.4433497537 | G46: 0.06075533662 | I46: 2.458361591 | J46: 2.458361591 | K46: 0.07881773399 | L46: 0.4433497537 | M46: 0.06075533662
B47: 2017-01-01 | C47: 2.4957319 | D47: 2.4957319 | E47: 0.07881773399 | F47: 0.4433497537 | G47: 0.06075533662 | I47: 2.4957319 | J47: 2.4957319 | K47: 0.07881773399 | L47: 0.4433497537 | M47: 0.06075533662
B48: 2017-02-01 | C48: 2.665271361 | D48: 2.665271361 | E48: 0.07881773399 | F48: 0.4433497537 | G48: 0.06075533662 | I48: 2.665271361 | J48: 2.665271361 | K48: 0.07881773399 | L48: 0.4433497537 | M48: 0.06075533662
B49: 2017-03-01 | C49: 2.751332273 | D49: 2.751332273 | E49: 0.07881773399 | F49: 0.4433497537 | G49: 0.06075533662 | I49: 2.751332273 | J49: 2.751332273 | K49: 0.07881773399 | L49: 0.4433497537 | M49: 0.06075533662
B50: 2017-04-01 | C50: 2.76103742 | D50: 2.76103742 | E50: 0.07881773399 | F50: 0.4433497537 | G50: 0.06075533662 | I50: 2.76103742 | J50: 2.76103742 | K50: 0.07881773399 | L50: 0.4433497537 | M50: 0.06075533662
B51: 2017-05-01 | C51: 2.733379178 | D51: 2.733379178 | E51: 0.07881773399 | F51: 0.4433497537 | G51: 0.06075533662 | I51: 2.733379178 | J51: 2.733379178 | K51: 0.07881773399 | L51: 0.4433497537 | M51: 0.06075533662
B52: 2017-06-01 | C52: 2.733081012 | D52: 2.733081012 | E52: 0.07881773399 | F52: 0.4433497537 | G52: 0.06075533662 | I52: 2.733081012 | J52: 2.733081012 | K52: 0.07881773399 | L52: 0.4433497537 | M52: 0.06075533662
B53: 2017-07-01 | C53: 2.732645608 | D53: 2.732645608 | E53: 0.07881773399 | F53: 0.4433497537 | G53: 0.06075533662 | I53: 2.732645608 | J53: 2.732645608 | K53: 0.07881773399 | L53: 0.4433497537 | M53: 0.06075533662
B54: =DATE(YEAR(B53),MONTH(B53)+1,DAY(B53)) -> 2017-08-01 | C54: 2.631554728 | D54: 2.631554728 | E54: =E53 -> 0.07881773399 | F54: =F53 -> 0.4433497537 | G54: =G53 -> 0.06075533662 | I54: =C54 -> 2.631554728 | J54: =D54 -> 2.631554728 | K54: =K53 -> 0.07881773399 | L54: =L53 -> 0.4433497537 | M54: =M53 -> 0.06075533662
B55: =DATE(YEAR(B54),MONTH(B54)+1,DAY(B54)) -> 2017-09-01 | C55: 2.562490757 | D55: 2.562490757 | E55: =E54 -> 0.07881773399 | F55: =F54 -> 0.4433497537 | G55: =G54 -> 0.06075533662 | I55: 2.562490757 | J55: 2.562490757 | K55: =K54 -> 0.07881773399 | L55: =L54 -> 0.4433497537 | M55: =M54 -> 0.06075533662
